Workbook

Sheet Kuntakortti
A1: Valtiovarainministeriö/Kunta- ja aluehallinto-osasto,1.6.2021
A2: KUNTAKONSERNIEN TP 2018 - 2020 (lyhennetty kaava) | G2: Valitse kunta valikosta:
A4: =INDEX(Luvut!$B$3:'Luvut'!$B$297,$A$7) -> KOKO MAA (Manner-Suomi) | D4: 2018 | G4: 2019 | J4: 2020
A6: Asukasluku | D6: =VLOOKUP($A$4,Luvut!$B$3:$AV$297,2) -> 5488130 | G6: =VLOOKUP($A$4,Luvut!$B$3:$EJ$297,48) -> 5495408 | I6: =((G6/D6)-1)*100 -> 0.1326134767 | J6: =VLOOKUP($A$4,Luvut!$B$3:$EJ$297,94) -> 5503664 | L6: =((J6/G6)-1)*100 -> 0.1502345231
A7: 96
A8: Tunnuslukuja
I9: muut.% | L9: muut.%
A10: Lainat, euro/as | D10: =E66 -> 6557.649873 | G10: =H66 -> 7105.3243 | I10: =((G10/D10)-1)*100 -> 8.351687525 | J10: =K66 -> 7480.922891 | L10: =((J10/G10)-1)*100 -> 5.286156901
A12: Lainanhoitokate* | D12: =VLOOKUP($A$4,Luvut!$B$3:$AV$297,4) -> 1.526367982 | G12: =VLOOKUP($A$4,Luvut!$B$3:$EJ$297,50) -> 1.35695111 | J12: =VLOOKUP($A$4,Luvut!$B$3:$EJ$297,96) -> 1.982428854
A13: Suhteellinen velkaantuneisuus, % | D13: =VLOOKUP($A$4,Luvut!$B$3:$AV$297,5) -> 80.75610324 | G13: =VLOOKUP($A$4,Luvut!$B$3:$EJ$297,51) -> 84.44733037 | J13: =VLOOKUP($A$4,Luvut!$B$3:$EJ$297,97) -> 84.26466376
A14: Rahoitusvarallisuus, euro/as | D14: =VLOOKUP($A$4,Luvut!$B$3:$AV$297,6) -> -6400.727752 | G14: =VLOOKUP($A$4,Luvut!$B$3:$EJ$297,52) -> -6908.850808 | J14: =VLOOKUP($A$4,Luvut!$B$3:$EJ$297,98) -> -7091.173262
A15: Omavaraisuusaste, % | D15: =VLOOKUP($A$4,Luvut!$B$3:$AV$297,10) -> 42.44390773 | G15: =VLOOKUP($A$4,Luvut!$B$3:$EJ$297,56) -> 41.85903726 | J15: =VLOOKUP($A$4,Luvut!$B$3:$EJ$297,102) -> 42.05197956
A17: Rahavarat, euro/as | D17: =VLOOKUP($A$4,Luvut!$B$3:$AV$297,11) -> 1343.538692 | G17: =VLOOKUP($A$4,Luvut!$B$3:$EJ$297,57) -> 1415 | J17: =VLOOKUP($A$4,Luvut!$B$3:$EJ$297,103) -> 1682.390131
A18: Kassan riittävyys, pv | D18: =VLOOKUP($A$4,Luvut!$B$3:$AV$297,12) -> 41.77203475 | G18: =VLOOKUP($A$4,Luvut!$B$3:$EJ$297,58) -> 39.9955649 | J18: =VLOOKUP($A$4,Luvut!$B$3:$EJ$297,104) -> 49.38402432
A19: Kassastamaksut, euro/as | D19: =VLOOKUP($A$4,Luvut!$B$3:$AV$297,13) -> 11739.71116 | G19: =VLOOKUP($A$4,Luvut!$B$3:$EJ$297,59) -> 12284.03351 | J19: =VLOOKUP($A$4,Luvut!$B$3:$EJ$297,105) -> 12434.63663
A20: Tuloslaskelma | D20: 1000 | E20: euro/as | G20: 1000 | H20: euro/as | I20: muut.% | J20: 1000 | K20: euro/as | L20: muut.% | N20: 2018 - 2019 | O20: 2019 - 2020
N21: €/as | O21: €/as
D22: =VLOOKUP($A$4,Luvut!$B$3:$AZ$297,14) -> 0
D23: =VLOOKUP($A$4,Luvut!$B$3:$EL$297,134) -> 0
A24: Toimintatuotot, sis. valmistus omaan käyt. | D24: =VLOOKUP($A$4,Luvut!$B$3:$AV$297,15) -> 25943563 | E24: =D24*1000/$D$6 -> 4727.213641 | G24: =VLOOKUP($A$4,Luvut!$B$3:$EJ$297,61) -> 26773464 | H24: =G24*1000/$G$6 -> 4871.970198 | I24: =((G24/D24)-1)*100 -> 3.198870564 | J24: =VLOOKUP($A$4,Luvut!$B$3:$EJ$297,107) -> 26450859 | K24: =J24*1000/$J$6 -> 4806.045391 | L24: =((J24/G24)-1)*100 -> -1.204943073 | N24: =((H24/E24)-1)*100 -> 3.062196202 | O24: =((K24/H24)-1)*100 -> -1.353144706
A25: Toimintakulut | D25: =VLOOKUP($A$4,Luvut!$B$3:$AV$297,16) -> 52927942 | E25: =D25*1000/$D$6 -> 9644.075851 | G25: =VLOOKUP($A$4,Luvut!$B$3:$EJ$297,62) -> 54871212 | H25: =G25*1000/$G$6 -> 9984.920501 | I25: 3.671538939 | J25: =VLOOKUP($A$4,Luvut!$B$3:$EJ$297,108) -> 55390857 | K25: =J25*1000/$J$6 -> 10064.36022 | L25: 0.9470266485 | N25: =((H25/E25)-1)*100 -> 3.534238585 | O25: =((K25/H25)-1)*100 -> 0.7955968643
A26: Osuus osakkuusyhteisöjen voitosta/tappiosta | D26: =VLOOKUP($A$4,Luvut!$B$3:$AZ$297,17) -> 66311 | E26: 12.08262195 | G26: =VLOOKUP($A$4,Luvut!$B$3:$EJ$297,63) -> 68648 | H26: 12.49188413 | J26: =VLOOKUP($A$4,Luvut!$B$3:$EJ$297,109) -> 93462 | K26: =J26*1000/$J$6 -> 16.98177796
A27: Toimintakate | D27: =VLOOKUP($A$4,Luvut!$B$3:$AV$297,18) -> -26918068 | E27: -4904.779588 | G27: =VLOOKUP($A$4,Luvut!$B$3:$EJ$297,64) -> -28029100 | H27: -5100.458419 | I27: 4.127458182 | J27: =VLOOKUP($A$4,Luvut!$B$3:$EJ$297,110) -> -28846536 | K27: =J27*1000/$J$6 -> -5241.333046 | L27: 2.91638333 | N27: =((H27/E27)-1)*100 -> 3.989554019 | O27: =((K27/H27)-1)*100 -> 2.761999331
A29: Verotulot | D29: =VLOOKUP($A$4,Luvut!$B$3:$AV$297,19) -> 22270468 | E29: 4057.933759 | G29: =VLOOKUP($A$4,Luvut!$B$3:$EJ$297,65) -> 22852554 | H29: 4158.481772 | I29: 2.613712473 | J29: =VLOOKUP($A$4,Luvut!$B$3:$EJ$297,111) -> 23776310 | K29: =J29*1000/$J$6 -> 4320.087491 | L29: 4.042244031 | N29: =((H29/E29)-1)*100 -> 2.477813083 | O29: =((K29/H29)-1)*100 -> 3.886171137
A30: Valtionosuudet, | D30: =VLOOKUP($A$4,Luvut!$B$3:$AV$297,20) -> 9617527 | E30: 1752.423321 | G30: =VLOOKUP($A$4,Luvut!$B$3:$EJ$297,66) -> 9778703 | H30: 1779.431664 | I30: 1.675857006 | J30: =VLOOKUP($A$4,Luvut!$B$3:$EJ$297,112) -> 12215170 | K30: =J30*1000/$J$6 -> 2219.461435 | L30: 24.91605482 | N30: =((H30/E30)-1)*100 -> 1.54119969 | O30: =((K30/H30)-1)*100 -> 24.7286693
A32: Verorahoitus | D32: =SUM(D29:D30) -> 31887995 | E32: 5810.35708 | G32: =SUM(G29:G30) -> 32631257 | H32: 5937.913436 | I32: 2.330852097 | J32: =SUM(J29:J30) -> 35991480 | K32: =J32*1000/$J$6 -> 6539.548926 | L32: 10.29755918 | N32: =((H32/E32)-1)*100 -> 2.19532732 | O32: =((K32/H32)-1)*100 -> 10.13210274
A33: Käyttökate | D33: =D32+D27 -> 4969927 | E33: 905.5774918 | G33: =G27+G32 -> 4602157 | H33: 837.455017 | J33: =J27+J32 -> 7144944 | K33: =J33*1000/$J$6 -> 1298.215879
A35: Korkotuotot/-menot, netto | D35: =VLOOKUP($A$4,Luvut!$B$3:$AV$297,23) -> -334759 | E35: -60.99691516 | G35: =VLOOKUP($A$4,Luvut!$B$3:$EJ$297,69) -> -331984 | H35: -60.4111651 | J35: =VLOOKUP($A$4,Luvut!$B$3:$EJ$297,115) -> -355306 | K35: =J35*1000/$J$6 -> -64.55808349
A36: Muut rahoituskulut/-tuotot, netto | D36: =VLOOKUP($A$4,Luvut!$B$3:$AV$297,24) -> 102912 | E36: 18.7517424 | G36: =VLOOKUP($A$4,Luvut!$B$3:$EJ$297,70) -> 204608 | H36: 37.23254033 | J36: =VLOOKUP($A$4,Luvut!$B$3:$EJ$297,116) -> 104750 | K36: =J36*1000/$J$6 -> 19.03277526
A37: Vuosikate | D37: =VLOOKUP($A$4,Luvut!$B$3:$AV$297,25) -> 4738081 | E37: 863.3325012 | G37: =VLOOKUP($A$4,Luvut!$B$3:$EJ$297,71) -> 4474781 | H37: 814.2763922 | J37: =VLOOKUP($A$4,Luvut!$B$3:$EJ$297,117) -> 6894388 | K37: =J37*1000/$J$6 -> 1252.690571
A39: Suunnitelman mukaiset poistot ja arvonalen. | D39: =VLOOKUP($A$4,Luvut!$B$3:$AV$297,26) -> 4281198 | E39: 780.0831977 | G39: =VLOOKUP($A$4,Luvut!$B$3:$EJ$297,72) -> 4468740 | H39: 813.1771108 | I39: 4.380596272 | J39: =VLOOKUP($A$4,Luvut!$B$3:$EJ$297,118) -> 4681442 | K39: =J39*1000/$J$6 -> 850.6046154 | L39: 4.759775686
A40: Satunnaiset erät | D40: =VLOOKUP($A$4,Luvut!$B$3:$AV$297,27) -> -9816 | E40: -1.788587369 | G40: =VLOOKUP($A$4,Luvut!$B$3:$EJ$297,73) -> 339759 | H40: 61.82598271 | J40: =VLOOKUP($A$4,Luvut!$B$3:$EJ$297,119) -> 119640 | K40: =J40*1000/$J$6 -> 21.73824565
A42: Tilikauden tulos | D42: =VLOOKUP($A$4,Luvut!$B$3:$AV$297,29) -> 447119 | E42: 81.47019112 | G42: =VLOOKUP($A$4,Luvut!$B$3:$EJ$297,75) -> 345800 | H42: 62.92526415 | J42: =VLOOKUP($A$4,Luvut!$B$3:$EJ$297,121) -> 2332586 | K42: =J42*1000/$J$6 -> 423.8242015
A44: Tilinpäätössiirrot | D44: =VLOOKUP($A$4,Luvut!$B$3:$AV$297,31) -> 17985 | E44: =D44*1000/$D$6 -> 3.277072518 | G44: =VLOOKUP($A$4,Luvut!$B$3:$EJ$297,77) -> 24483 | H44: 4.455174211 | J44: =VLOOKUP($A$4,Luvut!$B$3:$EJ$297,123) -> -58220 | K44: =J44*1000/$J$6 -> -10.5784074
A45: Tilikauden verot | D45: =VLOOKUP($A$4,Luvut!$B$3:$EJ$297,32) -> -84766 | E45: -15.44533384 | G45: =VLOOKUP($A$4,Luvut!$B$3:$EJ$297,78) -> 103368 | H45: 18.80988636 | J45: =VLOOKUP($A$4,Luvut!$B$3:$EJ$297,124) -> 75433 | K45: =J45*1000/$J$6 -> 13.70596025
A46: Laskennalliset verot | D46: =VLOOKUP($A$4,Luvut!$B$3:$EJ$297,33) -> -64631 | E46: -11.77650675 | G46: =VLOOKUP($A$4,Luvut!$B$3:$EJ$297,79) -> -54303 | H46: -9.881522901 | J46: =VLOOKUP($A$4,Luvut!$B$3:$EJ$297,125) -> -68982 | K46: =J46*1000/$J$6 -> -12.53383201
A47: Vähemmistöosuudet | D47: =VLOOKUP($A$4,Luvut!$B$3:$AV$297,30) -> -26068 | E47: =D47*1000/$D$6 -> -4.749887484 | G47: =VLOOKUP($A$4,Luvut!$B$3:$EJ$297,76) -> -36500 | H47: =G47*1000/$G$6 -> -6.641909027 | J47: =VLOOKUP($A$4,Luvut!$B$3:$EJ$297,122) -> -45422 | K47: -8.253047424
A48: Tilikauden yli-/alijäämä | D48: =VLOOKUP($A$4,Luvut!$B$3:$AV$297,34) -> 288815 | E48: 52.62539335 | G48: =VLOOKUP($A$4,Luvut!$B$3:$EJ$297,80) -> 176111 | H48: 32.0469381 | J48: =VLOOKUP($A$4,Luvut!$B$3:$EJ$297,126) -> 2084529 | K48: =J48*1000/$J$6 -> 378.7529544
A49: Taseen kertynyt yli-/alijäämä | D49: =VLOOKUP($A$4,Luvut!$B$3:$AW$297,35) -> 12553814 | E49: 2287.448366 | G49: =VLOOKUP($A$4,Luvut!$B$3:$EJ$297,81) -> 12668228 | H49: 2305.238847 | J49: =VLOOKUP($A$4,Luvut!$B$3:$EJ$297,127) -> 14696103 | K49: =J49*1000/$J$6 -> 2670.239862
A51: Rahoituslaskelma | D51: 1000 | E51: euro/as | G51: 1000 | H51: euro/as | J51: 1000 | K51: euro/as
A53: Toiminnan rahavirta | D53: =VLOOKUP($A$4,Luvut!$B$3:$AV$297,36) -> 4083711 | E53: 744.0988096 | G53: =VLOOKUP($A$4,Luvut!$B$3:$EJ$297,82) -> 3883613 | H53: =G53*1000/$G$6 -> 706.701486 | J53: =VLOOKUP($A$4,Luvut!$B$3:$EJ$297,128) -> 6368334 | K53: =J53*1000/$J$6 -> 1157.108065
A54: Investoinnit, netto | D54: =D55+D56+D57 -> -6237260 | E54: -1136.500046 | G54: =G55+G56+G57 -> -6830931 | H54: -1243.025268 | I54: 9.518137772 | J54: =J55+J56+J57 -> -7265469 | K54: =J54*1000/$J$6 -> -1320.114927 | L54: 6.361329078
A55: - Investointimenot | D55: =VLOOKUP($A$4,Luvut!$B$3:$EV$297,146) -> -7989989 | E55: -1455.867299 | G55: =VLOOKUP($A$4,Luvut!$B$3:$EV$297,149) -> -8899040 | H55: -1619.359291 | I55: 11.37737486 | J55: =VLOOKUP($A$4,Luvut!$B$3:$FQ$297,152) -> -9180621 | K55: -1668.092565 | L55: 3.164172765
A56: + Rahoitusosuudet investointimenoihin | D56: =VLOOKUP($A$4,Luvut!$B$3:$EV$297,147) -> 167734 | E56: 30.56305153 | G56: =VLOOKUP($A$4,Luvut!$B$3:$EV$297,150) -> 189104 | H56: 34.41127574 | I56: =((G56/D56)-1)*100 -> 12.74041041 | J56: =VLOOKUP($A$4,Luvut!$B$3:$FQ$297,153) -> 203417 | K56: 36.96028682 | L56: 7.568851003
A57: + Investointihyödykkeiden luovutustulot | D57: =VLOOKUP($A$4,Luvut!$B$3:$EV$297,148) -> 1584995 | E57: 288.8042011 | G57: =VLOOKUP($A$4,Luvut!$B$3:$EV$297,151) -> 1879005 | H57: 341.9227471 | I57: =((G57/D57)-1)*100 -> 18.54958533 | J57: =VLOOKUP($A$4,Luvut!$B$3:$FQ$297,154) -> 1711735 | K57: 311.0173513 | L57: -8.902051884
A58: Saamisten muutos | D58: =VLOOKUP($A$4,Luvut!$B$3:$AV$297,38) -> -120148 | E58: -21.89233856 | G58: =VLOOKUP($A$4,Luvut!$B$3:$EJ$297,84) -> -198386 | H58: -36.10032231 | J58: =VLOOKUP($A$4,Luvut!$B$3:$EJ$297,130) -> 130334 | K58: 23.68131485
A59: Pitkäaikaisten lainojen vähennys | D59: =VLOOKUP($A$4,Luvut!$B$3:$AV$297,39) -> -2961293 | E59: -539.5814239 | G59: =VLOOKUP($A$4,Luvut!$B$3:$EJ$297,85) -> -3191200 | H59: -580.703016 | J59: =VLOOKUP($A$4,Luvut!$B$3:$EJ$297,131) -> -3269367 | K59: -594.0346286
A60: Pitkäaikaisten lainojen lisäys | D60: =VLOOKUP($A$4,Luvut!$B$3:$FE$297,155) -> 4325546 | E60: 788.1639101 | G60: =VLOOKUP($A$4,Luvut!$B$3:$FE$297,157) -> 5848370 | H60: 1064.228534 | J60: =VLOOKUP($A$4,Luvut!$B$3:$FE$297,159) -> 6260610 | K60: 1137.534922
A61: ± Lyhytaikaisten lainojen muutos | D61: =VLOOKUP($A$4,Luvut!$B$3:$FE$297,156) -> 64935 | E61: 11.83189903 | G61: =VLOOKUP($A$4,Luvut!$B$3:$FE$297,158) -> 541869 | H61: 98.60396171 | J61: =VLOOKUP($A$4,Luvut!$B$3:$FE$297,160) -> -989476 | K61: -179.7849578
A62: Toiminnan ja investointien rahavirta | D62: =VLOOKUP($A$4,Luvut!$B$3:$AV$297,40) -> -2153549 | E62: -392.4012369 | G62: =VLOOKUP($A$4,Luvut!$B$3:$EJ$297,86) -> -2947318 | H62: -536.3237816 | J62: =VLOOKUP($A$4,Luvut!$B$3:$EJ$297,132) -> -897135 | K62: -163.0068623
A64: Takaukset muiden puolesta (jäljellä oleva po) | D64: =VLOOKUP($A$4,Luvut!$B$3:$FR$297,173) -> 1508183 | E64: 274.8081769 | G64: =VLOOKUP($A$4,Luvut!$B$3:$FS$297,174) -> 1443994 | H64: 262.7637475 | J64: =VLOOKUP($A$4,Luvut!$B$3:$FT$297,175) -> 1487603 | K64: =J64*1000/$J$6 -> 270.2932083 | L64: =((J64/G64)-1)*100 -> 3.020026399
N65: 2018 - 2019 | O65: 2019 - 2020
A66: Lainakanta, | D66: =VLOOKUP($A$4,Luvut!$B$3:$FI$297,161) -> 35989235 | E66: 6557.649873 | G66: =VLOOKUP($A$4,Luvut!$B$3:$FM$297,165) -> 39046656 | H66: 7105.3243 | I66: =((G66/D66)-1)*100 -> 8.495376465 | J66: =VLOOKUP($A$4,Luvut!$B$3:$FQ$297,169) -> 41172486 | K66: =J66*1000/$J$6 -> 7480.922891 | L66: =((J66/G66)-1)*100 -> 5.444333056 | N66: €/as | O66: €/as
A67: josta pitkäaikainen laina | D67: =VLOOKUP($A$4,Luvut!$B$3:$FI$297,162) -> 30314309 | E67: 5523.613508 | G67: =VLOOKUP($A$4,Luvut!$B$3:$FM$297,166) -> 32611444 | H67: =G67*1000/$G$6 -> 5934.308062 | J67: =VLOOKUP($A$4,Luvut!$B$3:$FQ$297,170) -> 35466665 | K67: =J67*1000/$J$6 -> 6444.191542 | N67: =((H66/E66)-1)*100 -> 8.351687525 | O67: =((K66/H66)-1)*100 -> 5.286156901
A68: josta lyhytaikainen laina | D68: =VLOOKUP($A$4,Luvut!$B$3:$FI$297,163) -> 5674926 | E68: 1034.036366 | G68: =VLOOKUP($A$4,Luvut!$B$3:$FM$297,167) -> 6435212 | H68: 1171.016238 | J68: =VLOOKUP($A$4,Luvut!$B$3:$FQ$297,171) -> 5705821 | K68: 1036.731348 | N68: =((H67/E67)-1)*100 -> 7.435251471 | O68: 8.59213028
A69: Lainasaamiset | D69: =VLOOKUP($A$4,Luvut!$B$3:$FI$297,164) -> 1170334 | E69: 213.2482284 | G69: =VLOOKUP($A$4,Luvut!$B$3:$FM$297,168) -> 1087580 | H69: 197.9070526 | J69: =VLOOKUP($A$4,Luvut!$B$3:$FQ$297,172) -> 130334 | K69: 23.68131485 | N69: 13.24710391 | O69: -11.46738062
A70: Vuokravastuut | G70: =VLOOKUP($A$4,Luvut!$B$3:$FU$297,176) -> 6171371 | H70: 1123.005062 | J70: =VLOOKUP($A$4,Luvut!$B$3:$FV$297,177) -> 7234678 | K70: 1314.52029 | N70: =((H69/E69)-1)*100 -> -7.194046104 | O70: -88.03412282
A71: Lainat ja vuokravastuut | G71: =G66+G70 -> 45218027 | H71: 8228.329362 | J71: =J66+J70 -> 48407164 | K71: 8795.443181
A73: Tuloveroprosentti | D73: =VLOOKUP($A$4,Luvut!$B$3:$AV$297,45) -> 19.87 | G73: =VLOOKUP($A$4,Luvut!$B$3:$EJ$297,91) -> 19.9 | J73: =VLOOKUP($A$4,Luvut!$B$3:$EJ$297,137) -> 19.98
A74: * Ei tietoa kertalyhenteisistä lainoista
A75: Sijoitus vuosikatteen (euro/as) mukaan | D75: =VLOOKUP($A$4,Luvut!$B$3:$AV$297,47) -> - | G75: =VLOOKUP($A$4,Luvut!$B$3:$EJ$297,93) -> - | J75: =VLOOKUP($A$4,Luvut!$B$3:$EJ$297,139) -> -
A76: Lähde: Tilastokeskus
A78: Rahoitusvarallisuus = ((saamiset + rahoitusarvopaperit + rahat ja pankkisaamiset) - (vieras pääoma - saadut ennakot))
A79: Kunnat vuoden 2020 kuntajaolla

Sheet Luvut
C1: 2018 | D1: hakee muualta | E1: 92 | F1: 93 | G1: 94 | H1: vanha | I1: 96 | J1: 97 | K1: 98 | L1: 99 | M1: 100 | N1: 101 | O1: 102 | P1: 103 | Q1: 104 | S1: 105 | T1: 106 | U1: 107 | V1: 108 | W1: summana | X1: 110 | Y1: 111 | Z1: 112 | AA1: 113 | AB1: 114 | AC1: 115 | AD1: 116 | AF1: 117 | AG1: 118 | AH1: 119 | AI1: 120 | AJ1: 121 | AK1: 122 | AL1: kaavasta | AM1: 124 | AN1: 125 | AO1: 126 | AP1: 127 | AQ1: 128 | AR1: 129 | AS1: 130 | AT1: 131 | AU1: kaavasta | AV1: 133 | AW1: 2019 | AX1: hakee muualta | AY1: 92 | AZ1: 93 | BA1: 94 | BB1: vanha | BC1: 96 | BD1: 97 | BE1: 98 | BF1: 99 | BG1: 100 | BH1: 101 | BI1: 102 | BJ1: 103 | BK1: 104 | BM1: 105 | BN1: 106 | BO1: 107 | BP1: 108 | BQ1: summana | BR1: 110 | BS1: 111 | BT1: 112 | BU1: 113 | BV1: 114 | BW1: 115 | BX1: 116 | BY1: 117 | CA1: 118 | CB1: 119 | CC1: 120 | CD1: 121 | CE1: 122 | CF1: kaavasta | CG1: 124 | CH1: 125 | CI1: 126 | CJ1: 127 | CK1: 128 | CL1: 129 | CM1: 130 | CN1: 131 | CO1: kaavasta | CP1: 133 | CQ1: 2020 | CR1: hakee muualta | CS1: 92 | CT1: 93 | CU1: 94 | CV1: vanha | CW1: 96 | CX1: 97 | CY1: 98 | CZ1: 99 | DA1: 100 | DB1: 101 | DC1: 102 | DD1: 107 | DE1: 108 | DF1: 109 | DG1: 110 | DH1: 111 | DI1: 112 | DJ1: 113 | DK1: summana | DL1: 115 | DM1: 116 | DN1: 117 | DO1: 118 | DP1: 119 | DQ1: 120 | DR1: 121 | DS1: 122 | DT1: 123 | DU1: 124 | DV1: 125 | DW1: 126 | DX1: 127 | DY1: 128 | DZ1: kaavasta | EA1: 130 | EB1: 131 | EC1: 132 | ED1: 133 | EE1: 134 | EF1: 135 | EG1: 136 | EH1: 137 | EI1: kaavasta | EJ1: 139 | EK1: Erillistiedot | EL1: 141 | EM1: 142 | EN1: 143 | EO1: 144 | EP1: 145 | EQ1: 2018 | ER1: 147 | ES1: 148 | ET1: 2019 | EU1: 150 | EV1: 151 | EW1: 2020 | EX1: 153 | EY1: 154 | EZ1: 2018 | FA1: 156 | FB1: 2019 | FC1: 158 | FD1: 2020 | FE1: 160 | FF1: 2018 | FG1: 162 | FH1: 163 | FI1: 164 | FJ1: 2019 | FK1: 166 | FL1: 167 | FM1: 168 | FN1: 2020 | FO1: 170 | FP1: 171 | FQ1: 172 | FR1: 2018 | FS1: 2019 | FT1: 2020 | FU1: 2019 | FV1: 2020
A2: Kunta nro | B2: Kunta | C2: Asukasluku | D2: Lainat e/asukas | E2: Lainanhoitokate | F2: Suhteellinen velkaantuneisuus-% | G2: Rahoitusvarallisuus, e/as | H2: Vuosikate | I2: Suunnitelman mukaiset poistot | J2: Tilikauden tulos | K2: Omavaraisuusaste, % | L2: Rahavarat e/as | M2: Kassan riittävyys, pv | N2: Kassasta maksut, €/as | O2: Henkilöstökulut | P2: Toimintatuotot | Q2: Toimintakulut | R2: Osuus osakkuusyhteisojen voitosta/tappiosta | S2: Toimintakate | T2: Verotulot | U2: Valtionosuudet | V2: Alv-takaisinperintä | W2: Käyttökate | X2: Korkotuotot/-menot, netto | Y2: Muut rahoitustuotot/-menot, netto (sis Osinkotuotot) | Z2: Vuosikate | AA2: Suunnitelman mukaiset poistot ja arvonalet | AB2: Satu. erät, netto | AC2: Satunnaiset kulut | AD2: Tilikauden tulos | AE2: Vähemmistöosuudet | AF2: Tilinpäätössiirrot | AG2: Tilikauden verot | AH2: Lask. Verot | AI2: Tilikauden yli- tai alijäämä | AJ2: Kumulat yli/alij | AK2: Tulorah (toiminnan rahavirta) | AL2: Investoinnit, netto | AM2: Saamisten muutos (ent Pitkäaikaisten saamisten muutokset, netto) | AN2: Pitkäaikaisten lainojen vähennys | AO2: Toim ja inv rahavirta | AP2: Verotulot | AQ2: Kunnallisvero | AR2: Osuus yhteisöveron tuotosta | AS2: Kiinteistövero | AT2: Tuloveroprosentti 2015 | AU2: Yhden veroprosentin tuotto 2015 | AV2: Sijoitus vuosikatteen mukaan | AW2: Asukasluku | AX2: Lainat e/asukas | AY2: Lainanhoitokate | AZ2: Suhteellinen velkaantuneisuus-% | BA2: Rahoitusvarallisuus, e/as | BB2: Vuosikate | BC2: Suunnitelman mukaiset poistot | BD2: Tilikauden tulos | BE2: Omavaraisuusaste, % | BF2: Rahavarat e/as | BG2: Kassan riittävyys, pv | BH2: Kassasta maksut, €/as | BI2: Henkilöstökulut | BJ2: Toimintatuotot | BK2: Toimintakulut | BL2: Osuus osakkuusyhteisojen voitosta/tappiosta | BM2: Toimintakate | BN2: Verotulot | BO2: Valtionosuudet | BP2: Alv-takaisinperintä | BQ2: Käyttökate | BR2: Korkotuotot/-menot, netto | BS2: Muut rahoitustuotot/-menot, netto (sis Osinkotuotot) | BT2: Vuosikate | BU2: Suunnitelman mukaiset poistot ja arvonalet | BV2: Satu. erät, netto | BX2: Tilikauden tulos | BY2: Vähemmistöosuudet | BZ2: Tilinpäätössiirrot | CA2: Tilikauden verot | CB2: Lask. verot | CC2: Tilikauden yli- tai alij. | CD2: Kumulat yli/alij | CE2: Toiminnan rahavirta | CF2: Investoinnit, netto | CG2: Saamisten muutos | CH2: Pitkäaikaisten lainojen vähennys | CI2: Toim ja inv rahavirta | CJ2: Verotulot | CK2: Kunnallisvero | CL2: Osuus yhteisöveron tuotosta | CM2: Kiinteistövero | CN2: Tuloveroprosentti 2019 | CO2: Yhden veroprosentin tuotto 2016 | CP2: Sijoitus vuosikatteen mukaan | CQ2: Asukasluku | CR2: Lainat e/asukas | CS2: Lainanhoitokate | CT2: Suhteellinen velkaantuneisuus-% | CU2: Rahoitusvarallisuus, e/as | CV2: Vuosikate | CW2: Suunnitelman mukaiset poistot | CX2: Tilikauden tulos | CY2: Omavaraisuusaste, % | CZ2: Rahavarat e/as | DA2: Kassan riittävyys, pv | DB2: Kassasta maksut, €/as | DC2: Henkilöstökulut | DD2: Toimintatuotot | DE2: Toimintakulut | DF2: Osuus osakkuusyhteisojen voitosta/tappiosta | DG2: Toimintakate | DH2: Verotulot | DI2: Valtionosuudet | DJ2: Alv-takaisinperintä | DK2: Käyttökate | DL2: Korkotuotot/-menot, netto | DM2: Muut rahoitustuotot/-menot, netto (sis Osinkotuotot) | DN2: Vuosikate | DO2: Suunnitelman mukaiset poistot ja arvonalet | DP2: Satu. erät | DQ2: Satu. kulut | DR2: Tilikauden tulos | DS2: Vähemmistöosuudet | DT2: Tilinpäätössiirrot | DU2: Tilikauden verot | DV2: Lask. verot | DW2: Tilikauden yli- tai alijäämä | DX2: Kumulat yli/alij | DY2: Toiminnan rahavirta | DZ2: Investoinnit, netto | EA2: Saamisten muutos | EB2: Pitkäaikaisten lainojen vähennys | EC2: Toim ja inv rahavirta | ED2: Verotulot | EE2: Takaukset muiden puolesta (jäljellä oleva pääoma) | EF2: Osuus yhteisöveron tuotosta | EG2: Kiinteistövero | EH2: Tuloveroprosentti 2020 | EI2: Yhden veroprosentin tuotto 2006 | EJ2: Sijoitus vuosikatteen mukaan | EK2: Palvelujen ostot 2018 | EL2: Palvelujen ostot 2019 | EM2: Palvelujen ostot 2020 | EN2: Harkvar2018 | EO2: Harkvar2019 | EP2: Harkvar2020 | EQ2: - Investointimenot | ER2: + Rahoitusos. investointimenoihin | ES2: + Investointihyödykk. luovutustulot | ET2: - Investointimenot | EU2: + Rahoitusosuudet investointimenoihin | EV2: + Investointihyödykkeiden luovutustulot | EW2: - Investointimenot | EX2: + Rahoitusosuudet investointimenoihin | EY2: + Investointihyödykkeiden luovutustulot | EZ2: Pitkäaikaisten lainojen lisäys | FA2: ± Lyhytaikaisten lainojen muutos | FB2: Pitkäaikaisten lainojen lisäys | FC2: ± Lyhytaikaisten lainojen muutos | FD2: Pitkäaikaisten lainojen lisäys | FE2: ± Lyhytaikaisten lainojen muutos | FF2: Lainakanta | FG2: josta pitkäaik | FH2: josta lyhytaik | FI2: Lainasaamiset | FJ2: Lainakanta | FK2: josta pitkäaik | FL2: josta lyhytaik | FM2: Lainasaamiset | FN2: Lainakanta | FO2: josta pitkäaik | FP2: josta lyhytaik | FQ2: Lainasaamiset | FR2: Takaukset muiden puolesta (jäljellä oleva pääoma) | FS2: Takaukset muiden puolesta (jäljellä oleva pääoma) | FT2: Takaukset muiden puolesta (jäljellä oleva pääoma) | FU2: Vuokravastuut | FV2: Vuokravastuut
A3: 20 | B3: Akaa | C3: 16611 | E3: 0.6902021336 | F3: 61.74350181 | G3: -4767.322858 | K3: 18.92003298 | L3: 387.0326892 | M3: 14.02369569 | N3: 10073.44531 | P3: 61885 | Q3: 150217 | R3: 9 | S3: -88323 | T3: 59625 | U3: 32456 | X3: -67 | Y3: 764 | Z3: 4455 | AA3: 7026 | AB3: 0 | AD3: -2571 | AE3: -87 | AF3: 2 | AG3: -94 | AH3: -35 | AI3: -2785 | AJ3: -9933 | AK3: 4350 | AM3: -1160 | AN3: -6662 | AO3: -4561 | AT3: 21.75 | AV3: 233 | AW3: 16475 | AY3: 1.344847861 | AZ3: 60.55128197 | BA3: -4926.676783 | BE3: 19.35800188 | BF3: 430.2883156 | BG3: 13.81481809 | BH3: 10310.16692 | BJ3: 64620 | BK3: 153015 | BL3: -4 | BM3: -88399 | BN3: 62993 | BO3: 33974 | BR3: -80 | BS3: 227 | BT3: 8715 | BU3: 8464 | BV3: 0 | BX3: 251 | BY3: -102 | BZ3: 0 | CA3: 70 | CB3: -43 | CC3: 36 | CD3: -9892 | CE3: 7916 | CG3: -198 | CH3: -6369 | CI3: -1633 | CN3: 22.25 | CP3: 112 | CQ3: 16391 | CS3: 11.40628779 | CT3: 56.08203339 | CU3: -4964.126655 | CY3: 23.59075012 | CZ3: 803.7337563 | DA3: 25.09713146 | DB3: 11689.09768 | DD3: 84365 | DE3: 170341 | DF3: 531 | DG3: -85445 | DH3: 64150 | DI3: 39506 | DL3: -147 | DM3: 338 | DN3: 18402 | DO3: 8763 | DP3: 0 | DR3: 9639 | DS3: -409 | DT3: 0 | DU3: 227 | DV3: -18 | DW3: 8985 | DX3: -1092 | DY3: 15626 | EA3: -1427 | EB3: -1190 | EC3: 258 | EH3: 22.25 | EJ3: 98 | EQ3: -9405 | ER3: 130 | ES3: 364 | ET3: -9837 | EU3: 35 | EV3: 253 | EW3: -19500 | EX3: 115 | EY3: 4017 | EZ3: 12126 | FA3: -139 | FB3: 3804 | FC3: 4960 | FD3: 16451 | FE3: -13511 | FF3: 71138 | FG3: 54488 | FH3: 16650 | FI3: 7687 | FJ3: 73531 | FK3: 52049 | FL3: 21482 | FM3: 7682 | FN3: 75779 | FO3: 62285 | FP3: 13494 | FQ3: -1427 | FR3: 6892 | FS3: 11897 | FT3: 14631 | FU3: 12541 | FV3: 15695
A4: 5 | B4: Alajärvi | C4: 9700 | E4: 0.9327116475 | F4: 52.87866095 | G4: -4758.041237 | K4: 33.05734858 | L4: 914.6391753 | M4: 24.19895531 | N4: 13795.7732 | P4: 56110 | Q4: 116873 | R4: 190 | S4: -60573 | T4: 28893 | U4: 36755 | X4: -343 | Y4: 4 | Z4: 4736 | AA4: 5876 | AB4: 0 | AD4: -1140 | AE4: -5 | AF4: 25 | AG4: -50 | AH4: 0 | AI4: -1170 | AJ4: 7456 | AK4: 4436 | AM4: 892 | AN4: -5104 | AO4: -6142 | AT4: 21.75 | AV4: 148 | AW4: 9562 | AY4: 0.7812325451 | AZ4: 51.26374266 | BA4: -5599.037858 | BE4: 31.60619305 | BF4: 801.5059611 | BG4: 21.48013028 | BH4: 15766.26229 | BJ4: 71516 | BK4: 133738 | BL4: 226 | BM4: -61996 | BN4: 29512 | BO4: 36500 | BR4: -377 | BS4: 164 | BT4: 3803 | BU4: 6114 | BV4: 0 | BX4: -2311 | BY4: 7 | BZ4: -11 | CA4: 48 | CB4: -5 | CC4: -2368 | CD4: 4891 | CE4: 3486 | CG4: 338 | CH4: -4978 | CI4: -7070 | CN4: 21.75 | CP4: 162 | CQ4: 9419 | CS4: 1.454071758 | CT4: 50.94956081 | CU4: -5587.217327 | CY4: 33.04155558 | CZ4: 1021.552182 | DA4: 23.93793367 | DB4: 15576.38815 | DD4: 70222 | DE4: 131111 | DF4: 113 | DG4: -60776 | DH4: 29583 | DI4: 40681 | DL4: -373 | DM4: 273 | DN4: 9388 | DO4: 6287 | DP4: 0 | DR4: 3101 | DS4: 29 | DT4: -21 | DU4: 64 | DV4: -15 | DW4: 3030 | DX4: 7816 | DY4: 8946 | EA4: 213 | EB4: -6338 | EC4: 427 | EH4: 21.75 | EJ4: 133 | EQ4: -11309 | ER4: 579 | ES4: 152 | ET4: -11425 | EU4: 781 | EV4: 88 | EW4: -8822 | EX4: 275 | EY4: 28 | EZ4: 7075 | FA4: 2000 | FB4: 9888 | FC4: 0 | FD4: 7058 | FE4: 64 | FF4: 45721 | FG4: 35494 | FH4: 10227 | FI4: 115 | FJ4: 50397 | FK4: 39206 | FL4: 11191 | FM4: 0 | FN4: 51214 | FO4: 40348 | FP4: 10866 | FQ4: 213 | FR4: 808 | FS4: 626 | FT4: 498 | FU4: 1338 | FV4: 1380
A5: 9 | B5: Alavieska | C5: 2573 | E5: 2.100740741 | F5: 40.65316706 | G5: -3263.894287 | K5: 38.78576603 | L5: 1184.609405 | M5: 33.89865627 | N5: 12755.14963 | P5: 15045 | Q5: 30994 | R5: 1 | S5: -15948 | T5: 7525 | U5: 9826 | X5: -29 | Y5: 15 | Z5: 1389 | AA5: 979 | AB5: 72 | AD5: 482 | AE5: -1 | AF5: -1 | AG5: -1 | AH5: 1 | AI5: 480 | AJ5: 926 | AK5: 1456 | AM5: 415 | AN5: -646 | AO5: 554 | AT5: 21.5 | AV5: 127 | AW5: 2519 | AY5: 3.87311828 | AZ5: 40.47134825 | BA5: -3265.184597 | BE5: 40.24111948 | BF5: 1269.154426 | BG5: 32.95964923 | BH5: 13399.76181 | BJ5: 15791 | BK5: 31650 | BL5: 1 | BM5: -15858 | BN5: 7960 | BO5: 9685 | BR5: -27 | BS5: 14 | BT5: 1774 | BU5: 1068 | BV5: 0 | BX5: 706 | BY5: 0 | BZ5: 0 | CA5: 1 | CB5: 0 | CC5: 705 | CD5: 1631 | CE5: 1775 | CG5: -385 | CH5: -438 | CI5: 146 | CN5: 22 | CP5: 56 | CQ5: 2517 | CS5: 0.5900151286 | CT5: 41.53911685 | CU5: -3014.70004 | CY5: 41.55028478 | CZ5: 2144.616607 | DA5: 49.9878219 | DB5: 15659.5153 | DD5: 16575 | DE5: 32888 | DF5: 1 | DG5: -16312 | DH5: 7712 | DI5: 10928 | DL5: 10 | DM5: 12 | DN5: 2350 | DO5: 1045 | DP5: 0 | DR5: 1305 | DS5: 0 | DT5: -3 | DU5: 0 | DV5: -1 | DW5: 1301 | DX5: 2931 | DY5: 2477 | EA5: 468 | EB5: -3976 | EC5: 1193 | EH5: 22 | EJ5: 165 | EQ5: -1137 | ER5: 234 | ES5: 1 | ET5: -1628 | EU5: 18 | EV5: -19 | EW5: -1856 | EX5: 13 | EY5: 559 | EZ5: 95 | FA5: 1499 | FB5: 323 | FC5: 1000 | FD5: 597 | FE5: 4508 | FF5: 9237 | FG5: 4309 | FH5: 4928 | FI5: 94 | FJ5: 10120 | FK5: 1476 | FL5: 8644 | FM5: 57 | FN5: 11249 | FO5: 1191 | FP5: 10058 | FQ5: 468 | FR5: 1543 | FS5: 1708 | FT5: 2732 | FU5: 237 | FV5: 193
A6: 10 | B6: Alavus | C6: 11544 | E6: 0.3384476904 | F6: 59.98275778 | G6: -5336.538462 | K6: 38.20510675 | L6: 1512.647263 | M6: 37.07970214 | N6: 14889.98614 | P6: 71741 | Q6: 137803 | R6: 1547 | S6: -64515 | T6: 33798 | U6: 38294 | X6: -519 | Y6: 610 | Z6: 7668 | AA6: 6649 | AB6: 0 | AD6: 1019 | AE6: -4 | AF6: 9 | AG6: -17 | AH6: -68 | AI6: 939 | AJ6: 20657 | AK6: 6355 | AM6: 1916 | AN6: -23837 | AO6: -2613 | AT6: 21.25 | AV6: 86 | AW6: 11468 | AY6: 0.9839514979 | AZ6: 65.26118094 | BA6: -5163.236833 | BE6: 38.49983826 | BF6: 1616.759679 | BG6: 39.88390156 | BH6: 13921.25916 | BJ6: 72735 | BK6: 141054 | BL6: 562 | BM6: -67757 | BN6: 34552 | BO6: 38072 | BR6: -502 | BS6: 584 | BT6: 4949 | BU6: 7456 | BV6: 9142 | BX6: 6635 | BY6: 17 | BZ6: 11 | CA6: 14 | CB6: -71 | CC6: 6578 | CD6: 25846 | CE6: 4316 | CG6: -8385 | CH6: -5039 | CI6: 1385 | CN6: 21.25 | CP6: 153 | CQ6: 11332 | CS6: 1.795969354 | CT6: 65.19184534 | CU6: -5382.368514 | CY6: 38.55686466 | CZ6: 2590.010589 | DA6: 66.77814279 | DB6: 14156.63607 | DD6: 73727 | DE6: 142464 | DF6: 488 | DG6: -68249 | DH6: 34963 | DI6: 43125 | DL6: -534 | DM6: 906 | DN6: 10211 | DO6: 8085 | DP6: 0 | DR6: 2126 | DS6: -5 | DT6: 29 | DU6: 21 | DV6: -64 | DW6: 2065 | DX6: 28359 | DY6: 9415 | EA6: 10985 | EB6: -5432 | EC6: -1708 | EH6: 21.25 | EJ6: 191 | EQ6: -9478 | ER6: 139 | ES6: 371 | ET6: -13156 | EU6: 466 | EV6: 9759 | EW6: -12011 | EX6: 591 | EY6: 297 | EZ6: 25419 | FA6: -996 | FB6: 9250 | FC6: 3039 | FD6: 11822 | FE6: -4269 | FF6: 71092 | FG6: 64304 | FH6: 6788 | FI6: 2698 | FJ6: 78561 | FK6: 67864 | FL6: 10697 | FM6: 1957 | FN6: 80862 | FO6: 73460 | FP6: 7402 | FQ6: 10985 | FR6: 1995 | FS6: 1494 | FT6: 1299 | FU6: 1932 | FV6: 2372
A7: 16 | B7: Asikkala | C7: 8149 | E7: 6.135 | F7: 38.46864598 | G7: -2786.845012 | K7: 47.37370902 | L7: 941.5879249 | M7: 31.67863768 | N7: 10848.93852 | P7: 43453 | Q7: 84756 | R7: -6 | S7: -41309 | T7: 28838 | U7: 17538 | X7: -109 | Y7: -163 | Z7: 4795 | AA7: 4165 | AB7: 263 | AD7: 893 | AE7: 0 | AF7: 0 | AG7: -13 | AH7: -59 | AI7: 821 | AJ7: 10527 | AK7: 4897 | AM7: 1261 | AN7: -687 | AO7: 2672 | AT7: 20.75 | AV7: 118 | AW7: 8083 | AY7: 3.431528662 | AZ7: 34.1123204 | BA7: -2855.375479 | BE7: 49.38564279 | BF7: 490.2882593 | BG7: 29.70466574 | BH7: 11664.35729 | BJ7: 42608 | BK7: 88825 | BL7: 16 | BM7: -46201 | BN7: 29745 | BO7: 20631 | BR7: -93 | BS7: 124 | BT7: 4206 | BU7: 4111 | BV7: -266 | BX7: -171 | BY7: -2 | BZ7: 0 | CA7: 3 | CB7: -28 | CC7: -204 | CD7: 10323 | CE7: 3682 | CG7: -503 | CH7: -1152 | CI7: -215 | CN7: 20.75 | CP7: 115 | CQ7: 8059 | CS7: 13.1881068 | CT7: 26.38267732 | CU7: -2044.2983 | CY7: 58.08263137 | CZ7: 693.0140216 | DA7: 21.77562356 | DB7: 11616.20548 | DD7: 42719 | DE7: 87980 | DF7: 7 | DG7: -45254 | DH7: 31842 | DI7: 24269 | DL7: -130 | DM7: 1 | DN7: 10728 | DO7: 4146 | DP7: 0 | DR7: 6582 | DS7: -2 | DT7: 0 | DU7: 1 | DV7: -57 | DW7: 6522 | DX7: 16120 | DY7: 10566 | EA7: 822 | EB7: -685 | EC7: 6435 | EH7: 20.75 | EJ7: 46 | EQ7: -2610 | ER7: 106 | ES7: 279 | ET7: -3980 | EU7: 3 | EV7: 80 | EW7: -4516 | EX7: 25 | EY7: 360 | EZ7: 82 | FA7: -1150 | FB7: 12 | FC7: -2530 | FD7: 0 | FE7: -5668 | FF7: 23108 | FG7: 8822 | FH7: 14286 | FI7: 344 | FJ7: 19437 | FK7: 7683 | FL7: 11754 | FM7: 350 | FN7: 13084 | FO7: 7002 | FP7: 6082 | FQ7: 822 | FR7: 12 | FS7: 11 | FT7: 0 | FU7: 16410 | FV7: 13868
A8: 18 | B8: Askola | C8: 4958 | E8: 0.5587871287 | F8: 80.76904728 | G8: -5369.907221 | K8: 16.29486142 | L8: 1060.911658 | M8: 40.30355194 | N8: 9607.906414 | P8: 14418 | Q8: 41260 | R8: -2 | S8: -26844 | T8: 18547 | U8: 8957 | X8: -216 | Y8: 243 | Z8: 687 | AA8: 2089 | AB8: 2228 | AD8: 826 | AE8: 0 | AF8: 178 | AG8: -6 | AH8: 0 | AI8: 998 | AJ8: -1633 | AK8: 2718 | AM8: 201 | AN8: -1400 | AO8: -1523 | AT8: 20.75 | AV8: 265 | AW8: 4943 | AY8: 1.761904762 | AZ8: 84.32040097 | BA8: -5149.099737 | BE8: 21.08963776 | BF8: 1390.451143 | BG8: 41.54368806 | BH8: 9349.382966 | BJ8: 14287 | BK8: 39474 | BL8: 3 | BM8: -25184 | BN8: 19707 | BO8: 8303 | BR8: -274 | BS8: 281 | BT8: 2833 | BU8: 2340 | BV8: 2496 | BX8: 2989 | BY8: -2 | BZ8: 7 | CA8: 1 | CB8: 0 | CC8: 2993 | CD8: 1595 | CE8: 5184 | CG8: -1599 | CH8: -1489 | CI8: 835 | CN8: 21.5 | CP8: 100 | CQ8: 4878 | CS8: 2.681174089 | CT8: 79.4647905 | CU8: -5142.886429 | CY8: 28.0199065 | CZ8: 2148.421484 | DA8: 77.65642129 | DB8: 10097.99098 | DD8: 17350 | DE8: 42794 | DF8: -1 | DG8: -25445 | DH8: 20456 | DI8: 9951 | DL8: -219 | DM8: 330 | DN8: 5073 | DO8: 2989 | DP8: 0 | DR8: 2084 | DS8: -1 | DT8: 6 | DU8: 11 | DV8: 0 | DW8: 2078 | DX8: 3673 | DY8: 5034 | EA8: 1301 | EB8: -1751 | EC8: 865 | EH8: 21.5 | EJ8: 117 | EQ8: -4701 | ER8: 21 | ES8: 439 | ET8: -4914 | EU8: 308 | EV8: 257 | EW8: -4429 | EX8: 132 | EY8: 128 | EZ8: 7045 | FA8: -1916 | FB8: 5527 | FC8: -1757 | FD8: 726 | FE8: 3270 | FF8: 28168 | FG8: 21682 | FH8: 6486 | FI8: 0 | FJ8: 29815 | FK8: 25380 | FL8: 4435 | FM8: 0 | FN8: 32665 | FO8: 24845 | FP8: 7820 | FQ8: 1301 | FR8: 2000 | FS8: 2000 | FT8: 2000 | FU8: 345 | FV8: 1267
A9: 19 | B9: Aura | C9: 3984 | E9: 1.202362205 | F9: 56.5505855 | G9: -3912.901606 | K9: 25.06968042 | L9: 261.2951807 | M9: 10.90787736 | N9: 8743.473896 | P9: 12003 | Q9: 31204 | R9: 1 | S9: -19200 | T9: 14314 | U9: 6390 | X9: -52 | Y9: 23 | Z9: 1475 | AA9: 1297 | AB9: 0 | AD9: 178 | AE9: -41 | AF9: -81 | AG9: 0 | AH9: -21 | AI9: 35 | AJ9: 1642 | AK9: 1562 | AM9: -278 | AN9: -1218 | AO9: -850 | AT9: 21.75 | AV9: 189 | AW9: 3941 | AY9: 1.369323915 | AZ9: 58.6958477 | BA9: -3963.968536 | BE9: 25.48653106 | BF9: 507.9928952 | BG9: 11.02946299 | BH9: 8741.436184 | BJ9: 12253 | BK9: 32020 | BL9: 7 | BM9: -19760 | BN9: 14707 | BO9: 6395 | BR9: -50 | BS9: 15 | BT9: 1307 | BU9: 1309 | BV9: -1 | BX9: -3 | BY9: -46 | BZ9: -107 | CA9: 0 | CB9: -26 | CC9: -182 | CD9: 1610 | CE9: 1331 | CG9: -87 | CH9: -941 | CI9: 121 | CN9: 21.75 | CP9: 197 | CQ9: 3959 | CS9: 2.230813288 | CT9: 52.07024635 | CU9: -3303.359434 | CY9: 31.96777277 | CZ9: 1051.275575 | DA9: 42.30734954 | DB9: 9069.714574 | DD9: 12469 | DE9: 32750 | DF9: 9 | DG9: -20272 | DH9: 15595 | DI9: 8550 | DL9: -63 | DM9: 21 | DN9: 3831 | DO9: 1367 | DP9: 0 | DR9: 2464 | DS9: -32 | DT9: -66 | DU9: 0 | DV9: -15 | DW9: 2351 | DX9: 3988 | DY9: 3888 | EA9: 129 | EB9: -1682 | EC9: 2393 | EH9: 21.5 | EJ9: 141 | EQ9: -2336 | ER9: 16 | ES9: -92 | ET9: -1414 | EU9: 26 | EV9: 178 | EW9: -1397 | EX9: 20 | EY9: -118 | EZ9: 225 | FA9: 464 | FB9: 5095 | FC9: -2855 | FD9: 132 | FE9: 592 | FF9: 14251 | FG9: 3750 | FH9: 10501 | FI9: 0 | FJ9: 15560 | FK9: 7404 | FL9: 8156 | FM9: 0 | FN9: 14602 | FO9: 6082 | FP9: 8520 | FQ9: 129 | FR9: 1020 | FS9: 657 | FT9: 773 | FU9: 1286 | FV9: 1570
A10: 46 | B10: Enonkoski | C10: 1405 | E10: 7.717948718 | F10: 18.69898832 | G10: 748.7544484 | K10: 74.05974504 | L10: 2365.836299 | M10: 57.85142094 | N10: 14926.69039 | P10: 10151 | Q10: 19928 | R10: 0 | S10: -9777 | T10: 4481 | U10: 5829 | X10: -7 | Y10: 62 | Z10: 588 | AA10: 843 | AB10: 5 | AD10: -250 | AE10: 0 | AF10: 1 | AG10: -1 | AH10: -8 | AI10: -258 | AJ10: 6659 | AK10: 577 | AM10: 469 | AN10: -64 | AO10: -225 | AT10: 21 | AV10: 174 | AW10: 1361 | AY10: 15.93150685 | AZ10: 15.75672808 | BA10: 1111.682586 | BE10: 77.53552657 | BF10: 2612.049963 | BG10: 59.33101863 | BH10: 15024.98163 | BJ10: 10276 | BK10: 19669 | BL10: 0 | BM10: -9393 | BN10: 4713 | BO10: 5745 | BR10: -6 | BS10: 94 | BT10: 1153 | BU10: 877 | BV10: 0 | BX10: 276 | BY10: 0 | BZ10: 0 | CA10: 0 | CB10: -4 | CC10: 272 | CD10: 6931 | CE10: 1104 | CG10: 328 | CH10: -63 | CI10: 438 | CN10: 21 | CP10: 33 | CQ10: 1369 | CS10: 191.8 | CT10: 17.46867285 | CU10: 1962.74653 | CY10: 75.68209465 | CZ10: 3822.498174 | DA10: 93.38246798 | DB10: 14940.83272 | DD10: 10495 | DE10: 19664 | DF10: 0 | DG10: -9169 | DH10: 4642 | DI10: 6330 | DL10: -9 | DM10: 115 | DN10: 1909 | DO10: 792 | DP10: 6 | DR10: 1123 | DS10: 0 | DT10: 0 | DU10: 0 | DV10: 3 | DW10: 1126 | DX10: 8046 | DY10: 1830 | EA10: 22 | EB10: -1 | EC10: 1194 | EH10: 21 | EJ10: 36 | EQ10: -907 | ER10: 94 | ES10: 11 | ET10: -702 | EU10: 12 | EV10: 24 | EW10: -771 | EX10: 1 | EY10: 134 | EZ10: 9 | FA10: 52 | FB10: 16 | FC10: -231 | FD10: 387 | FE10: -63 | FF10: 1082 | FG10: 787 | FH10: 295 | FI10: 0 | FJ10: 804 | FK10: 648 | FL10: 156 | FM10: 0 | FN10: 1129 | FO10: 880 | FP10: 249 | FQ10: 22 | FR10: 108 | FS10: 108 | FT10: 108 | FU10: 449 | FV10: 415
A11: 47 | B11: Enontekiö | C11: 1852 | E11: 1.480417755 | F11: 65.11079282 | G11: -6109.611231 | K11: 38.77868822 | L11: 1225.701944 | M11: 33.21107904 | N11: 13470.84233 | P11: 8772 | Q11: 22485 | R11: -11 | S11: -13724 | T11: 6362 | U11: 8604 | X11: -121 | Y11: 443 | Z11: 1564 | AA11: 1111 | AB11: 0 | AD11: 453 | AE11: 0 | AF11: 10 | AG11: -23 | AH11: -1 | AI11: 439 | AJ11: 1933 | AK11: 1596 | AM11: 723 | AN11: -1012 | AO11: 852 | AT11: 21.25 | AV11: 41 | AW11: 1838 | AY11: 1.165674603 | AZ11: 64.78432037 | BA11: -6209.466812 | BE11: 39.99478021 | BF11: 1076.16975 | BG11: 31.21068294 | BH11: 14443.41676 | BJ11: 8571 | BK11: 22860 | BL11: -7 | BM11: -14296 | BN11: 6263 | BO11: 8789 | BR11: -77 | BS11: 401 | BT11: 1080 | BU11: 1024 | BV11: 0 | BX11: 56 | BY11: 0 | BZ11: 1 | CA11: 30 | CB11: -4 | CC11: 23 | CD11: 2110 | CE11: 1087 | CG11: 231 | CH11: -913 | CI11: -584 | CN11: 21.25 | CP11: 91 | CQ11: 1808 | CS11: 1.993677555 | CT11: 66.66802146 | CU11: -6824.115044 | CY11: 39.88992498 | CZ11: 1245.022124 | DA11: 30.22754866 | DB11: 15033.73894 | DD11: 8457 | DE11: 22984 | DF11: -10 | DG11: -14537 | DH11: 6394 | DI11: 9753 | DL11: -50 | DM11: 271 | DN11: 1831 | DO11: 1189 | DP11: -1 | DR11: 641 | DS11: 0 | DT11: 0 | DU11: -11 | DV11: 5 | DW11: 657 | DX11: 2797 | DY11: 1670 | EA11: 503 | EB11: -888 | EC11: -994 | EH11: 21.25 | EJ11: 128 | EQ11: -1018 | ER11: 87 | ES11: 187 | ET11: -2409 | EU11: 492 | EV11: 246 | EW11: -2941 | EX11: 132 | EY11: 145 | EZ11: 0 | FA11: 48 | FB11: 261 | FC11: 787 | FD11: 499 | FE11: 1440 | FF11: 9399 | FG11: 7721 | FH11: 1678 | FI11: 136 | FJ11: 9071 | FK11: 6633 | FL11: 2438 | FM11: 35 | FN11: 10084 | FO11: 6210 | FP11: 3874 | FQ11: 503 | FR11: 1161 | FS11: 324 | FT11: 312 | FU11: 323 | FV11: 290
A12: 49 | B12: Espoo | C12: 283632 | E12: 1.771296126 | F12: 143.4887806 | G12: -9498.684916 | K12: 40.41422085 | L12: 3541.032042 | M12: 118.5001728 | N12: 10906.96043 | P12: 1102801 | Q12: 2383893 | R12: -1616 | S12: -1282708 | T12: 1501986 | U12: 95314 | X12: -35590 | Y12: 20923 | Z12: 299925 | AA12: 306013 | AB12: 0 | AD12: -6088 | AE12: 3973 | AF12: 12237 | AG12: -622 | AH12: 2802 | AI12: 12302 | AJ12: 604643 | AK12: 229225 | AM12: -1956 | AN12: -148680 | AO12: -151086 | AT12: 18 | AV12: 19 | AW12: 289731 | AY12: 1.632158999 | AZ12: 149.8354747 | BA12: -10314.11551 | BE12: 38.12346468 | BF12: 3381.260549 | BG12: 107.7189558 | BH12: 11746.02304 | BJ12: 1171298 | BK12: 2544378 | BL12: -1283 | BM12: -1374363 | BN12: 1521184 | BO12: 113469 | BR12: -34689 | BS12: 44470 | BT12: 270071 | BU12: 323458 | BV12: 0 | BX12: -53387 | BY12: 3766 | BZ12: 15025 | CA12: 603 | CB12: 2899 | CC12: -32300 | CD12: 551120 | CE12: 183927 | CG12: -59706 | CH12: -147551 | CI12: -324600 | CN12: 18 | CP12: 25 | CQ12: 292796 | CS12: 2.138620662 | CT12: 155.5888244 | CU12: -10999.41939 | CY12: 36.18573073 | CZ12: 4266.079455 | DA12: 125.7634646 | DB12: 12381.33035 | DD12: 1178888 | DE12: 2601118 | DF12: 1586 | DG12: -1420644 | DH12: 1605340 | DI12: 267013 | DL12: -39454 | DM12: 22485 | DN12: 434740 | DO12: 330694 | DP12: 0 | DR12: 104046 | DS12: 4334 | DT12: 15019 | DU12: 837 | DV12: 618 | DW12: 123180 | DX12: 665687 | DY12: 354934 | EA12: -40753 | EB12: -176149 | EC12: -253438 | EH12: 18 | EJ12: 25 | EQ12: -495489 | ER12: 36891 | ES12: 78287 | ET12: -661148 | EU12: 58030 | EV12: 94591 | EW12: -784640 | EX12: 84956 | EY12: 91312 | EZ12: 219699 | FA12: 1933 | FB12: 449241 | FC12: -1583 | FD12: 666902 | FE12: -4877 | FF12: 3502631 | FG12: 3329807 | FH12: 172824 | FI12: 208048 | FJ12: 3802739 | FK12: 3607234 | FL12: 195505 | FM12: 205140 | FN12: 4285902 | FO12: 4076880 | FP12: 209022 | FQ12: -40753 | FR12: 92306 | FS12: 94817 | FT12: 96757 | FU12: 602654 | FV12: 845683
A13: 50 | B13: Eura | C13: 11748 | E13: 0.4716535433 | F13: 70.15753209 | G13: -5271.790943 | K13: 31.17634101 | L13: 486.3806605 | M13: 18.37898095 | N13: 9659.346272 | P13: 36008 | Q13: 103147 | R13: 0 | S13: -67139 | T13: 43565 | U13: 25358 | X13: -377 | Y13: 9 | Z13: 1416 | AA13: 5804 | AB13: 0 | AD13: -4388 | AE13: 36 | AF13: 0 | AG13: 0 | AH13: 38 | AI13: -4314 | AJ13: 1114 | AK13: 1138 | AM13: 877 | AN13: -3429 | AO13: -4519 | AT13: 20.5 | AV13: 272 | AW13: 11632 | AY13: 0.550090525 | AZ13: 76.19446221 | BA13: -6003.610729 | BE13: 26.79055778 | BF13: 429.1609354 | BG13: 17.72392753 | BH13: 10116.23109 | BJ13: 36328 | BK13: 104526 | BL13: 0 | BM13: -68198 | BN13: 43287 | BO13: 26709 | BR13: -340 | BS13: 22 | BT13: 1480 | BU13: 6065 | BV13: 3 | BX13: -4582 | BY13: 10 | BZ13: 0 | CA13: 2 | CB13: 26 | CC13: -4548 | CD13: -3389 | CE13: 1283 | CG13: -216 | CH13: -2971 | CI13: -8008 | CN13: 20.5 | CP13: 253 | CQ13: 11483 | CS13: 3.237861272 | CT13: 68.36191241 | CU13: -5715.579552 | CY13: 30.04785789 | CZ13: 538.0997997 | DA13: 19.76474248 | DB13: 9937.21153 | DD13: 37130 | DE13: 103474 | DF13: 0 | DG13: -66344 | DH13: 45835 | DI13: 31571 | DL13: -409 | DM13: 137 | DN13: 10790 | DO13: 6675 | DP13: 0 | DR13: 4115 | DS13: 16 | DT13: 0 | DU13: 2 | DV13: -20 | DW13: 4109 | DX13: 683 | DY13: 10771 | EA13: -302 | EB13: -3047 | EC13: 4338 | EH13: 21 | EJ13: 159 | EQ13: -6341 | ER13: 81 | ES13: 603 | ET13: -9684 | EU13: 41 | EV13: 352 | EW13: -7143 | EX13: 47 | EY13: 663 | EZ13: 933 | FA13: 4000 | FB13: 5648 | FC13: 6000 | FD13: 544 | FE13: -188 | FF13: 54266 | FG13: 33394 | FH13: 20872 | FI13: 50 | FJ13: 63193 | FK13: 36129 | FL13: 27064 | FM13: 50 | FN13: 60326 | FO13: 33148 | FP13: 27178 | FQ13: -302 | FR13: 607 | FS13: 424 | FT13: 854 | FU13: 1865 | FV13: 1887
A14: 51 | B14: Eurajoki | C14: 9454 | E14: 2.988630491 | F14: 33.1982377 | G14: 15.33742331 | K14: 75.00310549 | L14: 2765.17876 | M14: 99.31233672 | N14: 10162.78824 | P14: 31437 | Q14: 87039 | R14: 0 | S14: -55602 | T14: 50340 | U14: 11737 | X14: -129 | Y14: -693 | Z14: 5653 | AA14: 5919 | AB14: 0 | AD14: -266 | AE14: 1 | AF14: -52 | AG14: 0 | AH14: -7 | AI14: -324 | AJ14: 75926 | AK14: 5702 | AM14: 1108 | AN14: -1805 | AO14: 1863 | AT14: 18 | AV14: 113 | AW14: 9402 | AY14: 2.797501644 | AZ14: 30.76287236 | BA14: -38.60880664 | BE14: 75.73123851 | BF14: 2591.682621 | BG14: 95.43834205 | BH14: 10633.80132 | BJ14: 32393 | BK14: 93103 | BL14: 0 | BM14: -60710 | BN14: 52060 | BO14: 11120 | BR14: -49 | BS14: 1785 | BT14: 4206 | BU14: 5684 | BV14: 0 | BX14: -1478 | BY14: 0 | BZ14: -49 | CA14: 13 | CB14: -14 | CC14: -1554 | CD14: 74437 | CE14: 4127 | CG14: 385 | CH14: -1472 | CI14: -654 | CN14: 18 | CP14: 143 | CQ14: 9452 | CS14: 2.504052685 | CT14: 32.85619794 | CU14: 19.04358866 | CY14: 74.35208112 | CZ14: 2637.008041 | DA14: 88.21255078 | DB14: 10911.23572 | DD14: 31423 | DE14: 92433 | DF14: 0 | DG14: -61010 | DH14: 51185 | DI14: 14150 | DL14: -128 | DM14: 616 | DN14: 4813 | DO14: 5453 | DP14: 86 | DR14: -554 | DS14: 0 | DT14: -24 | DU14: 1 | DV14: -6 | DW14: -585 | DX14: 73724 | DY14: 4709 | EA14: -2393 | EB14: -1844 | EC14: 382 | EH14: 18 | EJ14: 281 | EQ14: -5328 | ER14: 16 | ES14: 1473 | ET14: -4977 | EU14: 48 | EV14: 148 | EW14: -8421 | EX14: 24 | EY14: 4070 | EZ14: 660 | FA14: -379 | FB14: 402 | FC14: -448 | FD14: 3413 | FE14: 130 | FF14: 16111 | FG14: 14279 | FH14: 1832 | FI14: 62 | FJ14: 14768 | FK14: 12838 | FL14: 1930 | FM14: 105 | FN14: 16034 | FO14: 14051 | FP14: 1983 | FQ14: -2393 | FR14: 47 | FS14: 0 | FT14: 335 | FU14: 201 | FV14: 1217
A15: 52 | B15: Evijärvi | C15: 2473 | E15: -0.4292682927 | F15: 42.64119942 | G15: -877.8811161 | K15: 49.3805152 | L15: 2844.318641 | M15: 97.55338552 | N15: 10642.13506 | P15: 7570 | Q15: 24216 | R15: 4 | S15: -16642 | T15: 7975 | U15: 8800 | X15: 21 | Y15: -270 | Z15: -116 | AA15: 940 | AB15: 0 | AD15: -1056 | AE15: -2 | AF15: -25 | AG15: -2 | AH15: -1 | AI15: -1086 | AJ15: 2289 | AK15: -188 | AM15: 41 | AN15: -177 | AO15: -1554 | AT15: 21.5 | AV15: 286 | AW15: 2425 | AY15: 2.442307692 | AZ15: 52.3722118 | BA15: -1726.185567 | BE15: 43.98469664 | BF15: 3125.773196 | BG15: 92.29042668 | BH15: 11501.03093 | BJ15: 7743 | BK15: 25616 | BL15: 1 | BM15: -17872 | BN15: 8046 | BO15: 9272 | BR15: 24 | BS15: 624 | BT15: 94 | BU15: 1115 | BV15: 0 | BX15: -1021 | BY15: 4 | BZ15: -12 | CA15: 2 | CB15: 2 | CC15: -1029 | CD15: 1214 | CE15: 79 | CG15: -100 | CH15: -19 | CI15: -1866 | CN15: 21.5 | CP15: 271 | CQ15: 2408 | CS15: 2.809116809 | CT15: 58.58543148 | CU15: -2340.946844 | CY15: 39.84065293 | CZ15: 3496.262458 | DA15: 107.8866341 | DB15: 11828.48837 | DD15: 7707 | DE15: 25330 | DF15: 2 | DG15: -17621 | DH15: 8100 | DI15: 10208 | DL15: 35 | DM15: 231 | DN15: 953 | DO15: 1260 | DP15: 0 | DR15: -307 | DS15: -1 | DT15: -5 | DU15: 5 | DV15: 0 | DW15: -318 | DX15: 887 | DY15: 886 | EA15: 255 | EB15: -318 | EC15: -1345 | EH15: 21.5 | EJ15: 288 | EQ15: -1537 | ER15: 75 | ES15: 96 | ET15: -2124 | EU15: 160 | EV15: 19 | EW15: -2299 | EX15: 61 | EY15: 7 | EZ15: 538 | FA15: 550 | FB15: 299 | FC15: 1000 | FD15: 699 | FE15: 3209 | FF15: 8210 | FG15: 2398 | FH15: 5812 | FI15: 54 | FJ15: 9505 | FK15: 2530 | FL15: 6975 | FM15: 52 | FN15: 13108 | FO15: 3063 | FP15: 10045 | FQ15: 255 | FR15: 11 | FS15: 4 | FT15: 0 | FU15: 357 | FV15: 1072
A16: 61 | B16: Forssa | C16: 17028 | E16: 1.305382527 | F16: 48.4945179 | G16: -3143.528306 | K16: 49.58494927 | L16: 1288.93587 | M16: 43.54359512 | N16: 10804.38102 | P16: 74139 | Q16: 170963 | R16: 0 | S16: -96824 | T16: 60239 | U16: 44568 | X16: -659 | Y16: 90 | Z16: 7414 | AA16: 13797 | AB16: 2000 | AD16: -4383 | AE16: 108 | AF16: 0 | AG16: -38 | AH16: 51 | AI16: -4262 | AJ16: 21404 | AK16: 6504 | AM16: 2230 | AN16: -5502 | AO16: 2011 | AT16: 20.5 | AV16: 167 | AW16: 16901 | AY16: 0.6319581803 | AZ16: 51.89233117 | BA16: -3215.016863 | BE16: 48.54268185 | BF16: 1623.986746 | BG16: 41.09100422 | BH16: 11535.29377 | BJ16: 75167 | BK16: 172163 | BL16: 0 | BM16: -96996 | BN16: 60261 | BO16: 45460 | BR16: -514 | BS16: 92 | BT16: 8303 | BU16: 9409 | BV16: 0 | BX16: -1106 | BY16: -11 | BZ16: 4 | CA16: 11 | CB16: 200 | CC16: -924 | CD16: 22751 | CE16: 6738 | CG16: -780 | CH16: -13513 | CI16: -1108 | CN16: 20.5 | CP16: 124 | CQ16: 16800 | CS16: 2.770855711 | CT16: 48.9234412 | CU16: -2975.952381 | CY16: 50.01268968 | CZ16: 1943.690476 | DA16: 62.65750184 | DB16: 11322.61905 | DD16: 75469 | DE16: 174682 | DF16: 0 | DG16: -99213 | DH16: 61171 | DI16: 53410 | DL16: -667 | DM16: 67 | DN16: 14768 | DO16: 10822 | DP16: 0 | DR16: 3946 | DS16: 13 | DT16: 1 | DU16: 38 | DV16: 0 | DW16: 3922 | DX16: 26673 | DY16: 13742 | EA16: 1754 | EB16: -4876 | EC16: 4120 | EH16: 20.5 | EJ16: 198 | EQ16: -6742 | ER16: 43 | ES16: 2206 | ET16: -8562 | EU16: 439 | EV16: 277 | EW16: -9940 | EX16: 135 | EY16: 183 | EZ16: 6913 | FA16: 949 | FB16: 10152 | FC16: 4165 | FD16: 11051 | FE16: -7463 | FF16: 68161 | FG16: 49096 | FH16: 19065 | FI16: 232 | FJ16: 68965 | FK16: 46512 | FL16: 22453 | FM16: 268 | FN16: 67667 | FO16: 52000 | FP16: 15667 | FQ16: 1754 | FR16: 954 | FS16: 131 | FT16: 105 | FU16: 2019 | FV16: 2394
A17: 69 | B17: Haapajärvi | C17: 7147 | E17: 0.3967761017 | F17: 62.42469716 | G17: -4110.116133 | K17: 32.86513759 | L17: 3005.876592 | M17: 77.73509993 | N17: 14113.89394 | P17: 42556 | Q17: 89443 | R17: -77 | S17: -46964 | T17: 23059 | U17: 26347 | X17: -340 | Y17: 213 | Z17: 2315 | AA17: 4044 | AB17: 310 | AD17: -1419 | AE17: -74 | AF17: -6 | AG17: -88 | AH17: 25 | AI17: -1562 | AJ17: 4957 | AK17: 2306 | AM17: 1096 | AN17: -6394 | AO17: 921 | AT17: 22 | AV17: 205 | AW17: 7010 | AY17: 0.5213055304 | AZ17: 75.22720578 | BA17: -5595.577746 | BE17: 30.09719384 | BF17: 3234.379458 | BG17: 71.60918646 | BH17: 15581.45506 | BJ17: 42245 | BK17: 90080 | BL17: 17 | BM17: -47818 | BN17: 23480 | BO17: 25932 | BR17: -361 | BS17: 1825 | BT17: 3058 | BU17: 4278 | BV17: 0 | BX17: -1220 | BY17: -192 | BZ17: -1 | CA17: 206 | CB17: 28 | CC17: -1591 | CD17: 3187 | CE17: 2597 | CG17: -951 | CH17: -6226 | CI17: -9126 | CN17: 22.5 | CP17: 148 | CQ17: 6896 | CS17: 1.417079208 | CT17: 80.71649713 | CU17: -6780.162413 | CY17: 29.15939914 | CZ17: 3500 | DA17: 77.8305504 | DB17: 16413.86311 | DD17: 43245 | DE17: 89699 | DF17: 54 | DG17: -46400 | DH17: 23531 | DI17: 30447 | DL17: -351 | DM17: 412 | DN17: 7639 | DO17: 4983 | DP17: 0 | DR17: 2656 | DS17: -14 | DT17: -15 | DU17: 13 | DV17: 8 | DW17: 2622 | DX17: 5920 | DY17: 7026 | EA17: 661 | EB17: -5280 | EC17: -8644 | EH17: 22.5 | EJ17: 100 | EQ17: -2995 | ER17: 70 | ES17: 1540 | ET17: -12295 | EU17: 188 | EV17: 384 | EW17: -17193 | EX17: 55 | EY17: 1468 | EZ17: 6373 | FA17: -894 | FB17: 14065 | FC17: 1970 | FD17: 19823 | FE17: -2522 | FF17: 42154 | FG17: 29564 | FH17: 12590 | FI17: 169 | FJ17: 51953 | FK17: 38067 | FL17: 13886 | FM17: 169 | FN17: 63333 | FO17: 51392 | FP17: 11941 | FQ17: 661 | FR17: 6829 | FS17: 6567 | FT17: 5902 | FU17: 2759 | FV17: 3213
A18: 71 | B18: Haapavesi | C18: 6854 | E18: 0.5027519453 | F18: 66.6280972 | G18: -4656.84272 | K18: 24.53447445 | L18: 1852.203093 | M18: 55.42474552 | N18: 12197.69478 | P18: 27937 | Q18: 72355 | R18: 2 | S18: -44416 | T18: 20098 | U18: 27154 | X18: -328 | Y18: -232 | Z18: 2276 | AA18: 3641 | AB18: 302 | AD18: -1063 | AE18: 22 | AF18: -7 | AG18: -85 | AH18: 45 | AI18: -1088 | AJ18: -173 | AK18: 2364 | AM18: 1038 | AN18: -4896 | AO18: -849 | AT18: 22 | AV18: 202 | AW18: 6758 | AY18: 0.9533617424 | AZ18: 62.73809085 | BA18: -4723.438887 | BE18: 24.74684182 | BF18: 2054.158035 | BG18: 53.45478981 | BH18: 12826.87186 | BJ18: 33053 | BK18: 77883 | BL18: 2 | BM18: -44828 | BN18: 21242 | BO18: 27134 | BR18: -345 | BS18: 450 | BT18: 3653 | BU18: 3661 | BV18: 0 | BX18: -8 | BY18: 25 | BZ18: -1 | CA18: 91 | CB18: -1 | CC18: -76 | CD18: -249 | CE18: 3532 | CG18: 183 | CH18: -3850 | CI18: 32 | CN18: 22 | CP18: 105 | CQ18: 6667 | CS18: 1.999085366 | CT18: 68.33752412 | CU18: -5533.523324 | CY18: 24.81022219 | CZ18: 2478.476076 | DA18: 63.43820012 | DB18: 14260.23699 | DD18: 37213 | DE18: 78944 | DF18: 4 | DG18: -41727 | DH18: 21461 | DI18: 26831 | DL18: -309 | DM18: -30 | DN18: 6226 | DO18: 3718 | DP18: 0 | DR18: 2508 | DS18: 21 | DT18: -15 | DU18: 103 | DV18: 2 | DW18: 2413 | DX18: 2279 | DY18: 5507 | EA18: 292 | EB18: -2949 | EC18: -4823 | EH18: 22 | EJ18: 164 | EQ18: -5182 | ER18: 48 | ES18: 1921 | ET18: -4315 | EU18: 581 | EV18: 234 | EW18: -11443 | EX18: 205 | EY18: 908 | EZ18: 9795 | FA18: -6028 | FB18: 2179 | FC18: 1942 | FD18: 24565 | FE18: -16010 | FF18: 37208 | FG18: 18903 | FH18: 18305 | FI18: 2 | FJ18: 37478 | FK18: 18364 | FL18: 19114 | FM18: 2 | FN18: 43083 | FO18: 39903 | FP18: 3180 | FQ18: 292 | FR18: 420 | FS18: 238 | FT18: 236 | FU18: 1108 | FV18: 1013
A19: 72 | B19: Hailuoto | C19: 974 | E19: 0.5524126456 | F19: 52.61797027 | G19: -2983.572895 | K19: 57.32430144 | L19: 2542.094456 | M19: 62.37852015 | N19: 14874.74333 | P19: 5181 | Q19: 12055 | R19: 0 | S19: -6874 | T19: 3470 | U19: 3725 | X19: -16 | Y19: 5 | Z19: 310 | AA19: 681 | AB19: 88 | AD19: -283 | AE19: -1 | AF19: -7 | AG19: 0 | AH19: -1 | AI19: -292 | AJ19: 6799 | AK19: 200 | AM19: -75 | AN19: -579 | AO19: -860 | AT19: 20.5 | AV19: 206 | AW19: 959 | AY19: 0.7315436242 | AZ19: 58.67105369 | BA19: -5320.12513 | BE19: 53.95984999 | BF19: 1162.669447 | BG19: 59.93730096 | BH19: 15716.37122 | BJ19: 5157 | BK19: 12141 | BL19: 1 | BM19: -6983 | BN19: 3591 | BO19: 3713 | BR19: -13 | BS19: 0 | BT19: 308 | BU19: 692 | BV19: 0 | BX19: -384 | BY19: 0 | BZ19: -1 | CA19: 1 | CB19: 0 | CC19: -386 | CD19: 6414 | CE19: 279 | CG19: 41 | CH19: -428 | CI19: -2189 | CN19: 20.5 | CP19: 201 | CQ19: 949 | CS19: 2.462140992 | CT19: 59.42396313 | CU19: -5825.079031 | CY19: 52.99287284 | CZ19: 1229.71549 | DA19: 30.62221423 | DB19: 14657.53425 | DD19: 5273 | DE19: 12083 | DF19: 1 | DG19: -6809 | DH19: 3605 | DI19: 4142 | DL19: -15 | DM19: 0 | DN19: 923 | DO19: 816 | DP19: 0 | DR19: 107 | DS19: 0 | DT19: 2 | DU19: 0 | DV19: -1 | DW19: 108 | DX19: 6520 | DY19: 891 | EA19: 51 | EB19: -363 | EC19: -453 | EH19: 20.5 | EJ19: 139 | EQ19: -1816 | ER19: 6 | ES19: 750 | ET19: -2480 | EU19: 0 | EV19: 12 | EW19: -1436 | EX19: 42 | EY19: 50 | EZ19: 122 | FA19: -6 | FB19: 1301 | FC19: -17 | FD19: 741 | FE19: 9 | FF19: 2726 | FG19: 2334 | FH19: 392 | FI19: 1 | FJ19: 3581 | FK19: 3216 | FL19: 365 | FM19: 1 | FN19: 3968 | FO19: 3567 | FP19: 401 | FQ19: 51 | FR19: 18 | FS19: 0 | FT19: 0 | FU19: 156 | FV19: 122
A20: 74 | B20: Halsua | C20: 1165 | E20: 1.324205915 | F20: 99.72038922 | G20: -12215.45064 | K20: 25.11244068 | L20: 1889.270386 | M20: 43.50509044 | N20: 15850.64378 | P20: 9508 | Q20: 16803 | R20: 52 | S20: -7243 | T20: 3411 | U20: 4963 | X20: -130 | Y20: 18 | Z20: 1020 | AA20: 833 | AB20: -53 | AD20: 186 | AE20: -3 | AF20: -35 | AG20: -8 | AH20: -2 | AI20: 138 | AJ20: 2074 | AK20: 635 | AM20: -7 | AN20: -776 | AO20: 220 | AT20: 22 | AV20: 30 | AW20: 1127 | AY20: 0.7951388889 | AZ20: 100.8643283 | BA20: -12891.748 | BE20: 24.04394152 | BF20: 2078.083407 | BG20: 42.31131827 | BH20: 16847.38243 | BJ20: 9293 | BK20: 17331 | BL20: 53 | BM20: -7985 | BN20: 3852 | BO20: 4788 | BR20: -125 | BS20: 25 | BT20: 555 | BU20: 841 | BV20: 0 | BX20: -286 | BY20: -2 | BZ20: -3 | CA20: 6 | CB20: 0 | CC20: -297 | CD20: 1782 | CE20: 436 | CG20: 142 | CH20: -732 | CI20: -263 | CN20: 22 | CP20: 123 | CQ20: 1103 | CS20: 2.67369727 | CT20: 93.14457637 | CU20: -11989.12058 | CY20: 27.39082024 | CZ20: 2300.99728 | DA20: 51.21178617 | DB20: 16399.81868 | DD20: 9046 | DE20: 16539 | DF20: 53 | DG20: -7440 | DH20: 4000 | DI20: 5567 | DL20: -97 | DM20: 24 | DN20: 2054 | DO20: 1216 | DP20: 0 | DR20: 838 | DS20: -2 | DT20: -16 | DU20: 8 | DV20: 0 | DW20: 812 | DX20: 2594 | DY20: 2007 | EA20: -367 | EB20: -705 | EC20: 1296 | EH20: 23.5 | EJ20: 9 | EQ20: -798 | ER20: 15 | ES20: 368 | ET20: -791 | EU20: 14 | EV20: 78 | EW20: -744 | EX20: 9 | EY20: 24 | EZ20: 151 | FA20: 372 | FB20: 434 | FC20: 513 | FD20: 247 | FE20: -334 | FF20: 14180 | FG20: 10262 | FH20: 3918 | FI20: 103 | FJ20: 14435 | FK20: 9916 | FL20: 4519 | FM20: 103 | FN20: 13689 | FO20: 9432 | FP20: 4257 | FQ20: -367 | FR20: 1131 | FS20: 1100 | FT20: 997 | FU20: 5364 | FV20: 5041
A21: 75 | B21: Hamina | C21: 20286 | E21: 0.9518827547 | F21: 89.89359494 | G21: -7502.415459 | K21: 36.6415039 | L21: 1214.285714 | M21: 35.22074061 | N21: 12583.90023 | P21: 91213 | Q21: 198288 | R21: 2247 | S21: -104828 | T21: 80921 | U21: 44679 | X21: -1970 | Y21: 1186 | Z21: 19988 | AA21: 15882 | AB21: 0 | AD21: 4106 | AE21: 51 | AF21: 0 | AG21: 0 | AH21: -111 | AI21: 4046 | AJ21: 23232 | AK21: 21321 | AM21: -1437 | AN21: -21101 | AO21: -7768 | AT21: 21 | AV21: 27 | AW21: 20111 | AY21: 0.7091295117 | AZ21: 78.16189984 | BA21: -7927.204018 | BE21: 37.22316511 | BF21: 881.6070807 | BG21: 31.24885307 | BH21: 14306.79728 | BJ21: 118933 | BK21: 232851 | BL21: 859 | BM21: -113059 | BN21: 85188 | BO21: 45626 | BR21: -1682 | BS21: 1227 | BT21: 17300 | BU21: 17437 | BV21: 0 | BX21: -137 | BY21: 41 | BZ21: 0 | CA21: 0 | CB21: -139 | CC21: -235 | CD21: 22890 | CE21: 18130 | CG21: 21 | CH21: -25109 | CI21: -6940 | CN21: 21 | CP21: 31 | CQ21: 19877 | CS21: 0.9619302619 | CT21: 77.47224472 | CU21: -8175.831363 | CY21: 37.64249465 | CZ21: 1007.647029 | DA21: 24.1007767 | DB21: 15260.5524 | DD21: 120573 | DE21: 233718 | DF21: 354 | DG21: -112791 | DH21: 88925 | DI21: 54776 | DL21: -1513 | DM21: 252 | DN21: 29649 | DO21: 20772 | DP21: 0 | DR21: 8877 | DS21: 38 | DT21: 0 | DU21: 0 | DV21: -122 | DW21: 8793 | DX21: 31165 | DY21: 28713 | EA21: -4148 | EB21: -30886 | EC21: -3253 | EH21: 21 | EJ21: 24 | EQ21: -33660 | ER21: 589 | ES21: 3982 | ET21: -27402 | EU21: 281 | EV21: 2051 | EW21: -35362 | EX21: 72 | EY21: 3324 | EZ21: 22708 | FA21: 0 | FB21: 27404 | FC21: 3000 | FD21: 41687 | FE21: 0 | FF21: 153512 | FG21: 131234 | FH21: 22278 | FI21: 714 | FJ21: 158807 | FK21: 137706 | FL21: 21101 | FM21: 1033 | FN21: 169472 | FO21: 129220 | FP21: 40252 | FQ21: -4148 | FR21: 43599 | FS21: 44206 | FT21: 42219 | FU21: 26951 | FV21: 21220
A22: 77 | B22: Hankasalmi | C22: 4939 | E22: 1.242424242 | F22: 61.26255667 | G22: -4508.402511 | K22: 37.08371555 | L22: 1074.10407 | M22: 35.32924026 | N22: 11096.98319 | P22: 15392 | Q22: 48514 | R22: 0 | S22: -33122 | T22: 14524 | U22: 20157 | X22: -16 | Y22: 121 | Z22: 1664 | AA22: 2466 | AB22: 12 | AD22: -790 | AE22: 0 | AF22: -52 | AG22: 0 | AH22: 18 | AI22: -824 | AJ22: -1150 | AK22: 386 | AM22: 522 | AN22: -1320 | AO22: -2946 | AT22: 22 | AV22: 200 | AW22: 4875 | AY22: 0.4953191489 | AZ22: 65.61470576 | BA22: -5518.564103 | BE22: 34.64607876 | BF22: 619.2820513 | BG22: 35.01555182 | BH22: 11343.38462 | BJ22: 14039 | BK22: 48849 | BL22: 0 | BM22: -34810 | BN22: 15345 | BO22: 19794 | BR22: -16 | BS22: 172 | BT22: 485 | BU22: 2389 | BV22: 0 | BX22: -1904 | BY22: 0 | BZ22: 0 | CA22: 0 | CB22: 12 | CC22: -1892 | CD22: -2962 | CE22: 544 | CG22: 756 | CH22: -1078 | CI22: -4628 | CN22: 22 | CP22: 260 | CQ22: 4782 | CS22: 6.111888112 | CT22: 50.96636062 | CU22: -4644.291092 | CY22: 42.09225346 | CZ22: 495.3994145 | DA22: 16.43606607 | DB22: 11001.46382 | DD22: 14477 | DE22: 46862 | DF22: 0 | DG22: -32385 | DH22: 15358 | DI22: 22009 | DL22: -13 | DM22: 182 | DN22: 5151 | DO22: 3550 | DP22: 645 | DR22: 2246 | DS22: -8 | DT22: -2 | DU22: 0 | DV22: 12 | DW22: 2248 | DX22: -714 | DY22: 4927 | EA22: 500 | EB22: -765 | EC22: 4702 | EH22: 22 | EJ22: 108 | EQ22: -4795 | ER22: 2 | ES22: 1461 | ET22: -5205 | EU22: 3 | EV22: 30 | EW22: -4878 | EX22: 505 | EY22: 4148 | EZ22: 2211 | FA22: 1618 | FB22: 7090 | FC22: -2608 | FD22: 0 | FE22: -4928 | FF22: 21951 | FG22: 12196 | FH22: 9755 | FI22: 2 | FJ22: 25356 | FK22: 17834 | FL22: 7522 | FM22: 60 | FN22: 19663 | FO22: 17043 | FP22: 2620 | FQ22: 500 | FR22: 533 | FS22: 461 | FT22: 339 | FU22: 303 | FV22: 16301
A23: 78 | B23: Hanko | C23: 8379 | E23: 2.084456129 | F23: 79.87744503 | G23: -8746.747822 | K23: 34.56800053 | L23: 670.6050841 | M23: 18.1501885 | N23: 13485.8575 | P23: 56107 | Q23: 94461 | R23: -5 | S23: -38359 | T23: 38575 | U23: 12372 | X23: -814 | Y23: 77 | Z23: 11851 | AA23: 5783 | AB23: -17 | AD23: 6051 | AE23: -5 | AF23: -19 | AG23: -767 | AH23: -84 | AI23: 5176 | AJ23: 7550 | AK23: 10316 | AM23: -171 | AN23: -5251 | AO23: -593 | AT23: 21.75 | AV23: 5 | AW23: 8199 | AY23: 2.341325278 | AZ23: 83.63115672 | BA23: -9563.605318 | BE23: 34.989126 | BF23: 720.8196121 | BG23: 17.12122983 | BH23: 14610.19637 | BJ23: 58826 | BK23: 98522 | BL23: 6 | BM23: -39690 | BN23: 39253 | BO23: 12613 | BR23: -850 | BS23: 195 | BT23: 11521 | BU23: 6330 | BV23: 0 | BX23: 5191 | BY23: -2 | BZ23: 2 | CA23: 935 | CB23: -110 | CC23: 4146 | CD23: 11659 | CE23: 10576 | CG23: -4431 | CH23: -4416 | CI23: -4678 | CN23: 21.75 | CP23: 6 | CQ23: 8042 | CS23: 2.384413883 | CT23: 80.96518337 | CU23: -9168.490425 | CY23: 39.1246092 | CZ23: 1229.420542 | DA23: 32.02942221 | DB23: 14010.19647 | DD23: 56099 | DE23: 97520 | DF23: -2 | DG23: -41423 | DH23: 39976 | DI23: 15883 | DL23: -790 | DM23: 110 | DN23: 13756 | DO23: 6632 | DP23: 0 | DR23: 7124 | DS23: 26 | DT23: -5 | DU23: 83 | DV23: -31 | DW23: 7031 | DX23: 19797 | DY23: 11726 | EA23: 1206 | EB23: -5300 | EC23: 4832 | EH23: 21.75 | EJ23: 13 | EQ23: -12093 | ER23: 29 | ES23: 1155 | ET23: -15853 | EU23: 11 | EV23: 588 | EW23: -8943 | EX23: 129 | EY23: 1920 | EZ23: 4512 | FA23: -829 | FB23: 9172 | FC23: 4744 | FD23: 13363 | FE23: -10405 | FF23: 71075 | FG23: 29422 | FH23: 41653 | FI23: 410 | FJ23: 77806 | FK23: 32257 | FL23: 45549 | FM23: 353 | FN23: 76185 | FO23: 38400 | FP23: 37785 | FQ23: 1206 | FR23: 285 | FS23: 222 | FT23: 201 | FU23: 8722 | FV23: 8630
A24: 79 | B24: Harjavalta | C24: 7018 | E24: 0.2355611602 | F24: 48.31412836 | G24: -3707.466515 | K24: 39.95713716 | L24: 628.384155 | M24: 20.13774208 | N24: 11389.56968 | P24: 26472 | Q24: 71917 | R24: -34 | S24: -45479 | T24: 33349 | U24: 12990 | X24: -167 | Y24: 70 | Z24: 763 | AA24: 3338 | AB24: 0 | AD24: -2575 | AE24: -6 | AF24: 0 | AG24: -8 | AH24: -16 | AI24: -2605 | AJ24: 5657 | AK24: 808 | AM24: -261 | AN24: -3794 | AO24: -2396 | AT24: 20.75 | AV24: 274 | AW24: 6931 | AY24: -0.0005918327086 | AZ24: 51.86953279 | BA24: -4339.77781 | BE24: 34.39886135 | BF24: 576.1073438 | BG24: 19.27678379 | BH24: 12047.61218 | BJ24: 27182 | BK24: 73761 | BL24: -49 | BM24: -46628 | BN24: 34223 | BO24: 12330 | BR24: -130 | BS24: 68 | BT24: -137 | BU24: 3400 | BV24: 0 | BX24: -3537 | BY24: -12 | BZ24: 0 | CA24: 14 | CB24: -23 | CC24: -3586 | CD24: 2086 | CE24: -264 | CG24: 574 | CH24: -4935 | CI24: -4119 | CN24: 21.5 | CP24: 277 | CQ24: 6869 | CS24: 1.106790123 | CT24: 47.69570067 | CU24: -4180.812345 | CY24: 36.26860996 | CZ24: 589.1687291 | DA24: 17.59125174 | DB24: 12224.63241 | DD24: 28433 | DE24: 73592 | DF24: 5 | DG24: -45154 | DH24: 34754 | DI24: 15709 | DL24: -106 | DM24: 70 | DN24: 5273 | DO24: 3753 | DP24: 67 | DR24: 1587 | DS24: -8 | DT24: 0 | DU24: 13 | DV24: -22 | DW24: 1544 | DX24: 3547 | DY24: 5158 | EA24: -690 | EB24: -4754 | EC24: 1346 | EH24: 21.5 | EJ24: 232 | EQ24: -4028 | ER24: 71 | ES24: 753 | ET24: -4655 | EU24: 21 | EV24: 779 | EW24: -5505 | EX24: 84 | EY24: 1609 | EZ24: 6584 | FA24: -1500 | FB24: 4355 | FC24: 4000 | FD24: 6306 | FE24: -3508 | FF24: 24797 | FG24: 19146 | FH24: 5651 | FI24: 0 | FJ24: 28217 | FK24: 18527 | FL24: 9690 | FM24: 0 | FN24: 26248 | FO24: 20038 | FP24: 6210 | FQ24: -690 | FR24: 629 | FS24: 477 | FT24: 450 | FU24: 1795 | FV24: 1123
A25: 81 | B25: Hartola | C25: 2780 | E25: 0.5520094563 | F25: 87.22534227 | G25: -10361.8705 | K25: 18.13074323 | L25: 840.2877698 | M25: 20.82657548 | N25: 14726.61871 | P25: 19955 | Q25: 37292 | R25: 0 | S25: -17337 | T25: 9796 | U25: 8888 | X25: -239 | Y25: 40 | Z25: 1148 | AA25: 1861 | AB25: 124 | AD25: -589 | AE25: -36 | AF25: 18 | AG25: 0 | AH25: 0 | AI25: -607 | AJ25: 1209 | AK25: 1359 | AM25: 473 | AN25: -2285 | AO25: 351 | AT25: 21.5 | AV25: 178 | AW25: 2697 | AY25: 0.1514015645 | AZ25: 81.47282595 | BA25: -9702.632555 | BE25: 16.82042704 | BF25: 918.7986652 | BG25: 18.97031994 | BH25: 16665.18354 | BJ25: 20524 | BK25: 37663 | BL25: 6 | BM25: -17133 | BN25: 9355 | BO25: 8632 | BR25: -219 | BS25: 58 | BT25: 693 | BU25: 1929 | BV25: -21 | BX25: -1257 | BY25: -38 | BZ25: 9 | CA25: 0 | CB25: 0 | CC25: -1286 | CD25: -52 | CE25: 605 | CG25: -169 | CH25: -5900 | CI25: 3418 | CN25: 21.5 | CP25: 223 | CQ25: 2655 | CS25: 2.201463415 | CT25: 76.26798252 | CU25: -9025.988701 | CY25: 21.13285943 | CZ25: 1722.787194 | DA25: 40.67610369 | DB25: 15459.13371 | DD25: 19937 | DE25: 36440 | DF25: 1 | DG25: -16502 | DH25: 10263 | DI25: 10534 | DL25: -163 | DM25: 199 | DN25: 4331 | DO25: 2354 | DP25: 60 | DR25: 2037 | DS25: -38 | DT25: 105 | DU25: 0 | DV25: 0 | DW25: 2104 | DX25: 1958 | DY25: 4333 | EA25: 200 | EB25: -1868 | EC25: 1903 | EH25: 21.5 | EJ25: 16 | EQ25: -1103 | ER25: 19 | ES25: 76 | ET25: -1116 | EU25: 71 | EV25: 3858 | EW25: -2535 | EX25: 17 | EY25: 88 | EZ25: 25 | FA25: 564 | FB25: 1647 | FC25: 2021 | FD25: 2325 | FE25: -1102 | FF25: 28289 | FG25: 24649 | FH25: 3640 | FI25: 57 | FJ25: 26820 | FK25: 21248 | FL25: 5572 | FM25: 53 | FN25: 26176 | FO25: 21649 | FP25: 4527 | FQ25: 200 | FR25: 397 | FS25: 274 | FT25: 168 | FU25: 27583 | FV25: 782
A26: 82 | B26: Hattula | C26: 9475 | E26: 0.4331200714 | F26: 73.90346162 | G26: -5182.269129 | K26: 32.69055609 | L26: 293.8258575 | M26: 11.90259215 | N26: 9010.343008 | P26: 24931 | Q26: 71771 | R26: 0 | S26: -46840 | T26: 37627 | U26: 11858 | X26: -21 | Y26: 60 | Z26: 2684 | AA26: 3394 | AB26: 53 | AD26: -657 | AE26: 0 | AF26: 0 | AG26: 0 | AH26: 7 | AI26: -650 | AJ26: 7749 | AK26: 2708 | AM26: -510 | AN26: -6494 | AO26: -1588 | AT26: 20.5 | AV26: 225 | AW26: 9422 | AY26: 0.348244863 | AZ26: 81.39969401 | BA26: -5737.423052 | BE26: 29.09852714 | BF26: 252.0696243 | BG26: 12.13992163 | BH26: 8883.888771 | BJ26: 24788 | BK26: 72510 | BL26: 0 | BM26: -47722 | BN26: 36843 | BO26: 12228 | BR26: -11 | BS26: 76 | BT26: 1414 | BU26: 3746 | BV26: 84 | BX26: -2248 | BY26: -1 | BZ26: 3 | CA26: 1 | CB26: 37 | CC26: -2210 | CD26: 5538 | CE26: 1113 | CG26: -579 | CH26: -4459 | CI26: -5105 | CN26: 20.5 | CP26: 251 | CQ26: 9389 | CS26: 1.32004749 | CT26: 70.15189936 | CU26: -5396.527852 | CY26: 33.03722406 | CZ26: 360.4217702 | DA26: 14.60138075 | DB26: 9009.692193 | DD26: 25209 | DE26: 73629 | DF26: 0 | DG26: -48420 | DH26: 39227 | DI26: 16802 | DL26: -17 | DM26: -35 | DN26: 7557 | DO26: 4056 | DP26: 0 | DR26: 3501 | DS26: 0 | DT26: 2 | DU26: 97 | DV26: 49 | DW26: 3455 | DX26: 8993 | DY26: 7268 | EA26: 751 | EB26: -5670 | EC26: 3277 | EH26: 20.75 | EJ26: 220 | EQ26: -6845 | ER26: 0 | ES26: 2549 | ET26: -6497 | EU26: 34 | EV26: 245 | EW26: -4949 | EX26: 117 | EY26: 841 | EZ26: 2828 | FA26: 4293 | FB26: 8367 | FC26: 1468 | FD26: 9469 | FE26: -7157 | FF26: 45063 | FG26: 31978 | FH26: 13085 | FI26: 4142 | FJ26: 50441 | FK26: 35429 | FL26: 15012 | FM26: 4137 | FN26: 47081 | FO26: 38684 | FP26: 8397 | FQ26: 751 | FR26: 4571 | FS26: 8241 | FT26: 7794 | FU26: 2804 | FV26: 3432
A27: 86 | B27: Hausjärvi | C27: 8417 | E27: 0.386077989 | F27: 46.50316293 | G27: -3211.120352 | K27: 38.44146512 | L27: 307.9482001 | M27: 12.74490786 | N27: 8819.294285 | P27: 23068 | Q27: 65586 | R27: 3 | S27: -42515 | T27: 31690 | U27: 13375 | X27: -249 | Y27: 45 | Z27: 2346 | AA27: 3128 | AB27: 0 | AD27: -782 | AE27: -1 | AF27: 1 | AG27: -13 | AH27: 0 | AI27: -795 | AJ27: 5416 | AK27: 2582 | AM27: -193 | AN27: -5946 | AO27: 583 | AT27: 21.5 | AV27: 238 | AW27: 8260 | AY27: 0.638348551 | AZ27: 49.48675688 | BA27: -3319.854722 | BE27: 36.28504631 | BF27: 586.5617433 | BG27: 12.74353448 | BH27: 8987.893462 | BJ27: 23063 | BK27: 65993 | BL27: 4 | BM27: -42926 | BN27: 32651 | BO27: 13454 | BR27: -224 | BS27: 31 | BT27: 2986 | BU27: 2929 | BV27: 0 | BX27: 57 | BY27: -1 | BZ27: 2 | CA27: 11 | CB27: 0 | CC27: 47 | CD27: 5463 | CE27: 2293 | CG27: 102 | CH27: -4808 | CI27: -438 | CN27: 21.5 | CP27: 178 | CQ27: 8175 | CS27: 1.334273319 | CT27: 58.34588732 | CU27: -3554.006116 | CY27: 34.44853385 | CZ27: 1259.816514 | DA27: 47.27579702 | DB27: 9726.605505 | DD27: 23470 | DE27: 66919 | DF27: 0 | DG27: -43449 | DH27: 32852 | DI27: 16696 | DL27: -165 | DM27: 35 | DN27: 5969 | DO27: 2928 | DP27: 0 | DR27: 3041 | DS27: 0 | DT27: 1 | DU27: 17 | DV27: 0 | DW27: 3025 | DX27: 8278 | DY27: 5759 | EA27: -1287 | EB27: -4428 | EC27: -1455 | EH27: 21.5 | EJ27: 245 | EQ27: -2227 | ER27: 4 | ES27: 224 | ET27: -3206 | EU27: 0 | EV27: 475 | EW27: -7973 | EX27: 516 | EY27: 243 | EZ27: 430 | FA27: 3181 | FB27: 5951 | FC27: 1041 | FD27: 5953 | FE27: 5000 | FF27: 24166 | FG27: 16327 | FH27: 7839 | FI27: 142 | FJ27: 26350 | FK27: 17851 | FL27: 8499 | FM27: 124 | FN27: 32830 | FO27: 19160 | FP27: 13670 | FQ27: -1287 | FR27: 2810 | FS27: 2517 | FT27: 2309 | FU27: 785 | FV27: 677
A28: 111 | B28: Heinola | C28: 18889 | E28: 1.358682798 | F28: 52.84661847 | G28: -710.9958177 | K28: 53.46004357 | L28: 4586.373021 | M28: 135.1080157 | N28: 12390.28006 | P28: 105165 | Q28: 202938 | R28: 0 | S28: -97773 | T28: 68917 | U28: 42965 | X28: -739 | Y28: 772 | Z28: 14142 | AA28: 8695 | AB28: 614 | AD28: 6061 | AE28: -1 | AF28: 100 | AG28: -3 | AH28: -31 | AI28: 6126 | AJ28: 31535 | AK28: 11290 | AM28: -282 | AN28: -10199 | AO28: -2547 | AT28: 20.5 | AV28: 63 | AW28: 18667 | AY28: 1.253158057 | AZ28: 59.95912541 | BA28: -1376.118284 | BE28: 50.71209957 | BF28: 4722.129962 | BG28: 130.4456591 | BH28: 12985.75025 | BJ28: 103929 | BK28: 207906 | BL28: -1 | BM28: -103978 | BN28: 68404 | BO28: 43449 | BR28: -634 | BS28: 4259 | BT28: 11500 | BU28: 9163 | BV28: -203 | BX28: 2134 | BY28: -1 | BZ28: 81 | CA28: 1 | CB28: -15 | CC28: 2198 | CD28: 31760 | CE28: 10465 | CG28: -911 | CH28: -9035 | CI28: -13140 | CN28: 20.5 | CP28: 83 | CQ28: 18497 | CS28: 1.932077536 | CT28: 65.21496833 | CU28: -1512.515543 | CY28: 50.73785197 | CZ28: 5888.4684 | DA28: 151.6347038 | DB28: 14174.13635 | DD28: 104668 | DE28: 208423 | DF28: 350 | DG28: -103405 | DH28: 72997 | DI28: 52020 | DL28: -624 | DM28: 3047 | DN28: 24035 | DO28: 12027 | DP28: 9325 | DR28: 21333 | DS28: -3 | DT28: -1 | DU28: 3 | DV28: 32 | DW28: 21358 | DX28: 52919 | DY28: 31795 | EA28: 2651 | EB28: -12110 | EC28: -2386 | EH28: 20.5 | EJ28: 52 | EQ28: -18035 | ER28: 28 | ES28: 4170 | ET28: -24311 | EU28: 8 | EV28: 698 | EW28: -36097 | EX28: 622 | EY28: 1294 | EZ28: 8195 | FA28: 62 | FB28: 24025 | FC28: -1442 | FD28: 36203 | FE28: -4851 | FF28: 83094 | FG28: 65285 | FH28: 17809 | FI28: 1773 | FJ28: 96615 | FK28: 79004 | FL28: 17611 | FM28: 1753 | FN28: 115900 | FO28: 99436 | FP28: 16464 | FQ28: 2651 | FR28: 20 | FS28: 19 | FT28: 647 | FU28: 36283 | FV28: 32028
A29: 90 | B29: Heinävesi | C29: 3329 | E29: 0.801421092 | F29: 60.27019245 | G29: -4835.686392 | K29: 30.20671141 | L29: 2228.597176 | M29: 61.75732074 | N29: 13171.52298 | P29: 16627 | Q29: 40008 | R29: 0 | S29: -23381 | T29: 11515 | U29: 13532 | X29: 131 | Y29: 310 | Z29: 2107 | AA29: 1893 | AB29: 79 | AD29: 293 | AE29: 2 | AF29: -10 | AG29: 0 | AH29: 1 | AI29: 286 | AJ29: 2041 | AK29: 2004 | AM29: 24 | AN29: -2638 | AO29: 928 | AT29: 21 | AV29: 98 | AW29: 3254 | AY29: 54.52631579 | AZ29: 56.6271909 | BA29: -4696.681008 | BE29: 31.23071745 | BF29: 2137.676706 | BG29: 64.32760832 | BH29: 12936.6933 | BJ29: 16696 | BK29: 40621 | BL29: 0 | BM29: -23925 | BN29: 11954 | BO29: 13570 | BR29: 118 | BS29: 317 | BT29: 2034 | BU29: 2240 | BV29: 0 | BX29: -206 | BY29: 0 | BZ29: 47 | CA29: 0 | CB29: 1 | CC29: -158 | CD29: 1821 | CE29: 1975 | CG29: 31 | CH29: 0 | CI29: 877 | CN29: 21 | CP29: 82 | CQ29: 3196 | CS29: 60.82 | CT29: 51.03872015 | CU29: -4326.658323 | CY29: 34.89455408 | CZ29: 1912.703379 | DA29: 51.72821904 | DB29: 13496.24531 | DD29: 16400 | DE29: 40562 | DF29: 0 | DG29: -24162 | DH29: 12193 | DI29: 14537 | DL29: 108 | DM29: 315 | DN29: 2991 | DO29: 2002 | DP29: 232 | DR29: 1221 | DS29: 0 | DT29: 25 | DU29: 0 | DV29: 0 | DW29: 1246 | DX29: 3046 | DY29: 2903 | EA29: -398 | EB29: 0 | EC29: 1465 | EH29: 21 | EJ29: 162 | EQ29: -1156 | ER29: 34 | ES29: 46 | ET29: -1131 | EU29: 10 | EV29: 23 | EW29: -2502 | EX29: 2 | EY29: 1062 | EZ29: 0 | FA29: 798 | FB29: 6050 | FC29: -6969 | FD29: 1299 | FE29: -3423 | FF29: 21270 | FG29: 4557 | FH29: 16713 | FI29: 0 | FJ29: 20052 | FK29: 4405 | FL29: 15647 | FM29: 0 | FN29: 17929 | FO29: 11725 | FP29: 6204 | FQ29: -398 | FR29: 0 | FS29: 0 | FT29: 0 | FU29: 664 | FV29: 1076
A30: 91 | B30: Helsinki | C30: 648042 | E30: 3.86669318 | F30: 87.44808177 | G30: -6435.747992 | K30: 62.31249088 | L30: 2328.42933 | M30: 69.8428701 | N30: 12168.41038 | P30: 3551633 | Q30: 5797476 | R30: 14523 | S30: -2231320 | T30: 3416582 | U30: 197861 | X30: -40875 | Y30: 15758 | Z30: 1358006 | AA30: 780501 | AB30: -18391 | AD30: 559114 | AE30: 1312 | AF30: 2050 | AG30: -15145 | AH30: -18959 | AI30: 528372 | AJ30: 5249606 | AK30: 1166306 | AM30: -5963 | AN30: -305620 | AO30: -34525 | AT30: 18 | AV30: 2 | AW30: 653835 | AY30: 3.144041285 | AZ30: 88.58312234 | BA30: -6893.324768 | BE30: 62.96670268 | BF30: 2286.963836 | BG30: 62.89581263 | BH30: 13392.73211 | BJ30: 3739674 | BK30: 6076785 | BL30: 16817 | BM30: -2320294 | BN30: 3493732 | BO30: 233329 | BR30: -37221 | BS30: 7504 | BT30: 1377050 | BU30: 834836 | BV30: -50 | BX30: 542164 | BY30: 95 | BZ30: 1522 | CA30: 24319 | CB30: -15729 | CC30: 503733 | CD30: 5724455 | CE30: 1215682 | CG30: -24832 | CH30: -396983 | CI30: -333123 | CN30: 18 | CP30: 3 | CQ30: 656920 | CS30: 4.796385299 | CT30: 90.29253701 | CU30: -7383.1806 | CY30: 62.31192923 | CZ30: 2479.196858 | DA30: 65.92769963 | DB30: 13725.74591 | DD30: 3803496 | DE30: 6402147 | DF30: 32706 | DG30: -2565945 | DH30: 3565598 | DI30: 480135 | DL30: -44257 | DM30: 2908 | DN30: 1438439 | DO30: 843312 | DP30: 10330 | DR30: 605457 | DS30: 3253 | DT30: 1035 | DU30: 12127 | DV30: -28734 | DW30: 568884 | DX30: 6237774 | DY30: 1341771 | EA30: 3399 | EB30: -254373 | EC30: -268786 | EH30: 18 | EJ30: 3 | EQ30: -1718766 | ER30: 11511 | ES30: 506424 | ET30: -2210554 | EU30: 16603 | EV30: 645146 | EW30: -2273959 | EX30: 16735 | EY30: 646667 | EZ30: 366423 | FA30: -891 | FB30: 566813 | FC30: 17610 | FD30: 652933 | FE30: -17704 | FF30: 4983823 | FG30: 4654445 | FH30: 329378 | FI30: 478189 | FJ30: 5171263 | FK30: 4855341 | FL30: 315922 | FM30: 474043 | FN30: 5552119 | FO30: 5234907 | FP30: 317212 | FQ30: 3399 | FR30: 297163 | FS30: 281297 | FT30: 346490 | FU30: 598214 | FV30: 880117
A31: 97 | B31: Hirvensalmi | C31: 2152 | E31: 3.363888889 | F31: 47.20971216 | G31: -577.1375465 | K31: 46.2694465 | L31: 5256.505576 | M31: 133.8112523 | N31: 14338.28996 | P31: 15911 | Q31: 28468 | R31: 5 | S31: -12552 | T31: 7616 | U31: 7115 | X31: -95 | Y31: 236 | Z31: 2320 | AA31: 1561 | AB31: 6 | AD31: 765 | AE31: -1 | AF31: 0 | AG31: 0 | AH31: -5 | AI31: 759 | AJ31: 4299 | AK31: 2137 | AM31: -315 | AN31: -618 | AO31: 879 | AT31: 20 | AV31: 16 | AW31: 2136 | AY31: 2.123529412 | AZ31: 49.10381486 | BA31: -254.6816479 | BE31: 47.24022198 | BF31: 5916.198502 | BG31: 127.3957787 | BH31: 15171.81648 | BJ31: 16178 | BK31: 29763 | BL31: 9 | BM31: -13576 | BN31: 7809 | BO31: 6866 | BR31: -73 | BS31: 341 | BT31: 1367 | BU31: 1203 | BV31: 953 | BX31: 1117 | BY31: 0 | BZ31: 0 | CA31: 0 | CB31: -5 | CC31: 1112 | CD31: 5377 | CE31: 1330 | CG31: -57 | CH31: -603 | CI31: 1037 | CN31: 20 | CP31: 78 | CQ31: 2156 | CS31: 3.58650519 | CT31: 45.90389302 | CU31: -128.4786642 | CY31: 48.86303543 | CZ31: 5693.413729 | DA31: 135.465169 | DB31: 15340.44527 | DD31: 16711 | DE31: 30360 | DF31: 5 | DG31: -13644 | DH31: 7851 | DI31: 7444 | DL31: -70 | DM31: 417 | DN31: 1998 | DO31: 1419 | DP31: 0 | DR31: 579 | DS31: 0 | DT31: 0 | DU31: 0 | DV31: -2 | DW31: 577 | DX31: 5944 | DY31: 1991 | EA31: -170 | EB31: -503 | EC31: 179 | EH31: 20 | EJ31: 172 | EQ31: -1667 | ER31: 73 | ES31: 336 | ET31: -1892 | EU31: 37 | EV31: 1562 | EW31: -2122 | EX31: 278 | EY31: 32 | EZ31: 993 | FA31: -397 | FB31: 964 | FC31: -152 | FD31: 493 | FE31: -575 | FF31: 8236 | FG31: 6839 | FH31: 1397 | FI31: 0 | FJ31: 8444 | FK31: 7160 | FL31: 1284 | FM31: 0 | FN31: 7860 | FO31: 7127 | FP31: 733 | FQ31: -170 | FR31: 734 | FS31: 672 | FT31: 610 | FU31: 918 | FV31: 829
A32: 98 | B32: Hollola | C32: 23602 | E32: 6.574035454 | F32: 44.2702093 | G32: -2953.732735 | K32: 46.19073405 | L32: 814.3801373 | M32: 30.50010651 | N32: 9745.826625 | P32: 96626 | Q32: 215890 | R32: 6 | S32: -119258 | T32: 89740 | U32: 41487 | X32: -806 | Y32: 613 | Z32: 11776 | AA32: 13660 | AB32: 69 | AD32: -1815 | AE32: -2 | AF32: -1 | AG32: -4 | AH32: -45 | AI32: -1867 | AJ32: 21484 | AK32: 10306 | AM32: 1665 | AN32: -1085 | AO32: 5132 | AT32: 21 | AV32: 142 | AW32: 23410 | AY32: 0.857249373 | AZ32: 40.43294746 | BA32: -2877.402819 | BE32: 48.45525139 | BF32: 669.4574968 | BG32: 27.88054428 | BH32: 10748.95344 | BJ32: 98475 | BK32: 222567 | BL32: 40 | BM32: -124052 | BN32: 92308 | BO32: 43056 | BR32: -818 | BS32: 1324 | BT32: 11818 | BU32: 12065 | BV32: 585 | BX32: 338 | BY32: -28 | BZ32: 0 | CA32: 12 | CB32: -43 | CC32: 255 | CD32: 23013 | CE32: 12156 | CG32: 415 | CH32: -13924 | CI32: 864 | CN32: 21 | CP32: 117 | CQ32: 23251 | CS32: 2.153351912 | CT32: 40.66022834 | CU32: -2714.678939 | CY32: 50.46986173 | CZ32: 1263.902628 | DA32: 41.23008887 | DB32: 11189.02413 | DD32: 98244 | DE32: 223563 | DF32: 4 | DG32: -125315 | DH32: 97885 | DI32: 53936 | DL32: -500 | DM32: 1303 | DN32: 27309 | DO32: 12511 | DP32: 289 | DR32: 15087 | DS32: -74 | DT32: 0 | DU32: 14 | DV32: -53 | DW32: 14946 | DX32: 37959 | DY32: 27110 | EA32: 2010 | EB32: -12410 | EC32: 4775 | EH32: 21 | EJ32: 82 | EQ32: -12018 | ER32: 0 | ES32: 6844 | ET32: -13802 | EU32: 0 | EV32: 2510 | EW32: -23581 | EX32: 106 | EY32: 1140 | EZ32: 208 | FA32: -8749 | FB32: 1580 | FC32: 5838 | FD32: 19000 | FE32: -1129 | FF32: 65624 | FG32: 56536 | FH32: 9088 | FI32: 1713 | FJ32: 59118 | FK32: 44093 | FL32: 15025 | FM32: 1557 | FN32: 62377 | FO32: 53065 | FP32: 9312 | FQ32: 2010 | FR32: 140 | FS32: 991 | FT32: 1565 | FU32: 62606 | FV32: 87344
A33: 99 | B33: Honkajoki | C33: 1666 | E33: -1.562659847 | F33: 40.13645306 | G33: -4245.498199 | K33: 18.52410901 | L33: 780.3121248 | M33: 18.70245556 | N33: 15228.69148 | P33: 13851 | Q33: 24515 | R33: 0 | S33: -10664 | T33: 5268 | U33: 4772 | X33: -36 | Y33: 11 | Z33: -649 | AA33: 445 | AB33: 0 | AD33: -1094 | AE33: 0 | AF33: -7 | AG33: 0 | AH33: 0 | AI33: -1101 | AJ33: -2552 | AK33: -624 | AM33: 257 | AN33: -353 | AO33: -1068 | AT33: 22 | AV33: 294 | AW33: 1620 | AY33: 2.550649351 | AZ33: 38.5602479 | BA33: -3991.975309 | BE33: 21.60483999 | BF33: 1240.123457 | BG33: 18.89158737 | BH33: 15504.32099 | BJ33: 14130 | BK33: 24199 | BL33: 0 | BM33: -10069 | BN33: 5846 | BO33: 5195 | BR33: -34 | BS33: 9 | BT33: 947 | BU33: 442 | BV33: 0 | BX33: 505 | BY33: 0 | BZ33: -4 | CA33: 0 | CB33: 1 | CC33: 502 | CD33: -2048 | CE33: 548 | CG33: -15 | CH33: -350 | CI33: 588 | CN33: 22.5 | CP33: 92 | CQ33: 1595 | CS33: 2.908560311 | CT33: 42.98328978 | CU33: -4695.924765 | CY33: 23.87428016 | CZ33: 1124.137931 | DA33: 24.32971486 | DB33: 16864.5768 | DD33: 13925 | DE33: 23769 | DF33: 0 | DG33: -9844 | DH33: 5818 | DI33: 5511 | DL33: -35 | DM33: 7 | DN33: 1457 | DO33: 730 | DP33: 0 | DR33: 727 | DS33: 0 | DT33: -6 | DU33: 0 | DV33: 1 | DW33: 722 | DX33: -1321 | DY33: 1403 | EA33: -341 | EB33: -476 | EC33: -1057 | EH33: 22.5 | EJ33: 185 | EQ33: -461 | ER33: 8 | ES33: 9 | ET33: -530 | EU33: 5 | EV33: 565 | EW33: -2613 | EX33: 4 | EY33: 149 | EZ33: 128 | FA33: 0 | FB33: 2078 | FC33: 0 | FD33: 1751 | FE33: -1000 | FF33: 4831 | FG33: 3481 | FH33: 1350 | FI33: 0 | FJ33: 6559 | FK33: 5083 | FL33: 1476 | FM33: 0 | FN33: 6834 | FO33: 6186 | FP33: 648 | FQ33: -341 | FR33: 1359 | FS33: 1229 | FT33: 1141 | FU33: 1804 | FV33: 2308
A34: 102 | B34: Huittinen | C34: 10091 | E34: 0.364763062 | F34: 54.28499277 | G34: -3295.808146 | K34: 45.82097288 | L34: 872.6588049 | M34: 33.03279447 | N34: 9642.55277 | P34: 24387 | Q34: 86066 | R34: 128 | S34: -61551 | T34: 32665 | U34: 30066 | X34: -224 | Y34: 316 | Z34: 1272 | AA34: 4576 | AB34: -5 | AD34: -3309 | AE34: -6 | AF34: 0 | AG34: -17 | AH34: -22 | AI34: -3354 | AJ34: 7513 | AK34: 508 | AM34: 270 | AN34: -3886 | AO34: -5407 | AT34: 20.75 | AV34: 270 | AW34: 10044 | AY34: 0.3739005932 | AZ34: 54.02455039 | BA34: -3526.483473 | BE34: 43.8846269 | BF34: 665.1732378 | BG34: 33.74265138 | BH34: 9483.870968 | BJ34: 24003 | BK34: 85796 | BL34: -1 | BM34: -61794 | BN34: 33622 | BO34: 29950 | BR34: -222 | BS34: 48 | BT34: 1604 | BU34: 5325 | BV34: -2 | BX34: -3723 | BY34: -12 | BZ34: 24 | CA34: 19 | CB34: 0 | CC34: -3730 | CD34: 3817 | CE34: 1425 | CG34: 16 | CH34: -4665 | CI34: -2375 | CN34: 21 | CP34: 247 | CQ34: 9937 | CS34: 2.227923628 | CT34: 51.29342045 | CU34: -3148.435141 | CY34: 46.29557079 | CZ34: 1253.497031 | DA34: 48.19769106 | DB34: 9492.704035 | DD34: 23497 | DE34: 84677 | DF34: 94 | DG34: -61086 | DH34: 35970 | DI34: 34354 | DL34: -231 | DM34: 92 | DN34: 9099 | DO34: 4746 | DP34: -1 | DR34: 4352 | DS34: 9 | DT34: 0 | DU34: 0 | DV34: 90 | DW34: 4451 | DX34: 8301 | DY34: 8704 | EA34: 770 | EB34: -3954 | EC34: 3968 | EH34: 21 | EJ34: 183 | EQ34: -7071 | ER34: 416 | ES34: 740 | ET34: -4505 | EU34: 450 | EV34: 255 | EW34: -5446 | EX34: 175 | EY34: 535 | EZ34: 6159 | FA34: -10 | FB34: 6738 | FC34: 0 | FD34: 4863 | FE34: -42 | FF34: 30680 | FG34: 26339 | FH34: 4341 | FI34: 0 | FJ34: 32748 | FK34: 28365 | FL34: 4383 | FM34: 0 | FN34: 33609 | FO34: 29710 | FP34: 3899 | FQ34: 770 | FR34: 300 | FS34: 300 | FT34: 314 | FU34: 4224 | FV34: 6065
A35: 103 | B35: Humppila | C35: 2235 | E35: 0.4623893805 | F35: 51.25519314 | G35: -3637.583893 | K35: 35.97697999 | L35: 473.3780761 | M35: 15.06123245 | N35: 11472.03579 | P35: 8938 | Q35: 22208 | R35: 0 | S35: -13270 | T35: 7252 | U35: 6436 | X35: -50 | Y35: -4 | Z35: 364 | AA35: 822 | AB35: 664 | AD35: 206 | AE35: 0 | AF35: 0 | AG35: -29 | AH35: -8 | AI35: 169 | AJ35: -444 | AK35: 954 | AM35: -229 | AN35: -850 | AO35: -1368 | AT35: 22 | AV35: 257 | AW35: 2184 | AY35: 0.9087136929 | AZ35: 47.17331682 | BA35: -3226.190476 | BE35: 38.2231405 | BF35: 633.2417582 | BG35: 16.75003226 | BH35: 10646.06227 | BJ35: 8521 | BK35: 21730 | BL35: 0 | BM35: -13209 | BN35: 7768 | BO35: 6317 | BR35: -53 | BS35: -3 | BT35: 820 | BU35: 826 | BV35: 2 | BX35: -4 | BY35: 0 | BZ35: 1 | CA35: 21 | CB35: 5 | CC35: -19 | CD35: -350 | CE35: 802 | CG35: 248 | CH35: -908 | CI35: 1315 | CN35: 22 | CP35: 171 | CQ35: 2174 | CS35: 1.425420168 | CT35: 42.22375274 | CU35: -2811.867525 | CY35: 41.446437 | CZ35: 580.4967801 | DA35: 19.771225 | DB35: 10716.65133 | DD35: 8735 | DE35: 21878 | DF35: 0 | DG35: -13143 | DH35: 7583 | DI35: 6913 | DL35: -46 | DM35: -2 | DN35: 1305 | DO35: 927 | DP35: 0 | DR35: 378 | DS35: 0 | DT35: 0 | DU35: 10 | DV35: 0 | DW35: 368 | DX35: 16 | DY35: 1268 | EA35: -157 | EB35: -900 | EC35: 860 | EH35: 22 | EJ35: 272 | EQ35: -2510 | ER35: 105 | ES35: 83 | ET35: -549 | EU35: 53 | EV35: 1009 | EW35: -460 | EX35: 23 | EY35: 29 | EZ35: 2049 | FA35: 200 | FB35: 38 | FC35: 8 | FD35: 38 | FE35: 0 | FF35: 8936 | FG35: 7127 | FH35: 1809 | FI35: 8 | FJ35: 8090 | FK35: 6148 | FL35: 1942 | FM35: 8 | FN35: 7245 | FO35: 5341 | FP35: 1904 | FQ35: -157 | FR35: 0 | FS35: 3 | FT35: 28 | FU35: 87 | FV35: 385
A36: 105 | B36: Hyrynsalmi | C36: 2287 | E36: 2.036158192 | F36: 43.72963054 | G36: -4502.842151 | K36: 38.08314347 | L36: 1517.271535 | M36: 32.80877629 | N36: 16879.75514 | P36: 17513 | Q36: 34689 | R36: 0 | S36: -17176 | T36: 7657 | U36: 11343 | X36: -40 | Y36: -26 | Z36: 1758 | AA36: 1707 | AB36: -1 | AD36: 50 | AE36: 0 | AF36: 3 | AG36: 0 | AH36: -12 | AI36: 41 | AJ36: -1613 | AK36: 1972 | AM36: -802 | AN36: -841 | AO36: -919 | AT36: 21.75 | AV36: 56 | AW36: 2271 | AY36: 2.158361019 | AZ36: 44.66974721 | BA36: -4888.154998 | BE36: 38.89268626 | BF36: 1542.932629 | BG36: 32.97362735 | BH36: 16913.69441 | BJ36: 17700 | BK36: 34833 | BL36: 0 | BM36: -17133 | BN36: 8086 | BO36: 11004 | BR36: -57 | BS36: -10 | BT36: 1890 | BU36: 1259 | BV36: 0 | BX36: 631 | BY36: -6 | BZ36: 5 | CA36: 0 | CB36: -13 | CC36: 617 | CD36: -1019 | CE36: 1785 | CG36: 369 | CH36: -844 | CI36: -788 | CN36: 21.75 | CP36: 35 | CQ36: 2199 | CS36: 2.481927711 | CT36: 46.28921194 | CU36: -4834.015462 | CY36: 38.60354223 | CZ36: 2147.3397 | DA36: 44.9046428 | DB36: 17454.29741 | DD36: 18876 | DE36: 35743 | DF36: 0 | DG36: -16867 | DH36: 7993 | DI36: 11034 | DL36: -50 | DM36: -107 | DN36: 2003 | DO36: 1475 | DP36: 0 | DR36: 528 | DS36: -5 | DT36: 1 | DU36: 0 | DV36: -5 | DW36: 519 | DX36: -500 | DY36: 2008 | EA36: -363 | EB36: -773 | EC36: 511 | EH36: 21.75 | EJ36: 186 | EQ36: -2988 | ER36: 59 | ES36: 38 | ET36: -2632 | EU36: 34 | EV36: 25 | EW36: -1685 | EX36: 180 | EY36: 8 | EZ36: 2230 | FA36: 478 | FB36: 1993 | FC36: -500 | FD36: 1036 | FE36: -1 | FF36: 11029 | FG36: 7769 | FH36: 3260 | FI36: 0 | FJ36: 11678 | FK36: 8984 | FL36: 2694 | FM36: 0 | FN36: 11940 | FO36: 9246 | FP36: 2694 | FQ36: -363 | FR36: 2907 | FS36: 2689 | FT36: 2451 | FU36: 413 | FV36: 557
A37: 106 | B37: Hyvinkää | C37: 46504 | E37: 1.75005381 | F37: 60.00102543 | G37: -5679.898503 | K37: 37.79051338 | L37: 1112.829004 | M37: 30.76307899 | N37: 13203.57389 | P37: 315013 | Q37: 533029 | R37: -71 | S37: -218087 | T37: 198798 | U37: 51806 | X37: -2977 | Y37: -34 | Z37: 29506 | AA37: 31206 | AB37: 0 | AD37: -1700 | AE37: -62 | AF37: -19 | AG37: -216 | AH37: -65 | AI37: -2062 | AJ37: 54416 | AK37: 21640 | AM37: 963 | AN37: -15567 | AO37: -27270 | AT37: 19.75 | AV37: 97 | AW37: 46470 | AY37: 0.8863032878 | AZ37: 74.76690774 | BA37: -6619.109103 | BE37: 32.21094067 | BF37: 1315.536906 | BG37: 31.25303404 | BH37: 13006.08995 | BJ37: 289935 | BK37: 522902 | BL37: 124 | BM37: -232843 | BN37: 198284 | BO37: 52983 | BR37: -3293 | BS37: -88 | BT37: 15043 | BU37: 32570 | BV37: 0 | BX37: -17527 | BY37: -643 | BZ37: 0 | CA37: 407 | CB37: -238 | CC37: -18815 | CD37: 35601 | CE37: 11039 | CG37: -12429 | CH37: -17398 | CI37: -42651 | CN37: 19.75 | CP37: 198 | CQ37: 46576 | CS37: 1.576564067 | CT37: 72.53107117 | CU37: -7097.668327 | CY37: 31.43129605 | CZ37: 1301.95809 | DA37: 35.33229785 | DB37: 13449.86688 | DD37: 292088 | DE37: 534798 | DF37: 65 | DG37: -242645 | DH37: 210261 | DI37: 73265 | DL37: -3331 | DM37: -35 | DN37: 37515 | DO37: 34992 | DP37: 0 | DR37: 2523 | DS37: -207 | DT37: 0 | DU37: 604 | DV37: -163 | DW37: 1549 | DX37: 37151 | DY37: 39152 | EA37: 9638 | EB37: -22567 | EC37: -21902 | EH37: 19.75 | EJ37: 219 | EQ37: -61875 | ER37: 1043 | ES37: 11922 | ET37: -60209 | EU37: 73 | EV37: 6446 | EW37: -65184 | EX37: 449 | EY37: 3681 | EZ37: 40302 | FA37: -1634 | FB37: 53097 | FC37: 6186 | FD37: 21600 | FE37: 18842 | FF37: 259590 | FG37: 242417 | FH37: 17173 | FI37: 1974 | FJ37: 301476 | FK37: 272906 | FL37: 28570 | FM37: 1942 | FN37: 319350 | FO37: 268699 | FP37: 50651 | FQ37: 9638 | FR37: 5581 | FS37: 2688 | FT37: 2426 | FU37: 53394 | FV37: 80209
A38: 108 | B38: Hämeenkyrö | C38: 10510 | E38: 2.29941127 | F38: 83.01581687 | G38: -6160.513796 | K38: 30.59954241 | L38: 1141.484301 | M38: 40.34592846 | N38: 10326.73644 | P38: 40010 | Q38: 91156 | R38: 7 | S38: -51139 | T38: 37360 | U38: 21575 | X38: -363 | Y38: 367 | Z38: 7800 | AA38: 6895 | AB38: 0 | AD38: 905 | AE38: -87 | AF38: 1 | AG38: -67 | AH38: -43 | AI38: 709 | AJ38: 5974 | AK38: 7606 | AM38: -227 | AN38: -3165 | AO38: -4929 | AT38: 22 | AV38: 65 | AW38: 10404 | AY38: 0.2721359631 | AZ38: 82.30332848 | BA38: -6229.527105 | BE38: 30.9952347 | BF38: 1195.597847 | BG38: 36.03070968 | BH38: 11968.56978 | BJ38: 37807 | BK38: 93335 | BL38: 30 | BM38: -55498 | BN38: 37812 | BO38: 23976 | BR38: -379 | BS38: 170 | BT38: 6081 | BU38: 7207 | BV38: 0 | BX38: -1126 | BY38: -78 | BZ38: 0 | CA38: 58 | CB38: -53 | CC38: -1315 | CD38: 4926 | CE38: 5666 | CG38: 669 | CH38: -23426 | CI38: -369 | CN38: 22 | CP38: 93 | CQ38: 10344 | CS38: 5.976190476 | CT38: 77.25778105 | CU38: -5833.430008 | CY38: 32.02621348 | CZ38: 1494.29621 | DA38: 54.73388826 | DB38: 9964.907193 | DD38: 39065 | DE38: 96609 | DF38: 65 | DG38: -57479 | DH38: 38953 | DI38: 27816 | DL38: -479 | DM38: 235 | DN38: 9046 | DO38: 7178 | DP38: 0 | DR38: 1868 | DS38: -225 | DT38: 309 | DU38: 142 | DV38: -1 | DW38: 1809 | DX38: 6507 | DY38: 8716 | EA38: -1249 | EB38: -1104 | EC38: 4496 | EH38: 22 | EJ38: 200 | EQ38: -13636 | ER38: 490 | ES38: 611 | ET38: -7111 | EU38: 975 | EV38: 101 | EW38: -4631 | EX38: 265 | EY38: 146 | EZ38: 4386 | FA38: 4104 | FB38: 2124 | FC38: 21280 | FD38: 33494 | FE38: -34053 | FF38: 67089 | FG38: 47620 | FH38: 19469 | FI38: 27 | FJ38: 67088 | FK38: 26175 | FL38: 40913 | FM38: 24 | FN38: 65727 | FO38: 56748 | FP38: 8979 | FQ38: -1249 | FR38: 84 | FS38: 0 | FT38: 0 | FU38: 4640 | FV38: 5376
A39: 109 | B39: Hämeenlinna | C39: 67532 | E39: 0.8543748904 | F39: 86.05664243 | G39: -5422.629272 | K39: 38.07328659 | L39: 1859.11864 | M39: 65.53576127 | N39: 10354.32091 | P39: 229427 | Q39: 577780 | R39: 590 | S39: -347763 | T39: 278719 | U39: 113720 | X39: -9301 | Y39: 3456 | Z39: 38831 | AA39: 50268 | AB39: 0 | AD39: -11437 | AE39: -162 | AF39: 7469 | AG39: -106 | AH39: -77 | AI39: -4313 | AJ39: 3715 | AK39: 30936 | AM39: -2512 | AN39: -47136 | AO39: -11262 | AT39: 20.75 | AV39: 123 | AW39: 67633 | AY39: 0.5250479809 | AZ39: 92.97811108 | BA39: -5934.144574 | BE39: 37.40453643 | BF39: 1978.220691 | BG39: 62.33388106 | BH39: 10869.93036 | BJ39: 226363 | BK39: 588799 | BL39: 885 | BM39: -361551 | BN39: 281063 | BO39: 113162 | BR39: -8974 | BS39: 6893 | BT39: 30593 | BU39: 45777 | BV39: 0 | BX39: -15184 | BY39: -466 | BZ39: -204 | CA39: 230 | CB39: 94 | CC39: -15990 | CD39: -14769 | CE39: 23939 | CG39: 2647 | CH39: -66971 | CI39: -36325 | CN39: 20.75 | CP39: 139 | CQ39: 67848 | CS39: 1.211159479 | CT39: 93.25788503 | CU39: -5882.251503 | CY39: 36.78258692 | CZ39: 2637.012145 | DA39: 90.45987408 | DB39: 10640.18099 | DD39: 216472 | DE39: 592943 | DF39: 368 | DG39: -376103 | DH39: 297480 | DI39: 147428 | DL39: -8972 | DM39: 2529 | DN39: 62362 | DO39: 47611 | DP39: 0 | DR39: 14751 | DS39: -275 | DT39: 2786 | DU39: 333 | DV39: 256 | DW39: 17185 | DX39: 2390 | DY39: 60957 | EA39: 3087 | EB39: -49847 | EC39: 928 | EH39: 21 | EJ39: 178 | EQ39: -61347 | ER39: 272 | ES39: 18877 | ET39: -69189 | EU39: 661 | EV39: 8264 | EW39: -68345 | EX39: 1002 | EY39: 7314 | EZ39: 64307 | FA39: -4102 | FB39: 87935 | FC39: 18114 | FD39: 89048 | FE39: -823 | FF39: 432523 | FG39: 362552 | FH39: 69971 | FI39: 1213 | FJ39: 471602 | FK39: 382626 | FL39: 88976 | FM39: 947 | FN39: 509504 | FO39: 422747 | FP39: 86757 | FQ39: 3087 | FR39: 17963 | FS39: 16701 | FT39: 15888 | FU39: 77561 | FV39: 74733
A40: 139 | B40: Ii | C40: 9862 | E40: 0.5606060606 | F40: 66.05822213 | G40: -6586.595011 | K40: 33.58154625 | L40: 820.4218211 | M40: 21.06895961 | N40: 14213.03995 | P40: 60810 | Q40: 118217 | R40: 3 | S40: -57404 | T40: 32091 | U40: 30145 | X40: -631 | Y40: 205 | Z40: 4406 | AA40: 6056 | AB40: 486 | AD40: -1164 | AE40: -7 | AF40: -52 | AG40: -6 | AH40: -53 | AI40: -1282 | AJ40: 13144 | AK40: 3782 | AM40: -23 | AN40: -8379 | AO40: -7047 | AT40: 21.25 | AV40: 162 | AW40: 9844 | AY40: 0.5292900021 | AZ40: 68.28422743 | BA40: -7192.401463 | BE40: 31.12300035 | BF40: 773.5676554 | BG40: 20.28822572 | BH40: 14786.97684 | BJ40: 64618 | BK40: 124010 | BL40: 4 | BM40: -59388 | BN40: 33886 | BO40: 30435 | BR40: -481 | BS40: 143 | BT40: 4595 | BU40: 6895 | BV40: 0 | BX40: -2300 | BY40: -6 | BZ40: -6 | CA40: 5 | CB40: -59 | CC40: -2376 | CD40: 11308 | CE40: 5047 | CG40: -510 | CH40: -9143 | CI40: -5594 | CN40: 21.25 | CP40: 134 | CQ40: 9848 | CS40: 0.9387439789 | CT40: 70.91696357 | CU40: -7367.181154 | CY40: 30.3722863 | CZ40: 1568.94801 | DA40: 38.13256026 | DB40: 15017.77011 | DD40: 64481 | DE40: 125354 | DF40: -28 | DG40: -60901 | DH40: 34439 | DI40: 36647 | DL40: -481 | DM40: 129 | DN40: 9833 | DO40: 7612 | DP40: 0 | DR40: 2221 | DS40: -9 | DT40: 34 | DU40: 2 | DV40: -114 | DW40: 2130 | DX40: 13476 | DY40: 9902 | EA40: 2402 | EB40: -10507 | EC40: -1185 | EH40: 21.25 | EJ40: 132 | EQ40: -12859 | ER40: 316 | ES40: 1714 | ET40: -11821 | EU40: 652 | EV40: 528 | EW40: -11471 | EX40: 149 | EY40: 235 | EZ40: 14523 | FA40: -2432 | FB40: 13170 | FC40: 982 | FD40: 23166 | FE40: -7147 | FF40: 57005 | FG40: 40347 | FH40: 16658 | FI40: 298 | FJ40: 62913 | FK40: 45277 | FL40: 17636 | FM40: 298 | FN40: 69295 | FO40: 58776 | FP40: 10519 | FQ40: 2402 | FR40: 571 | FS40: 428 | FT40: 286 | FU40: 13301 | FV40: 12270
A41: 140 | B41: Iisalmi | C41: 21472 | E41: 1.180191824 | F41: 55.25592692 | G41: -3969.821162 | K41: 42.94388665 | L41: 2118.945604 | M41: 59.05259228 | N41: 13097.05663 | P41: 118486 | Q41: 243970 | R41: 571 | S41: -124913 | T41: 74684 | U41: 67041 | X41: -547 | Y41: 426 | Z41: 16691 | AA41: 15532 | AB41: 2327 | AD41: 3486 | AE41: -9 | AF41: 400 | AG41: -11 | AH41: -202 | AI41: 3664 | AJ41: 36042 | AK41: 15187 | AM41: -631 | AN41: -14042 | AO41: -2069 | AT41: 20.5 | AV41: 54 | AW41: 21368 | AY41: 1.174624727 | AZ41: 52.56803986 | BA41: -4123.174841 | BE41: 44.23761818 | BF41: 1754.02471 | BG41: 59.99338897 | BH41: 12954.41782 | BJ41: 117005 | BK41: 246335 | BL41: 719 | BM41: -128611 | BN41: 76487 | BO41: 66025 | BR41: -706 | BS41: 1573 | BT41: 14768 | BU41: 13421 | BV41: 0 | BX41: 1347 | BY41: -33 | BZ41: -21 | CA41: 15 | CB41: -180 | CC41: 1098 | CD41: 36877 | CE41: 13290 | CG41: 2440 | CH41: -12453 | CI41: -1933 | CN41: 20.5 | CP41: 63 | CQ41: 21124 | CS41: 2.031247571 | CT41: 54.58890023 | CU41: -4185.99697 | CY41: 44.18789031 | CZ41: 2262.497633 | DA41: 60.86771972 | DB41: 13567.3168 | DD41: 117978 | DE41: 247082 | DF41: 1827 | DG41: -127277 | DH41: 76254 | DI41: 76116 | DL41: -659 | DM41: 957 | DN41: 25391 | DO41: 15969 | DP41: -10 | DR41: 9412 | DS41: -20 | DT41: -2644 | DU41: 72 | DV41: -272 | DW41: 6404 | DX41: 43467 | DY41: 22798 | EA41: -506 | EB41: -12124 | EC41: -150 | EH41: 20.5 | EJ41: 74 | EQ41: -21369 | ER41: 235 | ES41: 3878 | ET41: -16688 | EU41: 513 | EV41: 952 | EW41: -26396 | EX41: 758 | EY41: 2690 | EZ41: 26744 | FA41: -1529 | FB41: 4656 | FC41: -220 | FD41: 21274 | FE41: 3 | FF41: 109138 | FG41: 95345 | FH41: 13793 | FI41: 0 | FJ41: 101054 | FK41: 87476 | FL41: 13578 | FM41: 0 | FN41: 110210 | FO41: 96763 | FP41: 13447 | FQ41: -506 | FR41: 3360 | FS41: 2731 | FT41: 1070 | FU41: 9587 | FV41: 13739
A42: 142 | B42: Iitti | C42: 6765 | E42: 0.9592875318 | F42: 46.51900161 | G42: -2939.837398 | K42: 42.04749514 | L42: 1188.765706 | M42: 42.70875467 | N42: 10159.49741 | P42: 28376 | Q42: 64468 | R42: 0 | S42: -36092 | T42: 23237 | U42: 14934 | X42: -175 | Y42: 176 | Z42: 2080 | AA42: 2918 | AB42: 230 | AD42: -608 | AE42: 0 | AF42: 0 | AG42: 0 | AH42: 0 | AI42: -608 | AJ42: -290 | AK42: 2239 | AM42: 262 | AN42: -2176 | AO42: 879 | AT42: 20.75 | AV42: 213 | AW42: 6711 | AY42: 0.0705532863 | AZ42: 47.33072253 | BA42: -3258.381761 | BE42: 38.00315114 | BF42: 1096.706899 | BG42: 39.75418828 | BH42: 11002.38415 | BJ42: 29147 | BK42: 68597 | BL42: 9 | BM42: -39441 | BN42: 24311 | BO42: 15231 | BR42: -149 | BS42: 76 | BT42: 28 | BU42: 2732 | BV42: 0 | BX42: -2704 | BY42: -1 | BZ42: 0 | CA42: 0 | CB42: 0 | CC42: -2705 | CD42: -2995 | CE42: 37 | CG42: -256 | CH42: -2531 | CI42: -2000 | CN42: 20.75 | CP42: 274 | CQ42: 6625 | CS42: 2.92464205 | CT42: 35.79434433 | CU42: -2561.660377 | CY42: 48.16866728 | CZ42: 927.6981132 | DA42: 31.364596 | DB42: 10795.92453 | DD42: 28707 | DE42: 65802 | DF42: 2 | DG42: -37093 | DH42: 25382 | DI42: 19607 | DL42: -130 | DM42: -140 | DN42: 7626 | DO42: 2879 | DP42: 31 | DR42: 4778 | DS42: -1 | DT42: 0 | DU42: 0 | DV42: 0 | DW42: 4777 | DX42: 1782 | DY42: 7626 | EA42: 22 | EB42: -2518 | EC42: 5040 | EH42: 21.25 | EJ42: 94 | EQ42: -1864 | ER42: 286 | ES42: 218 | ET42: -2529 | EU42: 202 | EV42: 290 | EW42: -2743 | EX42: 109 | EY42: 48 | EZ42: 1801 | FA42: 0 | FB42: 1737 | FC42: 2 | FD42: 1 | FE42: 490 | FF42: 20291 | FG42: 17759 | FH42: 2532 | FI42: 30 | FJ42: 19499 | FK42: 16907 | FL42: 2592 | FM42: 24 | FN42: 17473 | FO42: 14474 | FP42: 2999 | FQ42: 22 | FR42: 956 | FS42: 681 | FT42: 493 | FU42: 10031 | FV42: 14927
A43: 143 | B43: Ikaalinen | C43: 7003 | E43: 0.8903256705 | F43: 74.27735532 | G43: -6894.616593 | K43: 27.90992275 | L43: 1106.811367 | M43: 30.72553406 | N43: 13148.22219 | P43: 32840 | Q43: 79419 | R43: 11 | S43: -46568 | T43: 24715 | U43: 25162 | X43: -279 | Y43: 403 | Z43: 3433 | AA43: 3423 | AB43: 0 | AD43: 10 | AE43: -58 | AF43: 842 | AG43: -82 | AH43: 1 | AI43: -129 | AJ43: 2678 | AK43: 3496 | AM43: 1391 | AN43: -3891 | AO43: -3864 | AT43: 21.25 | AV43: 146 | AW43: 6942 | AY43: 0.8762833676 | AZ43: 74.61767864 | BA43: -7150.96514 | BE43: 27.78079403 | BF43: 1214.34745 | BG43: 31.69486114 | BH43: 12858.11005 | BJ43: 34218 | BK43: 80609 | BL43: 32 | BM43: -46359 | BN43: 24327 | BO43: 25285 | BR43: -362 | BS43: 153 | BT43: 3044 | BU43: 4118 | BV43: 0 | BX43: -1074 | BY43: -103 | BZ43: 0 | CA43: 58 | CB43: -26 | CC43: -1261 | CD43: 1450 | CE43: 2620 | CG43: 3020 | CH43: -3526 | CI43: -1794 | CN43: 21.75 | CP43: 147 | CQ43: 6866 | CS43: 2.348886784 | CT43: 65.98684795 | CU43: -6497.524031 | CY43: 32.06434496 | CZ43: 1378.386251 | DA43: 38.85887845 | DB43: 12947.13079 | DD43: 35281 | DE43: 80396 | DF43: 64 | DG43: -45051 | DH43: 25602 | DI43: 29141 | DL43: -352 | DM43: 218 | DN43: 9558 | DO43: 4863 | DP43: 0 | DR43: 4695 | DS43: -262 | DT43: -15 | DU43: 133 | DV43: -37 | DW43: 4248 | DX43: 5376 | DY43: 9183 | EA43: 924 | EB43: -3863 | EC43: 5341 | EH43: 22 | EJ43: 37 | EQ43: -7556 | ER43: 90 | ES43: 106 | ET43: -4633 | EU43: 22 | EV43: 197 | EW43: -4202 | EX43: 159 | EY43: 201 | EZ43: 11239 | FA43: -5798 | FB43: 279 | FC43: 3305 | FD43: 635 | FE43: -3204 | FF43: 45751 | FG43: 36761 | FH43: 8990 | FI43: 25 | FJ43: 47691 | FK43: 35210 | FL43: 12481 | FM43: 22 | FN43: 43209 | FO43: 33728 | FP43: 9481 | FQ43: 924 | FR43: 315 | FS43: 0 | FT43: 0 | FU43: 7185 | FV43: 6660
A44: 145 | B44: Ilmajoki | C44: 12187 | E44: 0.7401349417 | F44: 67.45409021 | G44: -6057.19209 | K44: 30.30698839 | L44: 640.846804 | M44: 20.30276268 | N44: 11521.04702 | P44: 63378 | Q44: 127870 | R44: 13 | S44: -64479 | T44: 39149 | U44: 28873 | X44: -612 | Y44: 54 | Z44: 2984 | AA44: 5049 | AB44: 0 | AD44: -2065 | AE44: -3 | AF44: 13 | AG44: -9 | AH44: -4 | AI44: -2068 | AJ44: 7630 | AK44: 2359 | AM44: 609 | AN44: -4256 | AO44: -5201 | AT44: 20.75 | AV44: 241 | AW44: 12269 | AY44: 0.1385209137 | AZ44: 70.4968875 | BA44: -6598.255767 | BE44: 26.21377089 | BF44: 580.5689135 | BG44: 18.82486958 | BH44: 12342.4892 | BJ44: 64587 | BK44: 133705 | BL44: 5 | BM44: -69113 | BN44: 40904 | BO44: 29288 | BR44: -571 | BS44: 246 | BT44: 754 | BU44: 5497 | BV44: 0 | BX44: -4743 | BY44: 24 | BZ44: 0 | CA44: 1 | CB44: 9 | CC44: -4711 | CD44: 2282 | CE44: 194 | CG44: 1068 | CH44: -9013 | CI44: -6876 | CN44: 20.75 | CP44: 267 | CQ44: 12294 | CS44: 1.600986089 | CT44: 72.6448936 | CU44: -7070.766227 | CY44: 25.63117569 | CZ44: 725.9638848 | DA44: 21.00541638 | DB44: 12614.69009 | DD44: 65951 | DE44: 135228 | DF44: 7 | DG44: -69270 | DH44: 43264 | DI44: 34908 | DL44: -605 | DM44: 186 | DN44: 8483 | DO44: 5812 | DP44: 0 | DR44: 2671 | DS44: -5 | DT44: -124 | DU44: 2 | DV44: 0 | DW44: 2540 | DX44: 4697 | DY44: 6519 | EA44: -1397 | EB44: -5070 | EC44: -6743 | EH44: 21 | EJ44: 258 | EQ44: -7458 | ER44: 19 | ES44: -121 | ET44: -7907 | EU44: 10 | EV44: 827 | EW44: -14026 | EX44: 43 | EY44: 721 | EZ44: 7096 | FA44: -364 | FB44: 15218 | FC44: -555 | FD44: 17383 | FE44: -3207 | FF44: 69346 | FG44: 58779 | FH44: 10567 | FI44: 117 | FJ44: 74986 | FK44: 64975 | FL44: 10011 | FM44: 126 | FN44: 83035 | FO44: 76593 | FP44: 6442 | FQ44: -1397 | FR44: 6075 | FS44: 5369 | FT44: 3905 | FU44: 3955 | FV44: 3305
A45: 146 | B45: Ilomantsi | C45: 4973 | E45: 0.6392884179 | F45: 38.71472697 | G45: -3818.017293 | K45: 42.91764335 | L45: 1153.830686 | M45: 27.72677928 | N45: 15189.2218 | P45: 33211 | Q45: 70208 | R45: -1 | S45: -36998 | T45: 17060 | U45: 21278 | X45: -175 | Y45: 307 | Z45: 1472 | AA45: 3250 | AB45: 0 | AD45: -1778 | AE45: 43 | AF45: 0 | AG45: -2 | AH45: -12 | AI45: -1749 | AJ45: 761 | AK45: 1538 | AM45: -459 | AN45: -2425 | AO45: -779 | AT45: 20.75 | AV45: 220 | AW45: 4857 | AY45: 0.644772118 | AZ45: 37.26393684 | BA45: -4098.002882 | BE45: 42.8677014 | BF45: 968.0872967 | BG45: 26.92719114 | BH45: 16013.79452 | BJ45: 33862 | BK45: 71178 | BL45: -6 | BM45: -37322 | BN45: 17289 | BO45: 21552 | BR45: -173 | BS45: 343 | BT45: 1689 | BU45: 3214 | BV45: 0 | BX45: -1525 | BY45: 31 | BZ45: -3 | CA45: 41 | CB45: -18 | CC45: -1556 | CD45: -775 | CE45: 1430 | CG45: 490 | CH45: -2749 | CI45: 602 | CN45: 21 | CP45: 186 | CQ45: 4749 | CS45: 2.198960653 | CT45: 37.57423729 | CU45: -3147.188882 | CY45: 44.31224608 | CZ45: 1955.990735 | DA45: 46.58283414 | DB45: 15326.17393 | DD45: 33655 | DE45: 68214 | DF45: -6 | DG45: -34565 | DH45: 17462 | DI45: 22633 | DL45: -198 | DM45: 361 | DN45: 5693 | DO45: 2955 | DP45: 0 | DR45: 2738 | DS45: 24 | DT45: -496 | DU45: 32 | DV45: 6 | DW45: 2240 | DX45: 1281 | DY45: 5569 | EA45: -990 | EB45: -2463 | EC45: 3984 | EH45: 21 | EJ45: 75 | EQ45: -2407 | ER45: 18 | ES45: 72 | ET45: -3498 | EU45: 1 | EV45: 2669 | EW45: -1838 | EX45: 35 | EY45: 218 | EZ45: 505 | FA45: 434 | FB45: 2165 | FC45: 340 | FD45: 3621 | FE45: 208 | FF45: 19475 | FG45: 17013 | FH45: 2462 | FI45: 0 | FJ45: 19230 | FK45: 16605 | FL45: 2625 | FM45: 0 | FN45: 20596 | FO45: 17661 | FP45: 2935 | FQ45: -990 | FR45: 1051 | FS45: 911 | FT45: 907 | FU45: 1016 | FV45: 2351
A46: 153 | B46: Imatra | C46: 26932 | E46: 0.749921544 | F46: 116.5497721 | G46: -8425.88742 | K46: 30.86629307 | L46: 777.1795633 | M46: 26.01106859 | N46: 10905.76266 | P46: 73954 | Q46: 224402 | R46: 162 | S46: -150286 | T46: 102066 | U46: 67070 | X46: -2233 | Y46: 193 | Z46: 16810 | AA46: 19038 | AB46: 0 | AD46: -2228 | AE46: 0 | AF46: 407 | AG46: -397 | AH46: -297 | AI46: -2496 | AJ46: 51266 | AK46: 18043 | AM46: -7379 | AN46: -23118 | AO46: -21965 | AT46: 20 | AV46: 102 | AW46: 26508 | AY46: 0.606511151 | AZ46: 89.49981639 | BA46: -8950.052814 | BE46: 30.17017998 | BF46: 755.2059756 | BG46: 19.71957008 | BH46: 14615.32368 | BJ46: 150394 | BK46: 298368 | BL46: 141 | BM46: -147833 | BN46: 105975 | BO46: 67692 | BR46: -2170 | BS46: 63 | BT46: 23727 | BU46: 25761 | BV46: 1683 | BX46: -351 | BY46: 24 | BZ46: 1350 | CA46: 493 | CB46: 1 | CC46: 531 | CD46: 49021 | CE46: 23481 | CG46: 5572 | CH46: -40612 | CI46: -19098 | CN46: 20 | CP46: 29 | CQ46: 26075 | CS46: 0.8587056203 | CT46: 87.04711453 | CU46: -9412.233941 | CY46: 29.27686388 | CZ46: 891.7353787 | DA46: 21.50856847 | DB46: 15132.7325 | DD46: 152427 | DE46: 312907 | DF46: 165 | DG46: -160315 | DH46: 105745 | DI46: 81235 | DL46: -2437 | DM46: -542 | DN46: 23686 | DO46: 25651 | DP46: 217 | DR46: -1748 | DS46: -17 | DT46: 116 | DU46: 450 | DV46: 264 | DW46: -1835 | DX46: 47386 | DY46: 27379 | EA46: -1024 | EB46: -28000 | EC46: -8949 | EH46: 20 | EJ46: 188 | EQ46: -46664 | ER46: 395 | ES46: 6261 | ET46: -45927 | EU46: 610 | EV46: 2738 | EW46: -50408 | EX46: 629 | EY46: 13451 | EZ46: 42800 | FA46: -2371 | FB46: 54830 | FC46: 6093 | FD46: 43459 | FE46: -8313 | FF46: 219774 | FG46: 201047 | FH46: 18727 | FI46: 994 | FJ46: 238414 | FK46: 213423 | FL46: 24991 | FM46: 0 | FN46: 246701 | FO46: 225804 | FP46: 20897 | FQ46: -1024 | FR46: 2567 | FS46: 4124 | FT46: 3982 | FU46: 29816 | FV46: 50997
A47: 148 | B47: Inari | C47: 6930 | E47: 2.460552486 | F47: 74.83841029 | G47: -6235.353535 | K47: 50.0458625 | L47: 2168.975469 | M47: 58.37498936 | N47: 13561.90476 | P47: 39087 | Q47: 79381 | R47: 4 | S47: -40290 | T47: 27992 | U47: 23428 | X47: -667 | Y47: -65 | Z47: 10398 | AA47: 5562 | AB47: -4 | AD47: 4832 | AE47: -207 | AF47: 44 | AG47: -320 | AH47: -360 | AI47: 3989 | AJ47: 26271 | AK47: 9903 | AM47: 1097 | AN47: -3789 | AO47: 1402 | AT47: 19 | AV47: 4 | AW47: 6907 | AY47: 2.736510791 | AZ47: 80.89848725 | BA47: -7675.401766 | BE47: 50.12910116 | BF47: 1570.146228 | BG47: 52.99302611 | BH47: 14988.99667 | BJ47: 38486 | BK47: 80608 | BL47: 1 | BM47: -42121 | BN47: 27653 | BO47: 23367 | BR47: -446 | BS47: 108 | BT47: 8561 | BU47: 5760 | BV47: 0 | BX47: 2801 | BY47: -225 | BZ47: 8 | CA47: 529 | CB47: -49 | CC47: 2006 | CD47: 27685 | CE47: 7336 | CG47: 943 | CH47: -2768 | CI47: -9730 | CN47: 19 | CP47: 9 | CQ47: 6862 | CS47: 2.569803063 | CT47: 79.91809021 | CU47: -7831.973186 | CY47: 50.40381985 | CZ47: 1551.005538 | DA47: 39.50872108 | DB47: 14328.91285 | DD47: 37411 | DE47: 81321 | DF47: 0 | DG47: -43910 | DH47: 28245 | DI47: 27129 | DL47: -468 | DM47: 228 | DN47: 11224 | DO47: 7659 | DP47: -2 | DR47: 3563 | DS47: -154 | DT47: -85 | DU47: 227 | DV47: -123 | DW47: 2974 | DX47: 30131 | DY47: 10124 | EA47: -1216 | EB47: -4050 | EC47: -432 | EH47: 19 | EJ47: 15 | EQ47: -9678 | ER47: 467 | ES47: 710 | ET47: -18278 | EU47: 99 | EV47: 1113 | EW47: -12037 | EX47: 359 | EY47: 1122 | EZ47: 2474 | FA47: -265 | FB47: 7324 | FC47: 439 | FD47: 2003 | FE47: 2298 | FF47: 41708 | FG47: 36299 | FH47: 5409 | FI47: 241 | FJ47: 45618 | FK47: 39579 | FL47: 6039 | FM47: 241 | FN47: 45720 | FO47: 39577 | FP47: 6143 | FQ47: -1216 | FR47: 39215 | FS47: 41721 | FT47: 46074 | FU47: 787 | FV47: 872
A48: 149 | B48: Inkoo | C48: 5403 | E48: 1.318952234 | F48: 48.84876394 | G48: -3266.518601 | K48: 39.79782118 | L48: 864.3346289 | M48: 33.12185454 | N48: 9524.893578 | P48: 16424 | Q48: 46096 | R48: -3 | S48: -29675 | T48: 25976 | U48: 7112 | X48: -127 | Y48: 11 | Z48: 3297 | AA48: 2533 | AB48: 0 | AD48: 764 | AE48: 0 | AF48: -2 | AG48: 0 | AH48: 0 | AI48: 762 | AJ48: 8429 | AK48: 3134 | AM48: 17 | AN48: -2469 | AO48: 490 | AT48: 20.75 | AV48: 108 | AW48: 5386 | AY48: 0.4613555291 | AZ48: 48.31745513 | BA48: -3657.630895 | BE48: 38.82795122 | BF48: 420.3490531 | BG48: 31.88756898 | BH48: 9924.80505 | BJ48: 15921 | BK48: 47765 | BL48: 3 | BM48: -31841 | BN48: 25953 | BO48: 7040 | BR48: -116 | BS48: 11 | BT48: 1047 | BU48: 2095 | BV48: 0 | BX48: -1048 | BY48: 0 | BZ48: 0 | CA48: 0 | CB48: 0 | CC48: -1048 | CD48: 7381 | CE48: 932 | CG48: 197 | CH48: -2406 | CI48: -1929 | CN48: 20.75 | CP48: 240 | CQ48: 5321 | CS48: 2.507085917 | CT48: 42.91279592 | CU48: -3294.681451 | CY48: 44.86370192 | CZ48: 391.2798346 | DA48: 13.89040194 | DB48: 10281.71396 | DD48: 17254 | DE48: 47736 | DF48: -1 | DG48: -30483 | DH48: 26759 | DI48: 9379 | DL48: -99 | DM48: 6 | DN48: 5562 | DO48: 2190 | DP48: 0 | DR48: 3372 | DS48: 0 | DT48: 6 | DU48: 0 | DV48: 0 | DW48: 3378 | DX48: 11182 | DY48: 5145 | EA48: -1206 | EB48: -2159 | EC48: 1838 | EH48: 20.75 | EJ48: 115 | EQ48: -2720 | ER48: 28 | ES48: 48 | ET48: -2964 | EU48: 14 | EV48: 89 | EW48: -4640 | EX48: 35 | EY48: 1298 | EZ48: 4088 | FA48: 25 | FB48: 809 | FC48: 1284 | FD48: 1044 | FE48: -268 | FF48: 18304 | FG48: 15881 | FH48: 2423 | FI48: 0 | FJ48: 17991 | FK48: 14385 | FL48: 3606 | FM48: 134 | FN48: 16609 | FO48: 13295 | FP48: 3314 | FQ48: -1206 | FR48: 397 | FS48: 351 | FT48: 1010 | FU48: 2634 | FV48: 2848
A49: 151 | B49: Isojoki | C49: 1976 | E49: 0.9194029851 | F49: 26.45626402 | G49: -1535.425101 | K49: 57.207777 | L49: 1632.591093 | M49: 35.74759404 | N49: 16669.53441 | P49: 16393 | Q49: 30729 | R49: 129 | S49: -14207 | T49: 6172 | U49: 8645 | X49: -49 | Y49: 6 | Z49: 567 | AA49: 892 | AB49: 0 | AD49: -325 | AE49: 0 | AF49: 2 | AG49: 0 | AH49: -1 | AI49: -324 | AJ49: 1414 | AK49: 479 | AM49: -241 | AN49: -621 | AO49: -726 | AT49: 22 | AV49: 223 | AW49: 1951 | AY49: 1.510050251 | AZ49: 27.01907078 | BA49: -1899.538698 | BE49: 56.47663462 | BF49: 1266.017427 | BG49: 36.36131962 | BH49: 16593.02922 | BJ49: 16586 | BK49: 30841 | BL49: 180 | BM49: -14075 | BN49: 6099 | BO49: 8567 | BR49: -51 | BS49: 10 | BT49: 550 | BU49: 853 | BV49: -21 | BX49: -324 | BY49: 3 | BZ49: 0 | CA49: 0 | CB49: 2 | CC49: -319 | CD49: 930 | CE49: 366 | CG49: -297 | CH49: -347 | CI49: -667 | CN49: 22 | CP49: 214 | CQ49: 1925 | CS49: 4.937901499 | CT49: 24.40127645 | CU49: -1255.584416 | CY49: 60.50976189 | CZ49: 1690.909091 | DA49: 37.78263635 | DB49: 16335.06494 | DD49: 16477 | DE49: 29996 | DF49: 7 | DG49: -13512 | DH49: 6914 | DI49: 8886 | DL49: -49 | DM49: 18 | DN49: 2257 | DO49: 887 | DP49: 0 | DR49: 1370 | DS49: 0 | DT49: 0 | DU49: 0 | DV49: 0 | DW49: 1370 | DX49: 2030 | DY49: 2197 | EA49: 64 | EB49: -418 | EC49: 1283 | EH49: 22 | EJ49: 83 | EQ49: -1518 | ER49: 49 | ES49: 264 | ET49: -1113 | EU49: 28 | EV49: 52 | EW49: -963 | EX49: 34 | EY49: 15 | EZ49: 745 | FA49: 214 | FB49: 568 | FC49: 191 | FD49: 569 | FE49: -169 | FF49: 3847 | FG49: 3386 | FH49: 461 | FI49: 4 | FJ49: 4258 | FK49: 3656 | FL49: 602 | FM49: 0 | FN49: 4241 | FO49: 3703 | FP49: 538 | FQ49: 64 | FR49: 398 | FS49: 322 | FT49: 246 | FU49: 1607 | FV49: 1777
A50: 152 | B50: Isokyrö | C50: 4601 | E50: 2.863636364 | F50: 42.01660216 | G50: -2099.760922 | K50: 58.50819672 | L50: 1151.488807 | M50: 46.37560554 | N50: 9062.812432 | P50: 13048 | Q50: 37479 | R50: 5 | S50: -24426 | T50: 14646 | U50: 13385 | X50: -144 | Y50: 41 | Z50: 3502 | AA50: 1963 | AB50: 0 | AD50: 1539 | AE50: -1 | AF50: 57 | AG50: 0 | AH50: 0 | AI50: 1595 | AJ50: 13710 | AK50: 3476 | AM50: -95 | AN50: -1124 | AO50: 609 | AT50: 21.5 | AV50: 58 | AW50: 4522 | AY50: 2.045745654 | AZ50: 48.12701444 | BA50: -3093.984962 | BE50: 54.76863299 | BF50: 962.406015 | BG50: 40.33982102 | BH50: 10600.84034 | BJ50: 13035 | BK50: 39748 | BL50: 1 | BM50: -26712 | BN50: 15214 | BO50: 13636 | BR50: -137 | BS50: 93 | BT50: 2094 | BU50: 2213 | BV50: 0 | BX50: -119 | BY50: 7 | BZ50: 6 | CA50: 0 | CB50: 0 | CC50: -106 | CD50: 13465 | CE50: 2082 | CG50: 576 | CH50: -951 | CI50: -4191 | CN50: 21.5 | CP50: 135 | CQ50: 4471 | CS50: 3.246772969 | CT50: 46.79957787 | CU50: -2865.130843 | CY50: 56.11243308 | CZ50: 1269.961977 | DA50: 46.92455735 | DB50: 9878.326996 | DD50: 12785 | DE50: 39475 | DF50: 60 | DG50: -26630 | DH50: 15363 | DI50: 15440 | DL50: -131 | DM50: 96 | DN50: 4138 | DO50: 2537 | DP50: 0 | DR50: 1601 | DS50: 0 | DT50: -1 | DU50: 1 | DV50: 0 | DW50: 1599 | DX50: 15092 | DY50: 4097 | EA50: 9 | EB50: -1179 | EC50: 1066 | EH50: 21.5 | EJ50: 175 | EQ50: -2914 | ER50: 3 | ES50: 44 | ET50: -7010 | EU50: 616 | EV50: 121 | EW50: -3308 | EX50: 154 | EY50: 123 | EZ50: 954 | FA50: -3 | FB50: 3183 | FC50: 254 | FD50: 2429 | FE50: -463 | FF50: 9520 | FG50: 8249 | FH50: 1271 | FI50: 3 | FJ50: 12005 | FK50: 10308 | FL50: 1697 | FM50: 71 | FN50: 12757 | FO50: 11228 | FP50: 1529 | FQ50: 9 | FR50: 662 | FS50: 617 | FT50: 658 | FU50: 365 | FV50: 356
A51: 165 | B51: Janakkala | C51: 16447 | E51: 0.5884319366 | F51: 67.71880017 | G51: -4106.098377 | K51: 36.68134736 | L51: 859.6096553 | M51: 34.71653559 | N51: 9037.696844 | P51: 44691 | Q51: 127061 | R51: 0 | S51: -82370 | T51: 63114 | U51: 26747 | X51: -612 | Y51: 64 | Z51: 6943 | AA51: 7938 | AB51: 80 | AD51: -915 | AE51: 0 | AF51: 1 | AG51: -30 | AH51: 94 | AI51: -850 | AJ51: 6209 | AK51: 6646 | AM51: -1013 | AN51: -12237 | AO51: -775 | AT51: 21 | AV51: 173 | AW51: 16413 | AY51: 0.4757877126 | AZ51: 69.29998385 | BA51: -4543.959057 | BE51: 33.34212902 | BF51: 599.4638396 | BG51: 33.78487908 | BH51: 9306.159751 | BJ51: 45775 | BK51: 131246 | BL51: 0 | BM51: -85471 | BN51: 62622 | BO51: 27857 | BR51: -578 | BS51: 98 | BT51: 4528 | BU51: 9143 | BV51: 128 | BX51: -4487 | BY51: -2 | BZ51: 5 | CA51: 28 | CB51: 99 | CC51: -4413 | CD51: 1744 | CE51: 2499 | CG51: -1130 | CH51: -10168 | CI51: -7286 | CN51: 21 | CP51: 218 | CQ51: 16237 | CS51: 3.900724443 | CT51: 67.50352819 | CU51: -4619.818932 | CY51: 34.10737277 | CZ51: 883.7839502 | DA51: 34.2659104 | DB51: 9414.05432 | DD51: 46034 | DE51: 133632 | DF51: 0 | DG51: -87598 | DH51: 66481 | DI51: 35578 | DL51: -554 | DM51: 66 | DN51: 13973 | DO51: 9372 | DP51: 0 | DR51: 4601 | DS51: -5 | DT51: 3 | DU51: 55 | DV51: -108 | DW51: 4436 | DX51: 6180 | DY51: 13272 | EA51: -600 | EB51: -3162 | EC51: -481 | EH51: 21 | EJ51: 206 | EQ51: -8597 | ER51: 221 | ES51: 955 | ET51: -10648 | EU51: 306 | EV51: 557 | EW51: -15369 | EX51: 534 | EY51: 1082 | EZ51: 9196 | FA51: -14 | FB51: 13911 | FC51: 344 | FD51: 15852 | FE51: -9041 | FF51: 69815 | FG51: 59576 | FH51: 10239 | FI51: 70 | FJ51: 73332 | FK51: 62039 | FL51: 11293 | FM51: 62 | FN51: 76981 | FO51: 65538 | FP51: 11443 | FQ51: -600 | FR51: 22 | FS51: 39 | FT51: 19 | FU51: 7782 | FV51: 14672
A52: 167 | B52: Joensuu | C52: 76551 | E52: 1.120301502 | F52: 76.48777321 | G52: -5606.510692 | K52: 36.45860535 | L52: 1934.305234 | M52: 60.01528514 | N52: 11764.0266 | P52: 379627 | Q52: 750242 | R52: -87 | S52: -370702 | T52: 260636 | U52: 163791 | X52: -4105 | Y52: 2043 | Z52: 51663 | AA52: 61289 | AB52: 0 | AD52: -9626 | AE52: -265 | AF52: -513 | AG52: -620 | AH52: -733 | AI52: -11757 | AJ52: 61624 | AK52: 47890 | AM52: 4747 | AN52: -45630 | AO52: -42165 | AT52: 20.5 | AV52: 80 | AW52: 76850 | AY52: 0.9721990001 | AZ52: 79.79082223 | BA52: -6083.591412 | BE52: 35.05816439 | BF52: 1906.61028 | BG52: 58.11117288 | BH52: 12102.22511 | BJ52: 359679 | BK52: 768676 | BL52: 78 | BM52: -408919 | BN52: 268565 | BO52: 194788 | BR52: -4149 | BS52: 4428 | BT52: 54713 | BU52: 66092 | BV52: 0 | BX52: -11379 | BY52: 105 | BZ52: 244 | CA52: 326 | CB52: 748 | CC52: -10608 | CD52: 50015 | CE52: 50679 | CG52: -4912 | CH52: -56409 | CI52: -40956 | CN52: 20.5 | CP52: 54 | CQ52: 76935 | CS52: 1.431836573 | CT52: 77.77123854 | CU52: -5913.407422 | CY52: 35.96709982 | CZ52: 2007.499838 | DA52: 61.92375248 | DB52: 11832.8979 | DD52: 352194 | DE52: 761458 | DF52: -158 | DG52: -409422 | DH52: 273994 | DI52: 225083 | DL52: -4080 | DM52: 3449 | DN52: 89024 | DO52: 71765 | DP52: 0 | DR52: 17259 | DS52: -103 | DT52: 185 | DU52: 550 | DV52: -148 | DW52: 16643 | DX52: 68132 | DY52: 83713 | EA52: -9992 | EB52: -60740 | EC52: 8064 | EH52: 20.5 | EJ52: 91 | EQ52: -98703 | ER52: 2494 | ES52: 6154 | ET52: -99924 | EU52: 1461 | EV52: 6828 | EW52: -82471 | EX52: 1575 | EY52: 5247 | EZ52: 99197 | FA52: -32559 | FB52: 101491 | FC52: -760 | FD52: 57949 | FE52: -809 | FF52: 507042 | FG52: 447082 | FH52: 59960 | FI52: 3352 | FJ52: 551390 | FK52: 487761 | FL52: 63629 | FM52: 2980 | FN52: 548153 | FO52: 484098 | FP52: 64055 | FQ52: -9992 | FR52: 2313 | FS52: 14021 | FT52: 2232 | FU52: 115002 | FV52: 139587
A53: 169 | B53: Jokioinen | C53: 5195 | E53: 1.171428571 | F53: 43.48429878 | G53: -3829.836381 | K53: 42.46872943 | L53: 181.7131858 | M53: 5.911641074 | N53: 11219.44177 | P53: 27694 | Q53: 55287 | R53: -14 | S53: -27607 | T53: 18793 | U53: 11120 | X53: -179 | Y53: 30 | Z53: 2157 | AA53: 2974 | AB53: 7 | AD53: -810 | AE53: -1 | AF53: 0 | AG53: -1 | AH53: 0 | AI53: -812 | AJ53: 6092 | AK53: 2086 | AM53: 422 | AN53: -1815 | AO53: 1492 | AT53: 21.25 | AV53: 175 | AW53: 5133 | AY53: 0.817522849 | AZ53: 45.3063956 | BA53: -3599.259692 | BE53: 43.64887524 | BF53: 251.7046561 | BG53: 5.995580226 | BH53: 11195.98675 | BJ53: 25120 | BK53: 52729 | BL53: -3 | BM53: -27612 | BN53: 19094 | BO53: 11074 | BR53: -182 | BS53: 38 | BT53: 2412 | BU53: 2395 | BV53: -33 | BX53: -16 | BY53: 1 | BZ53: 1 | CA53: 1 | CB53: 0 | CC53: -15 | CD53: 6528 | CE53: 2234 | CG53: -965 | CH53: -2991 | CI53: 816 | CN53: 21.25 | CP53: 130 | CQ53: 5061 | CS53: 2.353394319 | CT53: 36.82060573 | CU53: -3015.214385 | CY53: 50.06912853 | CZ53: 207.0737008 | DA53: 6.66817746 | DB53: 11334.71646 | DD53: 25227 | DE53: 53692 | DF53: -3 | DG53: -28468 | DH53: 20308 | DI53: 12973 | DL53: -156 | DM53: 67 | DN53: 4724 | DO53: 2329 | DP53: 24 | DR53: 2419 | DS53: -14 | DT53: 0 | DU53: 1 | DV53: 0 | DW53: 2404 | DX53: 8925 | DY53: 4599 | EA53: 223 | EB53: -1913 | EC53: 3192 | EH53: 21.25 | EJ53: 166 | EQ53: -955 | ER53: 28 | ES53: 333 | ET53: -1517 | EU53: 53 | EV53: 46 | EW53: -1554 | EX53: 30 | EY53: 117 | EZ53: 93 | FA53: -600 | FB53: 2312 | FC53: 1343 | FD53: 1148 | FE53: -3100 | FF53: 18755 | FG53: 12345 | FH53: 6410 | FI53: 8 | FJ53: 19217 | FK53: 11740 | FL53: 7477 | FM53: 7 | FN53: 15079 | FO53: 10749 | FP53: 4330 | FQ53: 223 | FR53: 1720 | FS53: 1619 | FT53: 1514 | FU53: 426 | FV53: 436
A54: 171 | B54: Joroinen | C54: 4812 | E54: -0.04253810705 | F54: 70.54417438 | G54: -4043.848712 | K54: 26.41725739 | L54: 2981.296758 | M54: 81.97200958 | N54: 13274.93766 | P54: 25026 | Q54: 53568 | R54: 6 | S54: -28536 | T54: 16171 | U54: 12205 | X54: -52 | Y54: -122 | Z54: -334 | AA54: 1468 | AB54: 0 | AD54: -1802 | AE54: -2 | AF54: -4 | AG54: 0 | AH54: 0 | AI54: -1808 | AJ54: -1304 | AK54: -323 | AM54: -479 | AN54: -2607 | AO54: -7643 | AT54: 20.75 | AV54: 287 | AW54: 4767 | AY54: 0.4300331026 | AZ54: 74.22206056 | BA54: -5321.795679 | BE54: 24.43999636 | BF54: 2543.7382 | BG54: 81.12870489 | BH54: 13539.54269 | BJ54: 25692 | BK54: 53934 | BL54: 19 | BM54: -28223 | BN54: 16940 | BO54: 12353 | BR54: -93 | BS54: 213 | BT54: 1190 | BU54: 1611 | BV54: 0 | BX54: -421 | BY54: 0 | BZ54: 5 | CA54: 0 | CB54: 0 | CC54: -416 | CD54: -1766 | CE54: 1201 | CG54: 866 | CH54: -3084 | CI54: -5833 | CN54: 21.25 | CP54: 228 | CQ54: 4689 | CS54: 1.096724667 | CT54: 71.70192719 | CU54: -4888.675624 | CY54: 26.69276198 | CZ54: 3346.555769 | DA54: 95.19470806 | DB54: 12831.52058 | DD54: 26796 | DE54: 54259 | DF54: 5 | DG54: -27458 | DH54: 17727 | DI54: 13852 | DL54: -114 | DM54: 68 | DN54: 4075 | DO54: 1917 | DP54: 0 | DR54: 2158 | DS54: 0 | DT54: 0 | DU54: 0 | DV54: 0 | DW54: 2158 | DX54: 348 | DY54: 3982 | EA54: 367 | EB54: -3697 | EC54: 2463 | EH54: 21.25 | EJ54: 202 | EQ54: -7290 | ER54: 59 | ES54: -89 | ET54: -7177 | EU54: 123 | EV54: 20 | EW54: -1863 | EX54: 56 | EY54: 288 | EZ54: 6298 | FA54: -642 | FB54: 6245 | FC54: -247 | FD54: 3845 | FE54: -667 | FF54: 31179 | FG54: 27007 | FH54: 4172 | FI54: 159 | FJ54: 34394 | FK54: 29895 | FL54: 4499 | FM54: 161 | FN54: 34177 | FO54: 30079 | FP54: 4098 | FQ54: 367 | FR54: 701 | FS54: 578 | FT54: 549 | FU54: 1344 | FV54: 1491
A55: 172 | B55: Joutsa | C55: 4467 | E55: 0.9842442147 | F55: 70.05916895 | G55: -5397.58227 | K55: 24.62106795 | L55: 792.4781733 | M55: 26.6362943 | N55: 10859.41348 | P55: 13567 | Q55: 42727 | R55: -21 | S55: -29181 | T55: 14830 | U55: 16221 | X55: -157 | Y55: 125 | Z55: 1838 | AA55: 2251 | AB55: 100 | AD55: -313 | AE55: 20 | AF55: 0 | AG55: 2 | AH55: 3 | AI55: -288 | AJ55: 2276 | AK55: 2072 | AM55: 14 | AN55: -1870 | AO55: -1597 | AT55: 21 | AV55: 179 | AW55: 4377 | AY55: 0.6878745966 | AZ55: 72.45002677 | BA55: -6246.515878 | BE55: 24.07874922 | BF55: 654.3294494 | BG55: 25.43904552 | BH55: 11604.29518 | BJ55: 13110 | BK55: 43624 | BL55: 109 | BM55: -30405 | BN55: 15502 | BO55: 16212 | BR55: -146 | BS55: 179 | BT55: 1342 | BU55: 2166 | BV55: 0 | BX55: -824 | BY55: 40 | BZ55: 0 | CA55: 3 | CB55: 4 | CC55: -783 | CD55: 1506 | CE55: 1266 | CG55: 1330 | CH55: -2019 | CI55: -3363 | CN55: 21 | CP55: 208 | CQ55: 4297 | CS55: 0.8016276704 | CT55: 81.46726567 | CU55: -7427.507563 | CY55: 20.51815775 | CZ55: 791.2497091 | DA55: 23.49844732 | DB55: 12290.43519 | DD55: 13260 | DE55: 44512 | DF55: 18 | DG55: -31234 | DH55: 15000 | DI55: 17594 | DL55: -116 | DM55: 188 | DN55: 1432 | DO55: 2078 | DP55: -70 | DR55: -716 | DS55: 19 | DT55: -1 | DU55: 9 | DV55: 5 | DW55: -702 | DX55: 566 | DY55: 1317 | EA55: 230 | EB55: -1822 | EC55: -4781 | EH55: 21 | EJ55: 290 | EQ55: -3723 | ER55: 2 | ES55: 52 | ET55: -4980 | EU55: 55 | EV55: 296 | EW55: -6314 | EX55: 0 | EY55: 216 | EZ55: 1896 | FA55: -461 | FB55: 2762 | FC55: 2301 | FD55: 1330 | FE55: 5614 | FF55: 23137 | FG55: 18097 | FH55: 5040 | FI55: 70 | FJ55: 26163 | FK55: 18800 | FL55: 7363 | FM55: 70 | FN55: 31289 | FO55: 17368 | FP55: 13921 | FQ55: 230 | FR55: 574 | FS55: 472 | FT55: 399 | FU55: 198 | FV55: 228
A56: 176 | B56: Juuka | C56: 4709 | E56: 1.76864357 | F56: 27.1488847 | G56: -1254.618815 | K56: 58.51214846 | L56: 2236.780633 | M56: 53.86553739 | N56: 15156.72117 | P56: 35715 | Q56: 66898 | R56: 0 | S56: -31183 | T56: 13654 | U56: 20074 | X56: 9 | Y56: 371 | Z56: 2925 | AA56: 2784 | AB56: 0 | AD56: 141 | AE56: 0 | AF56: -247 | AG56: -39 | AH56: -4 | AI56: -149 | AJ56: 11272 | AK56: 3240 | AM56: 770 | AN56: -1616 | AO56: 724 | AT56: 20.75 | AV56: 103 | AW56: 4606 | AY56: 1.478530781 | AZ56: 26.8269818 | BA56: -1561.22449 | BE56: 58.73761085 | BF56: 1949.848024 | BG56: 52.30034557 | BH56: 15957.88102 | BJ56: 36206 | BK56: 68085 | BL56: 0 | BM56: -31879 | BN56: 13878 | BO56: 20319 | BR56: -23 | BS56: 481 | BT56: 2776 | BU56: 2755 | BV56: -165 | BX56: -144 | BY56: -3 | BZ56: 251 | CA56: 21 | CB56: -3 | CC56: 80 | CD56: 10927 | CE56: 2116 | CG56: -302 | CH56: -1851 | CI56: -1098 | CN56: 20.75 | CP56: 88 | CQ56: 4527 | CS56: 2.967412141 | CT56: 31.64364009 | CU56: -1894.190413 | CY56: 54.7853976 | CZ56: 2216.699801 | DA56: 48.2001158 | DB56: 16786.17186 | DD56: 36482 | DE56: 67959 | DF56: 0 | DG56: -31477 | DH56: 14022 | DI56: 21659 | DL56: -1 | DM56: 360 | DN56: 4563 | DO56: 3641 | DP56: 0 | DR56: 922 | DS56: 0 | DT56: 2 | DU56: 0 | DV56: -1 | DW56: 923 | DX56: 11832 | DY56: 4901 | EA56: -1515 | EB56: -1484 | EC56: -1417 | EH56: 20.75 | EJ56: 129 | EQ56: -2771 | ER56: 49 | ES56: 206 | ET56: -3466 | EU56: 2 | EV56: 250 | EW56: -6458 | EX56: 22 | EY56: 118 | EZ56: 0 | FA56: -4 | FB56: 1120 | FC56: 558 | FD56: 1746 | FE56: 3184 | FF56: 11039 | FG56: 9806 | FH56: 1233 | FI56: 2770 | FJ56: 10866 | FK56: 9066 | FL56: 1800 | FM56: 2770 | FN56: 14312 | FO56: 9178 | FP56: 5134 | FQ56: -1515 | FR56: 835 | FS56: 425 | FT56: 528 | FU56: 1468 | FV56: 2429
A57: 177 | B57: Juupajoki | C57: 1884 | E57: 68.33333333 | F57: 48.74396135 | G57: -3532.377919 | K57: 49.70891417 | L57: 632.1656051 | M57: 22.7539911 | N57: 10140.65817 | P57: 7480 | Q57: 17860 | R57: 24 | S57: -10356 | T57: 6911 | U57: 4239 | X57: -38 | Y57: 1 | Z57: 757 | AA57: 831 | AB57: 0 | AD57: -74 | AE57: 71 | AF57: -1 | AG57: 0 | AH57: 0 | AI57: -4 | AJ57: 2704 | AK57: 765 | AM57: -373 | AN57: 51 | AO57: -334 | AT57: 21 | AV57: 181 | AW57: 1844 | AY57: 5.355731225 | AZ57: 48.64836926 | BA57: -3680.585683 | BE57: 50.28085545 | BF57: 822.6681128 | BG57: 22.08020114 | BH57: 10676.78959 | BJ57: 7775 | BK57: 18029 | BL57: 31 | BM57: -10223 | BN57: 7159 | BO57: 4413 | BR57: -60 | BS57: -1 | BT57: 1288 | BU57: 825 | BV57: 0 | BX57: 463 | BY57: 72 | BZ57: 10 | CA57: 9 | CB57: -1 | CC57: 535 | CD57: 3124 | CE57: 1178 | CG57: 124 | CH57: -186 | CI57: -131 | CN57: 21 | CP57: 61 | CQ57: 1800 | CS57: 4.633053221 | CT57: 46.74818796 | CU57: -3236.666667 | CY57: 49.76472413 | CZ57: 1427.777778 | DA57: 47.75006363 | DB57: 10913.88889 | DD57: 8169 | DE57: 18617 | DF57: -68 | DG57: -10516 | DH57: 7135 | DI57: 4977 | DL57: -74 | DM57: 56 | DN57: 1578 | DO57: 948 | DP57: 0 | DR57: 630 | DS57: 31 | DT57: 11 | DU57: 30 | DV57: 0 | DW57: 642 | DX57: 2932 | DY57: 1608 | EA57: 23 | EB57: -281 | EC57: 961 | EH57: 21 | EJ57: 199 | EQ57: -1224 | ER57: 128 | ES57: -3 | ET57: -1320 | EU57: 1 | EV57: 10 | EW57: -649 | EX57: 1 | EY57: 1 | EZ57: 0 | FA57: 262 | FB57: 955 | FC57: -406 | FD57: -447 | FE57: 988 | FF57: 6405 | FG57: 4912 | FH57: 1493 | FI57: 52 | FJ57: 6763 | FK57: 5634 | FL57: 1129 | FM57: 30 | FN57: 7116 | FO57: 4920 | FP57: 2196 | FQ57: 23 | FR57: 299 | FS57: 287 | FT57: 273 | FU57: 621 | FV57: 870
A58: 178 | B58: Juva | C58: 6225 | E58: 1.095776521 | F58: 55.97182285 | G58: -5449.638554 | K58: 51.80181221 | L58: 243.0522088 | M58: 7.050776263 | N58: 12582.16867 | P58: 31710 | Q58: 70030 | R58: 153 | S58: -38167 | T58: 19425 | U58: 21548 | X58: -192 | Y58: 484 | Z58: 3098 | AA58: 2731 | AB58: -115 | AD58: 252 | AE58: -1 | AF58: -18 | AG58: 0 | AH58: 0 | AI58: 233 | AJ58: 3993 | AK58: 2705 | AM58: -883 | AN58: -2810 | AO58: -3421 | AT58: 20.75 | AV58: 143 | AW58: 6116 | AY58: 0.6814580032 | AZ58: 57.82800141 | BA58: -5938.848921 | BE58: 50.16860505 | BF58: 301.3407456 | BG58: 6.886620693 | BH58: 13111.6743 | BJ58: 32631 | BK58: 72191 | BL58: 67 | BM58: -39493 | BN58: 19755 | BO58: 21196 | BR58: -235 | BS58: 687 | BT58: 1910 | BU58: 2896 | BV58: 11 | BX58: -975 | BY58: 0 | BZ58: 4 | CA58: 0 | CB58: 0 | CC58: -971 | CD58: 2863 | CE58: 2711 | CG58: 1053 | CH58: -2915 | CI58: -2398 | CN58: 20.75 | CP58: 206 | CQ58: 5932 | CS58: 3.513608871 | CT58: 56.27363355 | CU58: -5764.666217 | CY58: 49.61320555 | CZ58: 728.2535401 | DA58: 19.78220505 | DB58: 13436.95212 | DD58: 33749 | DE58: 71913 | DF58: -314 | DG58: -38478 | DH58: 20160 | DI58: 24634 | DL58: -175 | DM58: 649 | DN58: 6790 | DO58: 5936 | DP58: 0 | DR58: 854 | DS58: 0 | DT58: 0 | DU58: 0 | DV58: -10 | DW58: 844 | DX58: 3693 | DY58: 7143 | EA58: -1297 | EB58: -1803 | EC58: 2154 | EH58: 20.75 | EJ58: 95 | EQ58: -6290 | ER58: 33 | ES58: 131 | ET58: -5870 | EU58: 264 | EV58: 497 | EW58: -5748 | EX58: 529 | EY58: 230 | EZ58: 1063 | FA58: 843 | FB58: 4540 | FC58: -149 | FD58: 2994 | FE58: -849 | FF58: 31903 | FG58: 19226 | FH58: 12677 | FI58: 160 | FJ58: 34413 | FK58: 21620 | FL58: 12793 | FM58: 161 | FN58: 34757 | FO58: 21961 | FP58: 12796 | FQ58: -1297 | FR58: 1366 | FS58: 1323 | FT58: 1282 | FU58: 1814 | FV58: 12589
A59: 179 | B59: Jyväskylä | C59: 141305 | E59: 1.04030403 | F59: 102.1018826 | G59: -8679.523018 | K59: 26.19191956 | L59: 262.0997134 | M59: 8.565184829 | N59: 11169.21553 | P59: 570959 | Q59: 1203046 | R59: 935 | S59: -631152 | T59: 510190 | U59: 266167 | X59: -15292 | Y59: -296 | Z59: 129617 | AA59: 114136 | AB59: 0 | AD59: 15481 | AE59: -637 | AF59: -498 | AG59: -2413 | AH59: -2174 | AI59: 9759 | AJ59: 33107 | AK59: 109171 | AM59: -5600 | AN59: -123975 | AO59: -100981 | AT59: 20 | AV59: 31 | AW59: 142400 | AY59: 1.2700358 | AZ59: 113.1272559 | BA59: -9465.021067 | BE59: 24.45916228 | BF59: 330.2668539 | BG59: 8.946396958 | BH59: 10611.06039 | BJ59: 525287 | BK59: 1202071 | BL59: -659 | BM59: -677443 | BN59: 518222 | BO59: 265546 | BR59: -14634 | BS59: -632 | BT59: 91059 | BU59: 115464 | BV59: 0 | BX59: -24405 | BY59: -424 | BZ59: 80 | CA59: 3207 | CB59: -904 | CC59: -28860 | CD59: 4247 | CE59: 77873 | CG59: 26475 | CH59: -68430 | CI59: -127003 | CN59: 20 | CP59: 79 | CQ59: 143420 | CS59: 0.7783335075 | CT59: 108.4031922 | CU59: -9625.679822 | CY59: 24.93065793 | CZ59: 277.9598382 | DA59: 9.074800068 | DB59: 11179.8982 | DD59: 504671 | DE59: 1219554 | DF59: -217 | DG59: -715100 | DH59: 542791 | DI59: 328765 | DL59: -14677 | DM59: -809 | DN59: 140970 | DO59: 120904 | DP59: 0 | DR59: 20066 | DS59: -494 | DT59: -66 | DU59: 1534 | DV59: -1792 | DW59: 16180 | DX59: 20930 | DY59: 131116 | EA59: 14553 | EB59: -185511 | EC59: -31057 | EH59: 20 | EJ59: 137 | EQ59: -233394 | ER59: 1776 | ES59: 21466 | ET59: -223676 | EU59: 1353 | EV59: 17447 | EW59: -181507 | EX59: 1559 | EY59: 17775 | EZ59: 171824 | FA59: 14737 | FB59: 122639 | FC59: 62142 | FD59: 249585 | FE59: -53442 | FF59: 1099603 | FG59: 980473 | FH59: 119130 | FI59: 2652 | FJ59: 1215954 | FK59: 1039498 | FL59: 176456 | FM59: 1598 | FN59: 1226586 | FO59: 1061260 | FP59: 165326 | FQ59: 14553 | FR59: 7045 | FS59: 5961 | FT59: 24911 | FU59: 112070 | FV59: 134096
A60: 181 | B60: Jämijärvi | C60: 1809 | E60: 0.8700787402 | F60: 43.6614324 | G60: -3845.218353 | K60: 15.34531521 | L60: 365.9480376 | M60: 11.07784706 | N60: 12057.49033 | P60: 9347 | Q60: 20040 | R60: 0 | S60: -10693 | T60: 5760 | U60: 5781 | X60: -47 | Y60: 36 | Z60: 837 | AA60: 553 | AB60: 407 | AD60: 691 | AE60: 0 | AF60: 0 | AG60: 0 | AH60: 0 | AI60: 691 | AJ60: -2092 | AK60: 751 | AM60: -387 | AN60: -969 | AO60: 704 | AT60: 22.5 | AV60: 157 | AW60: 1739 | AY60: 0.9170454545 | AZ60: 44.87925178 | BA60: -3651.523864 | BE60: 16.0680691 | BF60: 964.347326 | BG60: 10.97607024 | BH60: 12640.023 | BJ60: 9675 | BK60: 20707 | BL60: 0 | BM60: -11032 | BN60: 6130 | BO60: 5686 | BR60: -41 | BS60: 23 | BT60: 766 | BU60: 565 | BV60: 0 | BX60: 201 | BY60: 0 | BZ60: -14 | CA60: 0 | CB60: 0 | CC60: 187 | CD60: -1813 | CE60: 501 | CG60: -159 | CH60: -839 | CI60: 727 | CN60: 22.5 | CP60: 145 | CQ60: 1707 | CS60: 2.378571429 | CT60: 43.03290148 | CU60: -3012.888108 | CY60: 23.86326729 | CZ60: 1003.514938 | DA60: 29.86316091 | DB60: 12265.37786 | DD60: 9315 | DE60: 19817 | DF60: 0 | DG60: -10502 | DH60: 6066 | DI60: 6077 | DL60: -37 | DM60: 24 | DN60: 1628 | DO60: 567 | DP60: 0 | DR60: 1061 | DS60: 0 | DT60: 0 | DU60: 0 | DV60: 0 | DW60: 1061 | DX60: -739 | DY60: 1569 | EA60: -760 | EB60: -663 | EC60: 1204 | EH60: 22.5 | EJ60: 151 | EQ60: -649 | ER60: 32 | ES60: 570 | ET60: -395 | EU60: 40 | EV60: 581 | EW60: -434 | EX60: 5 | EY60: 64 | EZ60: 249 | FA60: -416 | FB60: 991 | FC60: 296 | FD60: 61 | FE60: 202 | FF60: 6120 | FG60: 4828 | FH60: 1292 | FI60: 50 | FJ60: 6612 | FK60: 4600 | FL60: 2012 | FM60: 124 | FN60: 6213 | FO60: 3756 | FP60: 2457 | FQ60: -760 | FR60: 1841 | FS60: 1827 | FT60: 1795 | FU60: 34 | FV60: 1027
A61: 182 | B61: Jämsä | C61: 20607 | E61: 1.40657232 | F61: 47.07519151 | G61: -3112.388994 | K61: 50.63072183 | L61: 903.6249818 | M61: 31.49651746 | N61: 10471.73291 | P61: 66909 | Q61: 196655 | R61: -165 | S61: -129911 | T61: 84038 | U61: 57135 | X61: -722 | Y61: 448 | Z61: 10988 | AA61: 13515 | AB61: 2360 | AD61: -167 | AE61: -25 | AF61: -123 | AG61: -29 | AH61: 0 | AI61: -344 | AJ61: 11343 | AK61: 11049 | AM61: -4151 | AN61: -7598 | AO61: 6051 | AT61: 21 | AV61: 129 | AW61: 20182 | AY61: 1.420205522 | AZ61: 44.63276027 | BA61: -3192.646913 | BE61: 51.63419329 | BF61: 642.7014171 | BG61: 31.1343741 | BH61: 10816.61877 | BJ61: 67520 | BK61: 198223 | BL61: 189 | BM61: -130514 | BN61: 84863 | BO61: 57017 | BR61: -647 | BS61: 86 | BT61: 10805 | BU61: 13054 | BV61: 0 | BX61: -2249 | BY61: -37 | BZ61: 1 | CA61: 21 | CB61: -3 | CC61: -2309 | CD61: 8867 | CE61: 10393 | CG61: -858 | CH61: -7411 | CI61: -787 | CN61: 21 | CP61: 109 | CQ61: 19887 | CS61: 2.404871955 | CT61: 40.96488168 | CU61: -2780.509881 | CY61: 53.32638553 | CZ61: 1139.588676 | DA61: 37.48241878 | DB61: 11097.19918 | DD61: 66519 | DE61: 201702 | DF61: 74 | DG61: -135109 | DH61: 87372 | DI61: 66820 | DL61: -580 | DM61: 153 | DN61: 18656 | DO61: 13791 | DP61: 0 | DR61: 4865 | DS61: -114 | DT61: -84 | DU61: 70 | DV61: -1 | DW61: 4596 | DX61: 13651 | DY61: 18763 | EA61: 3601 | EB61: -7410 | EC61: 9104 | EH61: 21 | EJ61: 160 | EQ61: -10644 | ER61: 501 | ES61: 5145 | ET61: -11848 | EU61: 148 | EV61: 520 | EW61: -10877 | EX61: 143 | EY61: 1075 | EZ61: 5434 | FA61: -17 | FB61: 1180 | FC61: 896 | FD61: 5320 | FE61: -1322 | FF61: 69605 | FG61: 62178 | FH61: 7427 | FI61: 521 | FJ61: 64271 | FK61: 55463 | FL61: 8808 | FM61: 438 | FN61: 60858 | FO61: 53260 | FP61: 7598 | FQ61: 3601 | FR61: 2582 | FS61: 2441 | FT61: 2213 | FU61: 20827 | FV61: 19893
A62: 186 | B62: Järvenpää | C62: 43410 | E62: 3.128400796 | F62: 83.64780779 | G62: -8676.295784 | K62: 25.26252412 | L62: 282.7228749 | M62: 8.141789227 | N62: 12674.59111 | P62: 260125 | Q62: 457858 | R62: 258 | S62: -197475 | T62: 186872 | U62: 39476 | X62: -1072 | Y62: -933 | Z62: 26868 | AA62: 34919 | AB62: 0 | AD62: -8051 | AE62: 27 | AF62: -14 | AG62: -215 | AH62: -108 | AI62: -8361 | AJ62: 29844 | AK62: 15149 | AM62: 236 | AN62: -7623 | AO62: -52045 | AT62: 19.75 | AV62: 104 | AW62: 43711 | AY62: 0.4391271633 | AZ62: 101.9836019 | BA62: -9963.167166 | BE62: 17.48806868 | BF62: 297.659628 | BG62: 8.383216674 | BH62: 12269.63465 | BJ62: 234340 | BK62: 460857 | BL62: -1224 | BM62: -227741 | BN62: 192689 | BO62: 41563 | BR62: -2395 | BS62: -855 | BT62: 3261 | BU62: 33838 | BV62: 0 | BX62: -30577 | BY62: 15 | BZ62: 0 | CA62: 167 | CB62: -286 | CC62: -31015 | CD62: -6112 | CE62: -589 | CG62: -11407 | CH62: -10715 | CI62: -53856 | CN62: 19.75 | CP62: 265 | CQ62: 44455 | CS62: 238.3924051 | CT62: 100.5463901 | CU62: -10102.7331 | CY62: 16.57787299 | CZ62: 861.7928242 | DA62: 26.65831977 | DB62: 11799.48262 | DD62: 244375 | DE62: 471375 | DF62: 29 | DG62: -226971 | DH62: 200249 | DI62: 64536 | DL62: -2543 | DM62: -192 | DN62: 35079 | DO62: 33932 | DP62: 0 | DR62: 1147 | DS62: -5 | DT62: 0 | DU62: 131 | DV62: -418 | DW62: 593 | DX62: -5518 | DY62: 25947 | EA62: 4863 | EB62: 2429 | EC62: -13066 | EH62: 19.75 | EJ62: 226 | EQ62: -81978 | ER62: 1163 | ES62: 13621 | ET62: -60894 | EU62: 784 | EV62: 6843 | EW62: -52405 | EX62: 400 | EY62: 12992 | EZ62: 13025 | FA62: 36316 | FB62: 188651 | FC62: -119930 | FD62: 56362 | FE62: -24126 | FF62: 340857 | FG62: 210057 | FH62: 130800 | FI62: 4 | FJ62: 399104 | FK62: 382054 | FL62: 17050 | FM62: 4 | FN62: 433317 | FO62: 414638 | FP62: 18679 | FQ62: 4863 | FR62: 8596 | FS62: 8174 | FT62: 7549 | FU62: 25928 | FV62: 26346
A63: 202 | B63: Kaarina | C63: 33458 | E63: 2.811791383 | F63: 68.25394344 | G63: -4296.252017 | K63: 36.59072883 | L63: 512.5231634 | M63: 22.83255571 | N63: 8193.167553 | P63: 83798 | Q63: 246041 | R63: 6 | S63: -162237 | T63: 139346 | U63: 32724 | X63: -1385 | Y63: 861 | Z63: 9309 | AA63: 13062 | AB63: 0 | AD63: -3753 | AE63: 3 | AF63: 0 | AG63: -1 | AH63: 0 | AI63: -3751 | AJ63: 25166 | AK63: 6898 | AM63: -1872 | AN63: -2118 | AO63: -12885 | AT63: 19.75 | AV63: 229 | AW63: 33937 | AY63: 1.582294045 | AZ63: 71.51102376 | BA63: -4500.36833 | BE63: 32.60125956 | BF63: 697.439373 | BG63: 22.20668221 | BH63: 8305.183133 | BJ63: 92043 | BK63: 258564 | BL63: 43 | BM63: -166478 | BN63: 145290 | BO63: 28275 | BR63: -2736 | BS63: 1770 | BT63: 6121 | BU63: 16111 | BV63: 0 | BX63: -9990 | BY63: 12 | BZ63: 0 | CA63: 0 | CB63: -4 | CC63: -9982 | CD63: 15092 | CE63: 2080 | CG63: 207 | CH63: -2806 | CI63: -10509 | CN63: 19.75 | CP63: 242 | CQ63: 34667 | CS63: 3.394795932 | CT63: 68.58420679 | CU63: -4264.978221 | CY63: 34.1749056 | CZ63: 868.058961 | DA63: 38.23308585 | DB63: 8287.103009 | DD63: 84427 | DE63: 258343 | DF63: 54 | DG63: -173862 | DH63: 150610 | DI63: 48034 | DL63: -2436 | DM63: 786 | DN63: 23132 | DO63: 13924 | DP63: 0 | DR63: 9208 | DS63: -2 | DT63: 0 | DU63: 0 | DV63: -114 | DW63: 9092 | DX63: 24681 | DY63: 20413 | EA63: -2654 | EB63: -5001 | EC63: 2982 | EH63: 19.75 | EJ63: 261 | EQ63: -24077 | ER63: 179 | ES63: 4115 | ET63: -17570 | EU63: 27 | EV63: 4954 | EW63: -21336 | EX63: 239 | EY63: 3666 | EZ63: 3300 | FA63: 1963 | FB63: 50081 | FC63: -35461 | FD63: 20055 | FE63: -13986 | FF63: 121676 | FG63: 47993 | FH63: 73683 | FI63: 1620 | FJ63: 133537 | FK63: 94636 | FL63: 38901 | FM63: 1620 | FN63: 134632 | FO63: 109653 | FP63: 24979 | FQ63: -2654 | FR63: 23254 | FS63: 22211 | FT63: 24189 | FU63: 9925 | FV63: 9872
A64: 204 | B64: Kaavi | C64: 2990 | E64: 0.8033744322 | F64: 55.77662281 | G64: -5632.107023 | K64: 29.13748379 | L64: 764.548495 | M64: 21.48606891 | N64: 12987.95987 | P64: 14264 | Q64: 35986 | R64: 89 | S64: -21633 | T64: 9191 | U64: 13487 | X64: -286 | Y64: 189 | Z64: 948 | AA64: 1508 | AB64: -50 | AD64: -610 | AE64: -2 | AF64: 4 | AG64: -1 | AH64: -1 | AI64: -610 | AJ64: 35 | AK64: 993 | AM64: -191 | AN64: -1251 | AO64: 995 | AT64: 21.75 | AV64: 208 | AW64: 2893 | AY64: 1.015503876 | AZ64: 55.86250239 | BA64: -5530.591082 | BE64: 29.27493438 | BF64: 762.1845835 | BG64: 21.65109762 | BH64: 13321.11994 | BJ64: 14061 | BK64: 35004 | BL64: 46 | BM64: -20897 | BN64: 9415 | BO64: 13121 | BR64: -229 | BS64: 187 | BT64: 1597 | BU64: 1746 | BV64: 0 | BX64: -149 | BY64: -14 | BZ64: 3 | CA64: 5 | CB64: -3 | CC64: -168 | CD64: -104 | CE64: 1320 | CG64: -761 | CH64: -1569 | CI64: 350 | CN64: 22 | CP64: 103 | CQ64: 2807 | CS64: 2.753246753 | CT64: 55.84203741 | CU64: -5318.845743 | CY64: 32.25386641 | CZ64: 1634.485216 | DA64: 43.44133441 | DB64: 13733.16708 | DD64: 14331 | DE64: 34698 | DF64: 120 | DG64: -20247 | DH64: 9806 | DI64: 13872 | DL64: -210 | DM64: 166 | DN64: 3387 | DO64: 1653 | DP64: 10 | DR64: 1744 | DS64: -6 | DT64: 2 | DU64: 3 | DV64: -3 | DW64: 1734 | DX64: 1625 | DY64: 3121 | EA64: 533 | EB64: -1092 | EC64: 1399 | EH64: 22 | EJ64: 72 | EQ64: -1276 | ER64: 75 | ES64: 1203 | ET64: -1724 | EU64: 19 | EV64: 735 | EW64: -2524 | EX64: 11 | EY64: 791 | EZ64: 843 | FA64: 6 | FB64: 778 | FC64: 888 | FD64: 961 | FE64: 23 | FF64: 16584 | FG64: 14825 | FH64: 1759 | FI64: 0 | FJ64: 16683 | FK64: 14062 | FL64: 2621 | FM64: 0 | FN64: 16577 | FO64: 13911 | FP64: 2666 | FQ64: 533 | FR64: 84 | FS64: 522 | FT64: 517 | FU64: 950 | FV64: 901
A65: 205 | B65: Kajaani | C65: 36973 | E65: 1.394505297 | F65: 101.4902333 | G65: -12825.95407 | K65: 27.7577518 | L65: 703.8920293 | M65: 14.78748428 | N65: 17374.19198 | P65: 298911 | Q65: 514215 | R65: 791 | S65: -214513 | T65: 134861 | U65: 116209 | X65: -2174 | Y65: -5684 | Z65: 28699 | AA65: 37698 | AB65: 0 | AD65: -8999 | AE65: -225 | AF65: -286 | AG65: -780 | AH65: -493 | AI65: -10783 | AJ65: 72348 | AK65: 28993 | AM65: -14121 | AN65: -19911 | AO65: -36591 | AT65: 21 | AV65: 55 | AW65: 36709 | AY65: 0.1114081483 | AZ65: 138.3197328 | BA65: -12381.62304 | BE65: 26.08182791 | BF65: 6940.831949 | BG65: 12.2342193 | BH65: 21151.18908 | BJ65: 312784 | BK65: 537316 | BL65: 398 | BM65: -224134 | BN65: 137646 | BO65: 116706 | BR65: -2369 | BS65: -14932 | BT65: 12917 | BU65: 45208 | BV65: 115597 | BX65: 83306 | BY65: 2428 | BZ65: 125 | CA65: 672 | CB65: -1290 | CC65: 83897 | CD65: 131446 | CE65: 16942 | CG65: -17222 | CH65: -136234 | CI65: 70469 | CN65: 21 | CP65: 183 | CQ65: 36567 | CS65: 0.8824997689 | CT65: 139.3084033 | CU65: -15041.07529 | CY65: 23.05654439 | CZ65: 6645.636776 | DA65: 117.8411253 | DB65: 20584.13323 | DD65: 333340 | DE65: 565516 | DF65: 229 | DG65: -231947 | DH65: 140388 | DI65: 137958 | DL65: -2378 | DM65: -8682 | DN65: 35339 | DO65: 48046 | DP65: 0 | DR65: -12707 | DS65: -57 | DT65: 19 | DU65: 575 | DV65: -3596 | DW65: -16916 | DX65: 108435 | DY65: 32965 | EA65: 16034 | EB65: -40423 | EC65: -87038 | EH65: 21 | EJ65: 142 | EQ65: -99694 | ER65: 1480 | ES65: 32630 | ET65: -84951 | EU65: 850 | EV65: 137628 | EW65: -132204 | EX65: 491 | EY65: 11710 | EZ65: 58008 | FA65: 3684 | FB65: 372507 | FC65: -20867 | FD65: 117743 | FE65: -12619 | FF65: 383759 | FG65: 310035 | FH65: 73724 | FI65: 198 | FJ65: 599164 | FK65: 541008 | FL65: 58156 | FM65: 0 | FN65: 663865 | FO65: 623029 | FP65: 40836 | FQ65: 16034 | FR65: 1503 | FS65: 1598 | FT65: 545 | FU65: 14657 | FV65: 16736
A66: 208 | B66: Kalajoki | C66: 12387 | E66: 1.534333186 | F66: 82.9704797 | G66: -4582.384758 | K66: 43.35886375 | L66: 2234.600791 | M66: 75.80261549 | N66: 10759.90958 | P66: 39888 | Q66: 104096 | R66: 136 | S66: -64072 | T66: 38850 | U66: 35082 | X66: -372 | Y66: 474 | Z66: 9962 | AA66: 9926 | AB66: 146 | AD66: 182 | AE66: -89 | AF66: 10 | AG66: -54 | AH66: 59 | AI66: 108 | AJ66: 22174 | AK66: 8567 | AM66: 825 | AN66: -6328 | AO66: -8480 | AT66: 20 | AV66: 48 | AW66: 12373 | AY66: 1.803480641 | AZ66: 83.47197414 | BA66: -4976.319405 | BE66: 43.14082627 | BF66: 2188.313263 | BG66: 77.82048418 | BH66: 10492.76651 | BJ66: 40244 | BK66: 109189 | BL66: 113 | BM66: -68832 | BN66: 41412 | BO66: 35914 | BR66: -285 | BS66: 645 | BT66: 8854 | BU66: 8802 | BV66: 0 | BX66: 52 | BY66: -105 | BZ66: 17 | CA66: 27 | CB66: 68 | CC66: 5 | CD66: 22405 | CE66: 8489 | CG66: 1366 | CH66: -4745 | CI66: -4467 | CN66: 21 | CP66: 52 | CQ66: 12400 | CS66: 2.232519237 | CT66: 75.78757583 | CU66: -4583.467742 | CY66: 45.60379739 | CZ66: 2270.403226 | DA66: 81.30910745 | DB66: 10191.93548 | DD66: 38128 | DE66: 110509 | DF66: 259 | DG66: -72122 | DH66: 49304 | DI66: 35699 | DL66: -294 | DM66: 382 | DN66: 12969 | DO66: 9105 | DP66: 0 | DR66: 3864 | DS66: -40 | DT66: -16 | DU66: -11 | DV66: -8 | DW66: 3811 | DX66: 26209 | DY66: 12372 | EA66: 2072 | EB66: -5601 | EC66: 3850 | EH66: 21 | EJ66: 114 | EQ66: -21918 | ER66: 2038 | ES66: 2833 | ET66: -15413 | EU66: 1420 | EV66: 1037 | EW66: -9791 | EX66: 555 | EY66: 714 | EZ66: 15287 | FA66: 25 | FB66: 9272 | FC66: -2190 | FD66: 3045 | FE66: -2145 | FF66: 68437 | FG66: 46541 | FH66: 21896 | FI66: 1411 | FJ66: 70809 | FK66: 50629 | FL66: 20180 | FM66: 1306 | FN66: 66331 | FO66: 48069 | FP66: 18262 | FQ66: 2072 | FR66: 3869 | FS66: 3163 | FT66: 5483 | FU66: 4311 | FV66: 1525
A67: 211 | B67: Kangasala | C67: 31676 | E67: 1.097847657 | F67: 56.85117707 | G67: -2961.358757 | K67: 44.89314074 | L67: 1383.792145 | M67: 51.19661634 | N67: 9865.576462 | P67: 116161 | Q67: 265051 | R67: 29 | S67: -148861 | T67: 125174 | U67: 37493 | X67: -1135 | Y67: 480 | Z67: 13151 | AA67: 17607 | AB67: 0 | AD67: -4456 | AE67: -211 | AF67: 1 | AG67: -375 | AH67: -79 | AI67: -5120 | AJ67: 67806 | AK67: 11638 | AM67: -4516 | AN67: -11869 | AO67: -17929 | AT67: 21 | AV67: 176 | AW67: 31868 | AY67: 1.502206177 | AZ67: 67.09801152 | BA67: -3674.87762 | BE67: 41.03211505 | BF67: 1926.980043 | BG67: 48.77296658 | BH67: 10293.42915 | BJ67: 119381 | BK67: 269358 | BL67: 138 | BM67: -149839 | BN67: 130861 | BO67: 38622 | BR67: -1140 | BS67: 2726 | BT67: 21230 | BU67: 18767 | BV67: 0 | BX67: 2463 | BY67: -141 | BZ67: 0 | CA67: 324 | CB67: -121 | CC67: 1877 | CD67: 69100 | CE67: 18488 | CG67: 5562 | CH67: -13718 | CI67: -21650 | CN67: 21 | CP67: 68 | CQ67: 32214 | CS67: 2.278066298 | CT67: 66.52100776 | CU67: -3506.736202 | CY67: 42.33682614 | CZ67: 2435.555969 | DA67: 84.0000088 | DB67: 10583.06947 | DD67: 124217 | DE67: 274709 | DF67: 210 | DG67: -150282 | DH67: 137479 | DI67: 51593 | DL67: -1187 | DM67: 2307 | DN67: 39910 | DO67: 20821 | DP67: 0 | DR67: 19089 | DS67: -563 | DT67: 1 | DU67: 580 | DV67: -68 | DW67: 17879 | DX67: 86979 | DY67: 37837 | EA67: -1657 | EB67: -16777 | EC67: 2519 | EH67: 21 | EJ67: 64 | EQ67: -31635 | ER67: 20 | ES67: 2048 | ET67: -43978 | EU67: 0 | EV67: 3840 | EW67: -47631 | EX67: 679 | EY67: 11634 | EZ67: 13385 | FA67: -1445 | FB67: 49647 | FC67: 277 | FD67: 26005 | FE67: 2428 | FF67: 101383 | FG67: 88906 | FH67: 12477 | FI67: 116 | FJ67: 137589 | FK67: 121799 | FL67: 15790 | FM67: 100 | FN67: 150003 | FO67: 130285 | FP67: 19718 | FQ67: -1657 | FR67: 36111 | FS67: 34108 | FT67: 22444 | FU67: 15089 | FV67: 18220
A68: 213 | B68: Kangasniemi | C68: 5452 | E68: 0.8533576976 | F68: 61.28947927 | G68: -5268.341893 | K68: 31.23270663 | L68: 323.5509905 | M68: 9.849924274 | N68: 11989.54512 | P68: 25024 | Q68: 59547 | R68: 5 | S68: -34518 | T68: 18063 | U68: 18116 | X68: -170 | Y68: 184 | Z68: 1675 | AA68: 2585 | AB68: 15 | AD68: -895 | AE68: 9 | AF68: 8 | AG68: 0 | AH68: 0 | AI68: -878 | AJ68: -907 | AK68: 1582 | AM68: -29 | AN68: -1996 | AO68: -1919 | AT68: 20.75 | AV68: 214 | AW68: 5356 | AY68: 0.6167899087 | AZ68: 61.04026205 | BA68: -5386.48245 | BE68: 29.09383954 | BF68: 578.9768484 | BG68: 9.579966969 | BH68: 12548.35698 | BJ68: 26002 | BK68: 61757 | BL68: 17 | BM68: -35738 | BN68: 18514 | BO68: 18372 | BR68: -191 | BS68: 245 | BT68: 1202 | BU68: 2691 | BV68: 0 | BX68: -1489 | BY68: 19 | BZ68: 0 | CA68: 0 | CB68: 0 | CC68: -1470 | CD68: -2417 | CE68: 1235 | CG68: 572 | CH68: -2083 | CI68: -1479 | CN68: 20.75 | CP68: 232 | CQ68: 5312 | CS68: 2.294932871 | CT68: 52.68945336 | CU68: -4747.176205 | CY68: 33.99384414 | CZ68: 560.8057229 | DA68: 16.55478753 | DB68: 12364.64608 | DD68: 26821 | DE68: 61319 | DF68: 7 | DG68: -34491 | DH68: 19437 | DI68: 20038 | DL68: -167 | DM68: 292 | DN68: 5109 | DO68: 2654 | DP68: 0 | DR68: 2455 | DS68: 7 | DT68: 0 | DU68: 0 | DV68: 0 | DW68: 2462 | DX68: -28 | DY68: 4798 | EA68: -321 | EB68: -2119 | EC68: 4837 | EH68: 21.5 | EJ68: 147 | EQ68: -3629 | ER68: 110 | ES68: 18 | ET68: -3149 | EU68: 30 | EV68: 405 | EW68: -2042 | EX68: 16 | EY68: 2065 | EZ68: 1777 | FA68: 409 | FB68: 1721 | FC68: 1839 | FD68: 883 | FE68: -2831 | FF68: 30405 | FG68: 18932 | FH68: 11473 | FI68: 600 | FJ68: 30813 | FK68: 18513 | FL68: 12300 | FM68: 496 | FN68: 27831 | FO68: 17499 | FP68: 10332 | FQ68: -321 | FR68: 1709 | FS68: 1630 | FT68: 1154 | FU68: 215 | FV68: 171
A69: 214 | B69: Kankaanpää | C69: 11471 | E69: 0.8129102845 | F69: 77.74969509 | G69: -7641.879522 | K69: 20.92429185 | L69: 469.6190393 | M69: 13.06065175 | N69: 13124.22631 | P69: 67714 | Q69: 129320 | R69: 20 | S69: -61586 | T69: 39779 | U69: 28613 | X69: -428 | Y69: 606 | Z69: 6984 | AA69: 9583 | AB69: 0 | AD69: -2599 | AE69: -632 | AF69: -1 | AG69: 0 | AH69: -200 | AI69: -3432 | AJ69: 6400 | AK69: 7580 | AM69: 108 | AN69: -8694 | AO69: -3475 | AT69: 21.5 | AV69: 109 | AW69: 11286 | AY69: 0.6255877529 | AZ69: 81.23967982 | BA69: -8283.537126 | BE69: 23.19244604 | BF69: 524.189261 | BG69: 13.07575697 | BH69: 13326.42212 | BJ69: 66892 | BK69: 129802 | BL69: -57 | BM69: -62967 | BN69: 39426 | BO69: 28733 | BR69: -374 | BS69: 500 | BT69: 5318 | BU69: 8985 | BV69: 0 | BX69: -3667 | BY69: -541 | BZ69: 2 | CA69: 17 | CB69: -82 | CC69: -4305 | CD69: 1132 | CE69: 5620 | CG69: 2444 | CH69: -8742 | CI69: -5561 | CN69: 21.5 | CP69: 129 | CQ69: 11163 | CS69: 1.824542324 | CT69: 77.70974133 | CU69: -7939.89071 | CY69: 27.71546766 | CZ69: 845.1133208 | DA69: 22.42328931 | DB69: 13756.51707 | DD69: 71156 | DE69: 126380 | DF69: 101 | DG69: -55123 | DH69: 40372 | DI69: 33329 | DL69: 337 | DM69: 822 | DN69: 19737 | DO69: 8913 | DP69: 0 | DR69: 10824 | DS69: -3274 | DT69: 0 | DU69: 12 | DV69: -48 | DW69: 7490 | DX69: 9686 | DY69: 19311 | EA69: -4185 | EB69: -10639 | EC69: 5454 | EH69: 21.75 | EJ69: 11 | EQ69: -12055 | ER69: 670 | ES69: 330 | ET69: -11428 | EU69: 173 | EV69: 74 | EW69: -15884 | EX69: 227 | EY69: 1800 | EZ69: 9740 | FA69: 158 | FB69: 14450 | FC69: -549 | FD69: 11297 | FE69: 954 | FF69: 73033 | FG69: 60519 | FH69: 12514 | FI69: 0 | FJ69: 78249 | FK69: 64771 | FL69: 13478 | FM69: 0 | FN69: 79892 | FO69: 65193 | FP69: 14699 | FQ69: -4185 | FR69: 1644 | FS69: 1565 | FT69: 1486 | FU69: 13626 | FV69: 18001
A70: 216 | B70: Kannonkoski | C70: 1353 | E70: 0.8322981366 | F70: 59.35455735 | G70: -6055.432373 | K70: 49.77155633 | L70: 3169.253511 | M70: 55.34174888 | N70: 20902.43902 | P70: 15267 | Q70: 24123 | R70: 0 | S70: -8856 | T70: 4049 | U70: 5907 | X70: -5 | Y70: 92 | Z70: 1187 | AA70: 1292 | AB70: 18 | AD70: -87 | AE70: 8 | AF70: 1 | AG70: 0 | AH70: 0 | AI70: -78 | AJ70: 11798 | AK70: 1216 | AM70: 94 | AN70: -1430 | AO70: -1438 | AT70: 21 | AV70: 36 | AW70: 1339 | AY70: -1.137573005 | AZ70: 62.84009728 | BA70: -7273.338312 | BE70: 39.32192649 | BF70: 4031.366692 | BG70: 49.27649392 | BH70: 23720.68708 | BJ70: 16283 | BK70: 25702 | BL70: -1 | BM70: -9420 | BN70: 4304 | BO70: 5729 | BR70: -7 | BS70: -2375 | BT70: -1769 | BU70: 1341 | BV70: -134 | BX70: -3244 | BY70: 10 | BZ70: 1 | CA70: 0 | CB70: 0 | CC70: -3233 | CD70: 8567 | CE70: 481 | CG70: 1158 | CH70: -1525 | CI70: -1574 | CN70: 21 | CP70: 293 | CQ70: 1323 | CS70: 0.1265658045 | CT70: 73.18220372 | CU70: -9321.239607 | CY70: 39.1375874 | CZ70: 3880.574452 | DA70: 56.57940821 | DB70: 25034.01361 | DD70: 15291 | DE70: 24659 | DF70: 0 | DG70: -9368 | DH70: 4314 | DI70: 6333 | DL70: -8 | DM70: -509 | DN70: 762 | DO70: 1284 | DP70: 0 | DR70: -522 | DS70: 10 | DT70: 0 | DU70: 0 | DV70: 0 | DW70: -512 | DX70: 8026 | DY70: -1001 | EA70: -41 | EB70: -6131 | EC70: -2614 | EH70: 21 | EJ70: 278 | EQ70: -2656 | ER70: 2 | ES70: 0 | ET70: -2087 | EU70: 14 | EV70: 18 | EW70: -1688 | EX70: 0 | EY70: 75 | EZ70: 2430 | FA70: 179 | FB70: 3545 | FC70: -500 | FD70: 2717 | FE70: 5893 | FF70: 11737 | FG70: 9053 | FH70: 2684 | FI70: 62 | FJ70: 13258 | FK70: 11200 | FL70: 2058 | FM70: 49 | FN70: 15737 | FO70: 7699 | FP70: 8038 | FQ70: -41 | FR70: 2642 | FS70: 2455 | FT70: 88 | FU70: 245 | FV70: 266
A71: 217 | B71: Kannus | C71: 5502 | E71: 2.859117841 | F71: 62.21512369 | G71: -5334.78735 | K71: 36.58007767 | L71: 1748.636859 | M71: 49.37453426 | N71: 12926.75391 | P71: 38693 | Q71: 65720 | R71: 227 | S71: -26800 | T71: 17779 | U71: 13339 | X71: -116 | Y71: 0 | Z71: 4202 | AA71: 3147 | AB71: 0 | AD71: 1055 | AE71: -150 | AF71: -271 | AG71: -144 | AH71: 0 | AI71: 490 | AJ71: 12872 | AK71: 3209 | AM71: 523 | AN71: -1378 | AO71: 808 | AT71: 21.5 | AV71: 57 | AW71: 5464 | AY71: 1.87804878 | AZ71: 62.6214294 | BA71: -5558.565154 | BE71: 37.00773242 | BF71: 1539.348463 | BG71: 48.95330034 | BH71: 13128.66032 | BJ71: 37672 | BK71: 66838 | BL71: 232 | BM71: -28934 | BN71: 17802 | BO71: 13702 | BR71: -125 | BS71: 21 | BT71: 2466 | BU71: 3204 | BV71: 0 | BX71: -738 | BY71: -33 | BZ71: -10 | CA71: 31 | CB71: 0 | CC71: -812 | CD71: 12038 | CE71: 2263 | CG71: -31 | CH71: -1242 | CI71: -1094 | CN71: 21.5 | CP71: 140 | CQ71: 5426 | CS71: 4.906655844 | CT71: 63.47554479 | CU71: -5402.137855 | CY71: 39.10386965 | CZ71: 1885.366753 | DA71: 53.385614 | DB71: 12890.34279 | DD71: 30543 | DE71: 62726 | DF71: 216 | DG71: -31967 | DH71: 19290 | DI71: 18680 | DL71: -124 | DM71: 24 | DN71: 5903 | DO71: 3377 | DP71: 0 | DR71: 2526 | DS71: -65 | DT71: -48 | DU71: 6 | DV71: -64 | DW71: 2343 | DX71: 14381 | DY71: 5585 | EA71: 604 | EB71: -1090 | EC71: 485 | EH71: 21.5 | EJ71: 106 | EQ71: -3806 | ER71: 44 | ES71: 1361 | ET71: -3456 | EU71: 0 | EV71: 99 | EW71: -5973 | EX71: 36 | EY71: 837 | EZ71: 655 | FA71: 1059 | FB71: 1331 | FC71: 361 | FD71: 1821 | FE71: -1835 | FF71: 28644 | FG71: 11639 | FH71: 17005 | FI71: 49 | FJ71: 29127 | FK71: 11464 | FL71: 17663 | FM71: 47 | FN71: 28025 | FO71: 11753 | FP71: 16272 | FQ71: 604 | FR71: 1265 | FS71: 1155 | FT71: 1430 | FU71: 308 | FV71: 1450
A72: 218 | B72: Karijoki | C72: 1274 | E72: 0.7418478261 | F72: 28.81938932 | G72: -1902.66876 | K72: 49.09168443 | L72: 1427.786499 | M72: 32.38865311 | N72: 16090.26688 | P72: 9985 | Q72: 18628 | R72: 1 | S72: -8642 | T72: 4032 | U72: 4880 | X72: -37 | Y72: 3 | Z72: 236 | AA72: 451 | AB72: 0 | AD72: -215 | AE72: 0 | AF72: 1 | AG72: 0 | AH72: 0 | AI72: -214 | AJ72: 1246 | AK72: 255 | AM72: -173 | AN72: -331 | AO72: -1209 | AT72: 22 | AV72: 253 | AW72: 1245 | AY72: -0.6703296703 | AZ72: 31.77703668 | BA72: -2829.718876 | BE72: 43.32840108 | BF72: 910.8433735 | BG72: 32.64023401 | BH72: 16338.15261 | BJ72: 9957 | BK72: 19143 | BL72: 0 | BM72: -9186 | BN72: 3838 | BO72: 5096 | BR72: -36 | BS72: 8 | BT72: -280 | BU72: 496 | BV72: -4 | BX72: -780 | BY72: 2 | BZ72: 0 | CA72: 0 | CB72: 1 | CC72: -777 | CD72: 451 | CE72: -284 | CG72: -120 | CH72: -328 | CI72: -1075 | CN72: 22 | CP72: 284 | CQ72: 1207 | CS72: 5.442159383 | CT72: 31.5818227 | CU72: -1716.652858 | CY72: 48.59101869 | CZ72: 2399.3372 | DA72: 55.70404722 | DB72: 15721.62386 | DD72: 9884 | DE72: 18031 | DF72: 1 | DG72: -8146 | DH72: 4144 | DI72: 6107 | DL72: -33 | DM72: 11 | DN72: 2083 | DO72: 581 | DP72: 0 | DR72: 1502 | DS72: 0 | DT72: 0 | DU72: 0 | DV72: 0 | DW72: 1502 | DX72: 1926 | DY72: 2062 | EA72: -48 | EB72: -355 | EC72: 1522 | EH72: 22 | EJ72: 12 | EQ72: -1497 | ER72: 0 | ES72: 33 | ET72: -830 | EU72: 27 | EV72: 12 | EW72: -551 | EX72: 5 | EY72: 6 | EZ72: 397 | FA72: -1 | FB72: 624 | FC72: 65 | FD72: 808 | FE72: 312 | FF72: 3034 | FG72: 2676 | FH72: 358 | FI72: 1 | FJ72: 3396 | FK72: 2951 | FL72: 445 | FM72: 0 | FN72: 4161 | FO72: 3294 | FP72: 867 | FQ72: -48 | FR72: 88 | FS72: 76 | FT72: 65 | FU72: 486 | FV72: 494
A73: 224 | B73: Karkkila | C73: 8778 | E73: 0.206377827 | F73: 71.48552808 | G73: -7005.696058 | K73: 12.13705536 | L73: 897.6987924 | M73: 23.36968003 | N73: 14020.73365 | P73: 53575 | Q73: 100388 | R73: -6 | S73: -46819 | T73: 30716 | U73: 20049 | X73: -549 | Y73: 24 | Z73: 3421 | AA73: 4326 | AB73: 0 | AD73: -905 | AE73: -9 | AF73: 0 | AG73: -2 | AH73: 0 | AI73: -916 | AJ73: 1808 | AK73: 2542 | AM73: 10 | AN73: -18826 | AO73: 511 | AT73: 20.75 | AV73: 186 | AW73: 8714 | AY73: 0.08051462959 | AZ73: 72.46748675 | BA73: -7550.95249 | BE73: 8.18072512 | BF73: 789.4193252 | BG73: 22.70857513 | BH73: 14534.88639 | BJ73: 56672 | BK73: 106822 | BL73: 7 | BM73: -50143 | BN73: 30775 | BO73: 20509 | BR73: -508 | BS73: 17 | BT73: 650 | BU73: 4068 | BV73: 0 | BX73: -3418 | BY73: 29 | BZ73: 0 | CA73: 1 | CB73: -1 | CC73: -3391 | CD73: -1524 | CE73: 406 | CG73: -341 | CH73: -13943 | CI73: -4418 | CN73: 20.75 | CP73: 266 | CQ73: 8696 | CS73: 1.839358521 | CT73: 72.14642999 | CU73: -7355.335787 | CY73: 9.558447215 | CZ73: 1267.709292 | DA73: 35.11073105 | DB73: 13178.70285 | DD73: 55275 | DE73: 106252 | DF73: -2 | DG73: -50979 | DH73: 31965 | DI73: 25715 | DL73: -423 | DM73: 54 | DN73: 6332 | DO73: 4511 | DP73: 0 | DR73: 1821 | DS73: -73 | DT73: 0 | DU73: 1 | DV73: 0 | DW73: 1747 | DX73: 223 | DY73: 5867 | EA73: -953 | EB73: -3244 | EC73: 1725 | EH73: 20.75 | EJ73: 249 | EQ73: -3161 | ER73: 54 | ES73: 1076 | ET73: -5244 | EU73: 55 | EV73: 365 | EW73: -4581 | EX73: 73 | EY73: 366 | EZ73: 35350 | FA73: -16520 | FB73: 10885 | FC73: 5965 | FD73: 10332 | FE73: -6647 | FF73: 62980 | FG73: 43622 | FH73: 19358 | FI73: 3 | FJ73: 65888 | FK73: 44851 | FL73: 21037 | FM73: 3 | FN73: 66330 | FO73: 46970 | FP73: 19360 | FQ73: -953 | FR73: 49 | FS73: 173 | FT73: 142 | FU73: 5392 | FV73: 5765
A74: 226 | B74: Karstula | C74: 4031 | E74: 3.679218968 | F74: 53.99664161 | G74: -3874.720913 | K74: 34.39261719 | L74: 3186.05805 | M74: 72.1095096 | N74: 16127.01563 | P74: 33843 | Q74: 58799 | R74: 0 | S74: -24956 | T74: 12013 | U74: 15483 | X74: 25 | Y74: 16 | Z74: 2581 | AA74: 2604 | AB74: 0 | AD74: -23 | AE74: -89 | AF74: 0 | AG74: -58 | AH74: 14 | AI74: -156 | AJ74: 3514 | AK74: 2637 | AM74: -330 | AN74: -660 | AO74: -1468 | AT74: 21 | AV74: 95 | AW74: 3949 | AY74: -4.524617997 | AZ74: 55.2306233 | BA74: -4572.803241 | BE74: 24.50280126 | BF74: 3245.885034 | BG74: 67.14975292 | BH74: 17679.15928 | BJ74: 34343 | BK74: 64933 | BL74: 0 | BM74: -30590 | BN74: 12538 | BO74: 15320 | BR74: 16 | BS74: -3 | BT74: -2719 | BU74: 2628 | BV74: 0 | BX74: -5347 | BY74: -10 | BZ74: 0 | CA74: 24 | CB74: 5 | CC74: -5376 | CD74: -1854 | CE74: 1509 | CG74: 1593 | CH74: -535 | CI74: -2540 | CN74: 21.5 | CP74: 289 | CQ74: 3858 | CS74: 3.953051643 | CT74: 56.48504173 | CU74: -5258.683256 | CY74: 28.91122862 | CZ74: 3329.963712 | DA74: 73.62697839 | DB74: 16508.03525 | DD74: 34039 | DE74: 58983 | DF74: 0 | DG74: -24944 | DH74: 12663 | DI74: 17276 | DL74: 10 | DM74: -5 | DN74: 5000 | DO74: 2787 | DP74: 0 | DR74: 2213 | DS74: -49 | DT74: -1 | DU74: 46 | DV74: -5 | DW74: 2112 | DX74: 327 | DY74: 757 | EA74: 795 | EB74: -1226 | EC74: -2104 | EH74: 21.5 | EJ74: 53 | EQ74: -5420 | ER74: 636 | ES74: 679 | ET74: -4261 | EU74: 0 | EV74: 212 | EW74: -3372 | EX74: 273 | EY74: 238 | EZ74: 2210 | FA74: 655 | FB74: 3809 | FC74: -1006 | FD74: 997 | FE74: 1530 | FF74: 24222 | FG74: 9997 | FH74: 14225 | FI74: 270 | FJ74: 26490 | FK74: 12988 | FL74: 13502 | FM74: 262 | FN74: 27790 | FO74: 13009 | FP74: 14781 | FQ74: 795 | FR74: 5033 | FS74: 5646 | FT74: 1101 | FU74: 3756 | FV74: 3373
A75: 230 | B75: Karvia | C75: 2390 | E75: 2.274271845 | F75: 59.34881428 | G75: -5952.719665 | K75: 44.80150814 | L75: 1449.372385 | M75: 33.48677067 | N75: 15797.90795 | P75: 21936 | Q75: 34722 | R75: -11 | S75: -12797 | T75: 6397 | U75: 8185 | X75: -88 | Y75: 80 | Z75: 1777 | AA75: 2482 | AB75: 0 | AD75: -705 | AE75: -265 | AF75: 0 | AG75: -2 | AH75: -68 | AI75: -1040 | AJ75: 12455 | AK75: 1375 | AM75: -353 | AN75: -727 | AO75: -332 | AT75: 20.5 | AV75: 64 | AW75: 2342 | AY75: 1.513677812 | AZ75: 54.5146202 | BA75: -6214.346712 | BE75: 52.78031634 | BF75: 988.471392 | BG75: 33.3252504 | BH75: 16199.82921 | BJ75: 21505 | BK75: 35107 | BL75: -11 | BM75: -13613 | BN75: 6799 | BO75: 8255 | BR75: -80 | BS75: 41 | BT75: 1402 | BU75: 2563 | BV75: 0 | BX75: -1161 | BY75: -225 | BZ75: 0 | CA75: 12 | CB75: -29 | CC75: -1427 | CD75: 11183 | CE75: 1517 | CG75: 920 | CH75: -895 | CI75: -207 | CN75: 20.5 | CP75: 90 | CQ75: 2322 | CS75: 4.992957746 | CT75: 49.9082522 | CU75: -5021.102498 | CY75: 57.07553316 | CZ75: 1371.231697 | DA75: 30.63636843 | DB75: 16336.77864 | DD75: 22804 | DE75: 33096 | DF75: 26 | DG75: -10266 | DH75: 6892 | DI75: 9542 | DL75: 220 | DM75: -86 | DN75: 6302 | DO75: 2478 | DP75: 0 | DR75: 3824 | DS75: -1349 | DT75: 0 | DU75: 4 | DV75: -32 | DW75: 2439 | DX75: 14085 | DY75: 6236 | EA75: -1679 | EB75: -1199 | EC75: 2876 | EH75: 20.5 | EJ75: 1 | EQ75: -2199 | ER75: 194 | ES75: 298 | ET75: -1839 | EU75: 9 | EV75: 106 | EW75: -3452 | EX75: 7 | EY75: 85 | EZ75: 197 | FA75: 61 | FB75: 120 | FC75: -742 | FD75: 79 | FE75: 465 | FF75: 10224 | FG75: 7980 | FH75: 2244 | FI75: 0 | FJ75: 8706 | FK75: 7200 | FL75: 1506 | FM75: 0 | FN75: 8052 | FO75: 6363 | FP75: 1689 | FQ75: -1679 | FR75: 313 | FS75: 261 | FT75: 225 | FU75: 618 | FV75: 700
A76: 231 | B76: Kaskinen | C76: 1262 | E76: 0.990512334 | F76: 65.80611562 | G76: -6018.22504 | K76: 54.76456261 | L76: 170.3645008 | M76: 5.462930734 | N76: 11382.72583 | P76: 4865 | Q76: 12922 | R76: 0 | S76: -8057 | T76: 6663 | U76: 1913 | X76: -55 | Y76: 1 | Z76: 465 | AA76: 1940 | AB76: 0 | AD76: -1475 | AE76: 0 | AF76: -8 | AG76: 0 | AH76: -18 | AI76: -1501 | AJ76: 4329 | AK76: -142 | AM76: -100 | AN76: -470 | AO76: -250 | AT76: 22 | AV76: 191 | AW76: 1246 | AY76: -0.1855541719 | AZ76: 73.08258172 | BA76: -7662.921348 | BE76: 45.25734944 | BF76: 317.0144462 | BG76: 6.084551462 | BH76: 16032.10273 | BJ76: 7441 | BK76: 16081 | BL76: 0 | BM76: -8640 | BN76: 6360 | BO76: 1832 | BR76: -74 | BS76: 0 | BT76: -522 | BU76: 1397 | BV76: -3 | BX76: -1922 | BY76: 0 | BZ76: 0 | CA76: 35 | CB76: 6 | CC76: -1951 | CD76: 4763 | CE76: -619 | CG76: -254 | CH76: -2334 | CI76: -1765 | CN76: 22 | CP76: 287 | CQ76: 1278 | CS76: 0.5260514752 | CT76: 67.16182233 | CU76: -6780.125196 | CY76: 45.71721981 | CZ76: 947.5743349 | DA76: 23.10223175 | DB76: 14971.04851 | DD76: 8018 | DE76: 16271 | DF76: -1 | DG76: -8254 | DH76: 6396 | DI76: 2685 | DL76: -65 | DM76: 9 | DN76: 771 | DO76: 1625 | DP76: 22 | DR76: -832 | DS76: 0 | DT76: 0 | DU76: 28 | DV76: -4 | DW76: -864 | DX76: 5055 | DY76: 734 | EA76: -116 | EB76: -1526 | EC76: -346 | EH76: 22 | EJ76: 271 | EQ76: -909 | ER76: 33 | ES76: 768 | ET76: -1480 | EU76: 14 | EV76: 320 | EW76: -1264 | EX76: 0 | EY76: 184 | EZ76: 345 | FA76: 86 | FB76: 355 | FC76: 2840 | FD76: 7834 | FE76: -4571 | FF76: 5444 | FG76: 2898 | FH76: 2546 | FI76: 0 | FJ76: 7840 | FK76: 1946 | FL76: 5894 | FM76: 1 | FN76: 9194 | FO76: 7888 | FP76: 1306 | FQ76: -116 | FR76: 0 | FS76: 0 | FT76: 2100 | FU76: 167 | FV76: 3677
A77: 232 | B77: Kauhajoki | C77: 13375 | E77: 0.9494488788 | F77: 69.24914814 | G77: -6345.196262 | K77: 25.50820349 | L77: 1763.28972 | M77: 46.62636767 | N77: 13803.36449 | P77: 84479 | Q77: 166629 | R77: 214 | S77: -81936 | T77: 44521 | U77: 43857 | X77: -961 | Y77: 993 | Z77: 6474 | AA77: 8076 | AB77: 0 | AD77: -1602 | AE77: -25 | AF77: -54 | AG77: 0 | AH77: -7 | AI77: -1688 | AJ77: -2381 | AK77: 6148 | AM77: 3436 | AN77: -6873 | AO77: -2674 | AT77: 22 | AV77: 150 | AW77: 13184 | AY77: 1.688600654 | AZ77: 77.20018034 | BA77: -6755.006068 | BE77: 26.17968684 | BF77: 2712.151092 | BG77: 42.88170886 | BH77: 15226.18325 | BJ77: 87691 | BK77: 171610 | BL77: 192 | BM77: -83727 | BN77: 44798 | BO77: 44951 | BR77: -999 | BS77: 9984 | BT77: 15007 | BU77: 8843 | BV77: -80 | BX77: 6084 | BY77: 2 | BZ77: -65 | CA77: 0 | CB77: 47 | CC77: 6068 | CD77: 3425 | CE77: 14130 | CG77: 4248 | CH77: -8477 | CI77: -4370 | CN77: 22 | CP77: 11 | CQ77: 13007 | CS77: 1.270483923 | CT77: 76.76676649 | CU77: -7188.590759 | CY77: 26.38704761 | CZ77: 2751.902822 | DA77: 66.69156045 | DB77: 15061.04405 | DD77: 85698 | DE77: 171231 | DF77: 187 | DG77: -85346 | DH77: 46156 | DI77: 50131 | DL77: -1075 | DM77: 949 | DN77: 10815 | DO77: 9204 | DP77: 0 | DR77: 1611 | DS77: -17 | DT77: 0 | DU77: 0 | DV77: -9 | DW77: 1585 | DX77: 4778 | DY77: 10413 | EA77: 7840 | EB77: -8283 | EC77: -4014 | EH77: 22 | EJ77: 215 | EQ77: -9594 | ER77: -6 | ES77: 778 | ET77: -19391 | EU77: 30 | EV77: 861 | EW77: -14696 | EX77: 0 | EY77: 269 | EZ77: 8266 | FA77: -1010 | FB77: 20627 | FC77: 2809 | FD77: 6238 | FE77: 4663 | FF77: 93478 | FG77: 83830 | FH77: 9648 | FI77: 258 | FJ77: 108445 | FK77: 95295 | FL77: 13150 | FM77: 228 | FN77: 111062 | FO77: 92283 | FP77: 18779 | FQ77: 7840 | FR77: 2740 | FS77: 2620 | FT77: 2499 | FU77: 6874 | FV77: 7126
A78: 233 | B78: Kauhava | C78: 16022 | E78: 0.3638136089 | F78: 68.22771765 | G78: -6833.478966 | K78: 27.98031394 | L78: 1889.714143 | M78: 42.46407245 | N78: 16243.04082 | P78: 119536 | Q78: 218741 | R78: 53 | S78: -99152 | T78: 52045 | U78: 54506 | X78: -1112 | Y78: 44 | Z78: 6331 | AA78: 11590 | AB78: 0 | AD78: -5259 | AE78: -13 | AF78: 646 | AG78: -128 | AH78: -28 | AI78: -4782 | AJ78: 20042 | AK78: 6333 | AM78: 4016 | AN78: -19383 | AO78: -16041 | AT78: 21.75 | AV78: 184 | AW78: 15726 | AY78: 0.4620445344 | AZ78: 85.08806363 | BA78: -7749.968206 | BE78: 24.39941734 | BF78: 1781.635508 | BG78: 51.29233999 | BH78: 13843.44398 | BJ78: 82398 | BK78: 187279 | BL78: 34 | BM78: -104847 | BN78: 53598 | BO78: 57614 | BR78: -821 | BS78: -89 | BT78: 5455 | BU78: 14478 | BV78: 0 | BX78: -9023 | BY78: 148 | BZ78: 1888 | CA78: 130 | CB78: 17 | CC78: -7100 | CD78: 10841 | CE78: 5378 | CG78: 11005 | CH78: -12896 | CI78: -11436 | CN78: 21.75 | CP78: 187 | CQ78: 15514 | CS78: 1.313018163 | CT78: 87.27723946 | CU78: -7911.177001 | CY78: 25.66505659 | CZ78: 2402.6041 | DA78: 64.45397738 | DB78: 13605.83989 | DD78: 78880 | DE78: 177728 | DF78: 24 | DG78: -98824 | DH78: 54371 | DI78: 65000 | DL78: -878 | DM78: 44 | DN78: 19713 | DO78: 12861 | DP78: 0 | DR78: 6852 | DS78: 210 | DT78: 240 | DU78: 206 | DV78: 0 | DW78: 7096 | DX78: 17658 | DY78: 19067 | EA78: 8012 | EB78: -14767 | EC78: -51 | EH78: 21.75 | EJ78: 58 | EQ78: -23477 | ER78: 306 | ES78: 797 | ET78: -18915 | EU78: 403 | EV78: 1698 | EW78: -19579 | EX78: 183 | EY78: 278 | EZ78: 25049 | FA78: 74 | FB78: 25441 | FC78: -10025 | FD78: 19244 | FE78: 2792 | FF78: 121585 | FG78: 102392 | FH78: 19193 | FI78: 13 | FJ78: 132962 | FK78: 116820 | FL78: 16142 | FM78: 0 | FN78: 143576 | FO78: 129048 | FP78: 14528 | FQ78: 8012 | FR78: 4876 | FS78: 4198 | FT78: 3410 | FU78: 8026 | FV78: 6786
A79: 235 | B79: Kauniainen | C79: 9615 | E79: 11.30412371 | F79: 32.54137159 | G79: -1984.295372 | K79: 74.24800273 | L79: 1232.969319 | M79: 39.36137794 | N79: 11433.38534 | P79: 42147 | Q79: 96141 | R79: -5 | S79: -53999 | T79: 69149 | U79: -2284 | X79: -90 | Y79: 54 | Z79: 12830 | AA79: 9199 | AB79: 0 | AD79: 3631 | AE79: 0 | AF79: -246 | AG79: -7 | AH79: -61 | AI79: 3317 | AJ79: 51762 | AK79: 10876 | AM79: -210 | AN79: -836 | AO79: 429 | AT79: 17 | AV79: 6 | AW79: 9797 | AY79: 7.351666667 | AZ79: 37.07308183 | BA79: -2534.959682 | BE79: 71.41967277 | BF79: 1031.438195 | BG79: 37.13616353 | BH79: 11894.35541 | BJ79: 44611 | BK79: 101214 | BL79: 6 | BM79: -56597 | BN79: 66993 | BO79: -1864 | BR79: -85 | BS79: 53 | BT79: 8500 | BU79: 9705 | BV79: 0 | BX79: -1205 | BY79: -3 | BZ79: -286 | CA79: 8 | CB79: -72 | CC79: -1574 | CD79: 50406 | CE79: 5811 | CG79: -1124 | CH79: -878 | CI79: -5495 | CN79: 17 | CP79: 30 | CQ79: 10178 | CS79: 9.412177986 | CT79: 37.40076398 | CU79: -2153.173511 | CY79: 70.11601771 | CZ79: 1717.626253 | DA79: 55.28635544 | DB79: 11339.75241 | DD79: 43479 | DE79: 105166 | DF79: -1 | DG79: -61688 | DH79: 69215 | DI79: 4325 | DL79: -70 | DM79: -33 | DN79: 11749 | DO79: 10709 | DP79: 0 | DR79: 1040 | DS79: -2 | DT79: 130 | DU79: 13 | DV79: 32 | DW79: 1187 | DX79: 51476 | DY79: 10244 | EA79: 1427 | EB79: -973 | EC79: 2970 | EH79: 17 | EJ79: 93 | EQ79: -12506 | ER79: 22 | ES79: 2037 | ET79: -14056 | EU79: 14 | EV79: 2736 | EW79: -8910 | EX79: 58 | EY79: 1578 | EZ79: 260 | FA79: -1791 | FB79: 1610 | FC79: 2485 | FD79: 2675 | FE79: 1743 | FF79: 19470 | FG79: 18392 | FH79: 1078 | FI79: 4684 | FJ79: 22681 | FK79: 19101 | FL79: 3580 | FM79: 4618 | FN79: 26115 | FO79: 20805 | FP79: 5310 | FQ79: 1427 | FR79: 2394 | FS79: 2162 | FT79: 2810 | FU79: 4429 | FV79: 4939
A80: 236 | B80: Kaustinen | C80: 4273 | E80: 0.8326456937 | F80: 104.6223108 | G80: -11886.02855 | K80: 20.56877124 | L80: 1476.480225 | M80: 35.33613123 | N80: 15251.11163 | P80: 31162 | Q80: 55132 | R80: 120 | S80: -23850 | T80: 14057 | U80: 12977 | X80: -263 | Y80: -50 | Z80: 2871 | AA80: 3261 | AB80: -1 | AD80: -391 | AE80: 8 | AF80: -76 | AG80: 0 | AH80: 0 | AI80: -459 | AJ80: 3906 | AK80: 2085 | AM80: 436 | AN80: -3520 | AO80: -1457 | AT80: 21.5 | AV80: 83 | AW80: 4261 | AY80: 0.4127775261 | AZ80: 113.6018292 | BA80: -12491.43394 | BE80: 19.00250696 | BF80: 1320.11265 | BG80: 36.72703349 | BH80: 14714.85567 | BJ80: 28529 | BK80: 53879 | BL80: 121 | BM80: -25229 | BN80: 13851 | BO80: 13164 | BR80: -349 | BS80: 8 | BT80: 1445 | BU80: 3318 | BV80: 0 | BX80: -1873 | BY80: -21 | BZ80: 4 | CA80: 0 | CB80: 0 | CC80: -1890 | CD80: 2487 | CE80: 1090 | CG80: 321 | CH80: -4037 | CI80: -3057 | CN80: 21.5 | CP80: 188 | CQ80: 4228 | CS80: 1.294774547 | CT80: 109.3847345 | CU80: -12230.13245 | CY80: 20.98344217 | CZ80: 1814.806055 | DA80: 45.78012619 | DB80: 14469.2526 | DD80: 27057 | DE80: 52117 | DF80: 120 | DG80: -24940 | DH80: 14546 | DI80: 16502 | DL80: -335 | DM80: 15 | DN80: 5788 | DO80: 3656 | DP80: 0 | DR80: 2132 | DS80: -7 | DT80: -39 | DU80: 1 | DV80: 0 | DW80: 2085 | DX80: 4624 | DY80: 5771 | EA80: 80 | EB80: -4389 | EC80: 1629 | EH80: 22 | EJ80: 41 | EQ80: -6061 | ER80: 49 | ES80: 2470 | ET80: -4357 | EU80: 15 | EV80: 195 | EW80: -4260 | EX80: 25 | EY80: 93 | EZ80: 4999 | FA80: -9 | FB80: 2264 | FC80: 3075 | FD80: 3452 | FE80: -6027 | FF80: 49632 | FG80: 41788 | FH80: 7844 | FI80: 22 | FJ80: 50818 | FK80: 40575 | FL80: 10243 | FM80: 281 | FN80: 51854 | FO80: 47785 | FP80: 4069 | FQ80: 80 | FR80: 1631 | FS80: 1480 | FT80: 1404 | FU80: 1168 | FV80: 1141
A81: 239 | B81: Keitele | C81: 2244 | E81: 0.6413043478 | F81: 78.283594 | G81: -7068.181818 | K81: 27.01046544 | L81: 907.7540107 | M81: 27.40527092 | N81: 12090.01783 | P81: 10247 | Q81: 24712 | R81: 22 | S81: -14443 | T81: 6874 | U81: 7943 | X81: -84 | Y81: 213 | Z81: 503 | AA81: 1150 | AB81: -26 | AD81: -673 | AE81: 1 | AF81: 5 | AG81: 0 | AH81: -1 | AI81: -668 | AJ81: -1456 | AK81: 487 | AM81: 54 | AN81: -833 | AO81: -862 | AT81: 20.5 | AV81: 244 | AW81: 2202 | AY81: 6.868131868 | AZ81: 77.61071303 | BA81: -7253.405995 | BE81: 30.65145703 | BF81: 852.8610354 | BG81: 27.61755845 | BH81: 11907.81108 | BJ81: 9713 | BK81: 23896 | BL81: 16 | BM81: -14167 | BN81: 7134 | BO81: 8692 | BR81: -106 | BS81: 209 | BT81: 1762 | BU81: 1192 | BV81: -181 | BX81: 389 | BY81: -9 | BZ81: 1 | CA81: 3 | CB81: -8 | CC81: 370 | CD81: -1014 | CE81: 1634 | CG81: -193 | CH81: -160 | CI81: -239 | CN81: 20.5 | CP81: 40 | CQ81: 2155 | CS81: 3.64727955 | CT81: 72.48040209 | CU81: -6911.832947 | CY81: 32.17491059 | CZ81: 1173.549884 | DA81: 34.25430459 | DB81: 12504.87239 | DD81: 9861 | DE81: 24955 | DF81: 43 | DG81: -15051 | DH81: 7469 | DI81: 9331 | DL81: -94 | DM81: 190 | DN81: 1845 | DO81: 1181 | DP81: -1 | DR81: 663 | DS81: -3 | DT81: 0 | DU81: 2 | DV81: -4 | DW81: 654 | DX81: -106 | DY81: 1692 | EA81: 69 | EB81: -434 | EC81: 577 | EH81: 20.5 | EJ81: 207 | EQ81: -1454 | ER81: 10 | ES81: 95 | ET81: -2006 | EU81: 81 | EV81: 52 | EW81: -1434 | EX81: 100 | EY81: 219 | EZ81: 3992 | FA81: -1250 | FB81: 336 | FC81: -281 | FD81: 408 | FE81: -1 | FF81: 19621 | FG81: 12024 | FH81: 7597 | FI81: 3 | FJ81: 19909 | FK81: 11945 | FL81: 7964 | FM81: 0 | FN81: 19405 | FO81: 11556 | FP81: 7849 | FQ81: 69 | FR81: 1673 | FS81: 911 | FT81: 869 | FU81: 726 | FV81: 972
A82: 240 | B82: Kemi | C82: 21021 | E82: 0.3532867416 | F82: 72.08347475 | G82: -6611.245897 | K82: 27.44361478 | L82: 824.4136816 | M82: 21.9571926 | N82: 13704.43842 | P82: 111044 | Q82: 231676 | R82: 132 | S82: -120500 | T82: 85711 | U82: 44851 | X82: -1435 | Y82: 331 | Z82: 8958 | AA82: 13615 | AB82: 35 | AD82: -4622 | AE82: -26 | AF82: -54 | AG82: -1219 | AH82: -79 | AI82: -6000 | AJ82: -1332 | AK82: 7902 | AM82: 998 | AN82: -28113 | AO82: -13395 | AT82: 21.75 | AV82: 171 | AW82: 20707 | AY82: 0.5878848616 | AZ82: 78.83856529 | BA82: -7059.931424 | BE82: 25.02835875 | BF82: 969.6720916 | BG82: 23.18515681 | BH82: 13176.17231 | BJ82: 107533 | BK82: 233851 | BL82: 67 | BM82: -126251 | BN82: 86080 | BO82: 44093 | BR82: -1118 | BS82: 6510 | BT82: 9314 | BU82: 12453 | BV82: 0 | BX82: -3139 | BY82: -6 | BZ82: 3014 | CA82: 613 | CB82: 12 | CC82: -732 | CD82: -2970 | CE82: 9090 | CG82: -147 | CH82: -16716 | CI82: -10551 | CN82: 21.75 | CP82: 141 | CQ82: 20437 | CS82: 1.140754871 | CT82: 79.08078356 | CU82: -7689.778343 | CY82: 24.45174565 | CZ82: 1046.728972 | DA82: 29.22437186 | DB82: 13073.20057 | DD82: 102685 | DE82: 229737 | DF82: 97 | DG82: -126955 | DH82: 87774 | DI82: 55903 | DL82: -894 | DM82: -62 | DN82: 15766 | DO82: 14798 | DP82: -10 | DR82: 958 | DS82: -35 | DT82: -119 | DU82: 27 | DV82: -379 | DW82: 398 | DX82: -2208 | DY82: 14315 | EA82: 3285 | EB82: -13700 | EC82: -7650 | EH82: 21.75 | EJ82: 231 | EQ82: -26743 | ER82: 174 | ES82: 5272 | ET82: -21034 | EU82: 417 | EV82: 976 | EW82: -22596 | EX82: 319 | EY82: 312 | EZ82: 25612 | FA82: 12569 | FB82: 19419 | FC82: 7084 | FD82: 22596 | FE82: -753 | FF82: 135345 | FG82: 90400 | FH82: 44945 | FI82: 0 | FJ82: 149221 | FK82: 93810 | FL82: 55411 | FM82: 0 | FN82: 160801 | FO82: 106143 | FP82: 54658 | FQ82: 3285 | FR82: 5293 | FS82: 5737 | FT82: 5956 | FU82: 2617 | FV82: 1821
A83: 320 | B83: Kemijärvi | C83: 7370 | E83: 0.551152899 | F83: 94.46148246 | G83: -11293.75848 | K83: 30.10338524 | L83: 1557.123474 | M83: 32.93112259 | N83: 17258.7517 | P83: 51891 | Q83: 101202 | R83: 0 | S83: -49311 | T83: 29446 | U83: 28548 | X83: -984 | Y83: 1066 | Z83: 8765 | AA83: 7171 | AB83: 0 | AD83: 1594 | AE83: -316 | AF83: 57 | AG83: 0 | AH83: -485 | AI83: 850 | AJ83: 7513 | AK83: 7980 | AM83: 1498 | AN83: -16785 | AO83: 3681 | AT83: 21.5 | AV83: 13 | AW83: 7274 | AY83: 0.9649249249 | AZ83: 94.86394681 | BA83: -11646.54935 | BE83: 34.6276261 | BF83: 1420.40143 | BG83: 34.09443499 | BH83: 16889.88177 | BJ83: 53104 | BK83: 103613 | BL83: 0 | BM83: -50509 | BN83: 28497 | BO83: 28503 | BR83: -630 | BS83: 1372 | BT83: 7233 | BU83: 7196 | BV83: 0 | BX83: 37 | BY83: -373 | BZ83: 24 | CA83: 0 | CB83: -491 | CC83: -803 | CD83: 6836 | CE83: 6532 | CG83: -135 | CH83: -7525 | CI83: -1407 | CN83: 21.5 | CP83: 22 | CQ83: 7191 | CS83: 1.387010199 | CT83: 98.50611556 | CU83: -12614.37908 | CY83: 34.04145937 | CZ83: 2175.079961 | DA83: 42.77980517 | DB83: 18557.91962 | DD83: 55744 | DE83: 106752 | DF83: 0 | DG83: -51008 | DH83: 29589 | DI83: 33217 | DL83: -626 | DM83: 889 | DN83: 12061 | DO83: 7370 | DP83: -3 | DR83: 4688 | DS83: -354 | DT83: -72 | DU83: 54 | DV83: -252 | DW83: 3956 | DX83: 10424 | DY83: 11389 | EA83: 383 | EB83: -8456 | EC83: -3084 | EH83: 21.5 | EJ83: 14 | EQ83: -7226 | ER83: 164 | ES83: 2763 | ET83: -9978 | EU83: 1673 | EV83: 366 | EW83: -16147 | EX83: 502 | EY83: 1172 | EZ83: 15771 | FA83: -3956 | FB83: 11539 | FC83: -3045 | FD83: 14893 | FE83: 140 | FF83: 66238 | FG83: 56972 | FH83: 9266 | FI83: 736 | FJ83: 67127 | FK83: 59602 | FL83: 7525 | FM83: 429 | FN83: 75135 | FO83: 66408 | FP83: 8727 | FQ83: 383 | FR83: 8552 | FS83: 7148 | FT83: 7589 | FU83: 2020 | FV83: 1408
A84: 241 | B84: Keminmaa | C84: 8147 | E84: 0.7520036638 | F84: 55.31829386 | G84: -3025.162637 | K84: 42.3531438 | L84: 1154.289923 | M84: 43.19678836 | N84: 9753.406162 | P84: 27442 | Q84: 71492 | R84: 0 | S84: -44050 | T84: 34796 | U84: 12410 | X84: -309 | Y84: 123 | Z84: 2970 | AA84: 4057 | AB84: 713 | AD84: -374 | AE84: 0 | AF84: 5 | AG84: 0 | AH84: -165 | AI84: -534 | AJ84: 5459 | AK84: 3099 | AM84: -2082 | AN84: -4053 | AO84: 6638 | AT84: 21.25 | AV84: 195 | AW84: 8079 | AY84: 1.102764155 | AZ84: 53.16526045 | BA84: -2920.906053 | BE84: 42.12799626 | BF84: 1538.804307 | BG84: 40.60208898 | BH84: 10464.04258 | BJ84: 30254 | BK84: 74348 | BL84: 0 | BM84: -44094 | BN84: 35804 | BO84: 13114 | BR84: -272 | BS84: 120 | BT84: 4672 | BU84: 3826 | BV84: 3 | BX84: 849 | BY84: 0 | BZ84: -67 | CA84: 0 | CB84: -276 | CC84: 506 | CD84: 5338 | CE84: 4762 | CG84: 1789 | CH84: -4211 | CI84: -780 | CN84: 21.25 | CP84: 97 | CQ84: 7984 | CS84: 1.789498921 | CT84: 51.2310857 | CU84: -3001.002004 | CY84: 45.43939548 | CZ84: 1199.023046 | DA84: 42.06721566 | DB84: 10403.43186 | DD84: 26881 | DE84: 71816 | DF84: 0 | DG84: -44935 | DH84: 36162 | DI84: 16196 | DL84: -233 | DM84: 36 | DN84: 7226 | DO84: 3879 | DP84: 37 | DR84: 3384 | DS84: 0 | DT84: 4 | DU84: 0 | DV84: -144 | DW84: 3244 | DX84: 8583 | DY84: 6940 | EA84: -701 | EB84: -3933 | EC84: 298 | EH84: 21.25 | EJ84: 189 | EQ84: -3591 | ER84: 133 | ES84: 6997 | ET84: -5682 | EU84: 131 | EV84: 9 | EW84: -7050 | EX84: 105 | EY84: 303 | EZ84: 15 | FA84: 599 | FB84: 5062 | FC84: 849 | FD84: 278 | FE84: -363 | FF84: 26012 | FG84: 21198 | FH84: 4814 | FI84: 82 | FJ84: 27666 | FK84: 22579 | FL84: 5087 | FM84: 59 | FN84: 23980 | FO84: 18820 | FP84: 5160 | FQ84: -701 | FR84: 433 | FS84: 330 | FT84: 310 | FU84: 280 | FV84: 508
A85: 322 | B85: Kemiönsaari | C85: 6724 | E85: 0.6190366444 | F85: 60.43503407 | G85: -5183.521713 | K85: 45.52468581 | L85: 577.1861987 | M85: 18.83780154 | N85: 11183.52171 | P85: 27424 | Q85: 68266 | R85: 2 | S85: -40840 | T85: 22262 | U85: 21205 | X85: -453 | Y85: 60 | Z85: 2234 | AA85: 5149 | AB85: 0 | AD85: -2915 | AE85: -2 | AF85: -214 | AG85: -59 | AH85: 27 | AI85: -3163 | AJ85: 17302 | AK85: 1841 | AM85: 553 | AN85: -3887 | AO85: 87 | AT85: 19.75 | AV85: 201 | AW85: 6640 | AY85: 0.8355134985 | AZ85: 60.56677679 | BA85: -5195.933735 | BE85: 44.77966227 | BF85: 712.0481928 | BG85: 18.9598335 | BH85: 11252.10843 | BJ85: 27481 | BK85: 68792 | BL85: 16 | BM85: -41295 | BN85: 22657 | BO85: 21601 | BR85: -366 | BS85: 39 | BT85: 2636 | BU85: 5154 | BV85: 0 | BX85: -2518 | BY85: -6 | BZ85: 211 | CA85: 45 | CB85: -54 | CC85: -2412 | CD85: 14770 | CE85: 2541 | CG85: -34 | CH85: -3227 | CI85: 441 | CN85: 19.75 | CP85: 164 | CQ85: 6609 | CS85: 2.234554974 | CT85: 48.62702213 | CU85: -4228.627629 | CY85: 49.87969328 | CZ85: 578.9075503 | DA85: 19.06340864 | DB85: 11084.1277 | DD85: 27341 | DE85: 66520 | DF85: 20 | DG85: -39159 | DH85: 23300 | DI85: 24342 | DL85: -324 | DM85: 48 | DN85: 8207 | DO85: 6833 | DP85: 0 | DR85: 1374 | DS85: -6 | DT85: 393 | DU85: 24 | DV85: -22 | DW85: 1715 | DX85: 16313 | DY85: 8044 | EA85: -332 | EB85: -3491 | EC85: 6211 | EH85: 19.75 | EJ85: 62 | EQ85: -2496 | ER85: 198 | ES85: 544 | ET85: -2234 | EU85: 44 | EV85: 90 | EW85: -2633 | EX85: 456 | EY85: 344 | EZ85: 693 | FA85: -1928 | FB85: 350 | FC85: 3654 | FD85: 103 | FE85: -2981 | FF85: 31218 | FG85: 28271 | FH85: 2947 | FI85: 1 | FJ85: 32081 | FK85: 25633 | FL85: 6448 | FM85: 1 | FN85: 25694 | FO85: 22527 | FP85: 3167 | FQ85: -332 | FR85: 1406 | FS85: 1193 | FT85: 1059 | FU85: 5032 | FV85: 5851
A86: 244 | B86: Kempele | C86: 17923 | E86: 1.098953886 | F86: 70.34093784 | G86: -4018.356302 | K86: 40.73581209 | L86: 839.1452324 | M86: 35.37478091 | N86: 8658.371924 | P86: 37141 | Q86: 124080 | R86: -32 | S86: -86971 | T86: 68585 | U86: 28668 | X86: -795 | Y86: -2 | Z86: 9485 | AA86: 7897 | AB86: 453 | AD86: 2041 | AE86: -15 | AF86: -109 | AG86: -2 | AH86: -31 | AI86: 1884 | AJ86: 23761 | AK86: 5194 | AM86: 56 | AN86: -8558 | AO86: -10345 | AT86: 20.5 | AV86: 131 | AW86: 18355 | AY86: 0.6603025937 | AZ86: 77.28497063 | BA86: -4729.501498 | BE86: 37.17569022 | BF86: 623.6447834 | BG86: 33.96105021 | BH86: 8806.537728 | BJ86: 37179 | BK86: 132292 | BL86: 23 | BM86: -95090 | BN86: 71188 | BO86: 29370 | BR86: -752 | BS86: 17 | BT86: 4733 | BU86: 7698 | BV86: 0 | BX86: -2965 | BY86: -1 | BZ86: -3 | CA86: 6 | CB86: -59 | CC86: -3034 | CD86: 20727 | CE86: 1071 | CG86: -721 | CH86: -7562 | CI86: -14740 | CN86: 20.5 | CP86: 222 | CQ86: 18796 | CS86: 1.3271777 | CT86: 73.67441611 | CU86: -4742.764418 | CY86: 36.79208392 | CZ86: 694.7222813 | DA86: 29.55746011 | DB86: 8579.006172 | DD86: 36658 | DE86: 138065 | DF86: 6 | DG86: -101401 | DH86: 74665 | DI86: 38064 | DL86: -676 | DM86: 37 | DN86: 10689 | DO86: 9565 | DP86: 0 | DR86: 1124 | DS86: -2 | DT86: 83 | DU86: 2 | DV86: -85 | DW86: 1118 | DX86: 21836 | DY86: 8137 | EA86: 337 | EB86: -7872 | EC86: -2183 | EH86: 20.5 | EJ86: 279 | EQ86: -21605 | ER86: 281 | ES86: 5785 | ET86: -20986 | EU86: 492 | EV86: 4683 | EW86: -14552 | EX86: 655 | EY86: 3577 | EZ86: 18673 | FA86: -78 | FB86: 17051 | FC86: -88 | FD86: 10289 | FE86: 41 | FF86: 71092 | FG86: 63512 | FH86: 7580 | FI86: 3 | FJ86: 80493 | FK86: 72602 | FL86: 7891 | FM86: 3 | FN86: 82951 | FO86: 74540 | FP86: 8411 | FQ86: 337 | FR86: 867 | FS86: 734 | FT86: 598 | FU86: 16787 | FV86: 17896
A87: 245 | B87: Kerava | C87: 36254 | E87: 1.621773563 | F87: 75.5574621 | G87: -6364.732167 | K87: 53.0266474 | L87: 648.6732498 | M87: 21.23360239 | N87: 11150.52132 | P87: 182884 | Q87: 338222 | R87: 59 | S87: -155279 | T87: 151935 | U87: 35834 | X87: -782 | Y87: 551 | Z87: 32259 | AA87: 30748 | AB87: 0 | AD87: 1511 | AE87: 60 | AF87: -10 | AG87: -19 | AH87: -68 | AI87: 1474 | AJ87: 139430 | AK87: 27934 | AM87: 2694 | AN87: -19540 | AO87: -9501 | AT87: 19.25 | AV87: 34 | AW87: 36756 | AY87: 1.36874815 | AZ87: 77.24748397 | BA87: -6679.64414 | BE87: 53.0050478 | BF87: 696.076831 | BG87: 19.2316163 | BH87: 12143.13309 | BJ87: 189064 | BK87: 357082 | BL87: 330 | BM87: -167688 | BN87: 156821 | BO87: 37655 | BR87: -1546 | BS87: 828 | BT87: 26070 | BU87: 34923 | BV87: 14166 | BX87: 5313 | BY87: 28 | BZ87: -1 | CA87: 19 | CB87: -274 | CC87: 5047 | CD87: 144477 | CE87: 37481 | CG87: 573 | CH87: -18594 | CI87: -16507 | CN87: 19.25 | CP87: 55 | CQ87: 37105 | CS87: 1.001958809 | CT87: 78.27678699 | CU87: -7224.444145 | CY87: 50.63919149 | CZ87: 691.7935588 | DA87: 19.43302283 | DB87: 12993.58577 | DD87: 187045 | DE87: 370258 | DF87: 274 | DG87: -182939 | DH87: 162412 | DI87: 56169 | DL87: -1531 | DM87: 46 | DN87: 34157 | DO87: 36146 | DP87: 2695 | DR87: 706 | DS87: 71 | DT87: 0 | DU87: 12 | DV87: -99 | DW87: 666 | DX87: 145143 | DY87: 29540 | EA87: 1362 | EB87: -34087 | EC87: -30076 | EH87: 19.25 | EJ87: 176 | EQ87: -44837 | ER87: 84 | ES87: 7318 | ET87: -68577 | EU87: 215 | EV87: 14374 | EW87: -75163 | EX87: 211 | EY87: 15336 | EZ87: 21700 | FA87: -9 | FB87: 29099 | FC87: 1752 | FD87: 52529 | FE87: 3505 | FF87: 179815 | FG87: 150801 | FH87: 29014 | FI87: 80 | FJ87: 191426 | FK87: 148850 | FL87: 42576 | FM87: 87 | FN87: 205883 | FO87: 169007 | FP87: 36876 | FQ87: 1362 | FR87: 5664 | FS87: 6631 | FT87: 5932 | FU87: 27661 | FV87: 27127
A88: 249 | B88: Keuruu | C88: 9762 | E88: 1.961674827 | F88: 112.1778132 | G88: -12138.80352 | K88: 27.25627943 | L88: 679.7787339 | M88: 18.6899287 | N88: 13275.55829 | P88: 55436 | Q88: 109333 | R88: 217 | S88: -53680 | T88: 34185 | U88: 31000 | X88: -628 | Y88: 70 | Z88: 10947 | AA88: 10153 | AB88: 0 | AD88: 794 | AE88: -379 | AF88: -1 | AG88: -80 | AH88: -155 | AI88: 179 | AJ88: 14074 | AK88: 10350 | AM88: -570 | AN88: -5251 | AO88: -2617 | AT88: 21.5 | AV88: 15 | AW88: 9605 | AY88: 0.9294055898 | AZ88: 120.318364 | BA88: -13375.32535 | BE88: 27.090873 | BF88: 599.6876627 | BG88: 17.78494624 | BH88: 14136.3873 | BJ88: 53344 | BK88: 111365 | BL88: 252 | BM88: -57769 | BN88: 33607 | BO88: 31090 | BR88: -579 | BS88: 107 | BT88: 6456 | BU88: 10045 | BV88: 0 | BX88: -3589 | BY88: -93 | BZ88: 1 | CA88: 6 | CB88: -9 | CC88: -3696 | CD88: 10512 | CE88: 6702 | CG88: 2961 | CH88: -6994 | CI88: -9862 | CN88: 21.5 | CP88: 66 | CQ88: 9486 | CS88: 1.905098039 | CT88: 116.2509491 | CU88: -13539.53194 | CY88: 27.83913336 | CZ88: 661.8174151 | DA88: 17.48039485 | DB88: 13819.10183 | DD88: 52208 | DE88: 110749 | DF88: 274 | DG88: -58267 | DH88: 35357 | DI88: 34914 | DL88: -523 | DM88: 95 | DN88: 11576 | DO88: 9827 | DP88: 0 | DR88: 1749 | DS88: 71 | DT88: 67 | DU88: 20 | DV88: 65 | DW88: 1932 | DX88: 12151 | DY88: 11397 | EA88: 460 | EB88: -5806 | EC88: -747 | EH88: 21.5 | EJ88: 68 | EQ88: -14242 | ER88: 41 | ES88: 1234 | ET88: -16752 | EU88: 8 | EV88: 180 | EW88: -13932 | EX88: 2 | EY88: 1786 | EZ88: 4660 | FA88: 2398 | FB88: 11132 | FC88: 3267 | FD88: 7445 | FE88: -1141 | FF88: 102233 | FG88: 59095 | FH88: 43138 | FI88: 0 | FJ88: 110156 | FK88: 62995 | FL88: 47161 | FM88: 0 | FN88: 110651 | FO88: 64491 | FP88: 46160 | FQ88: 460 | FR88: 675 | FS88: 638 | FT88: 587 | FU88: 1707 | FV88: 1811
A89: 250 | B89: Kihniö | C89: 1910 | E89: 1.231343284 | F89: 63.91138046 | G89: -4667.539267 | K89: 32.99805806 | L89: 1492.146597 | M89: 48.64845906 | N89: 11195.28796 | P89: 6900 | Q89: 19089 | R89: 1 | S89: -12188 | T89: 5774 | U89: 7457 | X89: -141 | Y89: 109 | Z89: 1011 | AA89: 894 | AB89: 0 | AD89: 117 | AE89: -16 | AF89: 0 | AG89: -11 | AH89: -1 | AI89: 89 | AJ89: -424 | AK89: 692 | AM89: 497 | AN89: -794 | AO89: -244 | AT89: 21.5 | AV89: 130 | AW89: 1865 | AY89: 0.8663043478 | AZ89: 62.76088253 | BA89: -5233.243968 | BE89: 33.26337343 | BF89: 1003.753351 | BG89: 47.79601623 | BH89: 11628.95442 | BJ89: 6765 | BK89: 19285 | BL89: -3 | BM89: -12523 | BN89: 5713 | BO89: 7646 | BR89: -138 | BS89: -42 | BT89: 656 | BU89: 873 | BV89: 0 | BX89: -217 | BY89: -15 | BZ89: 0 | CA89: 9 | CB89: -1 | CC89: -242 | CD89: -666 | CE89: 592 | CG89: 122 | CH89: -779 | CI89: -822 | CN89: 21.5 | CP89: 184 | CQ89: 1822 | CS89: 1.341886792 | CT89: 60.6458881 | CU89: -4942.371021 | CY89: 34.96582031 | CZ89: 1508.781559 | DA89: 44.73805065 | DB89: 12309.54995 | DD89: 7805 | DE89: 19577 | DF89: 15 | DG89: -11757 | DH89: 5856 | DI89: 7643 | DL89: -136 | DM89: 33 | DN89: 1639 | DO89: 949 | DP89: 0 | DR89: 690 | DS89: -53 | DT89: 0 | DU89: 29 | DV89: -3 | DW89: 605 | DX89: -61 | DY89: 1510 | EA89: 47 | EB89: -1186 | EC89: 1256 | EH89: 21.5 | EJ89: 193 | EQ89: -1317 | ER89: 32 | ES89: 349 | ET89: -1424 | EU89: 2 | EV89: 8 | EW89: -909 | EX89: 14 | EY89: 641 | EZ89: 586 | FA89: -7 | FB89: 499 | FC89: 1 | FD89: 1141 | FE89: 101 | FF89: 10566 | FG89: 9797 | FH89: 769 | FI89: 23 | FJ89: 10285 | FK89: 9528 | FL89: 757 | FM89: 34 | FN89: 10562 | FO89: 9745 | FP89: 817 | FQ89: 47 | FR89: 3208 | FS89: 3150 | FT89: 3112 | FU89: 2104 | FV89: 2478
A90: 256 | B90: Kinnula | C90: 1615 | E90: -1.885057471 | F90: 68.29742242 | G90: -3432.817337 | K90: 51.5714342 | L90: 1585.758514 | M90: 45.59162074 | N90: 12695.35604 | P90: 5903 | Q90: 17749 | R90: -29 | S90: -11875 | T90: 4599 | U90: 6995 | X90: 74 | Y90: 38 | Z90: -169 | AA90: 1042 | AB90: 0 | AD90: -1211 | AE90: 0 | AF90: 0 | AG90: 0 | AH90: 0 | AI90: -1211 | AJ90: 6144 | AK90: -169 | AM90: 0 | AN90: -82 | AO90: -2740 | AT90: 20.5 | AV90: 288 | AW90: 1620 | AY90: -3.662790698 | AZ90: 71.93822306 | BA90: -4857.407407 | BE90: 47.54105074 | BF90: 1243.209877 | BG90: 46.3236533 | BH90: 12456.17284 | BJ90: 6148 | BK90: 17942 | BL90: -25 | BM90: -11819 | BN90: 4432 | BO90: 6967 | BR90: 58 | BS90: 40 | BT90: -322 | BU90: 1078 | BV90: 0 | BX90: -1400 | BY90: -5 | BZ90: 0 | CA90: 0 | CB90: 0 | CC90: -1405 | CD90: 3240 | CE90: -236 | CG90: 1125 | CH90: -79 | CI90: -2212 | CN90: 21 | CP90: 283 | CQ90: 1597 | CS90: 5.957627119 | CT90: 72.43379707 | CU90: -5747.651847 | CY90: 45.519328 | CZ90: 1154.038823 | DA90: 32.69000875 | DB90: 12885.41014 | DD90: 5807 | DE90: 17979 | DF90: -25 | DG90: -12197 | DH90: 4958 | DI90: 7852 | DL90: 63 | DM90: 19 | DN90: 695 | DO90: 1052 | DP90: 0 | DR90: -357 | DS90: -3 | DT90: 0 | DU90: 0 | DV90: 0 | DW90: -360 | DX90: 3109 | DY90: 899 | EA90: 275 | EB90: -110 | EC90: -1309 | EH90: 21 | EJ90: 286 | EQ90: -2610 | ER90: 22 | ES90: 17 | ET90: -2144 | EU90: 13 | EV90: 155 | EW90: -2477 | EX90: 0 | EY90: 269 | EZ90: 1015 | FA90: 287 | FB90: 1489 | FC90: -222 | FD90: 3008 | FE90: -2182 | FF90: 9199 | FG90: 2898 | FH90: 6301 | FI90: 0 | FJ90: 10388 | FK90: 4299 | FL90: 6089 | FM90: 0 | FN90: 11095 | FO90: 7110 | FP90: 3985 | FQ90: 275 | FR90: 161 | FS90: 160 | FT90: 160 | FU90: 220 | FV90: 191
A91: 257 | B91: Kirkkonummi | C91: 39262 | E91: 1.140510949 | F91: 69.9926088 | G91: -4872.67587 | K91: 25.78152591 | L91: 801.5383832 | M91: 30.91255766 | N91: 9464.163823 | P91: 120214 | Q91: 319679 | R91: -59 | S91: -199524 | T91: 189339 | U91: 28687 | X91: -1542 | Y91: 175 | Z91: 17135 | AA91: 21656 | AB91: -190 | AD91: -4711 | AE91: 57 | AF91: 48 | AG91: -4 | AH91: -49 | AI91: -4659 | AJ91: 22294 | AK91: 12692 | AM91: -85 | AN91: -14825 | AO91: -17434 | AT91: 19.5 | AV91: 166 | AW91: 39586 | AY91: 0.1915636754 | AZ91: 87.23853243 | BA91: -6425.933411 | BE91: 17.27645567 | BF91: 693.4017077 | BG91: 26.92561937 | BH91: 10776.61294 | BJ91: 126520 | BK91: 342125 | BL91: -487 | BM91: -216092 | BN91: 189925 | BO91: 29487 | BR91: -1735 | BS91: 178 | BT91: 1763 | BU91: 23685 | BV91: 0 | BX91: -21922 | BY91: 53 | BZ91: -23 | CA91: 3 | CB91: 5 | CC91: -21890 | CD91: 405 | CE91: -1663 | CG91: -5999 | CH91: -16808 | CI91: -62436 | CN91: 19.75 | CP91: 270 | CQ91: 40082 | CS91: 1.241175058 | CT91: 96.34755638 | CU91: -7334.21486 | CY91: 15.80335461 | CZ91: 1098.872312 | DA91: 36.25119229 | DB91: 11064.14351 | DD91: 122591 | DE91: 344421 | DF91: -3 | DG91: -221833 | DH91: 202035 | DI91: 50657 | DL91: -1784 | DM91: 56 | DN91: 29131 | DO91: 24791 | DP91: 400 | DR91: 4740 | DS91: 53 | DT91: 20 | DU91: 18 | DV91: 38 | DW91: 4833 | DX91: 5237 | DY91: 27435 | EA91: -3599 | EB91: -23105 | EC91: -39749 | EH91: 19.75 | EJ91: 250 | EQ91: -35037 | ER91: 66 | ES91: 4845 | ET91: -65399 | EU91: 13 | EV91: 4613 | EW91: -73534 | EX91: 2688 | EY91: 3662 | EZ91: 35881 | FA91: -8575 | FB91: 72022 | FC91: 3928 | FD91: 84373 | FE91: -7716 | FF91: 174841 | FG91: 118909 | FH91: 55932 | FI91: 882 | FJ91: 233982 | FK91: 167207 | FL91: 66775 | FM91: 882 | FN91: 287534 | FO91: 222958 | FP91: 64576 | FQ91: -3599 | FR91: 5845 | FS91: 30592 | FT91: 34101 | FU91: 55375 | FV91: 60278
A92: 260 | B92: Kitee | C92: 10358 | E92: 1.299654577 | F92: 27.65965428 | G92: -1744.641823 | K92: 55.89707715 | L92: 1392.546824 | M92: 38.33209558 | N92: 13259.89573 | P92: 61656 | Q92: 126206 | R92: 1 | S92: -64549 | T92: 32042 | U92: 39590 | X92: -197 | Y92: 412 | Z92: 7298 | AA92: 4819 | AB92: 20 | AD92: 2499 | AE92: -23 | AF92: 1 | AG92: -77 | AH92: -73 | AI92: 2327 | AJ92: 23324 | AK92: 8101 | AM92: 669 | AN92: -5563 | AO92: 3176 | AT92: 21.5 | AV92: 74 | AW92: 10136 | AY92: 1.46906374 | AZ92: 26.58840803 | BA92: -1652.821626 | BE92: 56.86102298 | BF92: 1336.7206 | BG92: 37.98994105 | BH92: 13672.35596 | BJ92: 63022 | BK92: 129044 | BL92: 0 | BM92: -66022 | BN92: 32118 | BO92: 39712 | BR92: -166 | BS92: 443 | BT92: 6085 | BU92: 5601 | BV92: 0 | BX92: 484 | BY92: -29 | BZ92: -6 | CA92: 54 | CB92: 82 | CC92: 477 | CD92: 23529 | CE92: 5999 | CG92: -1181 | CH92: -4076 | CI92: 1513 | CN92: 21 | CP92: 89 | CQ92: 9933 | CS92: 2.742424242 | CT92: 26.60396659 | CU92: -1273.734018 | CY92: 58.37090909 | CZ92: 1732.407128 | DA92: 44.76140251 | DB92: 14126.64855 | DD92: 63332 | DE92: 130955 | DF92: 0 | DG92: -67623 | DH92: 32556 | DI92: 44888 | DL92: -147 | DM92: 415 | DN92: 10089 | DO92: 5839 | DP92: 0 | DR92: 4250 | DS92: -24 | DT92: 6 | DU92: 57 | DV92: 29 | DW92: 4204 | DX92: 27927 | DY92: 9199 | EA92: -2039 | EB92: -3534 | EC92: 4264 | EH92: 21 | EJ92: 126 | EQ92: -5143 | ER92: 72 | ES92: 146 | ET92: -4986 | EU92: 321 | EV92: 179 | EW92: -5457 | EX92: 209 | EY92: 313 | EZ92: 0 | FA92: -8 | FB92: 2135 | FC92: 1010 | FD92: 4824 | FE92: 122 | FF92: 20176 | FG92: 17519 | FH92: 2657 | FI92: 530 | FJ92: 19544 | FK92: 16337 | FL92: 3207 | FM92: 791 | FN92: 20956 | FO92: 17250 | FP92: 3706 | FQ92: -2039 | FR92: 1911 | FS92: 1789 | FT92: 318 | FU92: 3021 | FV92: 4469
A93: 261 | B93: Kittilä | C93: 6436 | E93: 1.610940521 | F93: 67.4533718 | G93: -8761.342449 | K93: 43.58366856 | L93: 1219.546302 | M93: 26.96159348 | N93: 16509.94406 | P93: 51079 | Q93: 90616 | R93: 1248 | S93: -38289 | T93: 28580 | U93: 23980 | X93: -667 | Y93: -107 | Z93: 13497 | AA93: 8502 | AB93: 0 | AD93: 4995 | AE93: -671 | AF93: 662 | AG93: -386 | AH93: -46 | AI93: 4554 | AJ93: 48182 | AK93: 10262 | AM93: 513 | AN93: -8125 | AO93: 5993 | AT93: 20.25 | AV93: 1 | AW93: 6453 | AY93: 3.521164021 | AZ93: 71.82444578 | BA93: -9609.174028 | BE93: 48.90523872 | BF93: 1385.867039 | BG93: 24.13571302 | BH93: 18394.39021 | BJ93: 50433 | BK93: 91942 | BL93: 1199 | BM93: -40310 | BN93: 30553 | BO93: 25830 | BR93: -758 | BS93: -109 | BT93: 15206 | BU93: 8606 | BV93: 0 | BX93: 6600 | BY93: -827 | BZ93: 911 | CA93: 504 | CB93: -30 | CC93: 6150 | CD93: 52782 | CE93: 13197 | CG93: 433 | CH93: -3770 | CI93: -6416 | CN93: 20.25 | CP93: 1 | CQ93: 6436 | CS93: 4.653264813 | CT93: 75.6512104 | CU93: -9650.403978 | CY93: 49.22564313 | CZ93: 1939.24798 | DA93: 41.06369266 | DB93: 17237.25917 | DD93: 46698 | DE93: 91440 | DF93: 1022 | DG93: -43720 | DH93: 31340 | DI93: 28456 | DL93: -441 | DM93: -690 | DN93: 14945 | DO93: 10714 | DP93: 0 | DR93: 4231 | DS93: -293 | DT93: 1431 | DU93: 0 | DV93: -180 | DW93: 5189 | DX93: 57426 | DY93: 14131 | EA93: -500 | EB93: -2860 | EC93: 1064 | EH93: 20.25 | EJ93: 2 | EQ93: -6021 | ER93: 67 | ES93: 1685 | ET93: -20862 | EU93: 79 | EV93: 1170 | EW93: -13816 | EX93: 119 | EY93: 630 | EZ93: 139 | FA93: 755 | FB93: 9782 | FC93: -262 | FD93: 6938 | FE93: -1690 | FF93: 43992 | FG93: 35506 | FH93: 8486 | FI93: 367 | FJ93: 49841 | FK93: 41617 | FL93: 8224 | FM93: 234 | FN93: 52293 | FO93: 45756 | FP93: 6537 | FQ93: -500 | FR93: 3269 | FS93: 17104 | FT93: 17865 | FU93: 2242 | FV93: 1963
A94: 263 | B94: Kiuruvesi | C94: 8153 | E94: 0.8648382005 | F94: 65.96114145 | G94: -6414.939286 | K94: 33.12334599 | L94: 1451.244941 | M94: 38.54862896 | N94: 13741.19956 | P94: 46447 | Q94: 100170 | R94: 154 | S94: -53569 | T94: 22913 | U94: 34298 | X94: -531 | Y94: 735 | Z94: 3846 | AA94: 5634 | AB94: 140 | AD94: -1648 | AE94: -2 | AF94: 9 | AG94: -4 | AH94: -66 | AI94: -1711 | AJ94: 887 | AK94: 3213 | AM94: 418 | AN94: -4531 | AO94: -1530 | AT94: 20.75 | AV94: 155 | AW94: 7998 | AY94: 0.7399328859 | AZ94: 67.41953375 | BA94: -6716.429107 | BE94: 31.54341236 | BF94: 1473.743436 | BG94: 38.14043857 | BH94: 14157.41435 | BJ94: 47223 | BK94: 101847 | BL94: 166 | BM94: -54458 | BN94: 23413 | BO94: 33942 | BR94: -489 | BS94: 1058 | BT94: 3466 | BU94: 5705 | BV94: 419 | BX94: -1820 | BY94: -23 | BZ94: 6 | CA94: 9 | CB94: -67 | CC94: -1913 | CD94: -812 | CE94: 3584 | CG94: -756 | CH94: -4861 | CI94: -1509 | CN94: 20.75 | CP94: 150 | CQ94: 7854 | CS94: 2.343340721 | CT94: 61.18840967 | CU94: -6362.490451 | CY94: 34.76048462 | CZ94: 1820.091673 | DA94: 45.4252022 | DB94: 14624.77718 | DD94: 48661 | DE94: 101594 | DF94: 69 | DG94: -52864 | DH94: 24411 | DI94: 39263 | DL94: -443 | DM94: 807 | DN94: 11174 | DO94: 6736 | DP94: -10 | DR94: 4428 | DS94: -7 | DT94: 3 | DU94: 7 | DV94: -71 | DW94: 4346 | DX94: 3524 | DY94: 10418 | EA94: 530 | EB94: -4507 | EC94: 3927 | EH94: 21.75 | EJ94: 29 | EQ94: -6402 | ER94: 463 | ES94: 1196 | ET94: -5780 | EU94: 478 | EV94: 209 | EW94: -8044 | EX94: 442 | EY94: 1111 | EZ94: 3251 | FA94: 1426 | FB94: 6132 | FC94: 14 | FD94: 2357 | FE94: 996 | FF94: 56328 | FG94: 36398 | FH94: 19930 | FI94: 92 | FJ94: 57614 | FK94: 38046 | FL94: 19568 | FM94: 57 | FN94: 55735 | FO94: 36075 | FP94: 19660 | FQ94: 530 | FR94: 22 | FS94: 22 | FT94: 10 | FU94: 7233 | FV94: 6809
A95: 265 | B95: Kivijärvi | C95: 1103 | E95: 1.766129032 | F95: 57.3389209 | G95: -6138.712602 | K95: 35.36681716 | L95: 2259.292838 | M95: 43.66892314 | N95: 18883.95286 | P95: 10488 | Q95: 18683 | R95: 0 | S95: -8195 | T95: 3489 | U95: 5113 | X95: -40 | Y95: -195 | Z95: 172 | AA95: 1106 | AB95: 0 | AD95: -934 | AE95: 0 | AF95: 0 | AG95: 0 | AH95: -1 | AI95: -935 | AJ95: 1610 | AK95: 183 | AM95: 179 | AN95: -77 | AO95: -1581 | AT95: 21.5 | AV95: 259 | AW95: 1096 | AY95: -16.56122449 | AZ95: 59.27383388 | BA95: -7398.722628 | BE95: 22.73600839 | BF95: 1885.948905 | BG95: 40.54109467 | BH95: 20470.80292 | BJ95: 10550 | BK95: 18983 | BL95: 0 | BM95: -8433 | BN95: 3571 | BO95: 4938 | BR95: -33 | BS95: -1705 | BT95: -1662 | BU95: 924 | BV95: 0 | BX95: -2586 | BY95: 0 | BZ95: 0 | CA95: 0 | CB95: -2 | CC95: -2588 | CD95: -1007 | CE95: 185 | CG95: 561 | CH95: -59 | CI95: -1328 | CN95: 21.5 | CP95: 295 | CQ95: 1107 | CS95: 16.22340426 | CT95: 67.92150581 | CU95: -8727.190605 | CY95: 24.17233063 | CZ95: 2570.009033 | DA95: 51.55520802 | DB95: 18195.12195 | DD95: 10608 | DE95: 18452 | DF95: 0 | DG95: -7844 | DH95: 3894 | DI95: 5474 | DL95: -40 | DM95: -3 | DN95: 1481 | DO95: 1004 | DP95: 0 | DR95: 477 | DS95: 0 | DT95: 0 | DU95: 0 | DV95: -3 | DW95: 474 | DX95: -494 | DY95: -274 | EA95: 60 | EB95: -50 | EC95: -1439 | EH95: 21.75 | EJ95: 44 | EQ95: -1814 | ER95: 50 | ES95: 0 | ET95: -1642 | EU95: 102 | EV95: 27 | EW95: -1545 | EX95: 273 | EY95: 107 | EZ95: 600 | FA95: 302 | FB95: 1106 | FC95: -309 | FD95: 1391 | FE95: 728 | FF95: 8596 | FG95: 7868 | FH95: 728 | FI95: 48 | FJ95: 9332 | FK95: 8915 | FL95: 417 | FM95: 49 | FN95: 11401 | FO95: 10255 | FP95: 1146 | FQ95: 60 | FR95: 2837 | FS95: 2793 | FT95: 1045 | FU95: 747 | FV95: 734
A96: 271 | B96: Kokemäki | C96: 7226 | E96: 1.206762029 | F96: 62.34146841 | G96: -5404.788265 | K96: 22.72510353 | L96: 557.7082757 | M96: 18.04049745 | N96: 11283.69776 | P96: 32223 | Q96: 74380 | R96: -14 | S96: -42171 | T96: 25747 | U96: 20169 | X96: -202 | Y96: -50 | Z96: 3493 | AA96: 3618 | AB96: -455 | AD96: -580 | AE96: 3 | AF96: 0 | AG96: -66 | AH96: 0 | AI96: -643 | AJ96: 452 | AK96: 3206 | AM96: 609 | AN96: -2857 | AO96: -404 | AT96: 21.75 | AV96: 151 | AW96: 7103 | AY96: 0.8037811515 | AZ96: 60.76396253 | BA96: -5691.820358 | BE96: 22.51840372 | BF96: 377.7277207 | BG96: 17.41939089 | BH96: 11968.04167 | BJ96: 33369 | BK96: 77264 | BL96: -7 | BM96: -43902 | BN96: 25814 | BO96: 20978 | BR96: -172 | BS96: -96 | BT96: 2622 | BU96: 3785 | BV96: 93 | BX96: -1070 | BY96: 0 | BZ96: 5 | CA96: 82 | CB96: 0 | CC96: -1147 | CD96: 212 | CE96: 2540 | CG96: 687 | CH96: -3307 | CI96: -1427 | CN96: 21.75 | CP96: 174 | CQ96: 7013 | CS96: 1.205117086 | CT96: 60.23517275 | CU96: -5702.98018 | CY96: 26.03852761 | CZ96: 771.1393127 | DA96: 21.85110976 | DB96: 12881.078 | DD96: 37431 | DE96: 76992 | DF96: -4 | DG96: -39565 | DH96: 26541 | DI96: 21327 | DL96: -166 | DM96: 26 | DN96: 8163 | DO96: 4446 | DP96: 73 | DR96: 3790 | DS96: 1 | DT96: 5 | DU96: 34 | DV96: 0 | DW96: 3762 | DX96: 4192 | DY96: 8142 | EA96: -1059 | EB96: -6744 | EC96: 2275 | EH96: 21.75 | EJ96: 87 | EQ96: -3963 | ER96: 202 | ES96: 151 | ET96: -4103 | EU96: 41 | EV96: 95 | EW96: -6297 | EX96: 37 | EY96: 393 | EZ96: 768 | FA96: 935 | FB96: 3645 | FC96: -467 | FD96: 11058 | FE96: -4082 | FF96: 34262 | FG96: 15742 | FH96: 18520 | FI96: 0 | FJ96: 34360 | FK96: 15947 | FL96: 18413 | FM96: 0 | FN96: 35748 | FO96: 21138 | FP96: 14610 | FQ96: -1059 | FR96: 375 | FS96: 250 | FT96: 125 | FU96: 1275 | FV96: 1373
A97: 272 | B97: Kokkola | C97: 47657 | E97: 0.5351559667 | F97: 85.19323723 | G97: -8381.077281 | K97: 32.46068392 | L97: 1498.751495 | M97: 36.77473185 | N97: 14875.54819 | P97: 332872 | Q97: 555741 | R97: -20 | S97: -222889 | T97: 186811 | U97: 87938 | X97: -3812 | Y97: -863 | Z97: 47185 | AA97: 41215 | AB97: -21 | AD97: 5949 | AE97: -354 | AF97: -1389 | AG97: -1886 | AH97: -237 | AI97: 2083 | AJ97: 100604 | AK97: 50439 | AM97: 4900 | AN97: -92055 | AO97: 5446 | AT97: 21.75 | AV97: 25 | AW97: 47681 | AY97: 0.8156912056 | AZ97: 85.3039756 | BA97: -8930.496424 | BE97: 31.59131392 | BF97: 1426.710849 | BG97: 36.87563437 | BH97: 14835.88851 | BJ97: 352361 | BK97: 592247 | BL97: 659 | BM97: -239227 | BN97: 193832 | BO97: 89006 | BR97: -4288 | BS97: -1182 | BT97: 38141 | BU97: 40763 | BV97: -347 | BX97: -2969 | BY97: -212 | BZ97: -175 | CA97: 1946 | CB97: -129 | CC97: -5431 | CD97: 94512 | CE97: 32612 | CG97: -1155 | CH97: -47815 | CI97: -23478 | CN97: 21.75 | CP97: 41 | CQ97: 47772 | CS97: 1.16221692 | CT97: 88.56912153 | CU97: -9330.088755 | CY97: 31.15084626 | CZ97: 1640.584443 | DA97: 39.76705424 | DB97: 15058.02562 | DD97: 338852 | DE97: 589493 | DF97: 1145 | DG97: -249496 | DH97: 200559 | DI97: 109533 | DL97: -4529 | DM97: 364 | DN97: 56431 | DO97: 44948 | DP97: 9 | DR97: 11492 | DS97: -164 | DT97: -985 | DU97: 703 | DV97: -224 | DW97: 9416 | DX97: 103057 | DY97: 51772 | EA97: -3842 | EB97: -47864 | EC97: -16561 | EH97: 21.5 | EJ97: 80 | EQ97: -53816 | ER97: 1895 | ES97: 6928 | ET97: -59559 | EU97: 395 | EV97: 3074 | EW97: -76266 | EX97: 1198 | EY97: 6735 | EZ97: 66092 | FA97: -18109 | FB97: 70300 | FC97: -8184 | FD97: 81332 | FE97: -2236 | FF97: 408593 | FG97: 353097 | FH97: 55496 | FI97: 821 | FJ97: 422894 | FK97: 354312 | FL97: 68582 | FM97: 797 | FN97: 454124 | FO97: 375834 | FP97: 78290 | FQ97: -3842 | FR97: 1730 | FS97: 1650 | FT97: 1551 | FU97: 63502 | FV97: 77772
B98: KOKO MAA (Manner-Suomi) | C98: 5488130 | E98: 1.526367982 | F98: 80.75610324 | G98: -6400.727752 | K98: 42.44390773 | L98: 1343.538692 | M98: 41.77203475 | N98: 11739.71116 | P98: 25943563 | Q98: 52927942 | R98: 66311 | S98: -26918068 | T98: 22270468 | U98: 9617527 | X98: -334759 | Y98: 102912 | Z98: 4738081 | AA98: 4281198 | AB98: -9816 | AD98: 447119 | AE98: -26068 | AF98: 17985 | AG98: -84766 | AH98: -64631 | AI98: 288815 | AJ98: 12553814 | AK98: 4083711 | AM98: -120148 | AN98: -2961293 | AO98: -2153549 | AT98: 19.87 | AV98: - | AW98: 5495408 | AY98: 1.35695111 | AZ98: 84.44733037 | BA98: -6908.850808 | BE98: 41.85903726 | BF98: 1415 | BG98: 39.9955649 | BH98: 12284.03351 | BJ98: 26773464 | BK98: 54871212 | BL98: 68648 | BM98: -28029100 | BN98: 22852554 | BO98: 9778703 | BR98: -331984 | BS98: 204608 | BT98: 4474781 | BU98: 4468740 | BV98: 339759 | BX98: 345800 | BY98: -36500 | BZ98: 24483 | CA98: 103368 | CB98: -54303 | CC98: 176111 | CD98: 12668228 | CE98: 3883613 | CG98: -198386 | CH98: -3191200 | CI98: -2947318 | CN98: 19.9 | CP98: - | CQ98: 5503664 | CS98: 1.982428854 | CT98: 84.26466376 | CU98: -7091.173262 | CY98: 42.05197956 | CZ98: 1682.390131 | DA98: 49.38402432 | DB98: 12434.63663 | DD98: 26450859 | DE98: 55390857 | DF98: 93462 | DG98: -28846536 | DH98: 23776310 | DI98: 12215170 | DL98: -355306 | DM98: 104750 | DN98: 6894388 | DO98: 4681442 | DP98: 119640 | DR98: 2332586 | DS98: -45422 | DT98: -58220 | DU98: 75433 | DV98: -68982 | DW98: 2084529 | DX98: 14696103 | DY98: 6368334 | EA98: 130334 | EB98: -3269367 | EC98: -897135 | EH98: 19.98 | EJ98: - | EQ98: -7989989 | ER98: 167734 | ES98: 1584995 | ET98: -8899040 | EU98: 189104 | EV98: 1879005 | EW98: -9180621 | EX98: 203417 | EY98: 1711735 | EZ98: 4325546 | FA98: 64935 | FB98: 5848370 | FC98: 541869 | FD98: 6260610 | FE98: -989476 | FF98: 35989235 | FG98: 30314309 | FH98: 5674926 | FI98: 1170334 | FJ98: 39046656 | FK98: 32611444 | FL98: 6435212 | FM98: 1087580 | FN98: 41172486 | FO98: 35466665 | FP98: 5705821 | FQ98: 130334 | FR98: 1508183 | FS98: 1443994 | FT98: 1487603 | FU98: 6171371 | FV98: 7234678
A99: 273 | B99: Kolari | C99: 3834 | E99: 1.885675554 | F99: 50.48599069 | G99: -3642.149191 | K99: 51.86850643 | L99: 1508.607199 | M99: 47.68073718 | N99: 11548.5133 | P99: 14698 | Q99: 39667 | R99: 0 | S99: -24969 | T99: 14808 | U99: 14322 | X99: -121 | Y99: 7 | Z99: 4047 | AA99: 2943 | AB99: 0 | AD99: 1104 | AE99: -6 | AF99: 13 | AG99: -5 | AH99: 19 | AI99: 1125 | AJ99: 14090 | AK99: 4044 | AM99: 261 | AN99: -2087 | AO99: 2424 | AT99: 20 | AV99: 20 | AW99: 3846 | AY99: 3.636065574 | AZ99: 59.94019612 | BA99: -2849.453978 | BE99: 49.24105529 | BF99: 3590.483619 | BG99: 47.43220472 | BH99: 11572.80291 | BJ99: 15744 | BK99: 41059 | BL99: 0 | BM99: -25315 | BN99: 15064 | BO99: 14674 | BR99: -79 | BS99: 9 | BT99: 4353 | BU99: 2931 | BV99: 0 | BX99: 1422 | BY99: -19 | BZ99: 1 | CA99: 10 | CB99: -48 | CC99: 1346 | CD99: 19733 | CE99: 4258 | CG99: -152 | CH99: -1137 | CI99: 2391 | CN99: 20 | CP99: 13 | CQ99: 3925 | CS99: 4.322987391 | CT99: 60.48664204 | CU99: -3541.146497 | CY99: 49.63540401 | CZ99: 2864.713376 | DA99: 79.67192111 | DB99: 13124.07643 | DD99: 14855 | DE99: 42127 | DF99: 0 | DG99: -27272 | DH99: 15074 | DI99: 16635 | DL99: -109 | DM99: 14 | DN99: 4342 | DO99: 2958 | DP99: 1 | DR99: 1385 | DS99: -19 | DT99: 0 | DU99: 13 | DV99: -34 | DW99: 1319 | DX99: 21071 | DY99: 4216 | EA99: -292 | EB99: -916 | EC99: -3175 | EH99: 20 | EJ99: 101 | EQ99: -2020 | ER99: 89 | ES99: 311 | ET99: -2211 | EU99: 29 | EV99: 315 | EW99: -7722 | EX99: 165 | EY99: 166 | EZ99: 234 | FA99: 2 | FB99: 5887 | FC99: -12 | FD99: 1154 | FE99: 16 | FF99: 9885 | FG99: 8750 | FH99: 1135 | FI99: 493 | FJ99: 14340 | FK99: 13440 | FL99: 900 | FM99: 335 | FN99: 14387 | FO99: 13609 | FP99: 778 | FQ99: -292 | FR99: 4714 | FS99: 4390 | FT99: 3697 | FU99: 327 | FV99: 385
A100: 275 | B100: Konnevesi | C100: 2698 | E100: 0.2306501548 | F100: 123.0602238 | G100: -10540.4003 | K100: 23.66749517 | L100: 915.1223128 | M100: 28.2662631 | N100: 11816.90141 | P100: 8530 | Q100: 26317 | R100: 0 | S100: -17787 | T100: 8897 | U100: 9290 | X100: 22 | Y100: -51 | Z100: 371 | AA100: 1881 | AB100: 0 | AD100: -1510 | AE100: 0 | AF100: -1 | AG100: -42 | AH100: 2 | AI100: -1551 | AJ100: 1395 | AK100: 318 | AM100: 125 | AN100: -2359 | AO100: -2044 | AT100: 22 | AV100: 267 | AW100: 2627 | AY100: -1.411419632 | AZ100: 129.4079524 | BA100: -11497.52569 | BE100: 10.79693325 | BF100: 993.9094024 | BG100: 25.24346467 | BH100: 13149.21964 | BJ100: 8378 | BK100: 30037 | BL100: 0 | BM100: -21659 | BN100: 8806 | BO100: 9047 | BR100: -195 | BS100: 158 | BT100: -3843 | BU100: 1715 | BV100: 0 | BX100: -5558 | BY100: 0 | BZ100: 0 | CA100: 27 | CB100: 4 | CC100: -5581 | CD100: -4283 | CE100: -30 | CG100: 826 | CH100: -2323 | CI100: -1756 | CN100: 22 | CP100: 294 | CQ100: 2593 | CS100: 1.143209877 | CT100: 129.6456652 | CU100: -12658.31084 | CY100: 9.028464004 | CZ100: 1131.507906 | DA100: 35.45355227 | DB100: 11649.05515 | DD100: 9093 | DE100: 25606 | DF100: 0 | DG100: -16513 | DH100: 8687 | DI100: 11091 | DL100: 24 | DM100: -261 | DN100: 3028 | DO100: 1931 | DP100: 0 | DR100: 1097 | DS100: 0 | DT100: -1 | DU100: 24 | DV100: 3 | DW100: 1075 | DX100: -5076 | DY100: -624 | EA100: -596 | EB100: -2622 | EC100: -1998 | EH100: 22 | EJ100: 85 | EQ100: -2919 | ER100: 180 | ES100: 377 | ET100: -1892 | EU100: 28 | EV100: 138 | EW100: -1500 | EX100: 3 | EY100: 123 | EZ100: 2944 | FA100: 353 | FB100: 2820 | FC100: 656 | FD100: 3884 | FE100: 2451 | FF100: 27962 | FG100: 25448 | FH100: 2514 | FI100: 0 | FJ100: 29208 | FK100: 26024 | FL100: 3184 | FM100: 0 | FN100: 32817 | FO100: 27205 | FP100: 5612 | FQ100: -596 | FR100: 6746 | FS100: 6463 | FT100: 450 | FU100: 292 | FV100: 132
A101: 276 | B101: Kontiolahti | C101: 14849 | E101: 0.3085707825 | F101: 65.98292485 | G101: -4614.452152 | K101: 33.66781766 | L101: 620.6478551 | M101: 22.61678724 | N101: 10016.29739 | P101: 52941 | Q101: 124287 | R101: 1 | S101: -71345 | T101: 49315 | U101: 24595 | X101: -700 | Y101: 136 | Z101: 2001 | AA101: 5978 | AB101: 36 | AD101: -3941 | AE101: 1 | AF101: 66 | AG101: -30 | AH101: -5 | AI101: -3909 | AJ101: 21864 | AK101: 1919 | AM101: -456 | AN101: -8116 | AO101: -12661 | AT101: 20.5 | AV101: 269 | AW101: 14821 | AY101: 0.8527436189 | AZ101: 65.04090266 | BA101: -4876.189191 | BE101: 33.10682499 | BF101: 532.4202146 | BG101: 23.0747702 | BH101: 9836.043452 | BJ101: 53386 | BK101: 124254 | BL101: 16 | BM101: -70852 | BN101: 52704 | BO101: 26053 | BR101: -755 | BS101: 304 | BT101: 7454 | BU101: 7684 | BV101: 0 | BX101: -230 | BY101: -6 | BZ101: 168 | CA101: 7 | CB101: 9 | CC101: -66 | CD101: 21496 | CE101: 6740 | CG101: 178 | CH101: -8879 | CI101: -4402 | CN101: 20.5 | CP101: 118 | CQ101: 14857 | CS101: 1.449663735 | CT101: 61.63560868 | CU101: -4249.71394 | CY101: 35.98197755 | CZ101: 1053.577438 | DA101: 39.28047439 | DB101: 9789.997981 | DD101: 53548 | DE101: 125470 | DF101: -12 | DG101: -71934 | DH101: 54019 | DI101: 31635 | DL101: -679 | DM101: 237 | DN101: 13278 | DO101: 7076 | DP101: 0 | DR101: 6202 | DS101: 2 | DT101: 5 | DU101: 56 | DV101: -12 | DW101: 6141 | DX101: 27868 | DY101: 13997 | EA101: -1261 | EB101: -8932 | EC101: 9525 | EH101: 20.5 | EJ101: 195 | EQ101: -15365 | ER101: 470 | ES101: 315 | ET101: -11777 | EU101: 78 | EV101: 557 | EW101: -10275 | EX101: 26 | EY101: 5777 | EZ101: 11325 | FA101: 6394 | FB101: 12807 | FC101: -1212 | FD101: 12467 | FE101: -3739 | FF101: 68948 | FG101: 54416 | FH101: 14532 | FI101: -1 | FJ101: 71664 | FK101: 58280 | FL101: 13384 | FM101: 20 | FN101: 71459 | FO101: 61300 | FP101: 10159 | FQ101: -1261 | FR101: 1352 | FS101: 1053 | FT101: 1053 | FU101: 10190 | FV101: 10455
A102: 280 | B102: Korsnäs | C102: 2122 | E102: 0.3651794374 | F102: 29.28290672 | G102: -2037.700283 | K102: 62.44827855 | L102: 373.7040528 | M102: 12.31628441 | N102: 11074.92931 | P102: 7689 | Q102: 20112 | R102: -2 | S102: -12425 | T102: 6638 | U102: 6535 | X102: -53 | Y102: 5 | Z102: 700 | AA102: 1342 | AB102: 0 | AD102: -642 | AE102: 0 | AF102: 0 | AG102: 0 | AH102: 0 | AI102: -642 | AJ102: 8699 | AK102: 658 | AM102: -101 | AN102: -2009 | AO102: -455 | AT102: 21 | AV102: 203 | AW102: 2077 | AY102: 3.766949153 | AZ102: 36.8297618 | BA102: -2585.941261 | BE102: 56.71248143 | BF102: 730.3803563 | BG102: 12.85165616 | BH102: 10843.52431 | BJ102: 7834 | BK102: 20861 | BL102: -3 | BM102: -13030 | BN102: 6917 | BO102: 6995 | BR102: -46 | BS102: 7 | BT102: 843 | BU102: 1585 | BV102: 0 | BX102: -742 | BY102: 0 | BZ102: 0 | CA102: 0 | CB102: 0 | CC102: -742 | CD102: 7946 | CE102: 856 | CG102: -133 | CH102: -190 | CI102: -472 | CN102: 21.5 | CP102: 158 | CQ102: 2068 | CS102: 3.772277228 | CT102: 43.17800263 | CU102: -3573.017408 | CY102: 51.87268636 | CZ102: 550.7736944 | DA102: 17.11407048 | DB102: 11746.61509 | DD102: 7893 | DE102: 21306 | DF102: -4 | DG102: -13417 | DH102: 6606 | DI102: 7540 | DL102: -39 | DM102: 30 | DN102: 720 | DO102: 1725 | DP102: 51 | DR102: -954 | DS102: 0 | DT102: 0 | DU102: 0 | DV102: 0 | DW102: -954 | DX102: 6991 | DY102: 763 | EA102: 139 | EB102: -160 | EC102: -2000 | EH102: 21.5 | EJ102: 289 | EQ102: -1311 | ER102: 139 | ES102: 59 | ET102: -1415 | EU102: 61 | EV102: 26 | EW102: -2774 | EX102: 1 | EY102: 10 | EZ102: 457 | FA102: 1209 | FB102: 1055 | FC102: 598 | FD102: 1320 | FE102: 240 | FF102: 3213 | FG102: 2672 | FH102: 541 | FI102: 1 | FJ102: 5069 | FK102: 2353 | FL102: 2716 | FM102: 1 | FN102: 6441 | FO102: 3298 | FP102: 3143 | FQ102: 139 | FR102: 1250 | FS102: 998 | FT102: 967 | FU102: 28 | FV102: 31
A103: 284 | B103: Koski tl | C103: 2340 | E103: 14.68 | F103: 25.81545511 | G103: -1167.948718 | K103: 63.35364238 | L103: 966.6666667 | M103: 32.69303873 | N103: 10792.30769 | P103: 9779 | Q103: 23670 | R103: 14 | S103: -13877 | T103: 6709 | U103: 7517 | X103: -25 | Y103: 18 | Z103: 342 | AA103: 1138 | AB103: 0 | AD103: -796 | AE103: -1 | AF103: 47 | AG103: -1 | AH103: 0 | AI103: -751 | AJ103: 4589 | AK103: 361 | AM103: 570 | AN103: 0 | AO103: -1104 | AT103: 19.5 | AV103: 262 | AW103: 2308 | AY103: 6.45323741 | AZ103: 23.74366254 | BA103: -1270.797227 | BE103: 66.04567308 | BF103: 584.9220104 | BG103: 32.58208366 | BH103: 10979.20277 | BJ103: 10108 | BK103: 23783 | BL103: 5 | BM103: -13670 | BN103: 6966 | BO103: 7581 | BR103: -24 | BS103: 20 | BT103: 873 | BU103: 1147 | BV103: 0 | BX103: -274 | BY103: 0 | BZ103: 75 | CA103: 0 | CB103: 0 | CC103: -199 | CD103: 4358 | CE103: 840 | CG103: -347 | CH103: -115 | CI103: -463 | CN103: 19.5 | CP103: 169 | CQ103: 2292 | CS103: 95.88461538 | CT103: 25.47760966 | CU103: -952.0069808 | CY103: 65.75409435 | CZ103: 1343.804538 | DA103: 43.16044074 | DB103: 11364.31065 | DD103: 10152 | DE103: 23730 | DF103: 24 | DG103: -13554 | DH103: 7535 | DI103: 8485 | DL103: -26 | DM103: 27 | DN103: 2467 | DO103: 1124 | DP103: 0 | DR103: 1343 | DS103: -2 | DT103: 1 | DU103: 0 | DV103: 0 | DW103: 1342 | DX103: 5717 | DY103: 2468 | EA103: 162 | EB103: 0 | EC103: 591 | EH103: 20 | EJ103: 109 | EQ103: -1553 | ER103: 63 | ES103: 25 | ET103: -1415 | EU103: 56 | EV103: 56 | EW103: -2285 | EX103: 317 | EY103: 91 | EZ103: 87 | FA103: 224 | FB103: 0 | FC103: 224 | FD103: 209 | FE103: 429 | FF103: 1443 | FG103: 1354 | FH103: 89 | FI103: 11 | FJ103: 1362 | FK103: 1201 | FL103: 161 | FM103: 11 | FN103: 1704 | FO103: 1324 | FP103: 380 | FQ103: 162 | FR103: 154 | FS103: 152 | FT103: 152 | FU103: 75 | FV103: 1061
A104: 285 | B104: Kotka | C104: 52883 | E104: 0.8038859245 | F104: 105.6219854 | G104: -9272.242498 | K104: 31.77268906 | L104: 2460.734073 | M104: 61.88559758 | N104: 14513.35968 | P104: 299862 | Q104: 561357 | R104: 304 | S104: -261191 | T104: 211083 | U104: 128242 | X104: -5292 | Y104: -3108 | Z104: 69734 | AA104: 59107 | AB104: 8402 | AD104: 19029 | AE104: -3087 | AF104: 0 | AG104: -3403 | AH104: -93 | AI104: 12446 | AJ104: 28173 | AK104: 63929 | AM104: -3707 | AN104: -88074 | AO104: -17811 | AT104: 21.5 | AV104: 7 | AW104: 52126 | AY104: 1.87406678 | AZ104: 88.59829652 | BA104: -9808.099605 | BE104: 38.26390488 | BF104: 1800.042205 | BG104: 58.60650155 | BH104: 15547.96071 | BJ104: 404715 | BK104: 665464 | BL104: 97 | BM104: -260652 | BN104: 216663 | BO104: 128852 | BR104: -4515 | BS104: -3162 | BT104: 77186 | BU104: 62966 | BV104: 568 | BX104: 14788 | BY104: -4320 | BZ104: 0 | CA104: 3551 | CB104: -194 | CC104: 6723 | CD104: 50093 | CE104: 70794 | CG104: -4957 | CH104: -39019 | CI104: -10927 | CN104: 21.5 | CP104: 5 | CQ104: 51668 | CS104: 3.733623982 | CT104: 81.81608454 | CU104: -9431.485639 | CY104: 40.16626431 | CZ104: 1823.836804 | DA104: 45.13845181 | DB104: 14747.96779 | DD104: 395201 | DE104: 667341 | DF104: 420 | DG104: -271720 | DH104: 223210 | DI104: 153150 | DL104: -6198 | DM104: -1152 | DN104: 97290 | DO104: 81822 | DP104: 0 | DR104: 15468 | DS104: -3567 | DT104: 0 | DU104: 2975 | DV104: 40 | DW104: 8966 | DX104: 59060 | DY104: 90005 | EA104: 9884 | EB104: -21421 | EC104: 31978 | EH104: 21.5 | EJ104: 7 | EQ104: -109379 | ER104: 458 | ES104: 27181 | ET104: -97812 | EU104: 2009 | EV104: 14082 | EW104: -65503 | EX104: 835 | EY104: 6641 | EZ104: 19232 | FA104: 65661 | FB104: 37302 | FC104: -10056 | FD104: 24058 | FE104: -39021 | FF104: 557126 | FG104: 328021 | FH104: 229105 | FI104: 1069 | FJ104: 545353 | FK104: 321569 | FL104: 223784 | FM104: 935 | FN104: 508970 | FO104: 275230 | FP104: 233740 | FQ104: 9884 | FR104: 198 | FS104: 277 | FT104: 220 | FU104: 184402 | FV104: 178949
A105: 286 | B105: Kouvola | C105: 83177 | E105: 0.5864036487 | F105: 67.65224616 | G105: -4874.592736 | K105: 37.91048741 | L105: 875.6627433 | M105: 29.00368209 | N105: 11019.87328 | P105: 313098 | Q105: 787091 | R105: 4371 | S105: -469622 | T105: 329566 | U105: 170969 | X105: -4539 | Y105: -35 | Z105: 26339 | AA105: 42700 | AB105: 0 | AD105: -16361 | AE105: -37 | AF105: 5 | AG105: -2328 | AH105: -101 | AI105: -18822 | AJ105: 51931 | AK105: 18909 | AM105: -3461 | AN105: -48375 | AO105: -47303 | AT105: 20.75 | AV105: 209 | AW105: 82113 | AY105: 0.7985167173 | AZ105: 69.02166737 | BA105: -5719.630266 | BE105: 32.97409306 | BF105: 1268.495853 | BG105: 24.61819938 | BH105: 13151.18191 | BJ105: 452012 | BK105: 937026 | BL105: 4946 | BM105: -480068 | BN105: 336516 | BO105: 173241 | BR105: -4666 | BS105: 2772 | BT105: 27795 | BU105: 40721 | BV105: 0 | BX105: -12926 | BY105: -100 | BZ105: 92 | CA105: 2944 | CB105: 131 | CC105: -15747 | CD105: 40119 | CE105: 19386 | CG105: -17745 | CH105: -36081 | CI105: -60893 | CN105: 20.75 | CP105: 189 | CQ105: 81187 | CS105: 1.832346532 | CT105: 64.07521627 | CU105: -6018.734526 | CY105: 35.22594799 | CZ105: 940.3968616 | DA105: 25.34084213 | DB105: 13545.12422 | DD105: 450343 | DE105: 942895 | DF105: 5986 | DG105: -486566 | DH105: 353191 | DI105: 214969 | DL105: -4779 | DM105: 1288 | DN105: 78103 | DO105: 45810 | DP105: 0 | DR105: 32293 | DS105: -103 | DT105: 0 | DU105: 3304 | DV105: -13 | DW105: 28873 | DX105: 68991 | DY105: 70237 | EA105: 2565 | EB105: -40287 | EC105: -18369 | EH105: 21.25 | EJ105: 146 | EQ105: -74197 | ER105: 1102 | ES105: 6883 | ET105: -101600 | EU105: 5655 | EV105: 15666 | EW105: -110372 | EX105: 2311 | EY105: 19455 | EZ105: 67854 | FA105: 7441 | FB105: 113461 | FC105: 38064 | FD105: 71105 | FE105: -37907 | FF105: 367644 | FG105: 324031 | FH105: 43613 | FI105: 5419 | FJ105: 489089 | FK105: 399608 | FL105: 89481 | FM105: 5421 | FN105: 482000 | FO105: 426644 | FP105: 55356 | FQ105: 2565 | FR105: 12449 | FS105: 10779 | FT105: 9766 | FU105: 20470 | FV105: 42111
A106: 287 | B106: Kristiinankaupunki | C106: 6596 | E106: 0.5653203137 | F106: 72.8677398 | G106: -5430.260764 | K106: 34.690725 | L106: 1073.226198 | M106: 32.94237267 | N106: 11891.29776 | P106: 22922 | Q106: 62871 | R106: 0 | S106: -39949 | T106: 23469 | U106: 20205 | X106: -484 | Y106: 95 | Z106: 3336 | AA106: 3313 | AB106: 0 | AD106: 23 | AE106: 0 | AF106: 20 | AG106: 0 | AH106: -3 | AI106: 40 | AJ106: 10681 | AK106: 2764 | AM106: -2044 | AN106: -6274 | AO106: -4090 | AT106: 21.5 | AV106: 140 | AW106: 6486 | AY106: 0.3355756001 | AZ106: 72.03467677 | BA106: -6333.64169 | BE106: 31.0229329 | BF106: 671.4461918 | BG106: 29.77300474 | BH106: 12881.28276 | BJ106: 24309 | BK106: 67543 | BL106: -5 | BM106: -43239 | BN106: 24649 | BO106: 20714 | BR106: -466 | BS106: 70 | BT106: 1728 | BU106: 3931 | BV106: -6 | BX106: -2209 | BY106: -2 | BZ106: 5 | CA106: 11 | CB106: -16 | CC106: -2233 | CD106: 8569 | CE106: 2953 | CG106: 1264 | CH106: -6074 | CI106: -5081 | CN106: 21.5 | CP106: 220 | CQ106: 6404 | CS106: 0.8333606155 | CT106: 76.16128723 | CU106: -6702.373517 | CY106: 29.21124033 | CZ106: 1230.949407 | DA106: 35.24930476 | DB106: 12746.25234 | DD106: 24967 | DE106: 67872 | DF106: -8 | DG106: -42913 | DH106: 25118 | DI106: 23002 | DL106: -417 | DM106: -118 | DN106: 4672 | DO106: 4510 | DP106: 127 | DR106: 289 | DS106: 2 | DT106: 0 | DU106: 3 | DV106: -26 | DW106: 262 | DX106: 8445 | DY106: 3876 | EA106: 552 | EB106: -5690 | EC106: -1770 | EH106: 21.5 | EJ106: 247 | EQ106: -8776 | ER106: 1303 | ES106: 619 | ET106: -9406 | EU106: 697 | EV106: 675 | EW106: -7398 | EX106: 62 | EY106: 1690 | EZ106: 15621 | FA106: 92 | FB106: 4919 | FC106: 2050 | FD106: 10844 | FE106: -1042 | FF106: 37013 | FG106: 32071 | FH106: 4942 | FI106: 3 | FJ106: 38045 | FK106: 30402 | FL106: 7643 | FM106: 3 | FN106: 42179 | FO106: 35579 | FP106: 6600 | FQ106: 552 | FR106: 1100 | FS106: 1100 | FT106: 714 | FU106: 779 | FV106: 902
A107: 288 | B107: Kruunupyy | C107: 6509 | E107: 0.8703097457 | F107: 53.00239593 | G107: -4422.184667 | K107: 29.25933202 | L107: 580.8880012 | M107: 19.59985514 | N107: 10817.63712 | P107: 26832 | Q107: 63498 | R107: 24 | S107: -36642 | T107: 23584 | U107: 16364 | X107: -346 | Y107: 144 | Z107: 3104 | AA107: 2821 | AB107: -2 | AD107: 281 | AE107: 0 | AF107: -81 | AG107: -12 | AH107: -55 | AI107: 133 | AJ107: 8720 | AK107: 3133 | AM107: 1143 | AN107: -3619 | AO107: 321 | AT107: 22 | AV107: 154 | AW107: 6428 | AY107: 0.7644563519 | AZ107: 59.26114269 | BA107: -4898.8799 | BE107: 27.78018252 | BF107: 727.7535781 | BG107: 18.54676791 | BH107: 11575.91786 | BJ107: 26781 | BK107: 63636 | BL107: 16 | BM107: -36839 | BN107: 24129 | BO107: 15950 | BR107: -307 | BS107: 175 | BT107: 3108 | BU107: 2537 | BV107: 0 | BX107: 571 | BY107: 0 | BZ107: -20 | CA107: 48 | CB107: -27 | CC107: 476 | CD107: 9174 | CE107: 2438 | CG107: -624 | CH107: -4163 | CI107: -2623 | CN107: 22 | CP107: 126 | CQ107: 6416 | CS107: 1.142725088 | CT107: 59.80580007 | CU107: -4980.985037 | CY107: 30.27254436 | CZ107: 933.2917706 | DA107: 28.93557868 | DB107: 11772.75561 | DD107: 25987 | DE107: 63402 | DF107: -3 | DG107: -37418 | DH107: 24590 | DI107: 18836 | DL107: -275 | DM107: 165 | DN107: 5898 | DO107: 2859 | DP107: 0 | DR107: 3039 | DS107: 0 | DT107: -13 | DU107: 0 | DV107: 38 | DW107: 3064 | DX107: 12003 | DY107: 5881 | EA107: -76 | EB107: -5126 | EC107: -534 | EH107: 22 | EJ107: 177 | EQ107: -2928 | ER107: 67 | ES107: 49 | ET107: -6239 | EU107: 260 | EV107: 918 | EW107: -6719 | EX107: 152 | EY107: 152 | EZ107: 4572 | FA107: -1738 | FB107: 6844 | FC107: 656 | FD107: 7362 | FE107: -764 | FF107: 25266 | FG107: 18590 | FH107: 6676 | FI107: 9 | FJ107: 28618 | FK107: 20871 | FL107: 7747 | FM107: 9 | FN107: 30091 | FO107: 23108 | FP107: 6983 | FQ107: -76 | FR107: 6418 | FS107: 6274 | FT107: 6099 | FU107: 87 | FV107: 969
A108: 290 | B108: Kuhmo | C108: 8329 | E108: 0.6280074028 | F108: 65.10972346 | G108: -4252.73142 | K108: 34.65567378 | L108: 3589.866731 | M108: 86.09373398 | N108: 15219.47413 | P108: 52066 | Q108: 108580 | R108: 0 | S108: -56514 | T108: 27788 | U108: 32246 | X108: -223 | Y108: -487 | Z108: 2810 | AA108: 4882 | AB108: -3 | AD108: -2075 | AE108: -238 | AF108: 12 | AG108: 0 | AH108: -135 | AI108: -2436 | AJ108: 6201 | AK108: 3271 | AM108: -2107 | AN108: -4619 | AO108: -8198 | AT108: 21.5 | AV108: 199 | AW108: 8190 | AY108: 1.251279769 | AZ108: 70.5241576 | BA108: -4785.714286 | BE108: 35.52930019 | BF108: 4015.384615 | BG108: 88.3841656 | BH108: 15076.67888 | BJ108: 51830 | BK108: 107746 | BL108: 0 | BM108: -55916 | BN108: 28258 | BO108: 32092 | BR108: -266 | BS108: 1173 | BT108: 5341 | BU108: 5515 | BV108: 0 | BX108: -174 | BY108: -200 | BZ108: 16 | CA108: 0 | CB108: -161 | CC108: -519 | CD108: 5639 | CE108: 4791 | CG108: 1343 | CH108: -4212 | CI108: -4398 | CN108: 21.5 | CP108: 70 | CQ108: 8042 | CS108: 1.33043654 | CT108: 69.18364079 | CU108: -4757.025616 | CY108: 34.33067084 | CZ108: 4416.31435 | DA108: 104.564146 | DB108: 15415.94131 | DD108: 54750 | DE108: 112148 | DF108: 0 | DG108: -57398 | DH108: 28886 | DI108: 35025 | DL108: -242 | DM108: 33 | DN108: 6304 | DO108: 6474 | DP108: 0 | DR108: -170 | DS108: -150 | DT108: 2 | DU108: 59 | DV108: -416 | DW108: -793 | DX108: 4846 | DY108: 6531 | EA108: -1288 | EB108: -4669 | EC108: 1183 | EH108: 22 | EJ108: 228 | EQ108: -11986 | ER108: 348 | ES108: 169 | ET108: -10252 | EU108: 276 | EV108: 787 | EW108: -5621 | EX108: 41 | EY108: 232 | EZ108: 13979 | FA108: -4266 | FB108: 12467 | FC108: -1468 | FD108: 2943 | FE108: 2998 | FF108: 55585 | FG108: 49804 | FH108: 5781 | FI108: 50 | FJ108: 62329 | FK108: 57596 | FL108: 4733 | FM108: 0 | FN108: 63601 | FO108: 56225 | FP108: 7376 | FQ108: -1288 | FR108: 695 | FS108: 552 | FT108: 432 | FU108: 818 | FV108: 1789
A109: 291 | B109: Kuhmoinen | C109: 2238 | E109: 3.972222222 | F109: 46.64687391 | G109: -2273.458445 | K109: 62.33770524 | L109: 2117.068811 | M109: 71.32010887 | N109: 10834.67382 | P109: 5042 | Q109: 21400 | R109: 0 | S109: -16358 | T109: 8040 | U109: 9822 | X109: 49 | Y109: -16 | Z109: 1537 | AA109: 1576 | AB109: 0 | AD109: -39 | AE109: 19 | AF109: 47 | AG109: -3 | AH109: -8 | AI109: 16 | AJ109: 5504 | AK109: 1546 | AM109: 673 | AN109: -360 | AO109: -678 | AT109: 20.75 | AV109: 79 | AW109: 2206 | AY109: 2.915178571 | AZ109: 49.09696651 | BA109: -2562.556664 | BE109: 60.82080963 | BF109: 1843.608341 | BG109: 71.85075185 | BH109: 10912.96464 | BJ109: 5279 | BK109: 21729 | BL109: 2 | BM109: -16448 | BN109: 8139 | BO109: 9394 | BR109: 47 | BS109: 156 | BT109: 1288 | BU109: 1677 | BV109: -5 | BX109: -394 | BY109: -4 | BZ109: 47 | CA109: 3 | CB109: -11 | CC109: -365 | CD109: 5122 | CE109: 1255 | CG109: -681 | CH109: -430 | CI109: -589 | CN109: 20.75 | CP109: 95 | CQ109: 2161 | CS109: 6.252475248 | CT109: 45.34564103 | CU109: -1935.677927 | CY109: 61.55052948 | CZ109: 2644.146229 | DA109: 86.29634227 | DB109: 11183.71124 | DD109: 5135 | DE109: 21876 | DF109: 4 | DG109: -16737 | DH109: 8757 | DI109: 10483 | DL109: 21 | DM109: -25 | DN109: 2499 | DO109: 2146 | DP109: 3 | DR109: 356 | DS109: -8 | DT109: 44 | DU109: 0 | DV109: -19 | DW109: 373 | DX109: 5452 | DY109: 2351 | EA109: -374 | EB109: -377 | EC109: 1502 | EH109: 21.75 | EJ109: 92 | EQ109: -2326 | ER109: 14 | ES109: 88 | ET109: -1855 | EU109: 3 | EV109: 8 | EW109: -1534 | EX109: 12 | EY109: 673 | EZ109: 176 | FA109: -314 | FB109: 141 | FC109: 2071 | FD109: 155 | FE109: 1409 | FF109: 7167 | FG109: 4991 | FH109: 2176 | FI109: 56 | FJ109: 8310 | FK109: 4690 | FL109: 3620 | FM109: 52 | FN109: 8690 | FO109: 4457 | FP109: 4233 | FQ109: -374 | FR109: 318 | FS109: 318 | FT109: 316 | FU109: 18 | FV109: 8
A110: 297 | B110: Kuopio | C110: 118664 | E110: 1.254984134 | F110: 90.33345919 | G110: -8121.721836 | K110: 25.92494869 | L110: 1449.344367 | M110: 39.71356984 | N110: 13320.65327 | P110: 662764 | Q110: 1232300 | R110: 952 | S110: -568584 | T110: 441274 | U110: 257328 | X110: -12075 | Y110: 5265 | Z110: 123208 | AA110: 106063 | AB110: 1379 | AD110: 18524 | AE110: -989 | AF110: -961 | AG110: -1549 | AH110: -5087 | AI110: 9938 | AJ110: 10875 | AK110: 96424 | AM110: -1648 | AN110: -95646 | AO110: -25599 | AT110: 20.5 | AV110: 22 | AW110: 119282 | AY110: 1.308068553 | AZ110: 96.63335567 | BA110: -8823.686726 | BE110: 26.6985237 | BF110: 1825.522711 | BG110: 38.42242834 | BH110: 13696.94505 | BJ110: 683752 | BK110: 1281632 | BL110: 333 | BM110: -597547 | BN110: 464000 | BO110: 265495 | BR110: -10987 | BS110: 3758 | BT110: 124719 | BU110: 116077 | BV110: 0 | BX110: 8642 | BY110: -2694 | BZ110: -95 | CA110: 3003 | CB110: -4420 | CC110: -1570 | CD110: 10746 | CE110: 101266 | CG110: -2069 | CH110: -92597 | CI110: -77983 | CN110: 20.5 | CP110: 16 | CQ110: 120210 | CS110: 1.995359094 | CT110: 104.6350415 | CU110: -8955.070294 | CY110: 26.84505724 | CZ110: 2469.985858 | DA110: 70.35513943 | DB110: 12814.20015 | DD110: 588201 | DE110: 1212592 | DF110: 2504 | DG110: -621887 | DH110: 486187 | DI110: 314359 | DL110: -12498 | DM110: 2725 | DN110: 168886 | DO110: 117094 | DP110: 610 | DR110: 52402 | DS110: -2707 | DT110: 368 | DU110: 2770 | DV110: -1585 | DW110: 45708 | DX110: 54399 | DY110: 155548 | EA110: 947 | EB110: -78163 | EC110: -28739 | EH110: 20.75 | EJ110: 34 | EQ110: -238526 | ER110: 2632 | ES110: 113871 | ET110: -247356 | EU110: 2768 | EV110: 65339 | EW110: -236447 | EX110: 2949 | EY110: 49211 | EZ110: 121417 | FA110: -24014 | FB110: 212516 | FC110: 262 | FD110: 174239 | FE110: -4214 | FF110: 955659 | FG110: 868669 | FH110: 86990 | FI110: 502 | FJ110: 1075929 | FK110: 984837 | FL110: 91092 | FM110: 502 | FN110: 1167789 | FO110: 1056540 | FP110: 111249 | FQ110: 947 | FR110: 10653 | FS110: 9609 | FT110: 8601 | FU110: 188151 | FV110: 147742
A111: 300 | B111: Kuortane | C111: 3572 | E111: 4.705544933 | F111: 36.7685045 | G111: -4178.331467 | K111: 45.61927418 | L111: 798.712206 | M111: 18.04726088 | N111: 16153.69541 | P111: 31144 | Q111: 53821 | R111: -13 | S111: -22690 | T111: 10776 | U111: 14215 | X111: -57 | Y111: 122 | Z111: 2366 | AA111: 1964 | AB111: 0 | AD111: 402 | AE111: -2 | AF111: -8 | AG111: 0 | AH111: 0 | AI111: 392 | AJ111: 3484 | AK111: 2332 | AM111: 203 | AN111: -428 | AO111: -835 | AT111: 21 | AV111: 88 | AW111: 3551 | AY111: 2.348897536 | AZ111: 44.33740892 | BA111: -5245.001408 | BE111: 40.45013564 | BF111: 983.384962 | BG111: 16.79507758 | BH111: 17368.91017 | BJ111: 31490 | BK111: 54906 | BL111: -13 | BM111: -23429 | BN111: 11113 | BO111: 14076 | BR111: -141 | BS111: 23 | BT111: 1642 | BU111: 2158 | BV111: 0 | BX111: -516 | BY111: 7 | BZ111: 41 | CA111: 0 | CB111: 0 | CC111: -468 | CD111: 3068 | CE111: 1634 | CG111: -120 | CH111: -602 | CI111: -4032 | CN111: 21 | CP111: 136 | CQ111: 3534 | CS111: 3.470187394 | CT111: 43.77117933 | CU111: -5630.447085 | CY111: 41.4487934 | CZ111: 891.3412564 | DA111: 18.49096962 | DB111: 17594.51047 | DD111: 32497 | DE111: 55581 | DF111: -21 | DG111: -23105 | DH111: 11546 | DI111: 15567 | DL111: -136 | DM111: 48 | DN111: 3920 | DO111: 2369 | DP111: 0 | DR111: 1551 | DS111: -2 | DT111: 17 | DU111: 0 | DV111: -27 | DW111: 1539 | DX111: 4630 | DY111: 3809 | EA111: 38 | EB111: -1020 | EC111: -1293 | EH111: 21 | EJ111: 99 | EQ111: -3292 | ER111: 32 | ES111: 93 | ET111: -5937 | EU111: 205 | EV111: 66 | EW111: -5386 | EX111: 207 | EY111: 77 | EZ111: 5933 | FA111: -5087 | FB111: 2100 | FC111: 1914 | FD111: 1668 | FE111: 1032 | FF111: 15534 | FG111: 13008 | FH111: 2526 | FI111: 1549 | FJ111: 18597 | FK111: 14180 | FL111: 4417 | FM111: 1542 | FN111: 20346 | FO111: 14888 | FP111: 5458 | FQ111: 38 | FR111: 1570 | FS111: 1462 | FT111: 1627 | FU111: 2706 | FV111: 5628
A112: 301 | B112: Kurikka | C112: 20952 | E112: 1.086107412 | F112: 77.99454322 | G112: -5060.710195 | K112: 39.16061143 | L112: 2665.759832 | M112: 80.94894815 | N112: 12019.95036 | P112: 92967 | Q112: 216865 | R112: 24 | S112: -123874 | T112: 63772 | U112: 67569 | X112: -1026 | Y112: 9491 | Z112: 15932 | AA112: 14631 | AB112: 0 | AD112: 1301 | AE112: 48 | AF112: -40 | AG112: -190 | AH112: -39 | AI112: 1080 | AJ112: 22823 | AK112: 15608 | AM112: 2014 | AN112: -14574 | AO112: -2012 | AT112: 21 | AV112: 59 | AW112: 20678 | AY112: 0.7581292034 | AZ112: 78.3212132 | BA112: -5264.822517 | BE112: 36.59342864 | BF112: 2635.216172 | BG112: 79.71218436 | BH112: 12368.41087 | BJ112: 93292 | BK112: 224243 | BL112: 17 | BM112: -130934 | BN112: 64910 | BO112: 67318 | BR112: -1041 | BS112: 10817 | BT112: 11070 | BU112: 23222 | BV112: -6 | BX112: -12158 | BY112: 309 | BZ112: -280 | CA112: 171 | CB112: 47 | CC112: -12253 | CD112: 10327 | CE112: 10562 | CG112: 2384 | CH112: -14990 | CI112: -2172 | CN112: 21 | CP112: 110 | CQ112: 20456 | CS112: 1.323221314 | CT112: 77.64762796 | CU112: -5021.31404 | CY112: 38.13937329 | CZ112: 2826.310129 | DA112: 85.96973487 | DB112: 11999.60892 | DD112: 79340 | DE112: 213843 | DF112: 3 | DG112: -134500 | DH112: 67889 | DI112: 76018 | DL112: -716 | DM112: 12236 | DN112: 20927 | DO112: 15583 | DP112: 0 | DR112: 5344 | DS112: -12 | DT112: 0 | DU112: 132 | DV112: -45 | DW112: 5155 | DX112: 15370 | DY112: 20094 | EA112: 3427 | EB112: -15589 | EC112: 6856 | EH112: 21 | EJ112: 122 | EQ112: -18920 | ER112: 63 | ES112: 1237 | ET112: -15095 | EU112: 130 | EV112: 2231 | EW112: -14990 | EX112: 133 | EY112: 1619 | EZ112: 5193 | FA112: 6715 | FB112: 18093 | FC112: -692 | FD112: 13416 | FE112: -3120 | FF112: 134854 | FG112: 106738 | FH112: 28116 | FI112: 104 | FJ112: 137265 | FK112: 108740 | FL112: 28525 | FM112: 10 | FN112: 131971 | FO112: 106164 | FP112: 25807 | FQ112: 3427 | FR112: 15584 | FS112: 14215 | FT112: 26297 | FU112: 7285 | FV112: 8474
A113: 304 | B113: Kustavi | C113: 926 | E113: 1.813333333 | F113: 44.85600133 | G113: -3317.4946 | K113: 58.96115362 | L113: 1579.913607 | M113: 44.53669725 | N113: 12948.16415 | P113: 5242 | Q113: 11053 | R113: 0 | S113: -5811 | T113: 4469 | U113: 2303 | X113: -53 | Y113: -9 | Z113: 899 | AA113: 588 | AB113: 0 | AD113: 311 | AE113: 0 | AF113: 21 | AG113: 0 | AH113: 0 | AI113: 332 | AJ113: 3761 | AK113: 901 | AM113: 114 | AN113: -472 | AO113: 533 | AT113: 18.75 | AV113: 28 | AW113: 949 | AY113: 1.310139165 | AZ113: 51.55107188 | BA113: -3713.382508 | BE113: 56.066713 | BF113: 1778.714436 | BG113: 41.55367232 | BH113: 13615.38462 | BJ113: 5180 | BK113: 11240 | BL113: 3 | BM113: -6057 | BN113: 4583 | BO113: 2132 | BR113: -50 | BS113: 1 | BT113: 609 | BU113: 586 | BV113: 0 | BX113: 23 | BY113: 0 | BZ113: 23 | CA113: 0 | CB113: 0 | CC113: 46 | CD113: 3810 | CE113: 606 | CG113: -73 | CH113: -453 | CI113: -455 | CN113: 18.5 | CP113: 76 | CQ113: 962 | CS113: 1.774626866 | CT113: 48.15261044 | CU113: -3518.711019 | CY113: 58.1505551 | CZ113: 1581.081081 | DA113: 42.82689192 | DB113: 13475.05198 | DD113: 5376 | DE113: 11266 | DF113: 3 | DG113: -5887 | DH113: 4651 | DI113: 2423 | DL113: -50 | DM113: 2 | DN113: 1139 | DO113: 613 | DP113: 0 | DR113: 526 | DS113: -1 | DT113: -461 | DU113: 0 | DV113: 0 | DW113: 64 | DX113: 3875 | DY113: 1123 | EA113: -152 | EB113: -620 | EC113: 189 | EH113: 18.25 | EJ113: 78 | EQ113: -390 | ER113: 18 | ES113: 4 | ET113: -1171 | EU113: 52 | EV113: 58 | EW113: -1017 | EX113: 31 | EY113: 52 | EZ113: 103 | FA113: -4 | FB113: 785 | FC113: 41 | FD113: 883 | FE113: 72 | FF113: 4012 | FG113: 3647 | FH113: 365 | FI113: 0 | FJ113: 4399 | FK113: 3914 | FL113: 485 | FM113: 0 | FN113: 4763 | FO113: 4128 | FP113: 635 | FQ113: -152 | FR113: 1484 | FS113: 1325 | FT113: 1313 | FU113: 839 | FV113: 911
A114: 305 | B114: Kuusamo | C114: 15207 | E114: 0.5417534861 | F114: 56.97106038 | G114: -2112.382455 | K114: 49.86128876 | L114: 2405.668442 | M114: 82.22873277 | N114: 10678.3718 | P114: 48008 | Q114: 137406 | R114: 4 | S114: -89394 | T114: 51130 | U114: 44886 | X114: -716 | Y114: 113 | Z114: 6019 | AA114: 7343 | AB114: 511 | AD114: -813 | AE114: -8 | AF114: 412 | AG114: -21 | AH114: -92 | AI114: -522 | AJ114: 21569 | AK114: 5752 | AM114: -3332 | AN114: -11737 | AO114: -3692 | AT114: 20 | AV114: 183 | AW114: 15134 | AY114: 0.9076144522 | AZ114: 51.93641795 | BA114: -2351.06383 | BE114: 51.82249529 | BF114: 1951.235628 | BG114: 83.45236086 | BH114: 10572.55187 | BJ114: 49253 | BK114: 141442 | BL114: 5 | BM114: -92184 | BN114: 52485 | BO114: 45725 | BR114: -603 | BS114: 1671 | BT114: 7094 | BU114: 7698 | BV114: 0 | BX114: -604 | BY114: -11 | BZ114: 474 | CA114: 46 | CB114: -45 | CC114: -232 | CD114: 21275 | CE114: 6840 | CG114: 1868 | CH114: -7879 | CI114: -2753 | CN114: 20 | CP114: 131 | CQ114: 15213 | CS114: 1.717723707 | CT114: 52.27575688 | CU114: -2661.539473 | CY114: 50.9310536 | CZ114: 1894.629593 | DA114: 62.28734584 | DB114: 11102.41241 | DD114: 50810 | DE114: 143261 | DF114: 9 | DG114: -92442 | DH114: 53771 | DI114: 51455 | DL114: -571 | DM114: 118 | DN114: 12331 | DO114: 10096 | DP114: 0 | DR114: 2235 | DS114: -13 | DT114: 837 | DU114: 29 | DV114: -75 | DW114: 2955 | DX114: 24173 | DY114: 11819 | EA114: -1085 | EB114: -6933 | EC114: -3902 | EH114: 20 | EJ114: 218 | EQ114: -11481 | ER114: 843 | ES114: 1194 | ET114: -9825 | EU114: 45 | EV114: 187 | EW114: -18015 | EX114: 1595 | EY114: 699 | EZ114: 16369 | FA114: 95 | FB114: 2314 | FC114: 174 | FD114: 11610 | FE114: -475 | FF114: 60037 | FG114: 52016 | FH114: 8021 | FI114: 544 | FJ114: 54630 | FK114: 47095 | FL114: 7535 | FM114: 528 | FN114: 58817 | FO114: 48474 | FP114: 10343 | FQ114: -1085 | FR114: 2189 | FS114: 1855 | FT114: 1535 | FU114: 2582 | FV114: 2438
A115: 312 | B115: Kyyjärvi | C115: 1343 | E115: 0.8137755102 | F115: 103.7884243 | G115: -8068.503351 | K115: 18.02380747 | L115: 4903.201787 | M115: 117.376813 | N115: 15247.20774 | P115: 9522 | Q115: 18191 | R115: 0 | S115: -8669 | T115: 4384 | U115: 4149 | X115: -11 | Y115: 445 | Z115: 298 | AA115: 2383 | AB115: 0 | AD115: -2085 | AE115: 492 | AF115: 0 | AG115: 0 | AH115: 0 | AI115: -1593 | AJ115: -1867 | AK115: 304 | AM115: -157 | AN115: -371 | AO115: -1378 | AT115: 21.75 | AV115: 245 | AW115: 1313 | AY115: -4.13372093 | AZ115: 99.99467717 | BA115: -8412.795126 | BE115: 8.627535606 | BF115: 5382.330541 | BG115: 108.0333064 | BH115: 16944.40213 | BJ115: 10030 | BK115: 20690 | BL115: 0 | BM115: -10660 | BN115: 4415 | BO115: 4342 | BR115: -11 | BS115: 473 | BT115: -1441 | BU115: 1223 | BV115: 196 | BX115: -2468 | BY115: 38 | BZ115: 0 | CA115: 0 | CB115: 0 | CC115: -2430 | CD115: -4186 | CE115: 236 | CG115: 749 | CH115: -325 | CI115: -301 | CN115: 21.75 | CP115: 291 | CQ115: 1288 | CS115: 5.078947368 | CT115: 110.433081 | CU115: -9803.571429 | CY115: 3.042814828 | CZ115: 6100.931677 | DA115: 147.760033 | DB115: 15070.65217 | DD115: 9632 | DE115: 18115 | DF115: 0 | DG115: -8483 | DH115: 4657 | DI115: 5130 | DL115: 36 | DM115: 185 | DN115: 1525 | DO115: 2889 | DP115: 0 | DR115: -1364 | DS115: 448 | DT115: -3 | DU115: 0 | DV115: 0 | DW115: -919 | DX115: -5004 | DY115: -729 | EA115: -192 | EB115: -285 | EC115: -1616 | EH115: 22.5 | EJ115: 77 | EQ115: -1758 | ER115: 33 | ES115: 43 | ET115: -1247 | EU115: 0 | EV115: 710 | EW115: -956 | EX115: 0 | EY115: 69 | EZ115: 760 | FA115: 1147 | FB115: 1140 | FC115: -386 | FD115: 236 | FE115: 2625 | FF115: 16518 | FG115: 5004 | FH115: 11514 | FI115: 65 | FJ115: 16990 | FK115: 5914 | FL115: 11076 | FM115: 65 | FN115: 19608 | FO115: 5948 | FP115: 13660 | FQ115: -192 | FR115: 2352 | FS115: 2318 | FT115: 78 | FU115: 3953 | FV115: 3707
A116: 316 | B116: Kärkölä | C116: 4451 | E116: 1.062275449 | F116: 32.63086754 | G116: -2017.973489 | K116: 40.90830119 | L116: 902.7184902 | M116: 29.32788065 | N116: 11234.7787 | P116: 25304 | Q116: 47952 | R116: -2 | S116: -22650 | T116: 15663 | U116: 7861 | X116: -142 | Y116: 11 | Z116: 743 | AA116: 1482 | AB116: 173 | AD116: -566 | AE116: -4 | AF116: 0 | AG116: -1 | AH116: -2 | AI116: -573 | AJ116: 1275 | AK116: 901 | AM116: 800 | AN116: -691 | AO116: -228 | AT116: 21.75 | AV116: 255 | AW116: 4368 | AY116: 1.309927361 | AZ116: 51.33844164 | BA116: -3235.119048 | BE116: 30.18783777 | BF116: 2002.06044 | BG116: 25.99517876 | BH116: 12915.97985 | BJ116: 25747 | BK116: 49311 | BL116: 8 | BM116: -23556 | BN116: 15837 | BO116: 8661 | BR116: -131 | BS116: 137 | BT116: 948 | BU116: 1508 | BV116: -26 | BX116: -586 | BY116: -8 | BZ116: 0 | CA116: 7 | CB116: 0 | CC116: -601 | CD116: 921 | CE116: 696 | CG116: 13 | CH116: -692 | CI116: -5325 | CN116: 22 | CP116: 235 | CQ116: 4326 | CS116: 9.616363636 | CT116: 44.99237039 | CU116: -3059.87055 | CY116: 37.71575377 | CZ116: 1848.821082 | DA116: 53.98956927 | DB116: 12499.07536 | DD116: 25944 | DE116: 48606 | DF116: 2 | DG116: -22660 | DH116: 17228 | DI116: 10566 | DL116: -44 | DM116: 154 | DN116: 5244 | DO116: 1599 | DP116: 0 | DR116: 3645 | DS116: -5 | DT116: 0 | DU116: 4 | DV116: 0 | DW116: 3636 | DX116: 4545 | DY116: 5156 | EA116: 9 | EB116: -505 | EC116: 961 | EH116: 22 | EJ116: 71 | EQ116: -1188 | ER116: 6 | ES116: 53 | ET116: -6253 | EU116: 2 | EV116: 230 | EW116: -4898 | EX116: 604 | EY116: 99 | EZ116: 26 | FA116: 0 | FB116: 8 | FC116: 10003 | FD116: 6000 | FE116: -6505 | FF116: 9321 | FG116: 8629 | FH116: 692 | FI116: 49 | FJ116: 18638 | FK116: 8076 | FL116: 10562 | FM116: 43 | FN116: 17628 | FO116: 12896 | FP116: 4732 | FQ116: 9 | FR116: 863 | FS116: 822 | FT116: 805 | FU116: 15713 | FV116: 15196
A117: 317 | B117: Kärsämäki | C117: 2613 | E117: 1.054011536 | F117: 68.25468342 | G117: -4100.650593 | K117: 29.76564561 | L117: 4514.734022 | M117: 96.83589709 | N117: 17017.22158 | P117: 22956 | Q117: 40419 | R117: 1 | S117: -17462 | T117: 6977 | U117: 12237 | X117: -76 | Y117: 235 | Z117: 1911 | AA117: 1528 | AB117: 189 | AD117: 572 | AE117: -1 | AF117: -5 | AG117: -4 | AH117: -1 | AI117: 561 | AJ117: 5675 | AK117: 1821 | AM117: -3591 | AN117: -1808 | AO117: 889 | AT117: 21.5 | AV117: 67 | AW117: 2576 | AY117: 1.732550554 | AZ117: 64.95252971 | BA117: -4612.57764 | BE117: 32.58787532 | BF117: 4681.677019 | BG117: 90.93243358 | BH117: 18293.47826 | BJ117: 21843 | BK117: 38943 | BL117: 1 | BM117: -17099 | BN117: 7458 | BO117: 11672 | BR117: -108 | BS117: 614 | BT117: 2537 | BU117: 1824 | BV117: 0 | BX117: 713 | BY117: 0 | BZ117: -1 | CA117: 6 | CB117: -1 | CC117: 705 | CD117: 6633 | CE117: 2517 | CG117: 3570 | CH117: -1414 | CI117: -3390 | CN117: 21.5 | CP117: 23 | CQ117: 2538 | CS117: 1.90848329 | CT117: 65.76171415 | CU117: -4604.806935 | CY117: 34.23106315 | CZ117: 5414.499606 | DA117: 110.3641524 | DB117: 17907.0134 | DD117: 22652 | DE117: 39672 | DF117: 3 | DG117: -17017 | DH117: 6983 | DI117: 12835 | DL117: -126 | DM117: 899 | DN117: 3574 | DO117: 1864 | DP117: 0 | DR117: 1710 | DS117: -1 | DT117: -9 | DU117: 3 | DV117: -2 | DW117: 1695 | DX117: 8303 | DY117: 3436 | EA117: 171 | EB117: -1807 | EC117: 230 | EH117: 21.5 | EJ117: 32 | EQ117: -1661 | ER117: 174 | ES117: 555 | ET117: -6095 | EU117: 166 | EV117: 22 | EW117: -3609 | EX117: 5 | EY117: 398 | EZ117: 251 | FA117: 553 | FB117: 3601 | FC117: 842 | FD117: 6316 | FE117: -3408 | FF117: 19560 | FG117: 13657 | FH117: 5903 | FI117: 92 | FJ117: 20990 | FK117: 14434 | FL117: 6556 | FM117: 101 | FN117: 22270 | FO117: 19449 | FP117: 2821 | FQ117: 171 | FR117: 2620 | FS117: 2008 | FT117: 1908 | FU117: 435 | FV117: 844
A118: 398 | B118: Lahti | C118: 119951 | E118: 1.739247366 | F118: 107.7171199 | G118: -9820.093205 | K118: 30.35301193 | L118: 1199.122975 | M118: 34.54674788 | N118: 12669.20659 | P118: 630995 | Q118: 1145546 | R118: -11 | S118: -514562 | T118: 460249 | U118: 225413 | X118: -17345 | Y118: 1125 | Z118: 154880 | AA118: 127681 | AB118: 3106 | AD118: 30305 | AE118: -43 | AF118: -122 | AG118: -6640 | AH118: -3619 | AI118: 19881 | AJ118: 182621 | AK118: 128155 | AM118: 10732 | AN118: -80939 | AO118: -100698 | AT118: 20.75 | AV118: 9 | AW118: 119823 | AY118: 1.704147979 | AZ118: 109.9309633 | BA118: -10623.91194 | BE118: 30.25594983 | BF118: 652.2704322 | BG118: 34.5375208 | BH118: 12686.12871 | BJ118: 616971 | BK118: 1177824 | BL118: -9 | BM118: -560862 | BN118: 471650 | BO118: 229519 | BR118: -19610 | BS118: 2811 | BT118: 123508 | BU118: 117359 | BV118: -414 | BX118: 5735 | BY118: -894 | BZ118: -3 | CA118: 5493 | CB118: -2397 | CC118: -3052 | CD118: 176963 | CE118: 113629 | CG118: -1459 | CH118: -64161 | CI118: -97853 | CN118: 20.75 | CP118: 17 | CQ118: 119984 | CS118: 2.492746696 | CT118: 111.1405172 | CU118: -10603.40545 | CY118: 31.68039854 | CZ118: 1145.194359 | DA118: 30.97635492 | DB118: 13494.03254 | DD118: 569747 | DE118: 1144103 | DF118: -763 | DG118: -575119 | DH118: 500220 | DI118: 281981 | DL118: -18851 | DM118: 1111 | DN118: 189342 | DO118: 123654 | DP118: 18297 | DR118: 83985 | DS118: -126 | DT118: -138 | DU118: 1471 | DV118: -4688 | DW118: 77562 | DX118: 249993 | DY118: 201625 | EA118: 6056 | EB118: -64420 | EC118: 6009 | EH118: 20.75 | EJ118: 18 | EQ118: -272918 | ER118: 653 | ES118: 43412 | ET118: -253956 | EU118: 628 | EV118: 41846 | EW118: -386831 | EX118: 1383 | EY118: 189832 | EZ118: 171747 | FA118: -27422 | FB118: 95691 | FC118: 16 | FD118: 106057 | FE118: 8894 | FF118: 1161404 | FG118: 1097740 | FH118: 63664 | FI118: 23791 | FJ118: 1192951 | FK118: 1130329 | FL118: 62622 | FM118: 23246 | FN118: 1243522 | FO118: 1176487 | FP118: 67035 | FQ118: 6056 | FR118: 0 | FS118: 0 | FT118: 0 | FU118: 84444 | FV118: 287536
A119: 399 | B119: Laihia | C119: 8058 | E119: 0.4951984635 | F119: 81.03203585 | G119: -5371.556217 | K119: 24.95247013 | L119: 340.7793497 | M119: 14.13966283 | N119: 8796.847853 | P119: 18535 | Q119: 61225 | R119: 0 | S119: -42690 | T119: 29126 | U119: 15050 | X119: -243 | Y119: 59 | Z119: 1302 | AA119: 3075 | AB119: 0 | AD119: -1773 | AE119: 20 | AF119: 0 | AG119: 0 | AH119: -12 | AI119: -1765 | AJ119: -2078 | AK119: 1077 | AM119: -1984 | AN119: -2879 | AO119: -2799 | AT119: 21.75 | AV119: 258 | AW119: 8017 | AY119: 0.7491049298 | AZ119: 81.62308108 | BA119: -5608.082824 | BE119: 24.55683511 | BF119: 539.7280778 | BG119: 14.18047283 | BH119: 8816.390171 | BJ119: 18570 | BK119: 62208 | BL119: 0 | BM119: -43638 | BN119: 30654 | BO119: 15591 | BR119: -234 | BS119: 112 | BT119: 2485 | BU119: 3188 | BV119: 0 | BX119: -703 | BY119: 26 | BZ119: 0 | CA119: 0 | CB119: -58 | CC119: -735 | CD119: -2864 | CE119: 2140 | CG119: 1168 | CH119: -3396 | CI119: -2378 | CN119: 21.75 | CP119: 207 | CQ119: 7996 | CS119: 1.621621622 | CT119: 73.22770054 | CU119: -5443.846923 | CY119: 27.35555958 | CZ119: 494.6223112 | DA119: 20.27606888 | DB119: 8903.951976 | DD119: 19000 | DE119: 63756 | DF119: 0 | DG119: -44756 | DH119: 31213 | DI119: 19273 | DL119: -207 | DM119: 86 | DN119: 5609 | DO119: 3533 | DP119: 125 | DR119: 2201 | DS119: 23 | DT119: 0 | DU119: 38 | DV119: -13 | DW119: 2173 | DX119: -841 | DY119: 5489 | EA119: 219 | EB119: -3378 | EC119: 1807 | EH119: 21.75 | EJ119: 257 | EQ119: -6481 | ER119: 233 | ES119: 2372 | ET119: -4784 | EU119: 60 | EV119: 206 | EW119: -3792 | EX119: 8 | EY119: 102 | EZ119: 6505 | FA119: 1816 | FB119: 4142 | FC119: 1535 | FD119: 3002 | FE119: -1420 | FF119: 40881 | FG119: 28465 | FH119: 12416 | FI119: 2 | FJ119: 43163 | FK119: 28868 | FL119: 14295 | FM119: 36 | FN119: 41379 | FO119: 28491 | FP119: 12888 | FQ119: 219 | FR119: 23 | FS119: 22 | FT119: 20 | FU119: 554 | FV119: 627
A120: 400 | B120: Laitila | C120: 8647 | E120: 4.985815603 | F120: 68.70440137 | G120: -5372.961721 | K120: 38.78365858 | L120: 708.338152 | M120: 23.64414667 | N120: 10934.77507 | P120: 38494 | Q120: 83775 | R120: 23 | S120: -45258 | T120: 29006 | U120: 20359 | X120: -181 | Y120: 57 | Z120: 3983 | AA120: 4746 | AB120: 0 | AD120: -763 | AE120: -107 | AF120: 0 | AG120: -40 | AH120: 9 | AI120: -901 | AJ120: 8207 | AK120: 2739 | AM120: -173 | AN120: -611 | AO120: -3767 | AT120: 20.5 | AV120: 158 | AW120: 8588 | AY120: 0.918441141 | AZ120: 71.74160437 | BA120: -6004.774103 | BE120: 37.43043589 | BF120: 584.5365626 | BG120: 22.99150529 | BH120: 11322.42664 | BJ120: 39072 | BK120: 87243 | BL120: -72 | BM120: -48243 | BN120: 30346 | BO120: 20212 | BR120: -243 | BS120: -35 | BT120: 2037 | BU120: 4917 | BV120: 0 | BX120: -2880 | BY120: -103 | BZ120: 0 | CA120: 43 | CB120: 60 | CC120: -2966 | CD120: 5194 | CE120: 1968 | CG120: 65 | CH120: -2240 | CI120: -5275 | CN120: 20.75 | CP120: 231 | CQ120: 8468 | CS120: 2.516770186 | CT120: 68.35018627 | CU120: -6111.478507 | CY120: 39.37045297 | CZ120: 589.8677374 | DA120: 18.73843735 | DB120: 11489.84412 | DD120: 38935 | DE120: 85921 | DF120: 26 | DG120: -46960 | DH120: 30985 | DI120: 24030 | DL120: -252 | DM120: 41 | DN120: 7844 | DO120: 4980 | DP120: 0 | DR120: 2864 | DS120: -114 | DT120: 0 | DU120: 46 | DV120: 15 | DW120: 2719 | DX120: 8652 | DY120: 7641 | EA120: 245 | EB120: -2960 | EC120: 41 | EH120: 20.75 | EJ120: 174 | EQ120: -9903 | ER120: 2175 | ES120: 1222 | ET120: -7429 | EU120: 21 | EV120: 165 | EW120: -8044 | EX120: 53 | EY120: 391 | EZ120: 10059 | FA120: -1438 | FB120: 33 | FC120: 5759 | FD120: 10093 | FE120: -8100 | FF120: 35307 | FG120: 20432 | FH120: 14875 | FI120: 389 | FJ120: 47681 | FK120: 26969 | FL120: 20712 | FM120: 434 | FN120: 46736 | FO120: 33062 | FP120: 13674 | FQ120: 245 | FR120: 2030 | FS120: 1682 | FT120: 1805 | FU120: 422 | FV120: 422
A121: 407 | B121: Lapinjärvi | C121: 2665 | E121: 0.4 | F121: 82.24217294 | G121: -7038.649156 | K121: 23.56705718 | L121: 482.1763602 | M121: 14.67675314 | N121: 11991.36961 | P121: 10533 | Q121: 26313 | R121: -2 | S121: -15782 | T121: 8438 | U121: 7316 | X121: -111 | Y121: 839 | Z121: 700 | AA121: 1525 | AB121: 0 | AD121: -825 | AE121: 0 | AF121: -1 | AG121: 0 | AH121: -1 | AI121: -827 | AJ121: -2173 | AK121: 562 | AM121: -302 | AN121: -1216 | AO121: -3598 | AT121: 20.5 | AV121: 237 | AW121: 2606 | AY121: 0.3 | AZ121: 88.34640326 | BA121: -7712.202609 | BE121: 20.26944895 | BF121: 684.9577897 | BG121: 15.08652578 | BH121: 11929.77744 | BJ121: 10402 | BK121: 26443 | BL121: 2 | BM121: -16039 | BN121: 8820 | BO121: 7302 | BR121: -115 | BS121: 820 | BT121: 788 | BU121: 1502 | BV121: 0 | BX121: -714 | BY121: -3 | BZ121: 0 | CA121: 0 | CB121: 0 | CC121: -717 | CD121: -2890 | CE121: 801 | CG121: 26 | CH121: -1264 | CI121: -1367 | CN121: 20.5 | CP121: 209 | CQ121: 2621 | CS121: 2.057553957 | CT121: 76.44707048 | CU121: -6323.922167 | CY121: 26.28497953 | CZ121: 1362.075544 | DA121: 45.71784436 | DB121: 10874.47539 | DD121: 10842 | DE121: 25768 | DF121: 0 | DG121: -14926 | DH121: 8743 | DI121: 8679 | DL121: -106 | DM121: 932 | DN121: 3322 | DO121: 1556 | DP121: 0 | DR121: 1766 | DS121: -1 | DT121: 0 | DU121: 0 | DV121: 0 | DW121: 1765 | DX121: -1124 | DY121: 3565 | EA121: 87 | EB121: -1558 | EC121: 3336 | EH121: 21 | EJ121: 59 | EQ121: -4277 | ER121: 6 | ES121: 111 | ET121: -3224 | EU121: 28 | EV121: 1028 | EW121: -1022 | EX121: 26 | EY121: 767 | EZ121: 4211 | FA121: 21 | FB121: 2990 | FC121: 140 | FD121: 533 | FE121: -267 | FF121: 17716 | FG121: 13442 | FH121: 4274 | FI121: 0 | FJ121: 19582 | FK121: 15168 | FL121: 4414 | FM121: 0 | FN121: 18290 | FO121: 14127 | FP121: 4163 | FQ121: 87 | FR121: 204 | FS121: 165 | FT121: 130 | FU121: 1323 | FV121: 1444
A122: 402 | B122: Lapinlahti | C122: 9617 | E122: 0.7802491103 | F122: 70.65219634 | G122: -6065.301029 | K122: 34.26874838 | L122: 490.3816159 | M122: 16.43487975 | N122: 10890.81834 | P122: 35029 | Q122: 91782 | R122: 130 | S122: -56623 | T122: 29062 | U122: 32843 | X122: -537 | Y122: 842 | Z122: 5587 | AA122: 6029 | AB122: -116 | AD122: -558 | AE122: 65 | AF122: 10 | AG122: -27 | AH122: 27 | AI122: -483 | AJ122: -276 | AK122: 5389 | AM122: 777 | AN122: -7316 | AO122: 804 | AT122: 21.25 | AV122: 120 | AW122: 9485 | AY122: 1.15 | AZ122: 70.89836799 | BA122: -6367.105957 | BE122: 34.0439068 | BF122: 451.6605166 | BG122: 16.09089889 | BH122: 11278.43964 | BJ122: 35638 | BK122: 93365 | BL122: 179 | BM122: -57548 | BN122: 30072 | BO122: 32635 | BR122: -507 | BS122: 890 | BT122: 5542 | BU122: 6125 | BV122: 0 | BX122: -583 | BY122: 22 | BZ122: 1 | CA122: 42 | CB122: -36 | CC122: -638 | CD122: -891 | CE122: 5513 | CG122: 399 | CH122: -4750 | CI122: -2433 | CN122: 21.25 | CP122: 94 | CQ122: 9358 | CS122: 1.758194418 | CT122: 71.54597806 | CU122: -6604.723231 | CY122: 34.12636775 | CZ122: 787.0271426 | DA122: 23.99515317 | DB122: 11971.78884 | DD122: 36319 | DE122: 95404 | DF122: 234 | DG122: -58851 | DH122: 30712 | DI122: 36638 | DL122: -479 | DM122: 863 | DN122: 8883 | DO122: 6195 | DP122: 1 | DR122: 2689 | DS122: 41 | DT122: 4 | DU122: -9 | DV122: -53 | DW122: 2690 | DX122: 1793 | DY122: 8998 | EA122: 48 | EB122: -4835 | EC122: -1375 | EH122: 21.25 | EJ122: 154 | EQ122: -5003 | ER122: 90 | ES122: 328 | ET122: -8285 | EU122: 139 | EV122: 200 | EW122: -11268 | EX122: 336 | EY122: 559 | EZ122: 3890 | FA122: 882 | FB122: 5568 | FC122: 543 | FD122: 9007 | FE122: -384 | FF122: 54782 | FG122: 48552 | FH122: 6230 | FI122: 454 | FJ122: 56152 | FK122: 48829 | FL122: 7323 | FM122: 0 | FN122: 59939 | FO122: 52808 | FP122: 7131 | FQ122: 48 | FR122: 3314 | FS122: 2867 | FT122: 2449 | FU122: 1490 | FV122: 2643
A123: 403 | B123: Lappajärvi | C123: 3078 | E123: 0.3957627119 | F123: 61.41014072 | G123: -3948.34308 | K123: 39.75709532 | L123: 1912.280702 | M123: 45.33711777 | N123: 15395.38661 | P123: 19343 | Q123: 38647 | R123: -67 | S123: -19371 | T123: 9318 | U123: 12342 | X123: -81 | Y123: 37 | Z123: 2245 | AA123: 2513 | AB123: 0 | AD123: -268 | AE123: 42 | AF123: 4 | AG123: -7 | AH123: -1 | AI123: -230 | AJ123: 2541 | AK123: 409 | AM123: -4115 | AN123: -5810 | AO123: 5201 | AT123: 21 | AV123: 69 | AW123: 2996 | AY123: 1.538569425 | AZ123: 54.49427187 | BA123: -5093.457944 | BE123: 51.06623706 | BF123: 749.6662216 | BG123: 51.19116234 | BH123: 13203.60481 | BJ123: 13414 | BK123: 34769 | BL123: -33 | BM123: -21388 | BN123: 9693 | BO123: 12594 | BR123: -81 | BS123: 194 | BT123: 1012 | BU123: 1759 | BV123: 0 | BX123: -747 | BY123: 19 | BZ123: -3 | CA123: 0 | CB123: 8 | CC123: -723 | CD123: 1768 | CE123: 1055 | CG123: 5051 | CH123: -628 | CI123: -2599 | CN123: 21.5 | CP123: 191 | CQ123: 2925 | CS123: 2.122633745 | CT123: 70.45448349 | CU123: -6773.675214 | CY123: 44.97442482 | CZ123: 1238.974359 | DA123: 31.03030872 | DB123: 14573.67521 | DD123: 13151 | DE123: 34164 | DF123: -37 | DG123: -21050 | DH123: 9476 | DI123: 14052 | DL123: -95 | DM123: 88 | DN123: 2471 | DO123: 1846 | DP123: 0 | DR123: 625 | DS123: -48 | DT123: 2 | DU123: 3 | DV123: 0 | DW123: 576 | DX123: 2332 | DY123: 2402 | EA123: 56 | EB123: -1107 | EC123: -4354 | EH123: 21.5 | EJ123: 211 | EQ123: -2781 | ER123: 202 | ES123: 7371 | ET123: -4049 | EU123: 252 | EV123: 143 | EW123: -7073 | EX123: 302 | EY123: 15 | EZ123: 1424 | FA123: 749 | FB123: 726 | FC123: -467 | FD123: 5937 | FE123: 406 | FF123: 15246 | FG123: 6092 | FH123: 9154 | FI123: 3 | FJ123: 14995 | FK123: 5709 | FL123: 9286 | FM123: 0 | FN123: 20698 | FO123: 10890 | FP123: 9808 | FQ123: 56 | FR123: 801 | FS123: 5208 | FT123: 5270 | FU123: 11 | FV123: 25
A124: 405 | B124: Lappeenranta | C124: 72699 | E124: 1.129636054 | F124: 83.31866762 | G124: -7853.326731 | K124: 30.9482917 | L124: 687.9186784 | M124: 21.50174626 | N124: 11677.67094 | P124: 386828 | Q124: 716530 | R124: -260 | S124: -329962 | T124: 288085 | U124: 120593 | X124: -4616 | Y124: -696 | Z124: 73404 | AA124: 54595 | AB124: 0 | AD124: 18809 | AE124: -668 | AF124: 96 | AG124: -2761 | AH124: -2140 | AI124: 13336 | AJ124: 88902 | AK124: 67041 | AM124: 11444 | AN124: -64435 | AO124: 18122 | AT124: 21 | AV124: 23 | AW124: 72634 | AY124: 0.7453502484 | AZ124: 91.15751506 | BA124: -8057.727786 | BE124: 31.44020222 | BF124: 818.2531597 | BG124: 20.9266159 | BH124: 12009.34824 | BJ124: 343788 | BK124: 689707 | BL124: 176 | BM124: -345743 | BN124: 292734 | BO124: 124237 | BR124: -4521 | BS124: 500 | BT124: 67207 | BU124: 58744 | BV124: 3875 | BX124: 12338 | BY124: -183 | BZ124: 104 | CA124: 2211 | CB124: -2030 | CC124: 8018 | CD124: 97571 | CE124: 55293 | CG124: -6325 | CH124: -91756 | CI124: -15552 | CN124: 21 | CP124: 26 | CQ124: 72662 | CS124: 1.50172274 | CT124: 87.62921624 | CU124: -8084.060444 | CY124: 31.86065472 | CZ124: 1000.440395 | DA124: 30.31619515 | DB124: 12045.0717 | DD124: 353013 | DE124: 725125 | DF124: -479 | DG124: -372591 | DH124: 302487 | DI124: 159800 | DL124: -4439 | DM124: -894 | DN124: 84363 | DO124: 63812 | DP124: 501 | DR124: 21052 | DS124: -327 | DT124: 55 | DU124: 1279 | DV124: -2130 | DW124: 17371 | DX124: 115567 | DY124: 84697 | EA124: -5671 | EB124: -54657 | EC124: 533 | EH124: 21 | EJ124: 89 | EQ124: -62187 | ER124: 1913 | ES124: 11355 | ET124: -85976 | EU124: 2127 | EV124: 13004 | EW124: -88331 | EX124: 1890 | EY124: 2277 | EZ124: 43745 | FA124: -4037 | FB124: 95856 | FC124: 19326 | FD124: 79153 | FE124: -13527 | FF124: 479933 | FG124: 363444 | FH124: 116489 | FI124: 10885 | FJ124: 495935 | FK124: 403227 | FL124: 92708 | FM124: 10830 | FN124: 506919 | FO124: 436273 | FP124: 70646 | FQ124: -5671 | FR124: 15748 | FS124: 14336 | FT124: 13468 | FU124: 61497 | FV124: 29339
A125: 408 | B125: Lapua | C125: 14427 | E125: 0.3483400219 | F125: 102.0020874 | G125: -7792.056561 | K125: 25.87381782 | L125: 973.6604977 | M125: 29.9921322 | N125: 11849.31032 | P125: 47633 | Q125: 122288 | R125: 19 | S125: -74636 | T125: 47777 | U125: 35853 | X125: -916 | Y125: 513 | Z125: 8591 | AA125: 9146 | AB125: 0 | AD125: -555 | AE125: -4 | AF125: 237 | AG125: -3 | AH125: -122 | AI125: -447 | AJ125: 16520 | AK125: 8087 | AM125: 234 | AN125: -26453 | AO125: -10370 | AT125: 21.5 | AV125: 115 | AW125: 14278 | AY125: 0.5550998251 | AZ125: 108.7101394 | BA125: -8869.729654 | BE125: 23.8657462 | BF125: 879.3248354 | BG125: 30.7981631 | BH125: 11659.61619 | BJ125: 48069 | BK125: 126102 | BL125: 14 | BM125: -78019 | BN125: 49872 | BO125: 36810 | BR125: -975 | BS125: 497 | BT125: 8185 | BU125: 9580 | BV125: 0 | BX125: -1395 | BY125: 23 | BZ125: 0 | CA125: -1 | CB125: -10 | CC125: -1381 | CD125: 14946 | CE125: 7427 | CG125: 138 | CH125: -15561 | CI125: -13758 | CN125: 21.5 | CP125: 99 | CQ125: 14221 | CS125: 0.7677332951 | CT125: 107.9760501 | CU125: -9268.33556 | CY125: 24.99963811 | CZ125: 818.437522 | DA125: 24.5967924 | DB125: 12145.06715 | DD125: 49018 | DE125: 126866 | DF125: 27 | DG125: -77821 | DH125: 50679 | DI125: 42767 | DL125: -1143 | DM125: 320 | DN125: 14802 | DO125: 10450 | DP125: 0 | DR125: 4352 | DS125: -3 | DT125: 0 | DU125: 192 | DV125: 78 | DW125: 4235 | DX125: 20341 | DY125: 14218 | EA125: 327 | EB125: -19658 | EC125: -6721 | EH125: 21.5 | EJ125: 116 | EQ125: -21140 | ER125: 212 | ES125: 2471 | ET125: -23728 | EU125: 86 | EV125: 2457 | EW125: -24745 | EX125: 96 | EY125: 3710 | EZ125: 35348 | FA125: 47 | FB125: 23883 | FC125: 2861 | FD125: 30754 | FE125: -921 | FF125: 101285 | FG125: 75332 | FH125: 25953 | FI125: 9 | FJ125: 112469 | FK125: 82629 | FL125: 29840 | FM125: 0 | FN125: 122668 | FO125: 93078 | FP125: 29590 | FQ125: 327 | FR125: 1230 | FS125: 1244 | FT125: 857 | FU125: 7308 | FV125: 6461
A126: 410 | B126: Laukaa | C126: 18927 | E126: 2.567614126 | F126: 102.8988164 | G126: -7428.752576 | K126: 16.67918266 | L126: 301.4212501 | M126: 12.36395537 | N126: 8898.346278 | P126: 42889 | Q126: 147556 | R126: 0 | S126: -104667 | T126: 66130 | U126: 43733 | X126: -131 | Y126: 729 | Z126: 5794 | AA126: 9245 | AB126: 0 | AD126: -3451 | AE126: 0 | AF126: 86 | AG126: -15 | AH126: -40 | AI126: -3420 | AJ126: -3820 | AK126: 5663 | AM126: 75 | AN126: -2154 | AO126: -11509 | AT126: 21.5 | AV126: 215 | AW126: 18903 | AY126: 2.756200084 | AZ126: 108.2989956 | BA126: -7955.932921 | BE126: 14.05122801 | BF126: 598.7409406 | BG126: 13.17077219 | BH126: 8925.355764 | BJ126: 42665 | BK126: 149102 | BL126: 0 | BM126: -106437 | BN126: 67580 | BO126: 45075 | BR126: -153 | BS126: 308 | BT126: 6373 | BU126: 10269 | BV126: 0 | BX126: -3896 | BY126: 0 | BZ126: -304 | CA126: 15 | CB126: -182 | CC126: -4397 | CD126: -7842 | CE126: 5160 | CG126: 4942 | CH126: -2195 | CI126: -10230 | CN126: 21.5 | CP126: 192 | CQ126: 18823 | CS126: 1.63575628 | CT126: 101.3373749 | CU126: -8463.050523 | CY126: 16.40671083 | CZ126: 328.746746 | DA126: 11.86873358 | DB126: 10109.97184 | DD126: 42984 | DE126: 150822 | DF126: 0 | DG126: -107838 | DH126: 71756 | DI126: 54173 | DL126: -320 | DM126: 246 | DN126: 18017 | DO126: 11840 | DP126: 0 | DR126: 6177 | DS126: 0 | DT126: -198 | DU126: 0 | DV126: -96 | DW126: 5883 | DX126: -1626 | DY126: 16593 | EA126: 1153 | EB126: -10880 | EC126: -8788 | EH126: 21.5 | EJ126: 149 | EQ126: -18147 | ER126: 24 | ES126: 951 | ET126: -17162 | EU126: 58 | EV126: 1714 | EW126: -28178 | EX126: 674 | EY126: 2123 | EZ126: 5637 | FA126: 5700 | FB126: -964 | FC126: 18813 | FD126: 38525 | FE126: -25591 | FF126: 128124 | FG126: 54004 | FH126: 74120 | FI126: 234 | FJ126: 144610 | FK126: 51674 | FL126: 92936 | FM126: 111 | FN126: 147343 | FO126: 79995 | FP126: 67348 | FQ126: 1153 | FR126: 4263 | FS126: 5107 | FT126: 4388 | FU126: 16029 | FV126: 21551
A127: 416 | B127: Lemi | C127: 3043 | E127: -0.6175595238 | F127: 55.6546238 | G127: -4689.451199 | K127: 22.84208214 | L127: 299.0469931 | M127: 9.745899475 | N127: 11199.80283 | P127: 13688 | Q127: 31018 | R127: 4 | S127: -17326 | T127: 10252 | U127: 6230 | X127: -79 | Y127: 13 | Z127: -910 | AA127: 1122 | AB127: 0 | AD127: -2032 | AE127: 0 | AF127: -5 | AG127: 0 | AH127: 0 | AI127: -2037 | AJ127: -1859 | AK127: -1457 | AM127: 234 | AN127: -1264 | AO127: -2822 | AT127: 21 | AV127: 292 | AW127: 2971 | AY127: 0.26870527 | AZ127: 52.34791546 | BA127: -4842.140693 | BE127: 21.77595628 | BF127: 120.1615618 | BG127: 10.02868357 | BH127: 11147.7617 | BJ127: 14146 | BK127: 30746 | BL127: 2 | BM127: -16598 | BN127: 10260 | BO127: 6728 | BR127: -137 | BS127: 22 | BT127: 275 | BU127: 1049 | BV127: 154 | BX127: -620 | BY127: 0 | BZ127: 2 | CA127: 0 | CB127: 0 | CC127: -618 | CD127: -2272 | CE127: 64 | CG127: 55 | CH127: -1399 | CI127: -165 | CN127: 21 | CP127: 264 | CQ127: 2964 | CS127: 1.271501926 | CT127: 46.35773477 | CU127: -4365.047233 | CY127: 25.15329125 | CZ127: 358.974359 | DA127: 11.56762875 | DB127: 11326.92308 | DD127: 14703 | DE127: 31402 | DF127: 4 | DG127: -16695 | DH127: 10804 | DI127: 7920 | DL127: -131 | DM127: -49 | DN127: 1849 | DO127: 1017 | DP127: 20 | DR127: 852 | DS127: 0 | DT127: -1 | DU127: 0 | DV127: -17 | DW127: 834 | DX127: -1474 | DY127: 1682 | EA127: 65 | EB127: -1426 | EC127: 1479 | EH127: 22 | EJ127: 270 | EQ127: -1710 | ER127: 0 | ES127: 345 | ET127: -832 | EU127: 52 | EV127: 551 | EW127: -542 | EX127: 27 | EY127: 312 | EZ127: 2035 | FA127: 144 | FB127: 2875 | FC127: 104 | FD127: 128 | FE127: 200 | FF127: 11297 | FG127: 10142 | FH127: 1155 | FI127: 197 | FJ127: 12869 | FK127: 11497 | FL127: 1372 | FM127: 197 | FN127: 11770 | FO127: 10205 | FP127: 1565 | FQ127: 65 | FR127: 44 | FS127: 2506 | FT127: 2278 | FU127: 4572 | FV127: 4773
A128: 418 | B128: Lempäälä | C128: 23206 | E128: 0.992732049 | F128: 92.0360648 | G128: -6246.487977 | K128: 27.80251853 | L128: 342.8854607 | M128: 13.56353269 | N128: 9227.182625 | P128: 63439 | Q128: 167347 | R128: 24 | S128: -103884 | T128: 91776 | U128: 22687 | X128: -918 | Y128: 736 | Z128: 10397 | AA128: 14504 | AB128: 0 | AD128: -4107 | AE128: -86 | AF128: 1 | AG128: -143 | AH128: -42 | AI128: -4377 | AJ128: 16229 | AK128: 9189 | AM128: -4523 | AN128: -10480 | AO128: -21764 | AT128: 20.5 | AV128: 161 | AW128: 23523 | AY128: 1.022203886 | AZ128: 98.6503812 | BA128: -7203.673001 | BE128: 25.14923395 | BF128: 268.5881903 | BG128: 12.47205462 | BH128: 9899.460103 | BJ128: 68504 | BK128: 176656 | BL128: -13 | BM128: -108165 | BN128: 96994 | BO128: 24037 | BR128: -863 | BS128: 740 | BT128: 12743 | BU128: 14761 | BV128: 0 | BX128: -2018 | BY128: -85 | BZ128: 0 | CA128: 130 | CB128: -105 | CC128: -2338 | CD128: 13719 | CE128: 9910 | CG128: -3304 | CH128: -12447 | CI128: -24468 | CN128: 20.5 | CP128: 104 | CQ128: 23828 | CS128: 1.378160789 | CT128: 99.76661928 | CU128: -7130.81249 | CY128: 25.5603422 | CZ128: 734.0943428 | DA128: 27.93919052 | DB128: 9590.271949 | DD128: 69652 | DE128: 182711 | DF128: -11 | DG128: -113070 | DH128: 102509 | DI128: 33940 | DL128: -870 | DM128: 895 | DN128: 23404 | DO128: 15168 | DP128: 0 | DR128: 8236 | DS128: -287 | DT128: 0 | DU128: 255 | DV128: -224 | DW128: 7470 | DX128: 21609 | DY128: 20783 | EA128: -7006 | EB128: -16734 | EC128: -912 | EH128: 20.5 | EJ128: 138 | EQ128: -35261 | ER128: 2177 | ES128: 2131 | ET128: -42785 | EU128: 5735 | EV128: 2672 | EW128: -28009 | EX128: 1174 | EY128: 5140 | EZ128: 21659 | FA128: 4963 | FB128: 29223 | FC128: 8504 | FD128: 26678 | FE128: 4070 | FF128: 128938 | FG128: 110182 | FH128: 18756 | FI128: 316 | FJ128: 154399 | FK128: 125431 | FL128: 28968 | FM128: 313 | FN128: 168413 | FO128: 134438 | FP128: 33975 | FQ128: -7006 | FR128: 15639 | FS128: 14729 | FT128: 13376 | FU128: 10606 | FV128: 30293
A129: 420 | B129: Leppävirta | C129: 9650 | E129: 1.309079602 | F129: 51.75875714 | G129: -3898.445596 | K129: 46.67481435 | L129: 687.1502591 | M129: 23.20020513 | N129: 10810.67358 | P129: 35387 | Q129: 91930 | R129: 81 | S129: -56462 | T129: 34685 | U129: 25450 | X129: -392 | Y129: 498 | Z129: 3779 | AA129: 5428 | AB129: -88 | AD129: -1737 | AE129: -5 | AF129: 70 | AG129: -1 | AH129: -3 | AI129: -1676 | AJ129: 3230 | AK129: 3634 | AM129: -282 | AN129: -2785 | AO129: -3865 | AT129: 21 | AV129: 185 | AW129: 9454 | AY129: 1.093986198 | AZ129: 53.28645899 | BA129: -4211.550666 | BE129: 44.09680917 | BF129: 702.4539877 | BG129: 23.36590539 | BH129: 10721.91665 | BJ129: 35702 | BK129: 92644 | BL129: 59 | BM129: -56883 | BN129: 34789 | BO129: 24657 | BR129: -310 | BS129: 717 | BT129: 2970 | BU129: 6047 | BV129: -426 | BX129: -3503 | BY129: -27 | BZ129: -148 | CA129: 11 | CB129: -5 | CC129: -3694 | CD129: -92 | CE129: 2942 | CG129: 996 | CH129: -2684 | CI129: -2364 | CN129: 21 | CP129: 205 | CQ129: 9402 | CS129: 3.065784894 | CT129: 50.31560143 | CU129: -3712.188896 | CY129: 44.97795148 | CZ129: 1204.743672 | DA129: 41.1808855 | DB129: 10678.04722 | DD129: 36084 | DE129: 92760 | DF129: 83 | DG129: -56593 | DH129: 35499 | DI129: 29177 | DL129: -301 | DM129: 677 | DN129: 8459 | DO129: 6949 | DP129: 15 | DR129: 1525 | DS129: -12 | DT129: 164 | DU129: 7 | DV129: -5 | DW129: 1665 | DX129: 1973 | DY129: 8350 | EA129: -224 | EB129: -2524 | EC129: 3906 | EH129: 21 | EJ129: 192 | EQ129: -8947 | ER129: 1107 | ES129: 341 | ET129: -5592 | EU129: 174 | EV129: 112 | EW129: -4717 | EX129: 14 | EY129: 259 | EZ129: 3751 | FA129: 71 | FB129: 1550 | FC129: 3019 | FD129: 1870 | FE129: 891 | FF129: 36290 | FG129: 33481 | FH129: 2809 | FI129: 495 | FJ129: 38177 | FK129: 32370 | FL129: 5807 | FM129: 390 | FN129: 38644 | FO129: 31558 | FP129: 7086 | FQ129: -224 | FR129: 603 | FS129: 558 | FT129: 132 | FU129: 10343 | FV129: 10118
A130: 421 | B130: Lestijärvi | C130: 737 | E130: 0.5798816568 | F130: 41.70243205 | G130: -4943.012212 | K130: 56.91682703 | L130: 1857.530529 | M130: 33.56970104 | N130: 20196.74355 | P130: 8595 | Q130: 13815 | R130: 27 | S130: -5193 | T130: 2420 | U130: 2965 | X130: -27 | Y130: -2 | Z130: 163 | AA130: 616 | AB130: 50 | AD130: -403 | AE130: -1 | AF130: -38 | AG130: 0 | AH130: 2 | AI130: -440 | AJ130: 2007 | AK130: -17 | AM130: 381 | AN130: -305 | AO130: -570 | AT130: 21 | AV130: 246 | AW130: 719 | AY130: 0.4975124378 | AZ130: 49.7784031 | BA130: -6022.253129 | BE130: 48.23445826 | BF130: 2496.522949 | BG130: 33.21711095 | BH130: 20922.11405 | BJ130: 8512 | BK130: 14151 | BL130: 28 | BM130: -5611 | BN130: 2381 | BO130: 3321 | BR130: -28 | BS130: 4 | BT130: 67 | BU130: 811 | BV130: 0 | BX130: -744 | BY130: -1 | BZ130: -13 | CA130: 0 | CB130: 4 | CC130: -754 | CD130: 1278 | CE130: 29 | CG130: -141 | CH130: -168 | CI130: -631 | CN130: 21 | CP130: 262 | CQ130: 722 | CS130: 4.371069182 | CT130: 77.53662142 | CU130: -11307.47922 | CY130: 36.69977329 | CZ130: 2599.722992 | DA130: 36.29887676 | DB130: 26141.27424 | DD130: 8882 | DE130: 14230 | DF130: 27 | DG130: -5321 | DH130: 2542 | DI130: 3458 | DL130: -22 | DM130: 6 | DN130: 663 | DO130: 639 | DP130: -1 | DR130: 23 | DS130: 0 | DT130: -8 | DU130: 0 | DV130: -2 | DW130: 13 | DX130: 1290 | DY130: 636 | EA130: -566 | EB130: -127 | EC130: -3844 | EH130: 21 | EJ130: 180 | EQ130: -726 | ER130: 5 | ES130: 168 | ET130: -673 | EU130: 0 | EV130: 13 | EW130: -4485 | EX130: 4 | EY130: 1 | EZ130: 95 | FA130: -76 | FB130: 1251 | FC130: -18 | FD130: 3973 | FE130: -56 | FF130: 3949 | FG130: 3825 | FH130: 124 | FI130: 0 | FJ130: 5084 | FK130: 4943 | FL130: 141 | FM130: 0 | FN130: 8905 | FO130: 8750 | FP130: 155 | FQ130: -566 | FR130: 395 | FS130: 337 | FT130: 291 | FU130: 35 | FV130: 376
A131: 422 | B131: Lieksa | C131: 11098 | E131: 0.643313709 | F131: 36.87971824 | G131: -2373.130294 | K131: 55.08251807 | L131: 1372.769868 | M131: 34.91041328 | N131: 14352.76626 | P131: 70729 | Q131: 139581 | R131: -2 | S131: -68854 | T131: 38403 | U131: 37374 | X131: -392 | Y131: 541 | Z131: 7072 | AA131: 6056 | AB131: 0 | AD131: 1016 | AE131: 0 | AF131: 1 | AG131: 0 | AH131: 51 | AI131: 1068 | AJ131: 32996 | AK131: 7228 | AM131: -150 | AN131: -11313 | AO131: 616 | AT131: 21 | AV131: 96 | AW131: 10884 | AY131: 0.6835258801 | AZ131: 36.51747056 | BA131: -2787.210584 | BE131: 55.2013895 | BF131: 1243.568541 | BG131: 34.03083768 | BH131: 15013.23043 | BJ131: 72866 | BK131: 141689 | BL131: -3 | BM131: -68826 | BN131: 38405 | BO131: 37236 | BR131: -308 | BS131: 569 | BT131: 7076 | BU131: 6845 | BV131: 0 | BX131: 231 | BY131: -7 | BZ131: -8 | CA131: 9 | CB131: 29 | CC131: 236 | CD131: 33019 | CE131: 6728 | CG131: 2099 | CH131: -10555 | CI131: -3832 | CN131: 21 | CP131: 72 | CQ131: 10719 | CS131: 1.990404488 | CT131: 35.89369727 | CU131: -2668.159343 | CY131: 56.74693564 | CZ131: 1381.37886 | DA131: 33.70410906 | DB131: 14959.69773 | DD131: 73599 | DE131: 141479 | DF131: -41 | DG131: -67921 | DH131: 39281 | DI131: 41434 | DL131: -293 | DM131: 530 | DN131: 13031 | DO131: 7346 | DP131: 0 | DR131: 5685 | DS131: 1 | DT131: 8 | DU131: 15 | DV131: 73 | DW131: 5752 | DX131: 38897 | DY131: 13037 | EA131: -1622 | EB131: -6322 | EC131: 1445 | EH131: 21 | EJ131: 70 | EQ131: -7749 | ER131: 1005 | ES131: 132 | ET131: -10692 | EU131: 6 | EV131: 126 | EW131: -12057 | EX131: 70 | EY131: 395 | EZ131: 3200 | FA131: 57 | FB131: 7284 | FC131: 3248 | FD131: 7684 | FE131: -290 | FF131: 37404 | FG131: 30314 | FH131: 7090 | FI131: 70 | FJ131: 37381 | FK131: 30232 | FL131: 7149 | FM131: 70 | FN131: 38453 | FO131: 31444 | FP131: 7009 | FQ131: -1622 | FR131: 5246 | FS131: 1449 | FT131: 1753 | FU131: 11512 | FV131: 16560
A132: 423 | B132: Lieto | C132: 19831 | E132: 1.109930872 | F132: 77.29445698 | G132: -4970.752862 | K132: 23.94342569 | L132: 473.7027886 | M132: 21.04158229 | N132: 8217.134789 | P132: 53617 | Q132: 143266 | R132: 8 | S132: -89641 | T132: 75125 | U132: 21032 | X132: -637 | Y132: 53 | Z132: 5932 | AA132: 10014 | AB132: 0 | AD132: -4082 | AE132: -5 | AF132: 0 | AG132: 0 | AH132: -79 | AI132: -4166 | AJ132: 5433 | AK132: 2479 | AM132: 546 | AN132: -5280 | AO132: -6341 | AT132: 19.5 | AV132: 218 | AW132: 19994 | AY132: 2.084100824 | AZ132: 79.7110022 | BA132: -5130.539162 | BE132: 21.82195422 | BF132: 548.7146144 | BG132: 21.13066736 | BH132: 8115.784735 | BJ132: 52462 | BK132: 145349 | BL132: 23 | BM132: -92864 | BN132: 79437 | BO132: 21943 | BR132: -693 | BS132: 70 | BT132: 7893 | BU132: 10154 | BV132: 0 | BX132: -2261 | BY132: 0 | BZ132: 0 | CA132: 0 | CB132: -51 | CC132: -2312 | CD132: 3113 | CE132: 5665 | CG132: -1281 | CH132: -3420 | CI132: -4134 | CN132: 19.5 | CP132: 166 | CQ132: 20146 | CS132: 3.867850099 | CT132: 74.63778721 | CU132: -5002.432245 | CY132: 25.28751501 | CZ132: 603.941229 | DA132: 26.55708246 | DB132: 8300.555942 | DD132: 51388 | DE132: 146427 | DF132: 29 | DG132: -95010 | DH132: 82718 | DI132: 29886 | DL132: -559 | DM132: 46 | DN132: 17081 | DO132: 9821 | DP132: 0 | DR132: 7260 | DS132: -7 | DT132: 0 | DU132: 0 | DV132: -31 | DW132: 7222 | DX132: 10422 | DY132: 15158 | EA132: -281 | EB132: -3995 | EC132: 1886 | EH132: 19.5 | EJ132: 209 | EQ132: -13746 | ER132: 162 | ES132: 4764 | ET132: -12784 | EU132: 34 | EV132: 2951 | EW132: -16208 | EX132: 588 | EY132: 2348 | EZ132: 732 | FA132: 12335 | FB132: 12691 | FC132: -5079 | FD132: 3617 | FE132: 562 | FF132: 88511 | FG132: 45534 | FH132: 42977 | FI132: 0 | FJ132: 92790 | FK132: 54814 | FL132: 37976 | FM132: 0 | FN132: 92924 | FO132: 54464 | FP132: 38460 | FQ132: -281 | FR132: 6801 | FS132: 6732 | FT132: 7027 | FU132: 13854 | FV132: 13941
A133: 425 | B133: Liminka | C133: 10161 | E133: 4.221206581 | F133: 76.17627691 | G133: -4758.193091 | K133: 45.14742707 | L133: 707.2138569 | M133: 23.45740732 | N133: 11004.33028 | P133: 21539 | Q133: 73612 | R133: 1 | S133: -52072 | T133: 32097 | U133: 26851 | X133: -241 | Y133: 24 | Z133: 6659 | AA133: 5422 | AB133: 265 | AD133: 1502 | AE133: 78 | AF133: -45 | AG133: -5 | AH133: -21 | AI133: 1509 | AJ133: 30591 | AK133: 5606 | AM133: -96 | AN133: -1373 | AO133: -18710 | AT133: 21.5 | AV133: 90 | AW133: 10191 | AY133: -2.183467742 | AZ133: 80.93637082 | BA133: -5152.193112 | BE133: 43.43698097 | BF133: 964.8709646 | BG133: 30.58014947 | BH133: 8416.347758 | BJ133: 25237 | BK133: 77325 | BL133: 2 | BM133: -52086 | BN133: 33743 | BO133: 24598 | BR133: -245 | BS133: 215 | BT133: 6225 | BU133: 6912 | BV133: 383 | BX133: -304 | BY133: 13 | BZ133: -2 | CA133: 8 | CB133: 0 | CC133: -301 | CD133: 30291 | CE133: 5315 | CG133: 472 | CH133: -3249 | CI133: -4123 | CN133: 21.5 | CP133: 85 | CQ133: 10238 | CS133: 16.56271186 | CT133: 74.20713355 | CU133: -5218.109006 | CY133: 45.33374764 | CZ133: 677.3783942 | DA133: 27.70356791 | DB133: 8924.594647 | DD133: 21911 | DE133: 79332 | DF133: 4 | DG133: -57417 | DH133: 35264 | DI133: 31869 | DL133: -238 | DM133: 28 | DN133: 9506 | DO133: 6596 | DP133: 0 | DR133: 2910 | DS133: 4 | DT133: 47 | DU133: -1 | DV133: -27 | DW133: 2935 | DX133: 33221 | DY133: 9215 | EA133: -413 | EB133: -324 | EC133: -470 | EH133: 21.5 | EJ133: 171 | EQ133: -36559 | ER133: 191 | ES133: 12052 | ET133: -11372 | EU133: 475 | EV133: 1459 | EW133: -11115 | EX133: 107 | EY133: 1323 | EZ133: 10407 | FA133: 2374 | FB133: 7199 | FC133: -4702 | FD133: 2214 | FE133: -4892 | FF133: 45432 | FG133: 33401 | FH133: 12031 | FI133: 606 | FJ133: 51178 | FK133: 35096 | FL133: 16082 | FM133: 648 | FN133: 48175 | FO133: 33407 | FP133: 14768 | FQ133: -413 | FR133: 713 | FS133: 621 | FT133: 997 | FU133: 8444 | FV133: 9037
A134: 426 | B134: Liperi | C134: 12145 | E134: 0.4881516588 | F134: 51.05359204 | G134: -4173.981062 | K134: 29.00340179 | L134: 931.1650885 | M134: 29.37005493 | N134: 11572.16962 | P134: 59894 | Q134: 122909 | R134: -20 | S134: -63035 | T134: 39488 | U134: 28846 | X134: -432 | Y134: 344 | Z134: 5211 | AA134: 4528 | AB134: 0 | AD134: 683 | AE134: -77 | AF134: 1 | AG134: -23 | AH134: -72 | AI134: 512 | AJ134: 11789 | AK134: 4962 | AM134: 203 | AN134: -11151 | AO134: -809 | AT134: 21.5 | AV134: 170 | AW134: 12084 | AY134: 0.4212133149 | AZ134: 51.76445135 | BA134: -4387.702747 | BE134: 28.80786383 | BF134: 723.6014565 | BG134: 29.14793631 | BH134: 11719.21549 | BJ134: 60169 | BK134: 125509 | BL134: -37 | BM134: -65377 | BN134: 40749 | BO134: 28499 | BR134: -363 | BS134: 374 | BT134: 3882 | BU134: 4710 | BV134: 0 | BX134: -828 | BY134: 4 | BZ134: -4 | CA134: 12 | CB134: -67 | CC134: -907 | CD134: 10762 | CE134: 3465 | CG134: -1764 | CH134: -9759 | CI134: -2087 | CN134: 21.5 | CP134: 200 | CQ134: 11994 | CS134: 0.8181326409 | CT134: 56.01641311 | CU134: -4733.366683 | CY134: 27.45390468 | CZ134: 1074.537269 | DA134: 31.67117754 | DB134: 12383.69185 | DD134: 60670 | DE134: 127840 | DF134: -34 | DG134: -67204 | DH134: 41381 | DI134: 32963 | DL134: -355 | DM134: 359 | DN134: 7144 | DO134: 5854 | DP134: 0 | DR134: 1290 | DS134: 11 | DT134: 4 | DU134: 16 | DV134: -69 | DW134: 1220 | DX134: 12185 | DY134: 6933 | EA134: -739 | EB134: -8825 | EC134: -3493 | EH134: 21.5 | EJ134: 274 | EQ134: -6021 | ER134: 26 | ES134: 224 | ET134: -5908 | EU134: 88 | EV134: 268 | EW134: -11239 | EX134: 549 | EY134: 264 | EZ134: 10000 | FA134: 494 | FB134: 10905 | FC134: 85 | FD134: 17945 | FE134: -772 | FF134: 49203 | FG134: 38865 | FH134: 10338 | FI134: 0 | FJ134: 50434 | FK134: 40255 | FL134: 10179 | FM134: 0 | FN134: 58782 | FO134: 48428 | FP134: 10354 | FQ134: -739 | FR134: 34 | FS134: 25 | FT134: 269 | FU134: 4373 | FV134: 5331
A135: 444 | B135: Lohja | C135: 46296 | E135: 0.8908871454 | F135: 67.50789006 | G135: -5530.974598 | K135: 31.2233281 | L135: 413.4266459 | M135: 14.61539427 | N135: 10324.77968 | P135: 167376 | Q135: 420848 | R135: 15 | S135: -253457 | T135: 188458 | U135: 79524 | X135: -1854 | Y135: 104 | Z135: 12775 | AA135: 25222 | AB135: 0 | AD135: -12447 | AE135: 24 | AF135: -20 | AG135: -223 | AH135: -2 | AI135: -12668 | AJ135: 6080 | AK135: 10635 | AM135: 798 | AN135: -14583 | AO135: -23238 | AT135: 20.5 | AV135: 231 | AW135: 45965 | AY135: 0.9004481595 | AZ135: 70.19095945 | BA135: -6001.087784 | BE135: 28.40135864 | BF135: 402.3278582 | BG135: 13.99027544 | BH135: 10863.78766 | BJ135: 177542 | BK135: 429891 | BL135: 35 | BM135: -252314 | BN135: 190088 | BO135: 79533 | BR135: -2339 | BS135: 456 | BT135: 15424 | BU135: 24283 | BV135: 0 | BX135: -8859 | BY135: -22 | BZ135: -40 | CA135: 429 | CB135: -5 | CC135: -9355 | CD135: -3088 | CE135: 14016 | CG135: -837 | CH135: -17401 | CI135: -20187 | CN135: 20.5 | CP135: 195 | CQ135: 45886 | CS135: 2.823100304 | CT135: 72.8248318 | CU135: -6850.716994 | CY135: 27.99255761 | CZ135: 459.0506908 | DA135: 14.39037492 | DB135: 11643.44244 | DD135: 212635 | DE135: 453818 | DF135: -94 | DG135: -241277 | DH135: 197254 | DI135: 88923 | DL135: -2368 | DM135: 1290 | DN135: 43822 | DO135: 27688 | DP135: 0 | DR135: 16134 | DS135: 43 | DT135: -565 | DU135: 367 | DV135: -2 | DW135: 15243 | DX135: 14780 | DY135: 39783 | EA135: -1255 | EB135: -13832 | EC135: -19774 | EH135: 20.5 | EJ135: 150 | EQ135: -39903 | ER135: 2385 | ES135: 3645 | ET135: -48944 | EU135: 3011 | EV135: 11730 | EW135: -62460 | EX135: 256 | EY135: 2647 | EZ135: 30970 | FA135: -2499 | FB135: 47259 | FC135: -7499 | FD135: 35551 | FE135: -9669 | FF135: 222603 | FG135: 181718 | FH135: 40885 | FI135: 53 | FJ135: 244962 | FK135: 212821 | FL135: 32141 | FM135: 53 | FN135: 280279 | FO135: 246177 | FP135: 34102 | FQ135: -1255 | FR135: 4714 | FS135: 3808 | FT135: 3746 | FU135: 6619 | FV135: 6529
A136: 430 | B136: Loimaa | C136: 16032 | E136: 0.6133561226 | F136: 46.19125928 | G136: -3823.290918 | K136: 35.95977967 | L136: 572.6047904 | M136: 18.44479553 | N136: 11331.1502 | P136: 70084 | Q136: 167122 | R136: 6 | S136: -97032 | T136: 53278 | U136: 48729 | X136: -514 | Y136: 46 | Z136: 4507 | AA136: 8544 | AB136: -62 | AD136: -4099 | AE136: -356 | AF136: 0 | AG136: -184 | AH136: -44 | AI136: -4683 | AJ136: 6476 | AK136: 3590 | AM136: 365 | AN136: -7674 | AO136: -1826 | AT136: 20.5 | AV136: 227 | AW136: 15875 | AY136: 0.9318369595 | AZ136: 47.99919773 | BA136: -3879.937008 | BE136: 36.08482248 | BF136: 772.8503937 | BG136: 18.46777083 | BH136: 11428.97638 | BJ136: 71318 | BK136: 167845 | BL136: 40 | BM136: -96487 | BN136: 54383 | BO136: 48804 | BR136: -436 | BS136: 62 | BT136: 6326 | BU136: 7766 | BV136: -827 | BX136: -2267 | BY136: -330 | BZ136: 0 | CA136: 181 | CB136: -37 | CC136: -2815 | CD136: 3630 | CE136: 5035 | CG136: -494 | CH136: -6821 | CI136: -863 | CN136: 21 | CP136: 161 | CQ136: 15770 | CS136: 1.914640299 | CT136: 42.87096384 | CU136: -3121.876982 | CY136: 41.83823371 | CZ136: 1194.22955 | DA136: 38.43469388 | DB136: 11341.15409 | DD136: 70680 | DE136: 163126 | DF136: 50 | DG136: -92396 | DH136: 55915 | DI136: 55323 | DL136: -395 | DM136: 130 | DN136: 18577 | DO136: 9066 | DP136: -6 | DR136: 9505 | DS136: -340 | DT136: 0 | DU136: 199 | DV136: 55 | DW136: 9021 | DX136: 12729 | DY136: 18138 | EA136: 392 | EB136: -9512 | EC136: 12260 | EH136: 21 | EJ136: 81 | EQ136: -6976 | ER136: 366 | ES136: 1194 | ET136: -6527 | EU136: 25 | EV136: 604 | EW136: -6522 | EX136: 122 | EY136: 522 | EZ136: 5520 | FA136: 1012 | FB136: 9307 | FC136: 542 | FD136: 4314 | FE136: 0 | FF136: 54212 | FG136: 35296 | FH136: 18916 | FI136: 142 | FJ136: 58054 | FK136: 38096 | FL136: 19958 | FM136: 123 | FN136: 53607 | FO136: 32949 | FP136: 20658 | FQ136: 392 | FR136: 741 | FS136: 693 | FT136: 664 | FU136: 20794 | FV136: 21267
A137: 433 | B137: Loppi | C137: 7861 | E137: 0.4887482419 | F137: 54.59021903 | G137: -4056.862995 | K137: 43.01217144 | L137: 417.1225035 | M137: 15.95886392 | N137: 9540.134843 | P137: 24931 | Q137: 65632 | R137: -87 | S137: -40788 | T137: 28086 | U137: 15422 | X137: -372 | Y137: 57 | Z137: 2405 | AA137: 3060 | AB137: 0 | AD137: -655 | AE137: 0 | AF137: 1 | AG137: -1 | AH137: -28 | AI137: -683 | AJ137: 12968 | AK137: 2364 | AM137: -136 | AN137: -5313 | AO137: -25 | AT137: 21.5 | AV137: 216 | AW137: 7828 | AY137: 0.9861655522 | AZ137: 54.63651649 | BA137: -3935.232499 | BE137: 43.16170613 | BF137: 679.4839039 | BG137: 16.30667957 | BH137: 9373.147675 | BJ137: 24879 | BK137: 65892 | BL137: -59 | BM137: -41072 | BN137: 29180 | BO137: 16123 | BR137: -356 | BS137: 40 | BT137: 3915 | BU137: 3150 | BV137: 0 | BX137: 765 | BY137: -1 | BZ137: 2 | CA137: 0 | CB137: 21 | CC137: 787 | CD137: 13755 | CE137: 3551 | CG137: -29 | CH137: -3975 | CI137: 919 | CN137: 21.5 | CP137: 120 | CQ137: 7853 | CS137: 2.433105165 | CT137: 50.36283304 | CU137: -3259.900675 | CY137: 45.48299397 | CZ137: 1124.411053 | DA137: 44.27189934 | DB137: 9270.215204 | DD137: 25991 | DE137: 66879 | DF137: -50 | DG137: -40938 | DH137: 29963 | DI137: 18736 | DL137: -329 | DM137: 46 | DN137: 7478 | DO137: 5233 | DP137: 0 | DR137: 2245 | DS137: -1 | DT137: 2 | DU137: 0 | DV137: -6 | DW137: 2240 | DX137: 16077 | DY137: 7314 | EA137: -966 | EB137: -2872 | EC137: 5120 | EH137: 21.5 | EJ137: 152 | EQ137: -3670 | ER137: 4 | ES137: 1277 | ET137: -3141 | EU137: 84 | EV137: 425 | EW137: -2696 | EX137: 177 | EY137: 325 | EZ137: 4509 | FA137: 0 | FB137: 5127 | FC137: 282 | FD137: 1128 | FE137: -342 | FF137: 27988 | FG137: 21663 | FH137: 6325 | FI137: 39 | FJ137: 29421 | FK137: 22425 | FL137: 6996 | FM137: 35 | FN137: 27336 | FO137: 19601 | FP137: 7735 | FQ137: -966 | FR137: 161 | FS137: 260 | FT137: 489 | FU137: 406 | FV137: 486
A138: 434 | B138: Loviisa | C138: 14891 | E138: 1.972154964 | F138: 61.54837431 | G138: -4608.354039 | K138: 40.94901139 | L138: 612.7862467 | M138: 20.44080643 | N138: 10942.17984 | P138: 53875 | Q138: 141448 | R138: 11857 | S138: -75716 | T138: 60000 | U138: 27357 | X138: -255 | Y138: 1255 | Z138: 12641 | AA138: 7341 | AB138: -5 | AD138: 5295 | AE138: -14 | AF138: -10 | AG138: -27 | AH138: -31 | AI138: 5213 | AJ138: 15641 | AK138: 56 | AM138: 1919 | AN138: -6217 | AO138: -13202 | AT138: 19.75 | AV138: 40 | AW138: 14772 | AY138: 0.4736481862 | AZ138: 74.86948115 | BA138: -5645.951801 | BE138: 34.77930684 | BF138: 853.3035473 | BG138: 19.92766434 | BH138: 11295.76225 | BJ138: 55484 | BK138: 140789 | BL138: 2732 | BM138: -82573 | BN138: 59292 | BO138: 24859 | BR138: -389 | BS138: 53 | BT138: 1242 | BU138: 8703 | BV138: -260 | BX138: -7721 | BY138: -34 | BZ138: -5 | CA138: 30 | CB138: -11 | CC138: -7801 | CD138: 7859 | CE138: -1442 | CG138: 265 | CH138: -6907 | CI138: -16914 | CN138: 19.75 | CP138: 238 | CQ138: 14745 | CS138: 1.433284097 | CT138: 83.79890111 | CU138: -6126.822652 | CY138: 31.79935718 | CZ138: 1893.930146 | DA138: 59.41667492 | DB138: 11634.52018 | DD138: 56808 | DE138: 140161 | DF138: 3050 | DG138: -80303 | DH138: 61308 | DI138: 33491 | DL138: -375 | DM138: 53 | DN138: 14174 | DO138: 8517 | DP138: -191 | DR138: 5466 | DS138: -18 | DT138: -5 | DU138: 48 | DV138: 1 | DW138: 5396 | DX138: 13257 | DY138: 10001 | EA138: -280 | EB138: -9774 | EC138: -6584 | EH138: 20.25 | EJ138: 148 | EQ138: -14632 | ER138: 176 | ES138: 1198 | ET138: -18551 | EU138: 78 | EV138: 3001 | EW138: -21048 | EX138: 356 | EY138: 4107 | EZ138: 8554 | FA138: 5987 | FB138: 27522 | FC138: 215 | FD138: 30596 | FE138: -157 | FF138: 65431 | FG138: 44444 | FH138: 20987 | FI138: 1 | FJ138: 84874 | FK138: 62919 | FL138: 21955 | FM138: 1 | FN138: 105539 | FO138: 81755 | FP138: 23784 | FQ138: -280 | FR138: 2242 | FS138: 1937 | FT138: 1944 | FU138: 7999 | FV138: 20359
A139: 435 | B139: Luhanka | C139: 707 | E139: 1.419263456 | F139: 59.4497012 | G139: -4002.828854 | K139: 48.45296385 | L139: 1991.513437 | M139: 58.47309136 | N139: 12431.40028 | P139: 2621 | Q139: 7452 | R139: 0 | S139: -4831 | T139: 2452 | U139: 2959 | X139: 6 | Y139: -99 | Z139: 487 | AA139: 357 | AB139: 69 | AD139: 199 | AE139: 0 | AF139: 0 | AG139: 0 | AH139: 0 | AI139: 199 | AJ139: 2174 | AK139: 553 | AM139: 99 | AN139: -339 | AO139: -329 | AT139: 18.5 | AV139: 77 | AW139: 690 | AY139: 0.4822335025 | AZ139: 60.29559118 | BA139: -4734.782609 | BE139: 35.17925736 | BF139: 1807.246377 | BG139: 59.05090199 | BH139: 12613.04348 | BJ139: 2553 | BK139: 7929 | BL139: 0 | BM139: -5376 | BN139: 2642 | BO139: 2789 | BR139: -13 | BS139: 29 | BT139: 71 | BU139: 361 | BV139: -1111 | BX139: -1401 | BY139: -2 | BZ139: 0 | CA139: 0 | CB139: 0 | CC139: -1403 | CD139: 776 | CE139: 90 | CG139: 223 | CH139: -173 | CI139: -455 | CN139: 18.5 | CP139: 259 | CQ139: 699 | CS139: 3.724409449 | CT139: 70.99490098 | CU139: -5450.643777 | CY139: 39.03283228 | CZ139: 2316.165951 | DA139: 71.93365794 | DB139: 11752.50358 | DD139: 2832 | DE139: 7478 | DF139: 0 | DG139: -4646 | DH139: 2647 | DI139: 2954 | DL139: -25 | DM139: -9 | DN139: 921 | DO139: 349 | DP139: 0 | DR139: 572 | DS139: 5 | DT139: 0 | DU139: -2 | DV139: 0 | DW139: 579 | DX139: 1412 | DY139: -145 | EA139: -241 | EB139: -229 | EC139: -562 | EH139: 18.5 | EJ139: 49 | EQ139: -882 | ER139: -1 | ES139: 1 | ET139: -575 | EU139: 1 | EV139: 29 | EW139: -480 | EX139: 0 | EY139: 63 | EZ139: 428 | FA139: 94 | FB139: 521 | FC139: -99 | FD139: 1211 | FE139: 185 | FF139: 3310 | FG139: 3310 | FH139: 0 | FI139: 0 | FJ139: 3865 | FK139: 3654 | FL139: 211 | FM139: 0 | FN139: 4984 | FO139: 4530 | FP139: 454 | FQ139: -241 | FR139: 5304 | FS139: 1121 | FT139: 10 | FU139: 21 | FV139: 100
A140: 436 | B140: Lumijoki | C140: 2052 | E140: 1.692037471 | F140: 69.86207683 | G140: -4714.424951 | K140: 27.6375512 | L140: 511.6959064 | M140: 19.92979719 | N140: 9371.345029 | P140: 5172 | Q140: 16090 | R140: -18 | S140: -10936 | T140: 5692 | U140: 6682 | X140: -70 | Y140: 5 | Z140: 1373 | AA140: 1289 | AB140: 90 | AD140: 174 | AE140: 10 | AF140: -11 | AG140: -7 | AH140: -16 | AI140: 150 | AJ140: 1147 | AK140: 1376 | AM140: -385 | AN140: -782 | AO140: -687 | AT140: 21 | AV140: 84 | AW140: 2020 | AY140: 2.393203883 | AZ140: 71.04889545 | BA140: -4704.950495 | BE140: 29.36414954 | BF140: 855.9405941 | BG140: 21.29876626 | BH140: 8907.920792 | BJ140: 4962 | BK140: 16175 | BL140: 36 | BM140: -11177 | BN140: 5910 | BO140: 6737 | BR140: -55 | BS140: 6 | BT140: 1421 | BU140: 1025 | BV140: 0 | BX140: 396 | BY140: 18 | BZ140: -1 | CA140: 6 | CB140: -12 | CC140: 395 | CD140: 1542 | CE140: 1333 | CG140: 256 | CH140: -560 | CI140: 179 | CN140: 21 | CP140: 58 | CQ140: 2036 | CS140: 3.971544715 | CT140: 67.60830667 | CU140: -4483.791749 | CY140: 30.3527309 | CZ140: 952.3575639 | DA140: 37.85488875 | DB140: 9182.711198 | DD140: 5179 | DE140: 16518 | DF140: 20 | DG140: -11319 | DH140: 5850 | DI140: 7414 | DL140: -46 | DM140: 5 | DN140: 1904 | DO140: 1620 | DP140: 0 | DR140: 284 | DS140: 8 | DT140: 8 | DU140: 9 | DV140: -14 | DW140: 277 | DX140: 1818 | DY140: 1807 | EA140: -125 | EB140: -442 | EC140: 410 | EH140: 21 | EJ140: 163 | EQ140: -2280 | ER140: 13 | ES140: 204 | ET140: -1195 | EU140: 0 | EV140: 41 | EW140: -1681 | EX140: 21 | EY140: 263 | EZ140: 1409 | FA140: -9 | FB140: 408 | FC140: 55 | FD140: 753 | FE140: -690 | FF140: 9339 | FG140: 5148 | FH140: 4191 | FI140: 1 | FJ140: 9239 | FK140: 5094 | FL140: 4145 | FM140: 1 | FN140: 8860 | FO140: 5471 | FP140: 3389 | FQ140: -125 | FR140: 0 | FS140: 0 | FT140: 0 | FU140: 151 | FV140: 516
A141: 440 | B141: Luoto | C141: 5340 | E141: 2.766248575 | F141: 109.9469983 | G141: -5279.962547 | K141: 39.24206429 | L141: 2264.794007 | M141: 103.5931193 | N141: 7979.775281 | P141: 9706 | Q141: 35420 | R141: 0 | S141: -25714 | T141: 15056 | U141: 13350 | X141: 81 | Y141: -377 | Z141: 2396 | AA141: 2261 | AB141: -2 | AD141: 133 | AE141: 0 | AF141: 94 | AG141: -24 | AH141: 0 | AI141: 203 | AJ141: 17505 | AK141: 2304 | AM141: -234 | AN141: -847 | AO141: -3010 | AT141: 19.5 | AV141: 160 | AW141: 5417 | AY141: 3.829131653 | AZ141: 113.7075013 | BA141: -5422.558612 | BE141: 36.54664737 | BF141: 2405.94425 | BG141: 106.6066429 | BH141: 7647.775522 | BJ141: 10002 | BK141: 37482 | BL141: 0 | BM141: -27480 | BN141: 15769 | BO141: 13142 | BR141: 80 | BS141: -182 | BT141: 1329 | BU141: 2599 | BV141: -2 | BX141: -1272 | BY141: 0 | BZ141: 65 | CA141: 13 | CB141: 0 | CC141: -1220 | CD141: 16225 | CE141: 1460 | CG141: -290 | CH141: -319 | CI141: -1173 | CN141: 19.5 | CP141: 230 | CQ141: 5534 | CS141: 8.871369295 | CT141: 108.2361242 | CU141: -5572.822551 | CY141: 36.93680495 | CZ141: 2483.9176 | DA141: 109.6939155 | DB141: 8265.088544 | DD141: 9982 | DE141: 37979 | DF141: 0 | DG141: -27997 | DH141: 17011 | DI141: 15527 | DL141: 70 | DM141: -373 | DN141: 4238 | DO141: 2501 | DP141: 1 | DR141: 1738 | DS141: 0 | DT141: -87 | DU141: 0 | DV141: 0 | DW141: 1651 | DX141: 17281 | DY141: 4425 | EA141: 346 | EB141: -444 | EC141: -1556 | EH141: 19.5 | EJ141: 234 | EQ141: -5699 | ER141: 196 | ES141: 189 | ET141: -3074 | EU141: 191 | EV141: 250 | EW141: -6699 | EX141: 482 | EY141: 236 | EZ141: 257 | FA141: 2492 | FB141: 1384 | FC141: -125 | FD141: 464 | FE141: 1824 | FF141: 41322 | FG141: 11150 | FH141: 30172 | FI141: 0 | FJ141: 43022 | FK141: 12548 | FL141: 30474 | FM141: 0 | FN141: 45135 | FO141: 12726 | FP141: 32409 | FQ141: 346 | FR141: 0 | FS141: 55 | FT141: 12 | FU141: 154 | FV141: 167
A142: 441 | B142: Luumäki | C142: 4662 | E142: 0.3072992701 | F142: 50.8185973 | G142: -2106.606607 | K142: 55.17987642 | L142: 2964.178464 | M142: 87.28041184 | N142: 12395.9674 | P142: 23540 | Q142: 51657 | R142: -40 | S142: -28157 | T142: 16301 | U142: 12016 | X142: -46 | Y142: 152 | Z142: 266 | AA142: 3297 | AB142: 0 | AD142: -3031 | AE142: 1 | AF142: 3 | AG142: 0 | AH142: -11 | AI142: -3038 | AJ142: 15904 | AK142: 1274 | AM142: 55 | AN142: -1215 | AO142: -2688 | AT142: 20.5 | AV142: 279 | AW142: 4636 | AY142: 2.026998962 | AZ142: 48.48930355 | BA142: -2671.699741 | BE142: 55.35545024 | BF142: 2243.097498 | BG142: 87.39231755 | BH142: 12449.52545 | BJ142: 23878 | BK142: 52358 | BL142: -45 | BM142: -28525 | BN142: 16787 | BO142: 12390 | BR142: -77 | BS142: 1268 | BT142: 1843 | BU142: 3500 | BV142: 262 | BX142: -1395 | BY142: 31 | BZ142: 7 | CA142: 0 | CB142: -13 | CC142: -1370 | CD142: 14473 | CE142: 922 | CG142: -227 | CH142: -854 | CI142: -2623 | CN142: 20.5 | CP142: 163 | CQ142: 4543 | CS142: 2.452302632 | CT142: 45.98818912 | CU142: -2179.176755 | CY142: 53.68229449 | CZ142: 2947.61171 | DA142: 86.17572905 | DB142: 12484.70174 | DD142: 24814 | DE142: 54111 | DF142: -43 | DG142: -29340 | DH142: 17465 | DI142: 14279 | DL142: 97 | DM142: 361 | DN142: 2862 | DO142: 3585 | DP142: 34 | DR142: -689 | DS142: 31 | DT142: 4 | DU142: 12 | DV142: -13 | DW142: -679 | DX142: 13406 | DY142: 3053 | EA142: 221 | EB142: -1096 | EC142: 2231 | EH142: 20.5 | EJ142: 268 | EQ142: -4337 | ER142: 36 | ES142: 339 | ET142: -4313 | EU142: 329 | EV142: 439 | EW142: -941 | EX142: 74 | EY142: 45 | EZ142: 1102 | FA142: -39 | FB142: 1000 | FC142: -152 | FD142: 717 | FE142: 435 | FF142: 19697 | FG142: 18517 | FH142: 1180 | FI142: 268 | FJ142: 19676 | FK142: 18671 | FL142: 1005 | FM142: 268 | FN142: 19770 | FO142: 18354 | FP142: 1416 | FQ142: 221 | FR142: 2186 | FS142: 2170 | FT142: 2144 | FU142: 3451 | FV142: 2992
A143: 475 | B143: Maalahti | C143: 5477 | E143: 1.006387226 | F143: 69.0898046 | G143: -6630.272047 | K143: 33.64188917 | L143: 309.6585722 | M143: 9.310692316 | N143: 12139.30984 | P143: 23754 | Q143: 56751 | R143: -9 | S143: -33006 | T143: 19062 | U143: 16446 | X143: -142 | Y143: 13 | Z143: 2373 | AA143: 2852 | AB143: 0 | AD143: -479 | AE143: 15 | AF143: 11 | AG143: -19 | AH143: 0 | AI143: -472 | AJ143: 5184 | AK143: 2074 | AM143: -385 | AN143: -2357 | AO143: -4026 | AT143: 21.5 | AV143: 169 | AW143: 5475 | AY143: 0.7448575949 | AZ143: 78.6258537 | BA143: -7800 | BE143: 29.34896795 | BF143: 297.8995434 | BG143: 8.857373697 | BH143: 12772.78539 | BJ143: 24533 | BK143: 58923 | BL143: -10 | BM143: -34400 | BN143: 20116 | BO143: 16116 | BR143: -152 | BS143: 46 | BT143: 1726 | BU143: 2978 | BV143: 0 | BX143: -1252 | BY143: -1 | BZ143: 9 | CA143: 24 | CB143: 4 | CC143: -1264 | CD143: 4052 | CE143: 1652 | CG143: -508 | CH143: -2371 | CI143: -6383 | CN143: 21.5 | CP143: 203 | CQ143: 5451 | CS143: 1.917104276 | CT143: 78.28303002 | CU143: -7620.986975 | CY143: 31.35379766 | CZ143: 854.3386535 | DA143: 24.95126606 | DB143: 12497.70684 | DD143: 24445 | DE143: 57548 | DF143: -15 | DG143: -33118 | DH143: 20129 | DI143: 18013 | DL143: -147 | DM143: 78 | DN143: 4955 | DO143: 3195 | DP143: 1812 | DR143: 3572 | DS143: -6 | DT143: 0 | DU143: 8 | DV143: -13 | DW143: 3545 | DX143: 6715 | DY143: 5411 | EA143: 645 | EB143: -2510 | EC143: 1190 | EH143: 21.5 | EJ143: 187 | EQ143: -7195 | ER143: 742 | ES143: 353 | ET143: -8452 | EU143: 265 | EV143: 152 | EW143: -7884 | EX143: 1804 | EY143: 1859 | EZ143: 10750 | FA143: -4563 | FB143: 198 | FC143: 8441 | FD143: 5669 | FE143: -2094 | FF143: 29590 | FG143: 24797 | FH143: 4793 | FI143: 27 | FJ143: 35858 | FK143: 22625 | FL143: 13233 | FM143: 3 | FN143: 36923 | FO143: 25784 | FP143: 11139 | FQ143: 645 | FR143: 1033 | FS143: 1033 | FT143: 952 | FU143: 983 | FV143: 999
A144: 480 | B144: Marttila | C144: 2018 | E144: 1.533604888 | F144: 32.21464779 | G144: -1893.95441 | K144: 58.38335893 | L144: 404.8562934 | M144: 17.03736502 | N144: 8673.439049 | P144: 6415 | Q144: 16416 | R144: 0 | S144: -10001 | T144: 6243 | U144: 4505 | X144: -35 | Y144: 3 | Z144: 715 | AA144: 710 | AB144: 0 | AD144: 5 | AE144: 0 | AF144: 7 | AG144: 0 | AH144: 0 | AI144: 12 | AJ144: 3499 | AK144: 699 | AM144: 53 | AN144: -453 | AO144: 433 | AT144: 20.75 | AV144: 196 | AW144: 2013 | AY144: 20.14285714 | AZ144: 39.1510767 | BA144: -1822.155986 | BE144: 52.9534928 | BF144: 1094.883259 | BG144: 16.8410798 | BH144: 8796.323895 | BJ144: 6488 | BK144: 16995 | BL144: 0 | BM144: -10507 | BN144: 6671 | BO144: 4534 | BR144: -32 | BS144: 4 | BT144: 670 | BU144: 702 | BV144: 0 | BX144: -32 | BY144: 0 | BZ144: 4 | CA144: 0 | CB144: 0 | CC144: -28 | CD144: 3481 | CE144: 667 | CG144: -227 | CH144: 0 | CI144: 49 | CN144: 20.75 | CP144: 196 | CQ144: 1999 | CS144: 43.58823529 | CT144: 36.27456317 | CU144: -1590.295148 | CY144: 55.85451846 | CZ144: 1239.61981 | DA144: 50.60255119 | DB144: 8941.470735 | DD144: 6582 | DE144: 16897 | DF144: 0 | DG144: -10315 | DH144: 6754 | DI144: 5035 | DL144: -31 | DM144: 5 | DN144: 1448 | DO144: 780 | DP144: 0 | DR144: 668 | DS144: 0 | DT144: -243 | DU144: 0 | DV144: 0 | DW144: 425 | DX144: 4165 | DY144: 1389 | EA144: 47 | EB144: 0 | EC144: 540 | EH144: 20.75 | EJ144: 253 | EQ144: -595 | ER144: 281 | ES144: 48 | ET144: -676 | EU144: 40 | EV144: 18 | EW144: -943 | EX144: 13 | EY144: 81 | EZ144: 0 | FA144: 0 | FB144: 0 | FC144: 986 | FD144: 0 | FE144: -576 | FF144: 3098 | FG144: 2784 | FH144: 314 | FI144: 1 | FJ144: 4084 | FK144: 3578 | FL144: 506 | FM144: 0 | FN144: 3508 | FO144: 2903 | FP144: 605 | FQ144: 47 | FR144: 0 | FS144: 0 | FT144: 0 | FU144: 777 | FV144: 896
A145: 481 | B145: Masku | C145: 9554 | E145: 1.124287749 | F145: 75.23132189 | G145: -5518.002931 | K145: 24.5298339 | L145: 506.1754239 | M145: 19.273033 | N145: 9586.14193 | P145: 33154 | Q145: 79578 | R145: 2 | S145: -46422 | T145: 40329 | U145: 9194 | X145: -170 | Y145: 55 | Z145: 2986 | AA145: 3983 | AB145: 0 | AD145: -997 | AE145: 6 | AF145: 0 | AG145: -8 | AH145: 24 | AI145: -975 | AJ145: -545 | AK145: 2740 | AM145: 115 | AN145: -2637 | AO145: -5962 | AT145: 20.75 | AV145: 211 | AW145: 9534 | AY145: 0.8365200765 | AZ145: 84.76486035 | BA145: -6250.052444 | BE145: 21.24439401 | BF145: 665.7226767 | BG145: 19.21784668 | BH145: 9633.836795 | BJ145: 34500 | BK145: 81265 | BL145: 13 | BM145: -46752 | BN145: 40315 | BO145: 8965 | BR145: -201 | BS145: 91 | BT145: 2418 | BU145: 3977 | BV145: 0 | BX145: -1559 | BY145: 0 | BZ145: 0 | CA145: 0 | CB145: 0 | CC145: -1559 | CD145: -1221 | CE145: 1722 | CG145: -437 | CH145: -2931 | CI145: -4502 | CN145: 20.75 | CP145: 226 | CQ145: 9543 | CS145: 2.380728879 | CT145: 72.75509979 | CU145: -5615.739285 | CY145: 25.61305785 | CZ145: 782.8775018 | DA145: 31.36872922 | DB145: 9109.39956 | DD145: 35511 | DE145: 82042 | DF145: 16 | DG145: -46515 | DH145: 43242 | DI145: 11741 | DL145: -150 | DM145: 103 | DN145: 8421 | DO145: 4855 | DP145: 100 | DR145: 3666 | DS145: -4 | DT145: 0 | DU145: 36 | DV145: 2 | DW145: 3628 | DX145: 2699 | DY145: 7847 | EA145: 304 | EB145: -3420 | EC145: 7717 | EH145: 20.75 | EJ145: 197 | EQ145: -9171 | ER145: 52 | ES145: 417 | ET145: -7434 | EU145: 13 | EV145: 1197 | EW145: -1252 | EX145: 239 | EY145: 883 | EZ145: 7604 | FA145: 0 | FB145: 8892 | FC145: 0 | FD145: -4867 | FE145: 0 | FF145: 47417 | FG145: 21424 | FH145: 25993 | FI145: 0 | FJ145: 56308 | FK145: 23809 | FL145: 32499 | FM145: 192 | FN145: 50701 | FO145: 21640 | FP145: 29061 | FQ145: 304 | FR145: 452 | FS145: 1247 | FT145: 1071 | FU145: 5291 | FV145: 6362
A146: 483 | B146: Merijärvi | C146: 1104 | E146: 0.4792899408 | F146: 50.84084605 | G146: -2074.275362 | K146: 52.86678563 | L146: 2746.376812 | M146: 82.41584748 | N146: 12163.04348 | P146: 4465 | Q146: 11361 | R146: 12 | S146: -6884 | T146: 2578 | U146: 4493 | X146: -22 | Y146: 55 | Z146: 220 | AA146: 579 | AB146: 77 | AD146: -282 | AE146: 0 | AF146: -1 | AG146: 0 | AH146: -1 | AI146: -284 | AJ146: 2496 | AK146: 210 | AM146: 8 | AN146: -484 | AO146: -1116 | AT146: 21.5 | AV146: 250 | AW146: 1089 | AY146: -0.2332506203 | AZ146: 58.73083475 | BA146: -2796.143251 | BE146: 46.31187931 | BF146: 2926.538108 | BG146: 85.345878 | BH146: 11907.25436 | BJ146: 4599 | BK146: 12031 | BL146: 51 | BM146: -7381 | BN146: 2657 | BO146: 4484 | BR146: -22 | BS146: 145 | BT146: -117 | BU146: 614 | BV146: 0 | BX146: -731 | BY146: 0 | BZ146: 3 | CA146: 0 | CB146: 0 | CC146: -728 | CD146: 1763 | CE146: -191 | CG146: -123 | CH146: -380 | CI146: -704 | CN146: 22 | CP146: 281 | CQ146: 1078 | CS146: 1.507413509 | CT146: 61.48643075 | CU146: -2632.653061 | CY146: 45.2131477 | CZ146: 3781.076067 | DA146: 117.015888 | DB146: 11794.06308 | DD146: 4705 | DE146: 11282 | DF146: 12 | DG146: -6565 | DH146: 2736 | DI146: 4682 | DL146: -14 | DM146: 61 | DN146: 900 | DO146: 570 | DP146: 0 | DR146: 330 | DS146: 0 | DT146: 1 | DU146: 0 | DV146: 0 | DW146: 331 | DX146: 1987 | DY146: 891 | EA146: 99 | EB146: -592 | EC146: 267 | EH146: 22 | EJ146: 214 | EQ146: -1423 | ER146: 4 | ES146: 93 | ET146: -579 | EU146: 10 | EV146: 56 | EW146: -782 | EX146: 2 | EY146: 156 | EZ146: 803 | FA146: -10 | FB146: 749 | FC146: 499 | FD146: 1044 | FE146: 108 | FF146: 3959 | FG146: 2526 | FH146: 1433 | FI146: 89 | FJ146: 4762 | FK146: 2912 | FL146: 1850 | FM146: 87 | FN146: 5311 | FO146: 3304 | FP146: 2007 | FQ146: 99 | FR146: 459 | FS146: 321 | FT146: 295 | FU146: 161 | FV146: 104
A147: 484 | B147: Merikarvia | C147: 3115 | E147: -0.475 | F147: 21.17132594 | G147: -931.9422151 | K147: 73.98615232 | L147: 781.3804173 | M147: 26.00655719 | N147: 10966.61316 | P147: 11006 | Q147: 32134 | R147: -8 | S147: -21136 | T147: 9286 | U147: 11723 | X147: -17 | Y147: 31 | Z147: -113 | AA147: 1631 | AB147: 0 | AD147: -1744 | AE147: 0 | AF147: -28 | AG147: 0 | AH147: 0 | AI147: -1772 | AJ147: 4510 | AK147: -119 | AM147: 372 | AN147: -182 | AO147: -1846 | AT147: 19.5 | AV147: 284 | AW147: 3067 | AY147: 1.997416021 | AZ147: 27.83180345 | BA147: -1637.756766 | BE147: 67.25420665 | BF147: 733.6159113 | BG147: 25.93067361 | BH147: 11776.65471 | BJ147: 11415 | BK147: 32354 | BL147: 1 | BM147: -20938 | BN147: 10012 | BO147: 11582 | BR147: 14 | BS147: 88 | BT147: 758 | BU147: 1698 | BV147: 0 | BX147: -940 | BY147: 1 | BZ147: -90 | CA147: 1 | CB147: 0 | CC147: -1030 | CD147: 3606 | CE147: 722 | CG147: -399 | CH147: -372 | CI147: -2223 | CN147: 20.5 | CP147: 229 | CQ147: 3066 | CS147: 5.868686869 | CT147: 26.16102153 | CU147: -359.0998043 | CY147: 68.05503652 | CZ147: 1135.029354 | DA147: 36.72053424 | DB147: 11282.12655 | DD147: 11104 | DE147: 32293 | DF147: -3 | DG147: -21192 | DH147: 11297 | DI147: 12762 | DL147: -4 | DM147: 22 | DN147: 2885 | DO147: 1748 | DP147: 0 | DR147: 1137 | DS147: 1 | DT147: -1 | DU147: 1 | DV147: -13 | DW147: 1123 | DX147: 4333 | DY147: 2776 | EA147: -2611 | EB147: -475 | EC147: 3817 | EH147: 20.5 | EJ147: 157 | EQ147: -1811 | ER147: 11 | ES147: 73 | ET147: -3375 | EU147: 270 | EV147: 160 | EW147: -1801 | EX147: 48 | EY147: 2794 | EZ147: 236 | FA147: -8 | FB147: 2724 | FC147: 129 | FD147: 36 | FE147: 89 | FF147: 2395 | FG147: 2113 | FH147: 282 | FI147: 0 | FJ147: 4891 | FK147: 4443 | FL147: 448 | FM147: 0 | FN147: 4554 | FO147: 3983 | FP147: 571 | FQ147: -2611 | FR147: 153 | FS147: 151 | FT147: 149 | FU147: 335 | FV147: 303
A148: 489 | B148: Miehikkälä | C148: 1940 | E148: 1.201101928 | F148: 48.11863032 | G148: -4860.309278 | K148: 52.22837464 | L148: 1388.14433 | M148: 33.48931893 | N148: 15129.38144 | P148: 14853 | Q148: 27376 | R148: 1 | S148: -12522 | T148: 5617 | U148: 7887 | X148: -33 | Y148: -123 | Z148: 826 | AA148: 1320 | AB148: 0 | AD148: -494 | AE148: 0 | AF148: -9 | AG148: 0 | AH148: -12 | AI148: -515 | AJ148: 5336 | AK148: 818 | AM148: -189 | AN148: -680 | AO148: -233 | AT148: 20 | AV148: 172 | AW148: 1857 | AY148: 1.972972973 | AZ148: 53.88968028 | BA148: -4907.377491 | BE148: 53.75547322 | BF148: 1850.83468 | BG148: 38.19635502 | BH148: 13857.83522 | BJ148: 11533 | BK148: 23844 | BL148: -4 | BM148: -12315 | BN148: 5882 | BO148: 7857 | BR148: -23 | BS148: 20 | BT148: 1421 | BU148: 1251 | BV148: 0 | BX148: 170 | BY148: 0 | BZ148: -5 | CA148: 0 | CB148: -13 | CC148: 152 | CD148: 5487 | CE148: 1410 | CG148: 456 | CH148: -701 | CI148: 285 | CN148: 20.5 | CP148: 45 | CQ148: 1868 | CS148: 2.926315789 | CT148: 51.56008883 | CU148: -4359.743041 | CY148: 54.49697129 | CZ148: 2279.978587 | DA148: 58.9263106 | DB148: 14122.59101 | DD148: 12504 | DE148: 24370 | DF148: -4 | DG148: -11870 | DH148: 5843 | DI148: 8222 | DL148: -28 | DM148: 19 | DN148: 2186 | DO148: 1584 | DP148: 0 | DR148: 602 | DS148: 0 | DT148: 0 | DU148: 0 | DV148: 15 | DW148: 617 | DX148: 6105 | DY148: 2160 | EA148: -227 | EB148: -722 | EC148: 944 | EH148: 20.5 | EJ148: 84 | EQ148: -1109 | ER148: 72 | ES148: -14 | ET148: -1147 | EU148: 38 | EV148: -16 | EW148: -1244 | EX148: 0 | EY148: 28 | EZ148: 192 | FA148: -5 | FB148: 707 | FC148: 1996 | FD148: 253 | FE148: 3 | FF148: 9278 | FG148: 4578 | FH148: 4700 | FI148: 0 | FJ148: 11278 | FK148: 4569 | FL148: 6709 | FM148: 0 | FN148: 10822 | FO148: 4099 | FP148: 6723 | FQ148: -227 | FR148: 305 | FS148: 304 | FT148: 303 | FU148: 28 | FV148: 331
A149: 491 | B149: Mikkeli | C149: 53818 | E149: 0.8854087089 | F149: 106.0014247 | G149: -10371.84585 | K149: 29.25227593 | L149: 554.6099818 | M149: 15.85107049 | N149: 12770.91308 | P149: 266352 | Q149: 561229 | R149: -78 | S149: -294955 | T149: 197629 | U149: 136843 | X149: -3718 | Y149: -723 | Z149: 35076 | AA149: 46197 | AB149: 144 | AD149: -10977 | AE149: 253 | AF149: 0 | AG149: -1042 | AH149: -595 | AI149: -12361 | AJ149: 47738 | AK149: 31138 | AM149: 3413 | AN149: -40176 | AO149: -37141 | AT149: 20.5 | AV149: 91 | AW149: 53134 | AY149: 0.8769840438 | AZ149: 115.4123262 | BA149: -11936.82012 | BE149: 25.72019549 | BF149: 531.2605864 | BG149: 14.68256668 | BH149: 13774.34411 | BJ149: 277059 | BK149: 579313 | BL149: -552 | BM149: -302806 | BN149: 202124 | BO149: 141236 | BR149: -3727 | BS149: 522 | BT149: 37349 | BU149: 50093 | BV149: 0 | BX149: -12744 | BY149: 11 | BZ149: 0 | CA149: 969 | CB149: -923 | CC149: -14625 | CD149: 20388 | CE149: 30856 | CG149: -4248 | CH149: -43216 | CI149: -57450 | CN149: 20.5 | CP149: 59 | CQ149: 52583 | CS149: 1.405660935 | CT149: 111.4772161 | CU149: -12449.13755 | CY149: 26.13547353 | CZ149: 472.4720917 | DA149: 12.42777125 | DB149: 13876.36689 | DD149: 265848 | DE149: 579665 | DF149: 295 | DG149: -313522 | DH149: 220435 | DI149: 165382 | DL149: -4469 | DM149: -1526 | DN149: 66300 | DO149: 55903 | DP149: 0 | DR149: 10397 | DS149: -523 | DT149: 0 | DU149: 614 | DV149: 71 | DW149: 9331 | DX149: 30249 | DY149: 64960 | EA149: 6559 | EB149: -45705 | EC149: -25764 | EH149: 22 | EJ149: 61 | EQ149: -79687 | ER149: 1457 | ES149: 9951 | ET149: -101631 | EU149: 2568 | EV149: 10757 | EW149: -95999 | EX149: 2999 | EY149: 2276 | EZ149: 77782 | FA149: -19300 | FB149: 111056 | FC149: -12502 | FD149: 85783 | FE149: -26593 | FF149: 523530 | FG149: 423788 | FH149: 99742 | FI149: 25301 | FJ149: 581069 | FK149: 489209 | FL149: 91860 | FM149: 24156 | FN149: 594556 | FO149: 527602 | FP149: 66954 | FQ149: 6559 | FR149: 5436 | FS149: 4996 | FT149: 3222 | FU149: 55357 | FV149: 38257
A150: 494 | B150: Muhos | C150: 8980 | E150: 0.4055313545 | F150: 68.80809246 | G150: -5587.750557 | K150: 32.85775912 | L150: 684.5211581 | M150: 22.2012171 | N150: 11253.89755 | P150: 32609 | Q150: 86278 | R150: 38 | S150: -53631 | T150: 30082 | U150: 27467 | X150: -390 | Y150: 54 | Z150: 3582 | AA150: 4828 | AB150: 483 | AD150: -763 | AE150: -3 | AF150: -50 | AG150: -2 | AH150: -4 | AI150: -822 | AJ150: 3132 | AK150: 3441 | AM150: -59 | AN150: -9450 | AO150: -307 | AT150: 21 | AV150: 182 | AW150: 8908 | AY150: 0.4144536793 | AZ150: 77.72330203 | BA150: -6664.571172 | BE150: 28.97820163 | BF150: 541.9847328 | BG150: 20.3115551 | BH150: 12400.31432 | BJ150: 33022 | BK150: 87574 | BL150: 41 | BM150: -54511 | BN150: 30871 | BO150: 27687 | BR150: -364 | BS150: 18 | BT150: 3701 | BU150: 5095 | BV150: 0 | BX150: -1394 | BY150: -1 | BZ150: -6 | CA150: 2 | CB150: -2 | CC150: -1405 | CD150: 1609 | CE150: 3421 | CG150: -1281 | CH150: -9478 | CI150: -9132 | CN150: 21.5 | CP150: 156 | CQ150: 8903 | CS150: 0.7551197836 | CT150: 80.48454452 | CU150: -7020.554869 | CY150: 25.64553716 | CZ150: 738.0658205 | DA150: 21.83116091 | DB150: 12339.88543 | DD150: 33937 | DE150: 88781 | DF150: 62 | DG150: -54782 | DH150: 30697 | DI150: 31869 | DL150: -336 | DM150: 8 | DN150: 7456 | DO150: 10149 | DP150: 0 | DR150: -2693 | DS150: -16 | DT150: 33 | DU150: 6 | DV150: -8 | DW150: -2690 | DX150: -969 | DY150: 7380 | EA150: -1607 | EB150: -9991 | EC150: -3141 | EH150: 21 | EJ150: 212 | EQ150: -4901 | ER150: 65 | ES150: 1088 | ET150: -13016 | EU150: 99 | EV150: 364 | EW150: -10683 | EX150: 93 | EY150: 69 | EZ150: 10681 | FA150: -500 | FB150: 16510 | FC150: 500 | FD150: 15985 | FE150: -1365 | FF150: 47543 | FG150: 33470 | FH150: 14073 | FI150: 54 | FJ150: 55080 | FK150: 39515 | FL150: 15565 | FM150: 54 | FN150: 59878 | FO150: 45390 | FP150: 14488 | FQ150: -1607 | FR150: 124 | FS150: 78 | FT150: 1177 | FU150: 745 | FV150: 7828
A151: 495 | B151: Multia | C151: 1584 | E151: 1.253164557 | F151: 35.7240559 | G151: -2234.217172 | K151: 48.73245813 | L151: 1108.585859 | M151: 35.41104972 | N151: 11426.76768 | P151: 5658 | Q151: 16182 | R151: 0 | S151: -10524 | T151: 5379 | U151: 5778 | X151: -4 | Y151: -46 | Z151: 583 | AA151: 651 | AB151: 0 | AD151: -68 | AE151: -1 | AF151: 12 | AG151: 0 | AH151: 0 | AI151: -57 | AJ151: 1112 | AK151: 482 | AM151: 569 | AN151: -463 | AO151: -752 | AT151: 22 | AV151: 192 | AW151: 1566 | AY151: -3.544615385 | AZ151: 40.52936786 | BA151: -2738.825032 | BE151: 34.7065818 | BF151: 1320.561941 | BG151: 31.19794707 | BH151: 13126.43678 | BJ151: 5936 | BK151: 18580 | BL151: 0 | BM151: -12644 | BN151: 5647 | BO151: 5834 | BR151: -4 | BS151: 7 | BT151: -1160 | BU151: 865 | BV151: 0 | BX151: -2025 | BY151: -23 | BZ151: -1 | CA151: 0 | CB151: 0 | CC151: -2049 | CD151: -851 | CE151: 379 | CG151: 571 | CH151: -317 | CI151: -738 | CN151: 22 | CP151: 290 | CQ151: 1558 | CS151: 5.588957055 | CT151: 42.91632983 | CU151: -3656.61104 | CY151: 39.9401442 | CZ151: 1436.456996 | DA151: 41.5625318 | DB151: 12614.89089 | DD151: 7831 | DE151: 17969 | DF151: 0 | DG151: -10138 | DH151: 5816 | DI151: 6145 | DL151: -7 | DM151: -4 | DN151: 1812 | DO151: 843 | DP151: 0 | DR151: 969 | DS151: -12 | DT151: 5 | DU151: 0 | DV151: 0 | DW151: 962 | DX151: 64 | DY151: -216 | EA151: 197 | EB151: -316 | EC151: -1382 | EH151: 22 | EJ151: 88 | EQ151: -1387 | ER151: 28 | ES151: 125 | ET151: -1553 | EU151: 2 | EV151: 434 | EW151: -1304 | EX151: 1 | EY151: 137 | EZ151: 703 | FA151: 194 | FB151: 1434 | FC151: -214 | FD151: 315 | FE151: 1763 | FF151: 3356 | FG151: 2352 | FH151: 1004 | FI151: -5 | FJ151: 4275 | FK151: 3549 | FL151: 726 | FM151: 0 | FN151: 6038 | FO151: 3602 | FP151: 2436 | FQ151: 197 | FR151: 2826 | FS151: 3046 | FT151: 1068 | FU151: 4037 | FV151: 3768
A152: 498 | B152: Muonio | C152: 2299 | E152: 1.164844407 | F152: 49.80946991 | G152: -4565.898217 | K152: 21.27181614 | L152: 534.5802523 | M152: 16.28848947 | N152: 11979.12136 | P152: 8627 | Q152: 25127 | R152: 0 | S152: -16500 | T152: 8650 | U152: 9228 | X152: -77 | Y152: 4 | Z152: 1305 | AA152: 1373 | AB152: 9 | AD152: -59 | AE152: 0 | AF152: 34 | AG152: 0 | AH152: 5 | AI152: -20 | AJ152: 738 | AK152: 1306 | AM152: -218 | AN152: -1109 | AO152: 241 | AT152: 21.5 | AV152: 125 | AW152: 2308 | AY152: 0.5709123758 | AZ152: 51.72542715 | BA152: -4735.701906 | BE152: 16.6511682 | BF152: 682.4090121 | BG152: 15.83483356 | BH152: 12274.26343 | BJ152: 8725 | BK152: 26117 | BL152: 0 | BM152: -17392 | BN152: 8856 | BO152: 9166 | BR152: -48 | BS152: 0 | BT152: 582 | BU152: 1405 | BV152: 0 | BX152: -823 | BY152: 0 | BZ152: 59 | CA152: 0 | CB152: 0 | CC152: -764 | CD152: -102 | CE152: 574 | CG152: 147 | CH152: -1057 | CI152: -461 | CN152: 21.5 | CP152: 227 | CQ152: 2297 | CS152: 2.531791908 | CT152: 44.3059953 | CU152: -4167.174576 | CY152: 24.9512562 | CZ152: 818.0235089 | DA152: 23.44174044 | DB152: 12737.04832 | DD152: 9220 | DE152: 26309 | DF152: 0 | DG152: -17089 | DH152: 9933 | DI152: 10220 | DL152: -39 | DM152: 0 | DN152: 3025 | DO152: 1411 | DP152: -1 | DR152: 1613 | DS152: 0 | DT152: 53 | DU152: 0 | DV152: 4 | DW152: 1670 | DX152: 1514 | DY152: 2960 | EA152: -235 | EB152: -1170 | EC152: 1341 | EH152: 21.5 | EJ152: 50 | EQ152: -1227 | ER152: 51 | ES152: 111 | ET152: -1091 | EU152: 45 | EV152: 11 | EW152: -1706 | EX152: 65 | EY152: 22 | EZ152: 19 | FA152: 389 | FB152: 1759 | FC152: 92 | FD152: 539 | FE152: -506 | FF152: 8900 | FG152: 4944 | FH152: 3956 | FI152: 31 | FJ152: 9700 | FK152: 5531 | FL152: 4169 | FM152: 5 | FN152: 8490 | FO152: 5013 | FP152: 3477 | FQ152: -235 | FR152: 0 | FS152: 0 | FT152: 400 | FU152: 4811 | FV152: 4831
A153: 499 | B153: Mustasaari | C153: 19444 | E153: 0.6225991743 | F153: 78.76591672 | G153: -5790.372351 | K153: 30.08933845 | L153: 395.3918947 | M153: 14.25251161 | N153: 10125.79716 | P153: 56879 | Q153: 157487 | R153: 272 | S153: -100336 | T153: 75323 | U153: 31855 | X153: -522 | Y153: 92 | Z153: 6412 | AA153: 9524 | AB153: 0 | AD153: -3112 | AE153: 16 | AF153: 24 | AG153: -31 | AH153: -32 | AI153: -3135 | AJ153: 8212 | AK153: 5009 | AM153: -1750 | AN153: -10617 | AO153: -20730 | AT153: 20.75 | AV153: 204 | AW153: 19448 | AY153: 0.7924082819 | AZ153: 85.73552922 | BA153: -6679.247223 | BE153: 27.48339316 | BF153: 347.4393254 | BG153: 13.90648462 | BH153: 10375.61703 | BJ153: 60090 | BK153: 161850 | BL153: 236 | BM153: -101524 | BN153: 76903 | BO153: 33143 | BR153: -575 | BS153: 200 | BT153: 8147 | BU153: 10042 | BV153: 0 | BX153: -1895 | BY153: 33 | BZ153: 19 | CA153: 11 | CB153: -3 | CC153: -1857 | CD153: 6583 | CE153: 6881 | CG153: -267 | CH153: -10433 | CI153: -18147 | CN153: 20.75 | CP153: 155 | CQ153: 19453 | CS153: 1.168857366 | CT153: 79.87659422 | CU153: -6664.062098 | CY153: 30.19530152 | CZ153: 368.9405233 | DA153: 13.06894659 | DB153: 10304.06621 | DD153: 59934 | DE153: 163901 | DF153: -24 | DG153: -103991 | DH153: 79370 | DI153: 42211 | DL153: -535 | DM153: 366 | DN153: 17421 | DO153: 11184 | DP153: 1572 | DR153: 7809 | DS153: 31 | DT153: 0 | DU153: 8 | DV153: -23 | DW153: 7809 | DX153: 14389 | DY153: 16973 | EA153: 746 | EB153: -14826 | EC153: -1199 | EH153: 20.75 | EJ153: 194 | EQ153: -28191 | ER153: 1017 | ES153: 1435 | ET153: -28827 | EU153: 2315 | EV153: 1484 | EW153: -21119 | EX153: 839 | EY153: 2108 | EZ153: 3776 | FA153: 25332 | FB153: 30358 | FC153: -1645 | FD153: 29125 | FE153: -15858 | FF153: 95233 | FG153: 39099 | FH153: 56134 | FI153: 29 | FJ153: 113515 | FK153: 54639 | FL153: 58876 | FM153: 22 | FN153: 111956 | FO153: 67946 | FP153: 44010 | FQ153: 746 | FR153: 70 | FS153: 66 | FT153: 62 | FU153: 2633 | FV153: 2364
